Workbook

Sheet Contents
C3: Sheet Tab | D3: Description | E3: Author | G3: =Audit!E22 -> Model ok
B4: 1 | C4: Contents
B5: 2 | C5: Project Summary
B6: 3 | C6: Valuation Summary
B7: 4 | C7: Master Scenario
B8: 5 | C8: Working
B9: 6 | C9: Audit
B10: 7 | C10: Construction Graph
B11: 8 | C11: Annual
B12: 9 | C12: Simple Debt Repayment
B13: 10 | C13: Refinancing
B14: 11 | C14: Tornado Chart
B15: 12 | C15: Circular
B16: 13 | C16: Other
B18: File Name: | D18: C:\Users\Monika\Documents\AIF Project Finance Model.xlsm
B20: Colour Codes
B22: Last Save Date | D22: 27/10/2013 20:04:24
B23: Last Save By | D23: Monika Lewenski

Sheet Project Summary
B2: Scenario | J2: Model Mode
B4: Operating Assumptions | H4: Returns | K4: Nominal | L4: Real | M4: MIRR
C5: Construction period | D5: =Working!F26 -> 24 | I5: Pre-tax Project IRR | K5: =Working!E597 -> 0.07097055018 | L5: =Working!F597 -> 0.08688110411 | M5: =Working!G597 -> 0.07661735527
C6: Construction Costs | D6: ='Master Scenario'!F34 -> 1800 | I6: Post-tax Project IRR | K6: =Working!G267 -> 0.1038867295 | L6: =Working!F598 -> 0.07549758852 | M6: =Working!G598 -> 0.07475404063
C7: Capacity factor | I7: Debt IRR before Tax | K7: =Working!E600 -> 0.05059945285 | L7: =Working!F600 -> 0.02429935634 | M7: =Working!G600 -> 0.06787557713
C8: Feed in Tariff | D8: ='Master Scenario'!H34 -> 60 | I8: Debt IRR after Tax | K8: =Working!E601 -> 0.04234618247 | L8: =Working!F601 -> 0.01613686979 | M8: =Working!G601 -> 0.06689918725
C9: Merchant Price | I9: Equity IRR | K9: =Working!E599 -> 0.1578619778 | L9: =Working!F599 -> 0.127617389 | M9: =Working!G599 -> 0.08331126487
C10: O&M Expenses | D10: ='Master Scenario'!$J$34 -> 20
C11: Inflation | H11: Credit
C12: Indexed FIT | D12: =Working!F62 -> FALSE | I12: Minimum DSCR | K12: =Working!H568 -> 1.315186764
B13: Financing Structure | I13: LLCR | K13: =Working!H574 -> 1.681480603
C14: Debt Sizing | I14: PLCR | K14: =Working!H579 -> 2.45652001
C15: DSCR Target | D15: =Working!F102 -> 1.35
C16: Gearing Ratio | D16: =Working!F101 -> 0.7 | K16: Amount | L16: Percent | M16: Per kW
H17: Uses of Funds | M17: =Working!I198 -> 60
C18: Repayment | I18: Construction | K18: =SUM(Working!312:312) -> 108000 | L18: =K18/$K$24 -> 0.8718971886 | M18: =K18/$M$17 -> 1800
C19: Funding | I19: Development Cost | K19: =SUM(Working!313:313) -> 5400 | L19: 0.04359485943 | M19: 90
C20: Debt Tenor | D20: =Working!F105 -> 13 | I20: Development Fees | K20: =Working!I145 -> 0 | L20: 0 | M20: 0
C21: Capitalise Interest | D21: =Working!F127 -> FALSE | I21: Interest During Construction | K21: =Working!I147 -> 4093.189877 | L21: 0.03304482172 | M21: 68.21983128
C22: DSRA | D22: =Working!F137 -> 6 | I22: Total Fees | K22: =Working!I148 -> 1933.352627 | L22: 0.01560819185 | M22: 32.22254379
C23: Cash Sweep Percent | D23: =Working!F138 -> 0 | I23: DSRA | K23: =Working!I149 -> 4441.272894 | L23: 0.03585493843 | M23: 74.0212149
C24: DSCR Covenant | D24: =Working!F139 -> 1.2 | J24: Total | K24: =SUM(K18:K23) -> 123867.8154 | L24: =K24/K24 -> 1 | M24: =K24/M17 -> 2064.46359
H25: Sources of Funds
B26: Re-financing | I26: Debt | K26: =Working!I154 -> 86707.47078 | L26: =K26/K28 -> 0.7 | M26: =K26/M17 -> 1445.124513
C27: Include Re-Financing | D27: =Working!F163 -> FALSE | I27: Equity | K27: =Working!I155 -> 37160.34462 | L27: =K27/K28 -> 0.3 | M27: =K27/M17 -> 619.339077
C28: Year of Re-Financing | D28: =Working!$F$164 -> 4 | I28: Total | K28: =SUM(K26:K27) -> 123867.8154 | L28: =K28/K28 -> 1 | M28: =K28/M17 -> 2064.46359
C29: Re-financing Target DSCR | D29: =Working!$F$167 -> 1.14
C30: Re-financing Tenor | D30: =Working!$F$168 -> 13 | F30: =Working!G171 ->  | J30: =Audit!E22 -> Model ok
N44: 37

Sheet Valuation Summary
C2: Scenario
C4: Year of Sale | E4: =Working!F182 -> 2020-05-01 | F4: =Working!F181 -> 7
C6: Include Re-finance | F6: ='Project Summary'!D27 -> FALSE
F8: Hold | G8: Sell
C9: Post-tax Project IRR | F9: ='Project Summary'!K6 -> 0.1038867295 | G9: =Working!E637 -> 0.123902756
C10: Equity IRR | F10: ='Project Summary'!K9 -> 0.1578619778 | G10: =Working!E647 -> 0.2011954486
C12: Optimal Holding Period | F12: =Working!K692 -> 2 | G12: =Working!L692 -> 3
C14: Maximum IRR | F14: =Working!K690 -> 0.1555884302 | G14: =Working!L690 -> 0.2688590944
C20: Model Sheet | F20: =sheet_name(Working!F652) -> Working
K633: FALSE | L633: FALSE
K634: FALSE | L634: FALSE
K635: FALSE | L635: FALSE
K636: FALSE | L636: FALSE
K637: FALSE | L637: FALSE
K638: FALSE | L638: FALSE
K639: FALSE | L639: FALSE
K640: FALSE | L640: FALSE
K641: FALSE | L641: FALSE
K642: FALSE | L642: FALSE
K643: FALSE | L643: FALSE
K644: FALSE | L644: FALSE
K645: FALSE | L645: FALSE
K646: FALSE | L646: FALSE
K647: FALSE | L647: FALSE
K648: FALSE | L648: FALSE
K649: FALSE | L649: FALSE
K650: FALSE | L650: FALSE
K651: FALSE | L651: FALSE
K652: FALSE | L652: FALSE
K653: FALSE | L653: FALSE
K654: FALSE | L654: FALSE
K655: FALSE | L655: FALSE
K656: FALSE | L656: FALSE
K657: FALSE | L657: FALSE
K658: FALSE | L658: FALSE
K659: FALSE | L659: FALSE
K660: FALSE | L660: FALSE
K661: FALSE | L661: FALSE
K662: FALSE | L662: FALSE

Sheet Master Scenario
D3: Scenario Number | E3: 1
D4: Holding period
D6: Model Mode (True -- Structuring) | E6: =Working!F97 -> TRUE
D8: Scenario Sheet | E8: =sheet_name(F8) -> Master Scenario
E13: Construction period | F13: Construction Cost | G13: Capacity Factor | H13: FIT | I13: Variable Price Code | J13: Operating Expense Level | K13: Inflation Index Code | L13: Scenraio Number | M13: Pre-tax Project IRR | N13: After-tax Project IRR | O13: Equity IRR | P13: DSCR | Q13: LLCR | R13: PLCR
M14: =Working!E638 -> 0.1038867295 | N14: ='Project Summary'!K6 -> 0.1038867295 | O14: =Working!E599 -> 0.1578619778 | P14: =Working!H568 -> 1.315186764 | Q14: =Working!H574 -> 1.681480603 | R14: =Working!H579 -> 2.45652001
C15: 1 | D15: Base Case | E15: 24 | F15: 1800 | G15: 1 | H15: 60 | I15: 1 | J15: 20 | K15: 1 | L15: 1 | M15: 0.1038867295 | N15: 0.1038867295 | O15: 0.1578619778 | P15: 1.315186764 | Q15: 1.681480603 | R15: 2.45652001
C16: =C15+1 -> 2 | D16: Low Case | E16: 30 | F16: 2500 | G16: 3 | H16: 50 | I16: 2 | J16: 25 | K16: 2 | L16: 2 | M16: 0.02676016986 | N16: 0.02676016986 | O16: 0.03079788387 | P16: 0.6098000227 | Q16: 0.8029441709 | R16: 1.197635337
C17: =C16+1 -> 3 | D17: High Case | E17: 20 | F17: 1000 | G17: 4 | H17: 70 | I17: 3 | J17: 15 | K17: 3 | L17: 3 | M17: 0.2863048494 | N17: 0.2863048494 | O17: 0.5735701025 | P17: 3.947248753 | Q17: 4.820910772 | R17: 7.456305249
C18: 4 | D18: =TRANSPOSE(E13:K13)&" Low Case" -> Construction period Low Case | E18: =E16 -> 30 | F18: =$F$15 -> 1800 | G18: =$G$15 -> 1 | H18: =H$15 -> 60 | I18: =$I$15 -> 1 | J18: =$J$15 -> 20 | K18: =K$15 -> 1 | L18: 4 | M18: 0.1006162226 | N18: 0.1006162226 | O18: 0.1513487399 | P18: 1.285316164 | Q18: 1.668971563 | R18: 2.439554587
C19: 5 | D19: Construction Cost Low Case | E19: =E$15 -> 24 | F19: =F16 -> 2500 | G19: =$G$15 -> 1 | H19: =H$15 -> 60 | I19: =$I$15 -> 1 | J19: =$J$15 -> 20 | K19: =K$15 -> 1 | L19: 5 | M19: 0.06922979653 | N19: 0.06922979653 | O19: 0.08174423277 | P19: 0.9469344701 | Q19: 1.266538672 | R19: 1.824567045
C20: 6 | D20: Capacity Factor Low Case | E20: 24 | F20: =$F$15 -> 1800 | G20: =G16 -> 3 | H20: 60 | I20: 1 | J20: 20 | K20: 1 | L20: 6 | M20: 0.08770603836 | N20: 0.08770603836 | O20: 0.1221839011 | P20: 1.157364352 | Q20: 1.476212938 | R20: 2.154372419
C21: 7 | D21: FIT Low Case | E21: 24 | F21: 1800 | G21: 1 | H21: =H16 -> 50 | I21: 1 | J21: 20 | K21: 1 | L21: 7 | M21: 0.08957708776 | N21: 0.08957708776 | O21: 0.1265529215 | P21: 1.162311673 | Q21: 1.501860415 | R21: 2.181007732
C22: 8 | D22: Variable Price Code Low Case | E22: 24 | F22: 1800 | G22: 1 | H22: 60 | I22: =I16 -> 2 | J22: 20 | K22: 1 | L22: 8 | M22: 0.1023448408 | N22: 0.1023448408 | O22: 0.1535711706 | P22: 1.235599521 | Q22: 1.661488401 | R22: 2.436527808
C23: 9 | D23: Operating Expense Level Low Case | E23: 24 | F23: 1800 | G23: 1 | H23: 60 | I23: 1 | J23: =J16 -> 25 | K23: 1 | L23: 9 | M23: 0.09657788873 | N23: 0.09657788873 | O23: 0.1425530851 | P23: 1.235599521 | Q23: 1.588162447 | R23: 2.313280137
C24: 10 | D24: Inflation Index Code Low Case | E24: 24 | F24: 1800 | G24: 1 | H24: 60 | I24: 1 | J24: 20 | K24: =K16 -> 2 | L24: 10 | M24: 0.09332190454 | N24: 0.09332190454 | O24: 0.1385943472 | P24: 1.29266378 | Q24: 1.570083026 | R24: 2.216965527
C25: 11 | D25: =TRANSPOSE(E13:K13)&" High Case" -> Construction period High Case | E25: =E17 -> 20 | F25: 1800 | G25: 1 | H25: 60 | I25: 1 | J25: 20 | K25: 1 | L25: 11 | M25: 0.1061840236 | N25: 0.1061840236 | O25: 0.1624751389 | P25: 1.300379025 | Q25: 1.690049802 | R25: 2.467561583
C26: 12 | D26: Construction Cost High Case | E26: 24 | F26: =F17 -> 1000 | G26: 1 | H26: 60 | I26: 1 | J26: 20 | K26: 1 | L26: 12 | M26: 0.1796957791 | N26: 0.1796957791 | O26: 0.3282884061 | P26: 2.367336175 | Q26: 2.829244513 | R26: 4.224315445
C27: 13 | D27: Capacity Factor High Case | E27: 24 | F27: 1800 | G27: =G17 -> 4 | H27: 60 | I27: 1 | J27: 20 | K27: 1 | L27: 13 | M27: 0.1291800082 | N27: 0.1291800082 | O27: 0.2151850045 | P27: 1.788653999 | Q27: 2.024199747 | R27: 2.968779023
C28: 14 | D28: FIT High Case | E28: 24 | F28: 1800 | G28: 1 | H28: =H17 -> 70 | I28: 1 | J28: 20 | K28: 1 | L28: 14 | M28: 0.1171815217 | N28: 0.1171815217 | O28: 0.1864145696 | P28: 1.468061855 | Q28: 1.859641625 | R28: 2.730573121
C29: 15 | D29: Variable Price Code High Case | E29: 24 | F29: 1800 | G29: 1 | H29: 60 | I29: =I17 -> 3 | J29: 20 | K29: 1 | L29: 15 | M29: 0.1231151283 | N29: 0.1231151283 | O29: 0.1971235573 | P29: 1.426608904 | Q29: 1.946084686 | R29: 2.880873587
C30: 16 | D30: Operating Expense Level High Case | E30: 24 | F30: 1800 | G30: 1 | H30: 60 | I30: 1 | J30: =J17 -> 15 | K30: 1 | L30: 16 | M30: 0.1109187543 | N30: 0.1109187543 | O30: 0.1728686035 | P30: 1.394774007 | Q30: 1.774420301 | R30: 2.599381424
C31: 17 | D31: Inflation Index Code High Case | E31: 24 | F31: 1800 | G31: 1 | H31: 60 | I31: 1 | J31: 20 | K31: =K17 -> 3 | L31: 17 | M31: 0.1102894962 | N31: 0.1102894962 | O31: 0.1696487963 | P31: 1.337239124 | Q31: 1.755672799 | R31: 2.612032524
C32: 18 | D32: Sensitivity | E32: 24 | F32: 1800 | G32: 1 | H32: 60 | I32: 1 | J32: 20 | K32: 1 | L32: 18 | M32: 0.1038867295 | N32: 0.1038867295 | O32: 0.1578619778 | P32: 1.315186764 | Q32: 1.681480603 | R32: 2.45652001
D34: =INDEX(D15:D32,$E$3) -> Base Case | E34: 24 | F34: 1800 | G34: 1 | H34: 60 | I34: 1 | J34: 20 | K34: 1
E36: Low vs Base | F36: High vs Base
D37: =TRANSPOSE(E13:K13) -> Construction period | E37: =M18-$M$15 -> -0.003270506859 | F37: =M25-$M$15 -> 0.00229729414
D38: Construction Cost | E38: =M19-$M$15 -> -0.03465693295 | F38: =M26-$M$15 -> 0.07580904961
D39: Capacity Factor | E39: -0.01618069112 | F39: 0.02529327869
D40: FIT | E40: -0.01430964172 | F40: 0.01329479218
D41: Variable Price Code | E41: -0.001541888714 | F41: 0.0192283988
D42: Operating Expense Level | E42: -0.007308840752 | F42: 0.00703202486
D43: Inflation Index Code | E43: -0.01056482494 | F43: 0.006402766705

Sheet Working
B1: Age in years | M1: =ROUNDUP(M2/M5,0) -> -3 | N1: =ROUNDUP(N2/N5,0) -> -3 | O1: -3 | P1: -3 | Q1: -3 | R1: -3 | S1: -2 | T1: -2 | U1: -2 | V1: -2 | W1: -2 | X1: -2 | Y1: -2 | Z1: -2 | AA1: -2 | AB1: -2 | AC1: -2 | AD1: -2 | AE1: -1 | AF1: -1 | AG1: -1 | AH1: -1 | AI1: -1 | AJ1: -1 | AK1: -1 | AL1: -1 | AM1: -1 | AN1: -1 | AO1: -1 | AP1: -1 | AQ1: 0 | AR1: =ROUNDUP(AR2/AR5,0) -> 1 | AS1: =ROUNDUP(AS2/AS5,0) -> 1 | AT1: 2 | AU1: 2 | AV1: 3 | AW1: 3 | AX1: 4 | AY1: 4 | AZ1: 5 | BA1: 5 | BB1: 6 | BC1: 6 | BD1: 7 | BE1: 7 | BF1: 8 | BG1: 8 | BH1: 9 | BI1: 9 | BJ1: 10 | BK1: 10 | BL1: 11 | BM1: 11 | BN1: 12 | BO1: 12 | BP1: 13 | BQ1: 13 | BR1: 14 | BS1: 14 | BT1: 15 | BU1: 15 | BV1: 16 | BW1: 16 | BX1: 17 | BY1: 17 | BZ1: 18 | CA1: 18 | CB1: 19 | CC1: 19 | CD1: 20 | CE1: 20 | CF1: 21 | CG1: 21 | CH1: 22 | CI1: 22 | CJ1: 23 | CK1: 23 | CL1: 24 | CM1: 24 | CN1: 25 | CO1: 25 | CP1: 26 | CQ1: 26 | CR1: 27 | CS1: 27 | CT1: 28 | CU1: 28 | CV1: 29 | CW1: 29 | CX1: 30 | CY1: 30 | CZ1: 31 | DA1: 31 | DB1: 32 | DC1: 32 | DD1: 33 | DE1: =ROUNDUP(DE2/DE5,0) -> 33 | DF1: 34 | DG1: 34 | DH1: 35 | DI1: 35 | DJ1: 36 | DK1: 36 | DL1: 37 | DM1: 37 | DN1: 38 | DO1: 38 | DP1: 39 | DQ1: 39 | DR1: 40 | DS1: 40 | DT1: 41 | DU1: 41 | DV1: 42 | DW1: 42 | DX1: 43 | DY1: 43 | DZ1: 44 | EA1: 44 | EB1: =ROUNDUP(EB2/EB5,0) -> 45 | EC1: 45 | ED1: 46 | EE1: 46 | EF1: 47 | EG1: 47 | EH1: 48 | EI1: 48 | EJ1: 49 | EK1: 49 | EL1: 50 | EM1: 50 | EN1: 51 | EO1: 51 | EP1: 52 | EQ1: 52 | ER1: 53 | ES1: 53 | ET1: 54 | EU1: 54 | EV1: 55 | EW1: 55 | EX1: 56 | EY1: 56 | EZ1: 57 | FA1: 57 | FB1: 58 | FC1: 58 | FD1: 59 | FE1: 59 | FF1: 60 | FG1: 60 | FH1: 61 | FI1: 61 | FJ1: 62 | FK1: 62 | FL1: 63 | FM1: 63 | FN1: 64
B2: Period counter | M2: =-F37 -> -30 | N2: =M2+1 -> -29 | O2: =N2+1 -> -28 | P2: -27 | Q2: -26 | R2: -25 | S2: -24 | T2: -23 | U2: -22 | V2: -21 | W2: -20 | X2: -19 | Y2: -18 | Z2: -17 | AA2: -16 | AB2: -15 | AC2: -14 | AD2: -13 | AE2: -12 | AF2: -11 | AG2: -10 | AH2: -9 | AI2: -8 | AJ2: -7 | AK2: -6 | AL2: -5 | AM2: -4 | AN2: -3 | AO2: -2 | AP2: -1 | AQ2: 0 | AR2: 1 | AS2: 2 | AT2: 3 | AU2: 4 | AV2: 5 | AW2: 6 | AX2: 7 | AY2: 8 | AZ2: 9 | BA2: 10 | BB2: 11 | BC2: 12 | BD2: 13 | BE2: 14 | BF2: 15 | BG2: 16 | BH2: 17 | BI2: 18 | BJ2: 19 | BK2: 20 | BL2: 21 | BM2: 22 | BN2: 23 | BO2: 24 | BP2: 25 | BQ2: 26 | BR2: 27 | BS2: 28 | BT2: 29 | BU2: 30 | BV2: 31 | BW2: 32 | BX2: 33 | BY2: 34 | BZ2: 35 | CA2: =BZ2+1 -> 36 | CB2: 37 | CC2: 38 | CD2: 39 | CE2: 40 | CF2: 41 | CG2: 42 | CH2: 43 | CI2: 44 | CJ2: 45 | CK2: 46 | CL2: 47 | CM2: 48 | CN2: 49 | CO2: 50 | CP2: 51 | CQ2: 52 | CR2: 53 | CS2: 54 | CT2: 55 | CU2: 56 | CV2: 57 | CW2: 58 | CX2: 59 | CY2: 60 | CZ2: 61 | DA2: 62 | DB2: 63 | DC2: 64 | DD2: 65 | DE2: 66 | DF2: 67 | DG2: 68 | DH2: 69 | DI2: 70 | DJ2: 71 | DK2: 72 | DL2: 73 | DM2: 74 | DN2: 75 | DO2: 76 | DP2: 77 | DQ2: 78 | DR2: 79 | DS2: 80 | DT2: 81 | DU2: 82 | DV2: 83 | DW2: 84 | DX2: 85 | DY2: 86 | DZ2: 87 | EA2: 88 | EB2: =EA2+1 -> 89 | EC2: =EB2+1 -> 90 | ED2: =EC2+1 -> 91 | EE2: =ED2+1 -> 92 | EF2: =EE2+1 -> 93 | EG2: =EF2+1 -> 94 | EH2: =EG2+1 -> 95 | EI2: =EH2+1 -> 96 | EJ2: =EI2+1 -> 97 | EK2: =EJ2+1 -> 98 | EL2: =EK2+1 -> 99 | EM2: =EL2+1 -> 100 | EN2: =EM2+1 -> 101 | EO2: =EN2+1 -> 102 | EP2: =EO2+1 -> 103 | EQ2: =EP2+1 -> 104 | ER2: =EQ2+1 -> 105 | ES2: =ER2+1 -> 106 | ET2: =ES2+1 -> 107 | EU2: =ET2+1 -> 108 | EV2: =EU2+1 -> 109 | EW2: =EV2+1 -> 110 | EX2: =EW2+1 -> 111 | EY2: =EX2+1 -> 112 | EZ2: =EY2+1 -> 113 | FA2: =EZ2+1 -> 114 | FB2: =FA2+1 -> 115 | FC2: =FB2+1 -> 116 | FD2: =FC2+1 -> 117 | FE2: =FD2+1 -> 118 | FF2: =FE2+1 -> 119 | FG2: =FF2+1 -> 120 | FH2: =FG2+1 -> 121 | FI2: =FH2+1 -> 122 | FJ2: =FI2+1 -> 123 | FK2: =FJ2+1 -> 124 | FL2: =FK2+1 -> 125 | FM2: =FL2+1 -> 126 | FN2: =FM2+1 -> 127
B3: Pre-COD Switch | M3: =M2<1 -> TRUE | N3: =N2<1 -> TRUE | O3: TRUE | P3: TRUE | Q3: TRUE | R3: TRUE | S3: TRUE | T3: TRUE | U3: TRUE | V3: TRUE | W3: TRUE | X3: TRUE | Y3: TRUE | Z3: TRUE | AA3: TRUE | AB3: TRUE | AC3: TRUE | AD3: TRUE | AE3: TRUE | AF3: TRUE | AG3: TRUE | AH3: TRUE | AI3: TRUE | AJ3: TRUE | AK3: TRUE | AL3: TRUE | AM3: TRUE | AN3: TRUE | AO3: TRUE | AP3: TRUE | AQ3: TRUE | AR3: FALSE | AS3: FALSE | AT3: FALSE | AU3: FALSE | AV3: FALSE | AW3: FALSE | AX3: FALSE | AY3: FALSE | AZ3: FALSE | BA3: FALSE | BB3: FALSE | BC3: FALSE | BD3: FALSE | BE3: FALSE | BF3: FALSE | BG3: FALSE | BH3: FALSE | BI3: FALSE | BJ3: FALSE | BK3: FALSE | BL3: FALSE | BM3: FALSE | BN3: FALSE | BO3: FALSE | BP3: FALSE | BQ3: FALSE | BR3: FALSE | BS3: FALSE | BT3: FALSE | BU3: FALSE | BV3: FALSE | BW3: FALSE | BX3: FALSE | BY3: FALSE | BZ3: =BZ2<1 -> FALSE | CA3: FALSE | CB3: FALSE | CC3: FALSE | CD3: FALSE | CE3: FALSE | CF3: FALSE | CG3: FALSE | CH3: FALSE | CI3: FALSE | CJ3: FALSE | CK3: FALSE | CL3: FALSE | CM3: FALSE | CN3: FALSE | CO3: FALSE | CP3: FALSE | CQ3: FALSE | CR3: FALSE | CS3: FALSE | CT3: FALSE | CU3: FALSE | CV3: FALSE | CW3: FALSE | CX3: FALSE | CY3: FALSE | CZ3: FALSE | DA3: FALSE | DB3: FALSE | DC3: FALSE | DD3: FALSE | DE3: FALSE | DF3: FALSE | DG3: FALSE | DH3: FALSE | DI3: FALSE | DJ3: FALSE | DK3: FALSE | DL3: FALSE | DM3: FALSE | DN3: FALSE | DO3: FALSE | DP3: FALSE | DQ3: FALSE | DR3: FALSE | DS3: FALSE | DT3: FALSE | DU3: FALSE | DV3: FALSE | DW3: FALSE | DX3: FALSE | DY3: FALSE | DZ3: FALSE | EA3: FALSE | EB3: =EB2<1 -> FALSE | EC3: FALSE | ED3: FALSE | EE3: FALSE | EF3: FALSE | EG3: FALSE | EH3: FALSE | EI3: FALSE | EJ3: FALSE | EK3: FALSE | EL3: FALSE | EM3: FALSE | EN3: FALSE | EO3: FALSE | EP3: FALSE | EQ3: FALSE | ER3: FALSE | ES3: FALSE | ET3: FALSE | EU3: FALSE | EV3: FALSE | EW3: FALSE | EX3: FALSE | EY3: FALSE | EZ3: FALSE | FA3: FALSE | FB3: FALSE | FC3: FALSE | FD3: FALSE | FE3: FALSE | FF3: FALSE | FG3: FALSE | FH3: FALSE | FI3: FALSE | FJ3: FALSE | FK3: FALSE | FL3: FALSE | FM3: FALSE | FN3: FALSE
B4: Months in period | M4: =IF(M3,$F$32,$F$34) -> 1 | N4: 1 | O4: 1 | P4: 1 | Q4: 1 | R4: 1 | S4: 1 | T4: 1 | U4: 1 | V4: 1 | W4: 1 | X4: 1 | Y4: 1 | Z4: 1 | AA4: 1 | AB4: 1 | AC4: 1 | AD4: 1 | AE4: 1 | AF4: 1 | AG4: 1 | AH4: 1 | AI4: 1 | AJ4: 1 | AK4: 1 | AL4: 1 | AM4: 1 | AN4: 1 | AO4: 1 | AP4: 1 | AQ4: 1 | AR4: 6 | AS4: =IF(AS3,$F$32,$F$34) -> 6 | AT4: 6 | AU4: 6 | AV4: 6 | AW4: 6 | AX4: 6 | AY4: 6 | AZ4: 6 | BA4: 6 | BB4: 6 | BC4: 6 | BD4: 6 | BE4: 6 | BF4: 6 | BG4: 6 | BH4: 6 | BI4: 6 | BJ4: 6 | BK4: 6 | BL4: 6 | BM4: 6 | BN4: 6 | BO4: 6 | BP4: 6 | BQ4: 6 | BR4: 6 | BS4: 6 | BT4: 6 | BU4: 6 | BV4: 6 | BW4: 6 | BX4: 6 | BY4: =IF(BY3,$F$32,$F$34) -> 6 | BZ4: 6 | CA4: 6 | CB4: 6 | CC4: 6 | CD4: 6 | CE4: 6 | CF4: 6 | CG4: 6 | CH4: 6 | CI4: 6 | CJ4: 6 | CK4: 6 | CL4: 6 | CM4: 6 | CN4: 6 | CO4: 6 | CP4: 6 | CQ4: 6 | CR4: 6 | CS4: 6 | CT4: 6 | CU4: 6 | CV4: 6 | CW4: 6 | CX4: 6 | CY4: 6 | CZ4: 6 | DA4: 6 | DB4: 6 | DC4: 6 | DD4: 6 | DE4: =IF(DE3,$F$32,$F$34) -> 6 | DF4: 6 | DG4: 6 | DH4: 6 | DI4: 6 | DJ4: 6 | DK4: 6 | DL4: 6 | DM4: 6 | DN4: 6 | DO4: 6 | DP4: 6 | DQ4: 6 | DR4: 6 | DS4: 6 | DT4: 6 | DU4: 6 | DV4: 6 | DW4: 6 | DX4: 6 | DY4: 6 | DZ4: 6 | EA4: 6 | EB4: 6 | EC4: 6 | ED4: 6 | EE4: 6 | EF4: 6 | EG4: 6 | EH4: 6 | EI4: 6 | EJ4: 6 | EK4: =IF(EK3,$F$32,$F$34) -> 6 | EL4: 6 | EM4: 6 | EN4: 6 | EO4: 6 | EP4: 6 | EQ4: 6 | ER4: 6 | ES4: 6 | ET4: 6 | EU4: 6 | EV4: 6 | EW4: 6 | EX4: 6 | EY4: 6 | EZ4: 6 | FA4: 6 | FB4: 6 | FC4: 6 | FD4: 6 | FE4: 6 | FF4: 6 | FG4: 6 | FH4: 6 | FI4: 6 | FJ4: 6 | FK4: 6 | FL4: 6 | FM4: 6 | FN4: 6
B5: Periods per year | M5: =12/M4 -> 12 | N5: =12/N4 -> 12 | O5: 12 | P5: 12 | Q5: 12 | R5: 12 | S5: 12 | T5: 12 | U5: 12 | V5: 12 | W5: 12 | X5: 12 | Y5: 12 | Z5: 12 | AA5: 12 | AB5: 12 | AC5: 12 | AD5: 12 | AE5: 12 | AF5: 12 | AG5: 12 | AH5: 12 | AI5: 12 | AJ5: 12 | AK5: 12 | AL5: 12 | AM5: 12 | AN5: 12 | AO5: 12 | AP5: 12 | AQ5: 12 | AR5: 2 | AS5: 2 | AT5: 2 | AU5: 2 | AV5: 2 | AW5: 2 | AX5: 2 | AY5: 2 | AZ5: 2 | BA5: 2 | BB5: 2 | BC5: 2 | BD5: 2 | BE5: 2 | BF5: 2 | BG5: 2 | BH5: 2 | BI5: 2 | BJ5: 2 | BK5: 2 | BL5: 2 | BM5: 2 | BN5: 2 | BO5: 2 | BP5: 2 | BQ5: 2 | BR5: 2 | BS5: 2 | BT5: 2 | BU5: 2 | BV5: 2 | BW5: 2 | BX5: 2 | BY5: 2 | BZ5: =12/BZ4 -> 2 | CA5: 2 | CB5: 2 | CC5: 2 | CD5: 2 | CE5: 2 | CF5: 2 | CG5: 2 | CH5: 2 | CI5: 2 | CJ5: 2 | CK5: 2 | CL5: 2 | CM5: 2 | CN5: 2 | CO5: 2 | CP5: 2 | CQ5: 2 | CR5: 2 | CS5: 2 | CT5: 2 | CU5: 2 | CV5: 2 | CW5: 2 | CX5: 2 | CY5: 2 | CZ5: 2 | DA5: 2 | DB5: 2 | DC5: 2 | DD5: 2 | DE5: 2 | DF5: 2 | DG5: 2 | DH5: 2 | DI5: 2 | DJ5: 2 | DK5: 2 | DL5: 2 | DM5: 2 | DN5: 2 | DO5: 2 | DP5: 2 | DQ5: 2 | DR5: 2 | DS5: 2 | DT5: 2 | DU5: 2 | DV5: 2 | DW5: 2 | DX5: 2 | DY5: 2 | DZ5: 2 | EA5: 2 | EB5: =12/EB4 -> 2 | EC5: 2 | ED5: 2 | EE5: 2 | EF5: 2 | EG5: 2 | EH5: 2 | EI5: 2 | EJ5: 2 | EK5: 2 | EL5: 2 | EM5: 2 | EN5: 2 | EO5: 2 | EP5: 2 | EQ5: 2 | ER5: 2 | ES5: 2 | ET5: 2 | EU5: 2 | EV5: 2 | EW5: 2 | EX5: 2 | EY5: 2 | EZ5: 2 | FA5: 2 | FB5: 2 | FC5: 2 | FD5: 2 | FE5: 2 | FF5: 2 | FG5: 2 | FH5: 2 | FI5: 2 | FJ5: 2 | FK5: 2 | FL5: 2 | FM5: 2 | FN5: 2
B6: Start of period | N6: =M7+1 -> 2010-11-01 | O6: =N7+1 -> 2010-12-01 | P6: 2011-01-01 | Q6: 2011-02-01 | R6: 2011-03-01 | S6: 2011-04-01 | T6: 2011-05-01 | U6: 2011-06-01 | V6: 2011-07-01 | W6: 2011-08-01 | X6: 2011-09-01 | Y6: 2011-10-01 | Z6: 2011-11-01 | AA6: 2011-12-01 | AB6: 2012-01-01 | AC6: 2012-02-01 | AD6: 2012-03-01 | AE6: 2012-04-01 | AF6: 2012-05-01 | AG6: 2012-06-01 | AH6: 2012-07-01 | AI6: 2012-08-01 | AJ6: 2012-09-01 | AK6: 2012-10-01 | AL6: 2012-11-01 | AM6: 2012-12-01 | AN6: 2013-01-01 | AO6: 2013-02-01 | AP6: 2013-03-01 | AQ6: 2013-04-01 | AR6: 2013-05-01 | AS6: 2013-11-01 | AT6: 2014-05-01 | AU6: 2014-11-01 | AV6: 2015-05-01 | AW6: 2015-11-01 | AX6: 2016-05-01 | AY6: 2016-11-01 | AZ6: 2017-05-01 | BA6: 2017-11-01 | BB6: 2018-05-01 | BC6: 2018-11-01 | BD6: 2019-05-01 | BE6: 2019-11-01 | BF6: 2020-05-01 | BG6: 2020-11-01 | BH6: 2021-05-01 | BI6: 2021-11-01 | BJ6: 2022-05-01 | BK6: 2022-11-01 | BL6: 2023-05-01 | BM6: 2023-11-01 | BN6: 2024-05-01 | BO6: 2024-11-01 | BP6: 2025-05-01 | BQ6: 2025-11-01 | BR6: 2026-05-01 | BS6: 2026-11-01 | BT6: 2027-05-01 | BU6: 2027-11-01 | BV6: 2028-05-01 | BW6: 2028-11-01 | BX6: 2029-05-01 | BY6: 2029-11-01 | BZ6: 2030-05-01 | CA6: =BZ7+1 -> 2030-11-01 | CB6: 2031-05-01 | CC6: 2031-11-01 | CD6: 2032-05-01 | CE6: 2032-11-01 | CF6: 2033-05-01 | CG6: 2033-11-01 | CH6: 2034-05-01 | CI6: 2034-11-01 | CJ6: 2035-05-01 | CK6: 2035-11-01 | CL6: 2036-05-01 | CM6: 2036-11-01 | CN6: 2037-05-01 | CO6: 2037-11-01 | CP6: 2038-05-01 | CQ6: 2038-11-01 | CR6: 2039-05-01 | CS6: 2039-11-01 | CT6: 2040-05-01 | CU6: 2040-11-01 | CV6: 2041-05-01 | CW6: 2041-11-01 | CX6: 2042-05-01 | CY6: 2042-11-01 | CZ6: 2043-05-01 | DA6: 2043-11-01 | DB6: 2044-05-01 | DC6: 2044-11-01 | DD6: 2045-05-01 | DE6: 2045-11-01 | DF6: 2046-05-01 | DG6: 2046-11-01 | DH6: 2047-05-01 | DI6: 2047-11-01 | DJ6: 2048-05-01 | DK6: 2048-11-01 | DL6: 2049-05-01 | DM6: 2049-11-01 | DN6: 2050-05-01 | DO6: 2050-11-01 | DP6: 2051-05-01 | DQ6: 2051-11-01 | DR6: 2052-05-01 | DS6: 2052-11-01 | DT6: 2053-05-01 | DU6: 2053-11-01 | DV6: 2054-05-01 | DW6: 2054-11-01 | DX6: 2055-05-01 | DY6: 2055-11-01 | DZ6: 2056-05-01 | EA6: 2056-11-01 | EB6: =EA7+1 -> 2057-05-01 | EC6: =EB7+1 -> 2057-11-01 | ED6: =EC7+1 -> 2058-05-01 | EE6: =ED7+1 -> 2058-11-01 | EF6: =EE7+1 -> 2059-05-01 | EG6: =EF7+1 -> 2059-11-01 | EH6: =EG7+1 -> 2060-05-01 | EI6: =EH7+1 -> 2060-11-01 | EJ6: =EI7+1 -> 2061-05-01 | EK6: =EJ7+1 -> 2061-11-01 | EL6: =EK7+1 -> 2062-05-01 | EM6: =EL7+1 -> 2062-11-01 | EN6: =EM7+1 -> 2063-05-01 | EO6: =EN7+1 -> 2063-11-01 | EP6: =EO7+1 -> 2064-05-01 | EQ6: =EP7+1 -> 2064-11-01 | ER6: =EQ7+1 -> 2065-05-01 | ES6: =ER7+1 -> 2065-11-01 | ET6: =ES7+1 -> 2066-05-01 | EU6: =ET7+1 -> 2066-11-01 | EV6: =EU7+1 -> 2067-05-01 | EW6: =EV7+1 -> 2067-11-01 | EX6: =EW7+1 -> 2068-05-01 | EY6: =EX7+1 -> 2068-11-01 | EZ6: =EY7+1 -> 2069-05-01 | FA6: =EZ7+1 -> 2069-11-01 | FB6: =FA7+1 -> 2070-05-01 | FC6: =FB7+1 -> 2070-11-01 | FD6: =FC7+1 -> 2071-05-01 | FE6: =FD7+1 -> 2071-11-01 | FF6: =FE7+1 -> 2072-05-01 | FG6: =FF7+1 -> 2072-11-01 | FH6: =FG7+1 -> 2073-05-01 | FI6: =FH7+1 -> 2073-11-01 | FJ6: =FI7+1 -> 2074-05-01 | FK6: =FJ7+1 -> 2074-11-01 | FL6: =FK7+1 -> 2075-05-01 | FM6: =FL7+1 -> 2075-11-01 | FN6: =FM7+1 -> 2076-05-01
B7: End of period | M7: =F23-1 -> 2010-10-31 | N7: =EDATE(N6,N4)-1 -> 2010-11-30 | O7: =EDATE(O6,O4)-1 -> 2010-12-31 | P7: 2011-01-31 | Q7: 2011-02-28 | R7: 2011-03-31 | S7: 2011-04-30 | T7: 2011-05-31 | U7: 2011-06-30 | V7: 2011-07-31 | W7: 2011-08-31 | X7: 2011-09-30 | Y7: 2011-10-31 | Z7: 2011-11-30 | AA7: 2011-12-31 | AB7: 2012-01-31 | AC7: 2012-02-29 | AD7: 2012-03-31 | AE7: 2012-04-30 | AF7: 2012-05-31 | AG7: 2012-06-30 | AH7: 2012-07-31 | AI7: 2012-08-31 | AJ7: 2012-09-30 | AK7: 2012-10-31 | AL7: 2012-11-30 | AM7: 2012-12-31 | AN7: 2013-01-31 | AO7: 2013-02-28 | AP7: 2013-03-31 | AQ7: 2013-04-30 | AR7: 2013-10-31 | AS7: 2014-04-30 | AT7: 2014-10-31 | AU7: 2015-04-30 | AV7: 2015-10-31 | AW7: 2016-04-30 | AX7: 2016-10-31 | AY7: 2017-04-30 | AZ7: 2017-10-31 | BA7: 2018-04-30 | BB7: 2018-10-31 | BC7: 2019-04-30 | BD7: 2019-10-31 | BE7: 2020-04-30 | BF7: 2020-10-31 | BG7: 2021-04-30 | BH7: 2021-10-31 | BI7: 2022-04-30 | BJ7: 2022-10-31 | BK7: 2023-04-30 | BL7: 2023-10-31 | BM7: 2024-04-30 | BN7: 2024-10-31 | BO7: 2025-04-30 | BP7: 2025-10-31 | BQ7: 2026-04-30 | BR7: 2026-10-31 | BS7: 2027-04-30 | BT7: 2027-10-31 | BU7: 2028-04-30 | BV7: 2028-10-31 | BW7: 2029-04-30 | BX7: 2029-10-31 | BY7: 2030-04-30 | BZ7: 2030-10-31 | CA7: =EDATE(CA6,CA4)-1 -> 2031-04-30 | CB7: 2031-10-31 | CC7: 2032-04-30 | CD7: 2032-10-31 | CE7: 2033-04-30 | CF7: 2033-10-31 | CG7: 2034-04-30 | CH7: 2034-10-31 | CI7: 2035-04-30 | CJ7: 2035-10-31 | CK7: 2036-04-30 | CL7: 2036-10-31 | CM7: 2037-04-30 | CN7: 2037-10-31 | CO7: 2038-04-30 | CP7: 2038-10-31 | CQ7: 2039-04-30 | CR7: 2039-10-31 | CS7: 2040-04-30 | CT7: 2040-10-31 | CU7: 2041-04-30 | CV7: 2041-10-31 | CW7: 2042-04-30 | CX7: 2042-10-31 | CY7: 2043-04-30 | CZ7: 2043-10-31 | DA7: 2044-04-30 | DB7: 2044-10-31 | DC7: 2045-04-30 | DD7: 2045-10-31 | DE7: 2046-04-30 | DF7: 2046-10-31 | DG7: 2047-04-30 | DH7: 2047-10-31 | DI7: 2048-04-30 | DJ7: 2048-10-31 | DK7: 2049-04-30 | DL7: 2049-10-31 | DM7: 2050-04-30 | DN7: 2050-10-31 | DO7: 2051-04-30 | DP7: 2051-10-31 | DQ7: 2052-04-30 | DR7: 2052-10-31 | DS7: 2053-04-30 | DT7: 2053-10-31 | DU7: 2054-04-30 | DV7: 2054-10-31 | DW7: 2055-04-30 | DX7: 2055-10-31 | DY7: 2056-04-30 | DZ7: 2056-10-31 | EA7: 2057-04-30 | EB7: =EDATE(EB6,EB4)-1 -> 2057-10-31 | EC7: 2058-04-30 | ED7: 2058-10-31 | EE7: 2059-04-30 | EF7: 2059-10-31 | EG7: 2060-04-30 | EH7: 2060-10-31 | EI7: 2061-04-30 | EJ7: 2061-10-31 | EK7: 2062-04-30 | EL7: 2062-10-31 | EM7: 2063-04-30 | EN7: 2063-10-31 | EO7: 2064-04-30 | EP7: 2064-10-31 | EQ7: 2065-04-30 | ER7: 2065-10-31 | ES7: 2066-04-30 | ET7: 2066-10-31 | EU7: 2067-04-30 | EV7: 2067-10-31 | EW7: 2068-04-30 | EX7: 2068-10-31 | EY7: 2069-04-30 | EZ7: 2069-10-31 | FA7: 2070-04-30 | FB7: 2070-10-31 | FC7: 2071-04-30 | FD7: 2071-10-31 | FE7: 2072-04-30 | FF7: 2072-10-31 | FG7: 2073-04-30 | FH7: 2073-10-31 | FI7: 2074-04-30 | FJ7: 2074-10-31 | FK7: 2075-04-30 | FL7: 2075-10-31 | FM7: 2076-04-30 | FN7: 2076-10-31
B8: Year | I8: From | J8: To | L8: Check | N8: =YEAR(N7) -> 2010 | O8: =YEAR(O7) -> 2010 | P8: 2011 | Q8: 2011 | R8: 2011 | S8: 2011 | T8: 2011 | U8: 2011 | V8: 2011 | W8: 2011 | X8: 2011 | Y8: 2011 | Z8: 2011 | AA8: 2011 | AB8: 2012 | AC8: 2012 | AD8: 2012 | AE8: 2012 | AF8: 2012 | AG8: 2012 | AH8: 2012 | AI8: 2012 | AJ8: 2012 | AK8: 2012 | AL8: 2012 | AM8: 2012 | AN8: 2013 | AO8: 2013 | AP8: 2013 | AQ8: 2013 | AR8: 2013 | AS8: 2014 | AT8: 2014 | AU8: 2015 | AV8: 2015 | AW8: 2016 | AX8: 2016 | AY8: 2017 | AZ8: 2017 | BA8: 2018 | BB8: 2018 | BC8: 2019 | BD8: 2019 | BE8: 2020 | BF8: 2020 | BG8: 2021 | BH8: 2021 | BI8: 2022 | BJ8: 2022 | BK8: 2023 | BL8: 2023 | BM8: 2024 | BN8: 2024 | BO8: 2025 | BP8: 2025 | BQ8: 2026 | BR8: 2026 | BS8: 2027 | BT8: 2027 | BU8: 2028 | BV8: 2028 | BW8: 2029 | BX8: 2029 | BY8: 2030 | BZ8: 2030 | CA8: =YEAR(CA7) -> 2031 | CB8: 2031 | CC8: 2032 | CD8: 2032 | CE8: 2033 | CF8: 2033 | CG8: 2034 | CH8: 2034 | CI8: 2035 | CJ8: 2035 | CK8: 2036 | CL8: 2036 | CM8: 2037 | CN8: 2037 | CO8: 2038 | CP8: 2038 | CQ8: 2039 | CR8: 2039 | CS8: 2040 | CT8: 2040 | CU8: 2041 | CV8: 2041 | CW8: 2042 | CX8: 2042 | CY8: 2043 | CZ8: 2043 | DA8: 2044 | DB8: 2044 | DC8: 2045 | DD8: 2045 | DE8: 2046 | DF8: 2046 | DG8: 2047 | DH8: 2047 | DI8: 2048 | DJ8: 2048 | DK8: 2049 | DL8: 2049 | DM8: 2050 | DN8: 2050 | DO8: 2051 | DP8: 2051 | DQ8: 2052 | DR8: 2052 | DS8: 2053 | DT8: 2053 | DU8: 2054 | DV8: 2054 | DW8: 2055 | DX8: 2055 | DY8: 2056 | DZ8: 2056 | EA8: 2057 | EB8: =YEAR(EB7) -> 2057 | EC8: 2058 | ED8: 2058 | EE8: 2059 | EF8: 2059 | EG8: 2060 | EH8: 2060 | EI8: 2061 | EJ8: 2061 | EK8: 2062 | EL8: 2062 | EM8: 2063 | EN8: 2063 | EO8: 2064 | EP8: 2064 | EQ8: 2065 | ER8: 2065 | ES8: 2066 | ET8: 2066 | EU8: 2067 | EV8: 2067 | EW8: 2068 | EX8: 2068 | EY8: 2069 | EZ8: 2069 | FA8: 2070 | FB8: 2070 | FC8: 2071 | FD8: 2071 | FE8: 2072 | FF8: 2072 | FG8: 2073 | FH8: 2073 | FI8: 2074 | FJ8: 2074 | FK8: 2075 | FL8: 2075 | FM8: 2076 | FN8: 2076
C9: Development period | I9: =F23 -> 2010-11-01 | J9: =F25 -> 2011-05-01 | K9: =COUNTIF(N9:FN9,TRUE) -> 6 | L9: =K9=F24 -> TRUE | N9: =AND(N$6>=$I9,N$6<$J9) -> TRUE | O9: =AND(O$6>=$I9,O$6<$J9) -> TRUE | P9: TRUE | Q9: TRUE | R9: TRUE | S9: TRUE | T9: FALSE | U9: FALSE | V9: FALSE | W9: FALSE | X9: FALSE | Y9: FALSE | Z9: FALSE | AA9: FALSE | AB9: FALSE | AC9: FALSE | AD9: FALSE | AE9: FALSE | AF9: FALSE | AG9: FALSE | AH9: FALSE | AI9: FALSE | AJ9: FALSE | AK9: FALSE | AL9: FALSE | AM9: FALSE | AN9: FALSE | AO9: FALSE | AP9: FALSE | AQ9: FALSE | AR9: FALSE | AS9: FALSE | AT9: FALSE | AU9: FALSE | AV9: FALSE | AW9: FALSE | AX9: FALSE | AY9: FALSE | AZ9: FALSE | BA9: FALSE | BB9: FALSE | BC9: FALSE | BD9: FALSE | BE9: FALSE | BF9: FALSE | BG9: FALSE | BH9: FALSE | BI9: FALSE | BJ9: FALSE | BK9: FALSE | BL9: FALSE | BM9: FALSE | BN9: FALSE | BO9: FALSE | BP9: FALSE | BQ9: FALSE | BR9: FALSE | BS9: FALSE | BT9: FALSE | BU9: FALSE | BV9: FALSE | BW9: FALSE | BX9: FALSE | BY9: FALSE | BZ9: FALSE | CA9: =AND(CA$6>=$I9,CA$6<$J9) -> FALSE | CB9: FALSE | CC9: FALSE | CD9: FALSE | CE9: FALSE | CF9: FALSE | CG9: FALSE | CH9: FALSE | CI9: FALSE | CJ9: FALSE | CK9: FALSE | CL9: FALSE | CM9: FALSE | CN9: FALSE | CO9: FALSE | CP9: FALSE | CQ9: FALSE | CR9: FALSE | CS9: FALSE | CT9: FALSE | CU9: FALSE | CV9: FALSE | CW9: FALSE | CX9: FALSE | CY9: FALSE | CZ9: FALSE | DA9: FALSE | DB9: FALSE | DC9: FALSE | DD9: FALSE | DE9: FALSE | DF9: FALSE | DG9: FALSE | DH9: FALSE | DI9: FALSE | DJ9: FALSE | DK9: FALSE | DL9: FALSE | DM9: FALSE | DN9: FALSE | DO9: FALSE | DP9: FALSE | DQ9: FALSE | DR9: FALSE | DS9: FALSE | DT9: FALSE | DU9: FALSE | DV9: FALSE | DW9: FALSE | DX9: FALSE | DY9: FALSE | DZ9: FALSE | EA9: FALSE | EB9: FALSE | EC9: FALSE | ED9: FALSE | EE9: FALSE | EF9: FALSE | EG9: FALSE | EH9: FALSE | EI9: FALSE | EJ9: FALSE | EK9: FALSE | EL9: FALSE | EM9: =AND(EM$6>=$I9,EM$6<$J9) -> FALSE | EN9: FALSE | EO9: FALSE | EP9: FALSE | EQ9: FALSE | ER9: FALSE | ES9: FALSE | ET9: FALSE | EU9: FALSE | EV9: FALSE | EW9: FALSE | EX9: FALSE | EY9: FALSE | EZ9: FALSE | FA9: FALSE | FB9: FALSE | FC9: FALSE | FD9: FALSE | FE9: FALSE | FF9: FALSE | FG9: FALSE | FH9: FALSE | FI9: FALSE | FJ9: FALSE | FK9: FALSE | FL9: FALSE | FM9: FALSE | FN9: FALSE
C10: Financial close date | I10: =F25 -> 2011-05-01 | J10: =F25 -> 2011-05-01 | K10: 1 | L10: =K10=1 -> TRUE | N10: =AND(N$6>=$I10,N$6<=$J10) -> FALSE | O10: =AND(O$6>=$I10,O$6<=$J10) -> FALSE | P10: FALSE | Q10: FALSE | R10: FALSE | S10: FALSE | T10: TRUE | U10: FALSE | V10: FALSE | W10: FALSE | X10: FALSE | Y10: FALSE | Z10: FALSE | AA10: FALSE | AB10: FALSE | AC10: FALSE | AD10: FALSE | AE10: FALSE | AF10: FALSE | AG10: FALSE | AH10: FALSE | AI10: FALSE | AJ10: FALSE | AK10: FALSE | AL10: FALSE | AM10: FALSE | AN10: FALSE | AO10: FALSE | AP10: FALSE | AQ10: FALSE | AR10: FALSE | AS10: FALSE | AT10: FALSE | AU10: FALSE | AV10: FALSE | AW10: FALSE | AX10: FALSE | AY10: FALSE | AZ10: FALSE | BA10: FALSE | BB10: FALSE | BC10: FALSE | BD10: FALSE | BE10: FALSE | BF10: FALSE | BG10: FALSE | BH10: FALSE | BI10: FALSE | BJ10: FALSE | BK10: FALSE | BL10: FALSE | BM10: FALSE | BN10: FALSE | BO10: FALSE | BP10: FALSE | BQ10: FALSE | BR10: FALSE | BS10: FALSE | BT10: FALSE | BU10: FALSE | BV10: FALSE | BW10: FALSE | BX10: FALSE | BY10: FALSE | BZ10: FALSE | CA10: =AND(CA$6>=$I10,CA$6<=$J10) -> FALSE | CB10: FALSE | CC10: FALSE | CD10: FALSE | CE10: FALSE | CF10: FALSE | CG10: FALSE | CH10: FALSE | CI10: FALSE | CJ10: FALSE | CK10: FALSE | CL10: FALSE | CM10: FALSE | CN10: FALSE | CO10: FALSE | CP10: FALSE | CQ10: FALSE | CR10: FALSE | CS10: FALSE | CT10: FALSE | CU10: FALSE | CV10: FALSE | CW10: FALSE | CX10: FALSE | CY10: FALSE | CZ10: FALSE | DA10: FALSE | DB10: FALSE | DC10: FALSE | DD10: FALSE | DE10: FALSE | DF10: FALSE | DG10: FALSE | DH10: FALSE | DI10: FALSE | DJ10: FALSE | DK10: FALSE | DL10: FALSE | DM10: FALSE | DN10: FALSE | DO10: FALSE | DP10: FALSE | DQ10: FALSE | DR10: FALSE | DS10: FALSE | DT10: FALSE | DU10: FALSE | DV10: FALSE | DW10: FALSE | DX10: FALSE | DY10: FALSE | DZ10: FALSE | EA10: FALSE | EB10: FALSE | EC10: =AND(EC$6>=$I10,EC$6<=$J10) -> FALSE | ED10: FALSE | EE10: FALSE | EF10: FALSE | EG10: FALSE | EH10: FALSE | EI10: FALSE | EJ10: FALSE | EK10: FALSE | EL10: FALSE | EM10: FALSE | EN10: FALSE | EO10: FALSE | EP10: FALSE | EQ10: FALSE | ER10: FALSE | ES10: FALSE | ET10: FALSE | EU10: FALSE | EV10: FALSE | EW10: FALSE | EX10: FALSE | EY10: FALSE | EZ10: FALSE | FA10: FALSE | FB10: FALSE | FC10: FALSE | FD10: FALSE | FE10: FALSE | FF10: FALSE | FG10: FALSE | FH10: FALSE | FI10: FALSE | FJ10: FALSE | FK10: FALSE | FL10: FALSE | FM10: FALSE | FN10: FALSE
C11: Construction period | I11: =F25 -> 2011-05-01 | J11: =F27 -> 2013-05-01 | K11: 24 | L11: =K11=F26 -> TRUE | N11: =AND(N$6>=$I11,N$6<$J11) -> FALSE | O11: =AND(O$6>=$I11,O$6<$J11) -> FALSE | P11: FALSE | Q11: FALSE | R11: FALSE | S11: FALSE | T11: TRUE | U11: TRUE | V11: TRUE | W11: TRUE | X11: TRUE | Y11: TRUE | Z11: TRUE | AA11: TRUE | AB11: TRUE | AC11: TRUE | AD11: TRUE | AE11: TRUE | AF11: TRUE | AG11: TRUE | AH11: TRUE | AI11: TRUE | AJ11: TRUE | AK11: TRUE | AL11: TRUE | AM11: TRUE | AN11: TRUE | AO11: TRUE | AP11: TRUE | AQ11: TRUE | AR11: FALSE | AS11: FALSE | AT11: FALSE | AU11: FALSE | AV11: FALSE | AW11: FALSE | AX11: FALSE | AY11: FALSE | AZ11: FALSE | BA11: FALSE | BB11: FALSE | BC11: FALSE | BD11: FALSE | BE11: FALSE | BF11: FALSE | BG11: FALSE | BH11: FALSE | BI11: FALSE | BJ11: FALSE | BK11: FALSE | BL11: FALSE | BM11: FALSE | BN11: FALSE | BO11: FALSE | BP11: FALSE | BQ11: FALSE | BR11: FALSE | BS11: FALSE | BT11: FALSE | BU11: FALSE | BV11: FALSE | BW11: FALSE | BX11: FALSE | BY11: FALSE | BZ11: FALSE | CA11: =AND(CA$6>=$I11,CA$6<$J11) -> FALSE | CB11: FALSE | CC11: FALSE | CD11: FALSE | CE11: FALSE | CF11: FALSE | CG11: FALSE | CH11: FALSE | CI11: FALSE | CJ11: FALSE | CK11: FALSE | CL11: FALSE | CM11: FALSE | CN11: FALSE | CO11: FALSE | CP11: FALSE | CQ11: FALSE | CR11: FALSE | CS11: FALSE | CT11: FALSE | CU11: FALSE | CV11: FALSE | CW11: FALSE | CX11: FALSE | CY11: FALSE | CZ11: FALSE | DA11: FALSE | DB11: FALSE | DC11: FALSE | DD11: FALSE | DE11: FALSE | DF11: FALSE | DG11: FALSE | DH11: FALSE | DI11: FALSE | DJ11: FALSE | DK11: FALSE | DL11: FALSE | DM11: FALSE | DN11: FALSE | DO11: FALSE | DP11: FALSE | DQ11: FALSE | DR11: FALSE | DS11: FALSE | DT11: FALSE | DU11: FALSE | DV11: FALSE | DW11: FALSE | DX11: FALSE | DY11: FALSE | DZ11: FALSE | EA11: FALSE | EB11: FALSE | EC11: FALSE | ED11: FALSE | EE11: FALSE | EF11: FALSE | EG11: FALSE | EH11: FALSE | EI11: FALSE | EJ11: FALSE | EK11: FALSE | EL11: FALSE | EM11: =AND(EM$6>=$I11,EM$6<$J11) -> FALSE | EN11: FALSE | EO11: FALSE | EP11: FALSE | EQ11: FALSE | ER11: FALSE | ES11: FALSE | ET11: FALSE | EU11: FALSE | EV11: FALSE | EW11: FALSE | EX11: FALSE | EY11: FALSE | EZ11: FALSE | FA11: FALSE | FB11: FALSE | FC11: FALSE | FD11: FALSE | FE11: FALSE | FF11: FALSE | FG11: FALSE | FH11: FALSE | FI11: FALSE | FJ11: FALSE | FK11: FALSE | FL11: FALSE | FM11: FALSE | FN11: FALSE
C12: Commercial Operation Date | I12: =F27 -> 2013-05-01 | J12: =F27 -> 2013-05-01 | K12: 1 | L12: =K12=1 -> TRUE | N12: =AND(N$6>=$I12,N$6<=$J12) -> FALSE | O12: FALSE | P12: FALSE | Q12: FALSE | R12: FALSE | S12: FALSE | T12: FALSE | U12: FALSE | V12: FALSE | W12: FALSE | X12: FALSE | Y12: FALSE | Z12: FALSE | AA12: FALSE | AB12: FALSE | AC12: FALSE | AD12: FALSE | AE12: FALSE | AF12: FALSE | AG12: FALSE | AH12: FALSE | AI12: FALSE | AJ12: FALSE | AK12: FALSE | AL12: FALSE | AM12: FALSE | AN12: FALSE | AO12: FALSE | AP12: FALSE | AQ12: FALSE | AR12: TRUE | AS12: FALSE | AT12: FALSE | AU12: FALSE | AV12: FALSE | AW12: FALSE | AX12: FALSE | AY12: FALSE | AZ12: FALSE | BA12: FALSE | BB12: FALSE | BC12: FALSE | BD12: FALSE | BE12: FALSE | BF12: FALSE | BG12: FALSE | BH12: FALSE | BI12: FALSE | BJ12: FALSE | BK12: FALSE | BL12: FALSE | BM12: FALSE | BN12: FALSE | BO12: FALSE | BP12: FALSE | BQ12: FALSE | BR12: FALSE | BS12: FALSE | BT12: FALSE | BU12: FALSE | BV12: FALSE | BW12: FALSE | BX12: FALSE | BY12: FALSE | BZ12: =AND(BZ$6>=$I12,BZ$6<=$J12) -> FALSE | CA12: FALSE | CB12: FALSE | CC12: FALSE | CD12: FALSE | CE12: FALSE | CF12: FALSE | CG12: FALSE | CH12: FALSE | CI12: FALSE | CJ12: FALSE | CK12: FALSE | CL12: FALSE | CM12: FALSE | CN12: FALSE | CO12: FALSE | CP12: FALSE | CQ12: FALSE | CR12: FALSE | CS12: FALSE | CT12: FALSE | CU12: FALSE | CV12: FALSE | CW12: FALSE | CX12: FALSE | CY12: FALSE | CZ12: FALSE | DA12: FALSE | DB12: FALSE | DC12: FALSE | DD12: FALSE | DE12: FALSE | DF12: FALSE | DG12: FALSE | DH12: FALSE | DI12: FALSE | DJ12: FALSE | DK12: FALSE | DL12: FALSE | DM12: FALSE | DN12: FALSE | DO12: FALSE | DP12: FALSE | DQ12: FALSE | DR12: FALSE | DS12: FALSE | DT12: FALSE | DU12: FALSE | DV12: FALSE | DW12: FALSE | DX12: FALSE | DY12: FALSE | DZ12: FALSE | EA12: FALSE | EB12: FALSE | EC12: FALSE | ED12: FALSE | EE12: FALSE | EF12: FALSE | EG12: FALSE | EH12: FALSE | EI12: FALSE | EJ12: FALSE | EK12: FALSE | EL12: FALSE | EM12: FALSE | EN12: FALSE | EO12: FALSE | EP12: FALSE | EQ12: FALSE | ER12: FALSE | ES12: FALSE | ET12: FALSE | EU12: FALSE | EV12: FALSE | EW12: FALSE | EX12: FALSE | EY12: FALSE | EZ12: FALSE | FA12: FALSE | FB12: FALSE | FC12: FALSE | FD12: FALSE | FE12: FALSE | FF12: FALSE | FG12: FALSE | FH12: FALSE | FI12: FALSE | FJ12: FALSE | FK12: FALSE | FL12: FALSE | FM12: FALSE | FN12: FALSE
C13: Month before COD | I13: =EDATE(I12,-1) -> 2013-04-01 | J13: =EDATE(J12,-1) -> 2013-04-01 | K13: 1 | L13: =K13=1 -> TRUE | N13: =AND(N$6>=$I13,N$6<=$J13) -> FALSE | O13: FALSE | P13: FALSE | Q13: FALSE | R13: FALSE | S13: FALSE | T13: FALSE | U13: FALSE | V13: FALSE | W13: FALSE | X13: FALSE | Y13: FALSE | Z13: FALSE | AA13: FALSE | AB13: FALSE | AC13: FALSE | AD13: FALSE | AE13: FALSE | AF13: FALSE | AG13: FALSE | AH13: FALSE | AI13: FALSE | AJ13: FALSE | AK13: FALSE | AL13: FALSE | AM13: FALSE | AN13: FALSE | AO13: FALSE | AP13: FALSE | AQ13: TRUE | AR13: FALSE | AS13: FALSE | AT13: FALSE | AU13: FALSE | AV13: FALSE | AW13: FALSE | AX13: FALSE | AY13: FALSE | AZ13: FALSE | BA13: FALSE | BB13: FALSE | BC13: FALSE | BD13: FALSE | BE13: FALSE | BF13: FALSE | BG13: FALSE | BH13: FALSE | BI13: FALSE | BJ13: FALSE | BK13: FALSE | BL13: FALSE | BM13: FALSE | BN13: FALSE | BO13: FALSE | BP13: FALSE | BQ13: FALSE | BR13: FALSE | BS13: FALSE | BT13: FALSE | BU13: FALSE | BV13: FALSE | BW13: FALSE | BX13: FALSE | BY13: FALSE | BZ13: =AND(BZ$6>=$I13,BZ$6<=$J13) -> FALSE | CA13: FALSE | CB13: FALSE | CC13: FALSE | CD13: FALSE | CE13: FALSE | CF13: FALSE | CG13: FALSE | CH13: FALSE | CI13: FALSE | CJ13: FALSE | CK13: FALSE | CL13: FALSE | CM13: FALSE | CN13: FALSE | CO13: FALSE | CP13: FALSE | CQ13: FALSE | CR13: FALSE | CS13: FALSE | CT13: FALSE | CU13: FALSE | CV13: FALSE | CW13: FALSE | CX13: FALSE | CY13: FALSE | CZ13: FALSE | DA13: FALSE | DB13: FALSE | DC13: FALSE | DD13: FALSE | DE13: FALSE | DF13: FALSE | DG13: FALSE | DH13: FALSE | DI13: FALSE | DJ13: FALSE | DK13: FALSE | DL13: FALSE | DM13: FALSE | DN13: FALSE | DO13: FALSE | DP13: FALSE | DQ13: FALSE | DR13: FALSE | DS13: FALSE | DT13: FALSE | DU13: FALSE | DV13: FALSE | DW13: FALSE | DX13: FALSE | DY13: FALSE | DZ13: FALSE | EA13: FALSE | EB13: FALSE | EC13: FALSE | ED13: FALSE | EE13: FALSE | EF13: FALSE | EG13: FALSE | EH13: FALSE | EI13: FALSE | EJ13: FALSE | EK13: FALSE | EL13: FALSE | EM13: FALSE | EN13: FALSE | EO13: FALSE | EP13: FALSE | EQ13: FALSE | ER13: FALSE | ES13: FALSE | ET13: FALSE | EU13: FALSE | EV13: FALSE | EW13: FALSE | EX13: FALSE | EY13: FALSE | EZ13: FALSE | FA13: FALSE | FB13: FALSE | FC13: FALSE | FD13: FALSE | FE13: FALSE | FF13: FALSE | FG13: FALSE | FH13: FALSE | FI13: FALSE | FJ13: FALSE | FK13: FALSE | FL13: FALSE | FM13: FALSE | FN13: FALSE
C14: Operation period | I14: =F27 -> 2013-05-01 | J14: =F30 -> 2033-05-01 | K14: 40 | L14: =K14=F29*F35 -> TRUE | N14: =AND(N$6>=$I14,N$6<$J14) -> FALSE | O14: =AND(O$6>=$I14,O$6<$J14) -> FALSE | P14: FALSE | Q14: FALSE | R14: FALSE | S14: FALSE | T14: FALSE | U14: FALSE | V14: FALSE | W14: FALSE | X14: FALSE | Y14: FALSE | Z14: FALSE | AA14: FALSE | AB14: FALSE | AC14: FALSE | AD14: FALSE | AE14: FALSE | AF14: FALSE | AG14: FALSE | AH14: FALSE | AI14: FALSE | AJ14: FALSE | AK14: FALSE | AL14: FALSE | AM14: FALSE | AN14: FALSE | AO14: FALSE | AP14: FALSE | AQ14: FALSE | AR14: TRUE | AS14: TRUE | AT14: TRUE | AU14: TRUE | AV14: TRUE | AW14: TRUE | AX14: TRUE | AY14: TRUE | AZ14: TRUE | BA14: TRUE | BB14: TRUE | BC14: TRUE | BD14: TRUE | BE14: TRUE | BF14: TRUE | BG14: TRUE | BH14: TRUE | BI14: TRUE | BJ14: TRUE | BK14: TRUE | BL14: TRUE | BM14: TRUE | BN14: TRUE | BO14: TRUE | BP14: TRUE | BQ14: TRUE | BR14: TRUE | BS14: TRUE | BT14: TRUE | BU14: TRUE | BV14: TRUE | BW14: TRUE | BX14: TRUE | BY14: TRUE | BZ14: TRUE | CA14: =AND(CA$6>=$I14,CA$6<$J14) -> TRUE | CB14: TRUE | CC14: TRUE | CD14: TRUE | CE14: TRUE | CF14: FALSE | CG14: FALSE | CH14: FALSE | CI14: FALSE | CJ14: FALSE | CK14: FALSE | CL14: FALSE | CM14: FALSE | CN14: FALSE | CO14: FALSE | CP14: FALSE | CQ14: FALSE | CR14: FALSE | CS14: FALSE | CT14: FALSE | CU14: FALSE | CV14: FALSE | CW14: FALSE | CX14: FALSE | CY14: FALSE | CZ14: FALSE | DA14: FALSE | DB14: FALSE | DC14: FALSE | DD14: FALSE | DE14: FALSE | DF14: FALSE | DG14: FALSE | DH14: FALSE | DI14: FALSE | DJ14: FALSE | DK14: FALSE | DL14: FALSE | DM14: FALSE | DN14: FALSE | DO14: FALSE | DP14: FALSE | DQ14: FALSE | DR14: FALSE | DS14: FALSE | DT14: FALSE | DU14: FALSE | DV14: FALSE | DW14: FALSE | DX14: FALSE | DY14: FALSE | DZ14: FALSE | EA14: FALSE | EB14: FALSE | EC14: FALSE | ED14: FALSE | EE14: FALSE | EF14: FALSE | EG14: FALSE | EH14: FALSE | EI14: FALSE | EJ14: FALSE | EK14: FALSE | EL14: FALSE | EM14: =AND(EM$6>=$I14,EM$6<$J14) -> FALSE | EN14: FALSE | EO14: FALSE | EP14: FALSE | EQ14: FALSE | ER14: FALSE | ES14: FALSE | ET14: FALSE | EU14: FALSE | EV14: FALSE | EW14: FALSE | EX14: FALSE | EY14: FALSE | EZ14: FALSE | FA14: FALSE | FB14: FALSE | FC14: FALSE | FD14: FALSE | FE14: FALSE | FF14: FALSE | FG14: FALSE | FH14: FALSE | FI14: FALSE | FJ14: FALSE | FK14: FALSE | FL14: FALSE | FM14: FALSE | FN14: FALSE
C16: Debt Repayment Period | I16: =I12 -> 2013-05-01 | J16: =F106 -> 2026-05-01 | K16: =COUNTIF(N16:FN16,TRUE) -> 26 | L16: =K16/F35=F105 -> TRUE | N16: =AND(N$6>=$I16,N$6<$J16) -> FALSE | O16: =AND(O$6>=$I16,O$6<$J16) -> FALSE | P16: FALSE | Q16: FALSE | R16: FALSE | S16: FALSE | T16: FALSE | U16: FALSE | V16: FALSE | W16: FALSE | X16: FALSE | Y16: FALSE | Z16: FALSE | AA16: FALSE | AB16: FALSE | AC16: FALSE | AD16: FALSE | AE16: FALSE | AF16: FALSE | AG16: FALSE | AH16: FALSE | AI16: FALSE | AJ16: FALSE | AK16: FALSE | AL16: FALSE | AM16: FALSE | AN16: FALSE | AO16: FALSE | AP16: FALSE | AQ16: FALSE | AR16: TRUE | AS16: TRUE | AT16: TRUE | AU16: TRUE | AV16: TRUE | AW16: TRUE | AX16: TRUE | AY16: TRUE | AZ16: TRUE | BA16: TRUE | BB16: TRUE | BC16: TRUE | BD16: TRUE | BE16: TRUE | BF16: TRUE | BG16: TRUE | BH16: TRUE | BI16: TRUE | BJ16: TRUE | BK16: TRUE | BL16: TRUE | BM16: TRUE | BN16: TRUE | BO16: TRUE | BP16: TRUE | BQ16: TRUE | BR16: FALSE | BS16: FALSE | BT16: FALSE | BU16: FALSE | BV16: FALSE | BW16: FALSE | BX16: FALSE | BY16: FALSE | BZ16: FALSE | CA16: =AND(CA$6>=$I16,CA$6<$J16) -> FALSE | CB16: FALSE | CC16: FALSE | CD16: FALSE | CE16: FALSE | CF16: FALSE | CG16: FALSE | CH16: FALSE | CI16: FALSE | CJ16: FALSE | CK16: FALSE | CL16: FALSE | CM16: FALSE | CN16: FALSE | CO16: FALSE | CP16: FALSE | CQ16: FALSE | CR16: FALSE | CS16: FALSE | CT16: FALSE | CU16: FALSE | CV16: FALSE | CW16: FALSE | CX16: FALSE | CY16: FALSE | CZ16: FALSE | DA16: FALSE | DB16: FALSE | DC16: FALSE | DD16: FALSE | DE16: FALSE | DF16: FALSE | DG16: FALSE | DH16: FALSE | DI16: FALSE | DJ16: FALSE | DK16: FALSE | DL16: FALSE | DM16: FALSE | DN16: FALSE | DO16: FALSE | DP16: FALSE | DQ16: FALSE | DR16: FALSE | DS16: FALSE | DT16: FALSE | DU16: FALSE | DV16: FALSE | DW16: FALSE | DX16: FALSE | DY16: FALSE | DZ16: FALSE | EA16: FALSE | EB16: FALSE | EC16: FALSE | ED16: FALSE | EE16: FALSE | EF16: FALSE | EG16: FALSE | EH16: FALSE | EI16: FALSE | EJ16: FALSE | EK16: FALSE | EL16: FALSE | EM16: =AND(EM$6>=$I16,EM$6<$J16) -> FALSE | EN16: FALSE | EO16: FALSE | EP16: FALSE | EQ16: FALSE | ER16: FALSE | ES16: FALSE | ET16: FALSE | EU16: FALSE | EV16: FALSE | EW16: FALSE | EX16: FALSE | EY16: FALSE | EZ16: FALSE | FA16: FALSE | FB16: FALSE | FC16: FALSE | FD16: FALSE | FE16: FALSE | FF16: FALSE | FG16: FALSE | FH16: FALSE | FI16: FALSE | FJ16: FALSE | FK16: FALSE | FL16: FALSE | FM16: FALSE | FN16: FALSE
C17: Debt Retirement Period | I17: =J16 -> 2026-05-01 | J17: =J16 -> 2026-05-01 | K17: =COUNTIF(N17:FN17,TRUE) -> 1 | L17: =K17=1 -> TRUE | N17: =AND(N$6>=$I17,N$6<=$J17) -> FALSE | O17: =AND(O$6>=$I17,O$6<=$J17) -> FALSE | P17: FALSE | Q17: FALSE | R17: FALSE | S17: FALSE | T17: FALSE | U17: FALSE | V17: FALSE | W17: FALSE | X17: FALSE | Y17: FALSE | Z17: FALSE | AA17: FALSE | AB17: FALSE | AC17: FALSE | AD17: FALSE | AE17: FALSE | AF17: FALSE | AG17: FALSE | AH17: FALSE | AI17: FALSE | AJ17: FALSE | AK17: FALSE | AL17: FALSE | AM17: FALSE | AN17: FALSE | AO17: FALSE | AP17: FALSE | AQ17: FALSE | AR17: FALSE | AS17: FALSE | AT17: FALSE | AU17: FALSE | AV17: FALSE | AW17: FALSE | AX17: FALSE | AY17: FALSE | AZ17: FALSE | BA17: FALSE | BB17: FALSE | BC17: FALSE | BD17: FALSE | BE17: FALSE | BF17: FALSE | BG17: FALSE | BH17: FALSE | BI17: FALSE | BJ17: FALSE | BK17: FALSE | BL17: FALSE | BM17: FALSE | BN17: FALSE | BO17: FALSE | BP17: FALSE | BQ17: FALSE | BR17: TRUE | BS17: FALSE | BT17: FALSE | BU17: FALSE | BV17: FALSE | BW17: FALSE | BX17: FALSE | BY17: FALSE | BZ17: FALSE | CA17: =AND(CA$6>=$I17,CA$6<=$J17) -> FALSE | CB17: FALSE | CC17: FALSE | CD17: FALSE | CE17: FALSE | CF17: FALSE | CG17: FALSE | CH17: FALSE | CI17: FALSE | CJ17: FALSE | CK17: FALSE | CL17: FALSE | CM17: FALSE | CN17: FALSE | CO17: FALSE | CP17: FALSE | CQ17: FALSE | CR17: FALSE | CS17: FALSE | CT17: FALSE | CU17: FALSE | CV17: FALSE | CW17: FALSE | CX17: FALSE | CY17: FALSE | CZ17: FALSE | DA17: FALSE | DB17: FALSE | DC17: FALSE | DD17: FALSE | DE17: FALSE | DF17: FALSE | DG17: FALSE | DH17: FALSE | DI17: FALSE | DJ17: FALSE | DK17: FALSE | DL17: FALSE | DM17: FALSE | DN17: FALSE | DO17: FALSE | DP17: FALSE | DQ17: FALSE | DR17: FALSE | DS17: FALSE | DT17: FALSE | DU17: FALSE | DV17: FALSE | DW17: FALSE | DX17: FALSE | DY17: FALSE | DZ17: FALSE | EA17: FALSE | EB17: FALSE | EC17: =AND(EC$6>=$I17,EC$6<=$J17) -> FALSE | ED17: FALSE | EE17: FALSE | EF17: FALSE | EG17: FALSE | EH17: FALSE | EI17: FALSE | EJ17: FALSE | EK17: FALSE | EL17: FALSE | EM17: FALSE | EN17: FALSE | EO17: FALSE | EP17: FALSE | EQ17: FALSE | ER17: FALSE | ES17: FALSE | ET17: FALSE | EU17: FALSE | EV17: FALSE | EW17: FALSE | EX17: FALSE | EY17: FALSE | EZ17: FALSE | FA17: FALSE | FB17: FALSE | FC17: FALSE | FD17: FALSE | FE17: FALSE | FF17: FALSE | FG17: FALSE | FH17: FALSE | FI17: FALSE | FJ17: FALSE | FK17: FALSE | FL17: FALSE | FM17: FALSE | FN17: FALSE
C18: Re-financing Date | I18: =F165 -> 2017-05-01 | J18: =I18 -> 2017-05-01 | K18: =COUNTIF(N18:FN18,TRUE) -> 0 | N18: =IF($F$163,AND(N$6>=$I18,N$6<=$J18)) -> FALSE | O18: FALSE | P18: FALSE | Q18: FALSE | R18: FALSE | S18: FALSE | T18: FALSE | U18: FALSE | V18: FALSE | W18: FALSE | X18: FALSE | Y18: FALSE | Z18: FALSE | AA18: FALSE | AB18: FALSE | AC18: FALSE | AD18: FALSE | AE18: FALSE | AF18: FALSE | AG18: FALSE | AH18: FALSE | AI18: FALSE | AJ18: FALSE | AK18: FALSE | AL18: FALSE | AM18: FALSE | AN18: FALSE | AO18: FALSE | AP18: FALSE | AQ18: FALSE | AR18: FALSE | AS18: FALSE | AT18: =IF($F$163,AND(AT$6>=$I18,AT$6<=$J18)) -> FALSE | AU18: FALSE | AV18: FALSE | AW18: FALSE | AX18: FALSE | AY18: FALSE | AZ18: FALSE | BA18: FALSE | BB18: FALSE | BC18: FALSE | BD18: FALSE | BE18: FALSE | BF18: FALSE | BG18: FALSE | BH18: FALSE | BI18: FALSE | BJ18: FALSE | BK18: FALSE | BL18: FALSE | BM18: FALSE | BN18: FALSE | BO18: FALSE | BP18: FALSE | BQ18: FALSE | BR18: FALSE | BS18: FALSE | BT18: FALSE | BU18: FALSE | BV18: FALSE | BW18: FALSE | BX18: FALSE | BY18: FALSE | BZ18: =IF($F$163,AND(BZ$6>=$I18,BZ$6<=$J18)) -> FALSE | CA18: FALSE | CB18: FALSE | CC18: FALSE | CD18: FALSE | CE18: FALSE | CF18: FALSE | CG18: FALSE | CH18: FALSE | CI18: FALSE | CJ18: FALSE | CK18: FALSE | CL18: FALSE | CM18: FALSE | CN18: FALSE | CO18: FALSE | CP18: FALSE | CQ18: FALSE | CR18: FALSE | CS18: FALSE | CT18: FALSE | CU18: FALSE | CV18: FALSE | CW18: FALSE | CX18: FALSE | CY18: FALSE | CZ18: FALSE | DA18: FALSE | DB18: FALSE | DC18: FALSE | DD18: FALSE | DE18: FALSE | DF18: =IF($F$163,AND(DF$6>=$I18,DF$6<=$J18)) -> FALSE | DG18: FALSE | DH18: FALSE | DI18: FALSE | DJ18: FALSE | DK18: FALSE | DL18: FALSE | DM18: FALSE | DN18: FALSE | DO18: FALSE | DP18: FALSE | DQ18: FALSE | DR18: FALSE | DS18: FALSE | DT18: FALSE | DU18: FALSE | DV18: FALSE | DW18: FALSE | DX18: FALSE | DY18: FALSE | DZ18: FALSE | EA18: FALSE | EB18: FALSE | EC18: FALSE | ED18: FALSE | EE18: FALSE | EF18: FALSE | EG18: FALSE | EH18: FALSE | EI18: FALSE | EJ18: FALSE | EK18: FALSE | EL18: =IF($F$163,AND(EL$6>=$I18,EL$6<=$J18)) -> FALSE | EM18: FALSE | EN18: FALSE | EO18: FALSE | EP18: FALSE | EQ18: FALSE | ER18: FALSE | ES18: FALSE | ET18: FALSE | EU18: FALSE | EV18: FALSE | EW18: FALSE | EX18: FALSE | EY18: FALSE | EZ18: FALSE | FA18: FALSE | FB18: FALSE | FC18: FALSE | FD18: FALSE | FE18: FALSE | FF18: FALSE | FG18: FALSE | FH18: FALSE | FI18: FALSE | FJ18: FALSE | FK18: FALSE | FL18: FALSE | FM18: FALSE | FN18: FALSE
C19: Re-financing Repayment Period | I19: =F170 -> 2017-11-01 | J19: =F171 -> 2030-11-01 | K19: =COUNTIF(N19:FN19,TRUE) -> 26 | L19: =K19/F35=F168 -> TRUE | N19: =AND(N$6>=$I19,N$6<$J19) -> FALSE | O19: =AND(O$6>=$I19,O$6<$J19) -> FALSE | P19: FALSE | Q19: FALSE | R19: FALSE | S19: FALSE | T19: FALSE | U19: FALSE | V19: FALSE | W19: FALSE | X19: FALSE | Y19: FALSE | Z19: FALSE | AA19: FALSE | AB19: FALSE | AC19: FALSE | AD19: FALSE | AE19: FALSE | AF19: FALSE | AG19: FALSE | AH19: FALSE | AI19: FALSE | AJ19: FALSE | AK19: FALSE | AL19: FALSE | AM19: FALSE | AN19: FALSE | AO19: FALSE | AP19: FALSE | AQ19: FALSE | AR19: FALSE | AS19: FALSE | AT19: FALSE | AU19: FALSE | AV19: FALSE | AW19: FALSE | AX19: FALSE | AY19: FALSE | AZ19: FALSE | BA19: TRUE | BB19: TRUE | BC19: TRUE | BD19: TRUE | BE19: TRUE | BF19: TRUE | BG19: TRUE | BH19: TRUE | BI19: TRUE | BJ19: TRUE | BK19: TRUE | BL19: TRUE | BM19: TRUE | BN19: TRUE | BO19: TRUE | BP19: TRUE | BQ19: TRUE | BR19: TRUE | BS19: TRUE | BT19: TRUE | BU19: TRUE | BV19: TRUE | BW19: TRUE | BX19: TRUE | BY19: TRUE | BZ19: TRUE | CA19: =AND(CA$6>=$I19,CA$6<$J19) -> FALSE | CB19: FALSE | CC19: FALSE | CD19: FALSE | CE19: FALSE | CF19: FALSE | CG19: FALSE | CH19: FALSE | CI19: FALSE | CJ19: FALSE | CK19: FALSE | CL19: FALSE | CM19: FALSE | CN19: FALSE | CO19: FALSE | CP19: FALSE | CQ19: FALSE | CR19: FALSE | CS19: FALSE | CT19: FALSE | CU19: FALSE | CV19: FALSE | CW19: FALSE | CX19: FALSE | CY19: FALSE | CZ19: FALSE | DA19: FALSE | DB19: FALSE | DC19: FALSE | DD19: FALSE | DE19: FALSE | DF19: FALSE | DG19: FALSE | DH19: FALSE | DI19: FALSE | DJ19: FALSE | DK19: FALSE | DL19: FALSE | DM19: FALSE | DN19: FALSE | DO19: FALSE | DP19: FALSE | DQ19: FALSE | DR19: FALSE | DS19: FALSE | DT19: FALSE | DU19: FALSE | DV19: FALSE | DW19: FALSE | DX19: FALSE | DY19: FALSE | DZ19: FALSE | EA19: FALSE | EB19: FALSE | EC19: FALSE | ED19: FALSE | EE19: FALSE | EF19: FALSE | EG19: FALSE | EH19: FALSE | EI19: FALSE | EJ19: FALSE | EK19: FALSE | EL19: FALSE | EM19: =AND(EM$6>=$I19,EM$6<$J19) -> FALSE | EN19: FALSE | EO19: FALSE | EP19: FALSE | EQ19: FALSE | ER19: FALSE | ES19: FALSE | ET19: FALSE | EU19: FALSE | EV19: FALSE | EW19: FALSE | EX19: FALSE | EY19: FALSE | EZ19: FALSE | FA19: FALSE | FB19: FALSE | FC19: FALSE | FD19: FALSE | FE19: FALSE | FF19: FALSE | FG19: FALSE | FH19: FALSE | FI19: FALSE | FJ19: FALSE | FK19: FALSE | FL19: FALSE | FM19: FALSE | FN19: FALSE
A21: Assumptions
B22: Timing
C23: Model start date | E23: date | F23: 2010-11-01
C24: Development period | E24: months | F24: 6
C25: Financial close | E25: date | F25: =+EDATE(F23,F24) -> 2011-05-01
C26: Construction period | E26: months | F26: ='Master Scenario'!E34 -> 24
C27: Commercial operation date (COD) | E27: date | F27: =EDATE(F25,F26) -> 2013-05-01
C28: DSRA funding | E28: date | F28: =EDATE(F27,-1) -> 2013-04-01
C29: Project lifetime | E29: years | F29: 20
C30: Decommissioning date | E30: date | F30: =EDATE(F27,F29*12) -> 2033-05-01
C32: Months in period pre-COD | E32: months | F32: 1
C33: Periods to comprise a year pre-COD | E33: periods | F33: =12/F32 -> 12
C34: Months in period post-COD | E34: months | F34: 6
C35: Periods to comprise a year post-COD | E35: periods | F35: =12/F34 -> 2
C37: Months pre-COD | E37: months | F37: =F24+F26 -> 30
B39: Operations
C40: Capacity per turbine | E40: MW | F40: 3
C41: Number of turbines | F41: 20
C43: Capacity factor | E43: Code no. | F43: ='Master Scenario'!G34 -> 1 | I43: 1 | J43: 2 | K43: 3 | L43: 4 | M43: 5
N44: 33
E45: periods | F45: date | G45: =INDEX(I45:M45,$F$43) -> P50 case | I45: P50 case | J45: P75 case | K45: P90 case | L45: P25 case | M45: Sensitivty
E46: 0 | F46: =F27 -> 2013-05-01 | G46: =INDEX(I46:M46,$F$43) -> 0.25 | I46: 0.25 | J46: 0.23 | K46: 0.22 | L46: 0.34 | M46: =N44/100 -> 0.33 | O46: =TRANSPOSE(I45:M45) -> P50 case
E47: 1 | F47: =EDATE(F46,E47*$F$34) -> 2013-11-01 | G47: 0.27 | I47: 0.27 | J47: 0.25 | K47: 0.23 | L47: 0.35 | M47: =M46 -> 0.33 | O47: P75 case
E48: 2 | F48: =EDATE(F47,E48*$F$34) -> 2014-11-01 | G48: 0.29 | I48: 0.29 | J48: 0.27 | K48: 0.24 | L48: 0.36 | M48: =M47 -> 0.33 | O48: P90 case
E49: 3 | F49: =EDATE(F48,E49*$F$34) -> 2016-05-01 | G49: 0.3 | I49: 0.3 | J49: 0.29 | K49: 0.25 | L49: 0.37 | M49: 0.33 | O49: P25 case
E50: 4 | F50: =EDATE(F49,E50*$F$34) -> 2018-05-01 | G50: 0.32 | I50: 0.32 | J50: 0.3 | K50: 0.28 | L50: 0.39 | M50: 0.33 | O50: Sensitivty
C52: Inflation rate
D53: Code | F53: ='Master Scenario'!K34 -> 1 | I53: =N8 -> 2010 | J53: =I53+1 -> 2011 | K53: =J53+1 -> 2012 | L53: 2013 | M53: 2014 | N53: 2015 | O53: 2016 | P53: 2017 | Q53: 2018
D54: Base inflation rate | F54: 1 | I54: 0.02 | J54: 0.02 | K54: 0.025 | L54: 0.025 | M54: 0.0275 | N54: 0.0275 | O54: 0.03 | P54: 0.03 | Q54: 0.03
D55: Low inflation rate | F55: 2 | I55: 0.01 | J55: 0.01 | K55: 0.01 | L55: 0.015 | M55: 0.015 | N55: 0.015 | O55: 0.02 | P55: 0.02 | Q55: 0.02
D56: High inflation rate | F56: 3 | I56: 0.035 | J56: 0.035 | K56: 0.035 | L56: 0.035 | M56: 0.035 | N56: 0.035 | O56: 0.035 | P56: 0.035 | Q56: 0.035
D57: =INDEX(D54:D56,$F$53) -> Base inflation rate | I57: =INDEX(I54:I56,$F$53) -> 0.02 | J57: 0.02 | K57: 0.025 | L57: 0.025 | M57: 0.0275 | N57: 0.0275 | O57: 0.03 | P57: 0.03 | Q57: 0.03
D58: Date FIT awarded | E58: date | F58: =EDATE(F27,-6) -> 2012-11-01
C60: Electricity Prices
D61: FIT | E61: EUR/MWh | F61: ='Master Scenario'!H34 -> 60
D62: Indexed | E62: Switch | F62: FALSE
C64: Merchant price
D65: Code | F65: ='Master Scenario'!I34 -> 1 | I65: =I53 -> 2010 | J65: =I65+1 -> 2011 | K65: =J65+1 -> 2012 | L65: 2013 | M65: 2014 | N65: 2015 | O65: 2016 | P65: 2017 | Q65: 2018
D66: Central | E66: EUR/MWh | F66: 1 | I66: 50 | J66: 50 | K66: 48 | L66: 45 | M66: 45 | N66: 43 | O66: 43 | P66: 40 | Q66: 40
D67: Low | E67: EUR/MWh | F67: 2 | I67: 40 | J67: 40 | K67: 40 | L67: 40 | M67: 40 | N67: 40 | O67: 40 | P67: 40 | Q67: 40
D68: High | E68: EUR/MWh | F68: 3 | I68: 50 | J68: 50 | K68: 52 | L68: 52 | M68: 54 | N68: 54 | O68: 54 | P68: 56 | Q68: 56
D69: Sensitivity | E69: EUR/MWh | F69: 4 | I69: 39 | J69: =I69 -> 39 | K69: =J69 -> 39 | L69: 39 | M69: 39 | N69: 39 | O69: 39 | P69: 39 | Q69: 39
D70: =INDEX(D66:D69,$F$65) -> Central | E70: =INDEX(E66:E69,$F$65) -> EUR/MWh | I70: =INDEX(I66:I69,$F$65) -> 50 | J70: =INDEX(J66:J69,$F$65) -> 50 | K70: 48 | L70: 45 | M70: 45 | N70: 43 | O70: 43 | P70: 40 | Q70: =INDEX(Q66:Q69,$F$65) -> 40
D71: Base Date for Inflation | E71: date | F71: 2011-01-01
C73: Operating Expenses
D74: O&M Variable | E74: EUR/MWh | F74: ='Master Scenario'!J34 -> 20
D75: Other costs | E75: *000 EUR/year | F75: 4000
C77: CAPEX
D78: Total Cost | E78: *000 EUR/MW | F78: ='Master Scenario'!F34 -> 1800
D79: Mean Period | E79: Month | F79: =F26/2 -> 12
D80: Gamma for Weibull | E80: Constant | F80: =G80/100 -> 0.98 | G80: 98
D81: Beta for Weibull | E81: Month | F81: =F79/F80 -> 12.24489796
D82: Alpha for Weibull | E82: Constant | F82: =G82/100 -> 1.72 | G82: 172
C84: Development
D85: Cost Percent | E85: Percent | F85: 0.05
D86: Fee Percent | E86: Percent | F86: =G86/100 -> 0 | G86: 0
B88: Taxes & Depreciation
C89: Tax Rate | E89: % | F89: 0.2
C90: Tax Life | E90: years | F90: 9
C91: Amortisation Period | E91: Years | F91: 7
C93: Year | I93: 0 | J93: 1 | K93: 2 | L93: 3 | M93: 4 | N93: 5 | O93: 6 | P93: 7 | Q93: 8 | R93: 9 | S93: 10
C94: Rate | F94: =SUM(J94:S94)=1 -> TRUE | J94: =IFERROR(VDB(1,0,$F$90,I93,J93,2),0) -> 0.2222222222 | K94: =IFERROR(VDB(1,0,$F$90,J93,K93,2),0) -> 0.1728395062 | L94: 0.134430727 | M94: 0.1045572321 | N94: 0.08132229166 | O94: 0.0711570052 | P94: 0.0711570052 | Q94: 0.0711570052 | R94: 0.0711570052 | S94: 0
B96: Base Debt Assumptions
C97: Analysis Mode (TRUE is Structuring FALSE is Risk Analysis) | F97: =CHOOSE($L$97,TRUE,FALSE) -> TRUE | L97: 1
C99: Debt Sizing
D100: Switch for Gearning (TRUE) | E100: Switch | F100: =L100=1 -> TRUE | L100: 1
D101: Gearing Ratio | E101: Percent | F101: =G101/100 -> 0.7 | G101: 70
D102: Target DSCR | E102: Times | F102: =G102/100 -> 1.35 | G102: 135
C104: Debt Tenor
D105: Debt Tenor After COD | E105: Years | F105: 13
D106: Date of Debt Retirement | E106: Date | F106: =EDATE(F27,F105*12) -> 2026-05-01
C108: Interest Rate and Fees
D109: LIBOR Rate | E109: Annual Pct | F109: 0.02
D111: Credit Spread/Year | E111: Year | F111: Annual %
E112: =F25 -> 2011-05-01 | F112: 0.02
E113: =F27 -> 2013-05-01 | F113: 0.025
E114: =EDATE(E113,2*12) -> 2015-05-01 | F114: 0.0275
E115: =EDATE(E114,2*12) -> 2017-05-01 | F115: 0.03
D117: Up-Front Fee Percent | E117: Percent | F117: 0.01
D118: Commitment Fee Percent | E118: Annual Pct | F118: 0.015 | H118: Periodic | I118: =F118/F33 -> 0.00125
C120: Debt Funding
D121: Code | F121: 1
D123: Pro-Rata | E123: 1 | F123: =E123=$F$121 -> TRUE
D124: Equity First | E124: 2 | F124: =E124=$F$121 -> FALSE
D125: Debt First | E125: 3 | F125: =E125=$F$121 -> FALSE
D127: Capitalise Interest and Fees | E127: Switch | F127: FALSE
C129: Debt Repayment
D130: Code | E130: Code | F130: 2
D132: Level | E132: 1 | F132: =E132=$F$130 -> FALSE
D133: Annuity | E133: 2 | F133: =E133=$F$130 -> TRUE
D134: Sculpting | E134: 3 | F134: =E134=$F$130 -> FALSE
C136: Credit Enhancements
D137: DSRA | E137: Months | F137: 6 | H137: Periods | I137: =F137/F34 -> 1
D138: Cash Sweep Percent | E138: Percent | F138: =G138/100 -> 0 | G138: 0
D139: DSCR Covenant | E139: Times | F139: 1.2 | N139: Debt Function
B141: Debt Size from Sources and Uses Summary | H141: Applied | I141: Computed | J141: Function | K141: Fixed | N141: Run Function | O141: =NOT(F97) -> FALSE
C142: Uses of Funds | H142: in Model | I142: in Model | J142: Structuring | K142: Risk Analysis | N142: Debt Size | O142: =Debt_Resolve(O141,F100,F130,F101,F102,N237:EA237,N336:EA336,N284:EA284,N16:EA16,N11:EA11,F89,N248:EA248,F117,F118/F33,F127,F91,F121,F137,F34,,F105) -> 86707.47078
D143: Construction | H143: =SUM(275:275) -> 108000 | I143: 108000 | J143: 108000 | K143: 108000 | N143: Total Adders | O143: 10467.8154
D144: Development Cost | H144: 5400 | I144: 5400 | J144: 5400 | K144: 5400 | N144: DSRA | O144: 4441.272894
D145: Development Fees | H145: 0 | I145: 0 | J145: 0 | K145: 0
D146: Sub-Total | H146: =SUM(H143:H145) -> 113400 | I146: =SUM(I143:I145) -> 113400 | J146: =SUM(J143:J145) -> 113400 | K146: 113400
D147: Interest During Construction | I147: =SUM(338:338) -> 4093.189877
D148: Total Fees | I148: =SUM(346:346) -> 1933.352627
D149: DSRA | E149: =F97 -> TRUE | H149: =IF(E149,J149,K149) -> 4441.272894 | I149: =SUM(413:413) -> 4441.272894 | J149: =O144 -> 4441.272894 | K149: 4441.272894
D150: Sub-Total | E150: =F97 -> TRUE | H150: =IF(E150,J150,K150) -> 10467.8154 | I150: =SUM(I147:I149) -> 10467.8154 | J150: =O143 -> 10467.8154 | K150: 10467.8154
D151: Total | H151: =H150+H146 -> 123867.8154 | I151: =I150+I146 -> 123867.8154 | J151: =J150+J146 -> 123867.8154 | K151: 123867.8154
C153: Sources of Funds
D154: Debt | E154: =E149 -> TRUE | H154: =IF(E154,J154,K154) -> 86707.47078 | I154: =SUM(330:330) -> 86707.47078 | J154: =O142 -> 86707.47078 | K154: 86707.47078
D155: Equity | H155: =H151-H154 -> 37160.34462 | I155: =I151-I154 -> 37160.34462 | J155: =J151-J154 -> 37160.34462 | K155: 37160.34462
D156: Total | H156: =SUM(H154:H155) -> 123867.8154 | I156: =SUM(I154:I155) -> 123867.8154 | J156: =SUM(J154:J155) -> 123867.8154 | K156: 123867.8154
D158: Capitalised Interest and Fees | H158: =IF(F127,H150-H149,0) -> 0
D159: Debt Funded | H159: =H154-H158 -> 86707.47078 | I159: =SUM(N320:EA320) -> 86707.47078
B162: Re-Financing Assumptions
C163: Re-Financing Switch | E163: Switch | F163: FALSE
D164: Year of Re-Financing | E164: Year | F164: =G164 -> 4 | G164: 4
D165: Date of Re-financing | E165: Date | F165: =EDATE(F27,F164*12) -> 2017-05-01
D167: Re-financing Target DSCR | E167: Times | F167: =G167/100 -> 1.14 | G167: 114
D168: Re-financing Debt Term | E168: Year | F168: 13
D170: Start of Re-financing | E170: Date | F170: =EDATE(F165,F34) -> 2017-11-01
D171: Finish of Re-financing | E171: Date | F171: =EDATE(F170,F168*12) -> 2030-11-01 | G171: =IF(F171>F30,"Too Long","") -> 
D173: Re-financing Amount | F173: =sculpt_debt_refinance(N19:FN19,N448:FN448,N485:FN485,F89,Working!N480:FN480,F167,0,F175)*F163 -> 0 | G173: =L440 -> TRUE | H173: =F173-G173 -> -1
D175: Starting NOL in Re-finance Period | E175: EUR 000 | F175: =SUMIF(18:18,TRUE,498:498) -> 0
D176: Credit Spread on Re-financing | E176: Percent | F176: 0.02
D177: Fees on Re-financing | E177: Percent | F177: 0.015
B179: Valuation Assumptions
C180: Assumed Valuation Date
D181: Year of Sale After COD | E181: Year | F181: =G181-5 -> 7 | G181: 12
D182: Date of Sale | E182: Date | F182: =EDATE(F27,F181*12) -> 2020-05-01
D184: Discount Rate and Year | H184: Un-Geared | I184: Equity
D185: Development Period | E185: =I9 -> 2010-11-01 | G185: =LOOKUP(E185,$N$6:$FN$6,$N$1:$FN$1) -> -3 | H185: 0.18 | I185: 0.2
D186: Construction | E186: =F25 -> 2011-05-01 | G186: -2 | H186: 0.15 | I186: 0.165
D187: Commercial Operation | E187: =F27 -> 2013-05-01 | G187: 1 | H187: 0.13 | I187: 0.14
E188: =EDATE(E187,12) -> 2014-05-01 | G188: 2 | H188: 0.09 | I188: 0.13
E189: =EDATE(E188,12) -> 2015-05-01 | G189: 3 | H189: 0.08 | I189: 0.11
E190: =EDATE(E189,12) -> 2016-05-01 | G190: 4 | H190: 0.07 | I190: 0.09
E191: =EDATE(E190,12) -> 2017-05-01 | G191: 5 | H191: 0.065 | I191: 0.08
E192: =F30 -> 2033-05-01 | G192: 21 | H192: 0.06 | I192: 0.08
A196: EBITDA and Capital Expenditures to Compute Pre-tax Flow
C198: Total Capacity | E198: MW | H198: Input MW | I198: =F40*F41 -> 60 | N198: =$I$198*N14 -> 0 | O198: 0 | P198: 0 | Q198: 0 | R198: 0 | S198: 0 | T198: 0 | U198: 0 | V198: 0 | W198: 0 | X198: 0 | Y198: 0 | Z198: 0 | AA198: 0 | AB198: 0 | AC198: 0 | AD198: 0 | AE198: 0 | AF198: 0 | AG198: 0 | AH198: 0 | AI198: 0 | AJ198: 0 | AK198: 0 | AL198: 0 | AM198: 0 | AN198: 0 | AO198: 0 | AP198: 0 | AQ198: 0 | AR198: 60 | AS198: 60 | AT198: =$I$198*AT14 -> 60 | AU198: 60 | AV198: 60 | AW198: 60 | AX198: 60 | AY198: 60 | AZ198: 60 | BA198: 60 | BB198: 60 | BC198: 60 | BD198: 60 | BE198: 60 | BF198: 60 | BG198: 60 | BH198: 60 | BI198: 60 | BJ198: 60 | BK198: 60 | BL198: 60 | BM198: 60 | BN198: 60 | BO198: 60 | BP198: 60 | BQ198: 60 | BR198: 60 | BS198: 60 | BT198: 60 | BU198: 60 | BV198: 60 | BW198: 60 | BX198: 60 | BY198: 60 | BZ198: =$I$198*BZ14 -> 60 | CA198: 60 | CB198: 60 | CC198: 60 | CD198: 60 | CE198: 60 | CF198: 0 | CG198: 0 | CH198: 0 | CI198: 0 | CJ198: 0 | CK198: 0 | CL198: 0 | CM198: 0 | CN198: 0 | CO198: 0 | CP198: 0 | CQ198: 0 | CR198: 0 | CS198: 0 | CT198: 0 | CU198: 0 | CV198: 0 | CW198: 0 | CX198: 0 | CY198: 0 | CZ198: 0 | DA198: 0 | DB198: 0 | DC198: 0 | DD198: 0 | DE198: 0 | DF198: =$I$198*DF14 -> 0 | DG198: 0 | DH198: 0 | DI198: 0 | DJ198: 0 | DK198: 0 | DL198: 0 | DM198: 0 | DN198: 0 | DO198: 0 | DP198: 0 | DQ198: 0 | DR198: 0 | DS198: 0 | DT198: 0 | DU198: 0 | DV198: 0 | DW198: 0 | DX198: 0 | DY198: 0 | DZ198: 0 | EA198: 0 | EB198: 0 | EC198: 0 | ED198: 0 | EE198: 0 | EF198: 0 | EG198: 0 | EH198: 0 | EI198: 0 | EJ198: 0 | EK198: 0 | EL198: =$I$198*EL14 -> 0 | EM198: 0 | EN198: 0 | EO198: 0 | EP198: 0 | EQ198: 0 | ER198: 0 | ES198: 0 | ET198: 0 | EU198: 0 | EV198: 0 | EW198: 0 | EX198: 0 | EY198: 0 | EZ198: 0 | FA198: 0 | FB198: 0 | FC198: 0 | FD198: 0 | FE198: 0 | FF198: 0 | FG198: 0 | FH198: 0 | FI198: 0 | FJ198: 0 | FK198: 0 | FL198: 0 | FM198: 0 | FN198: 0
C199: Capacity factor | E199: % | N199: =IFERROR(LOOKUP(N6,$F$46:$F$50,$G$46:$G$50),FALSE) -> FALSE | O199: FALSE | P199: FALSE | Q199: FALSE | R199: FALSE | S199: FALSE | T199: FALSE | U199: FALSE | V199: FALSE | W199: FALSE | X199: FALSE | Y199: FALSE | Z199: FALSE | AA199: FALSE | AB199: FALSE | AC199: FALSE | AD199: FALSE | AE199: FALSE | AF199: FALSE | AG199: FALSE | AH199: FALSE | AI199: FALSE | AJ199: FALSE | AK199: FALSE | AL199: FALSE | AM199: FALSE | AN199: FALSE | AO199: FALSE | AP199: FALSE | AQ199: FALSE | AR199: 0.25 | AS199: 0.27 | AT199: =IFERROR(LOOKUP(AT6,$F$46:$F$50,$G$46:$G$50),FALSE) -> 0.27 | AU199: 0.29 | AV199: 0.29 | AW199: 0.29 | AX199: 0.3 | AY199: 0.3 | AZ199: 0.3 | BA199: 0.3 | BB199: 0.32 | BC199: 0.32 | BD199: 0.32 | BE199: 0.32 | BF199: 0.32 | BG199: 0.32 | BH199: 0.32 | BI199: 0.32 | BJ199: 0.32 | BK199: 0.32 | BL199: 0.32 | BM199: 0.32 | BN199: 0.32 | BO199: 0.32 | BP199: 0.32 | BQ199: 0.32 | BR199: 0.32 | BS199: 0.32 | BT199: 0.32 | BU199: 0.32 | BV199: 0.32 | BW199: 0.32 | BX199: 0.32 | BY199: 0.32 | BZ199: =IFERROR(LOOKUP(BZ6,$F$46:$F$50,$G$46:$G$50),FALSE) -> 0.32 | CA199: 0.32 | CB199: 0.32 | CC199: 0.32 | CD199: 0.32 | CE199: 0.32 | CF199: 0.32 | CG199: 0.32 | CH199: 0.32 | CI199: 0.32 | CJ199: 0.32 | CK199: 0.32 | CL199: 0.32 | CM199: 0.32 | CN199: 0.32 | CO199: 0.32 | CP199: 0.32 | CQ199: 0.32 | CR199: 0.32 | CS199: 0.32 | CT199: 0.32 | CU199: 0.32 | CV199: 0.32 | CW199: 0.32 | CX199: 0.32 | CY199: 0.32 | CZ199: 0.32 | DA199: 0.32 | DB199: 0.32 | DC199: 0.32 | DD199: 0.32 | DE199: 0.32 | DF199: =IFERROR(LOOKUP(DF6,$F$46:$F$50,$G$46:$G$50),FALSE) -> 0.32 | DG199: 0.32 | DH199: 0.32 | DI199: 0.32 | DJ199: 0.32 | DK199: 0.32 | DL199: 0.32 | DM199: 0.32 | DN199: 0.32 | DO199: 0.32 | DP199: 0.32 | DQ199: 0.32 | DR199: 0.32 | DS199: 0.32 | DT199: 0.32 | DU199: 0.32 | DV199: 0.32 | DW199: 0.32 | DX199: 0.32 | DY199: 0.32 | DZ199: 0.32 | EA199: 0.32 | EB199: 0.32 | EC199: 0.32 | ED199: 0.32 | EE199: 0.32 | EF199: 0.32 | EG199: 0.32 | EH199: 0.32 | EI199: 0.32 | EJ199: 0.32 | EK199: 0.32 | EL199: =IFERROR(LOOKUP(EL6,$F$46:$F$50,$G$46:$G$50),FALSE) -> 0.32 | EM199: 0.32 | EN199: 0.32 | EO199: 0.32 | EP199: 0.32 | EQ199: 0.32 | ER199: 0.32 | ES199: 0.32 | ET199: 0.32 | EU199: 0.32 | EV199: 0.32 | EW199: 0.32 | EX199: 0.32 | EY199: 0.32 | EZ199: 0.32 | FA199: 0.32 | FB199: 0.32 | FC199: 0.32 | FD199: 0.32 | FE199: 0.32 | FF199: 0.32 | FG199: 0.32 | FH199: 0.32 | FI199: 0.32 | FJ199: 0.32 | FK199: 0.32 | FL199: 0.32 | FM199: 0.32 | FN199: 0.32
C200: Availability
C201: Days in the period | E201: days | N201: =N7-N6+1 -> 30 | O201: 31 | P201: 31 | Q201: 28 | R201: 31 | S201: 30 | T201: 31 | U201: 30 | V201: 31 | W201: 31 | X201: 30 | Y201: 31 | Z201: 30 | AA201: 31 | AB201: 31 | AC201: 29 | AD201: 31 | AE201: 30 | AF201: 31 | AG201: 30 | AH201: 31 | AI201: 31 | AJ201: 30 | AK201: 31 | AL201: 30 | AM201: 31 | AN201: 31 | AO201: 28 | AP201: 31 | AQ201: 30 | AR201: 184 | AS201: 181 | AT201: =AT7-AT6+1 -> 184 | AU201: 181 | AV201: 184 | AW201: 182 | AX201: 184 | AY201: 181 | AZ201: 184 | BA201: 181 | BB201: 184 | BC201: 181 | BD201: 184 | BE201: 182 | BF201: 184 | BG201: 181 | BH201: 184 | BI201: 181 | BJ201: 184 | BK201: 181 | BL201: 184 | BM201: 182 | BN201: 184 | BO201: 181 | BP201: 184 | BQ201: 181 | BR201: 184 | BS201: 181 | BT201: 184 | BU201: 182 | BV201: 184 | BW201: 181 | BX201: 184 | BY201: 181 | BZ201: =BZ7-BZ6+1 -> 184 | CA201: 181 | CB201: 184 | CC201: 182 | CD201: 184 | CE201: 181 | CF201: 184 | CG201: 181 | CH201: 184 | CI201: 181 | CJ201: 184 | CK201: 182 | CL201: 184 | CM201: 181 | CN201: 184 | CO201: 181 | CP201: 184 | CQ201: 181 | CR201: 184 | CS201: 182 | CT201: 184 | CU201: 181 | CV201: 184 | CW201: 181 | CX201: 184 | CY201: 181 | CZ201: 184 | DA201: 182 | DB201: 184 | DC201: 181 | DD201: 184 | DE201: 181 | DF201: =DF7-DF6+1 -> 184 | DG201: 181 | DH201: 184 | DI201: 182 | DJ201: 184 | DK201: 181 | DL201: 184 | DM201: 181 | DN201: 184 | DO201: 181 | DP201: 184 | DQ201: 182 | DR201: 184 | DS201: 181 | DT201: 184 | DU201: 181 | DV201: 184 | DW201: 181 | DX201: 184 | DY201: 182 | DZ201: 184 | EA201: 181 | EB201: 184 | EC201: 181 | ED201: 184 | EE201: 181 | EF201: 184 | EG201: 182 | EH201: 184 | EI201: 181 | EJ201: 184 | EK201: 181 | EL201: =EL7-EL6+1 -> 184 | EM201: 181 | EN201: 184 | EO201: 182 | EP201: 184 | EQ201: 181 | ER201: 184 | ES201: 181 | ET201: 184 | EU201: 181 | EV201: 184 | EW201: 182 | EX201: 184 | EY201: 181 | EZ201: 184 | FA201: 181 | FB201: 184 | FC201: 181 | FD201: 184 | FE201: 182 | FF201: 184 | FG201: 181 | FH201: 184 | FI201: 181 | FJ201: 184 | FK201: 181 | FL201: 184 | FM201: 182 | FN201: 184
C202: Hours in period | E202: hours | N202: =N201*24 -> 720 | O202: =O201*24 -> 744 | P202: 744 | Q202: 672 | R202: 744 | S202: 720 | T202: 744 | U202: 720 | V202: 744 | W202: 744 | X202: 720 | Y202: 744 | Z202: 720 | AA202: 744 | AB202: 744 | AC202: 696 | AD202: 744 | AE202: 720 | AF202: 744 | AG202: 720 | AH202: 744 | AI202: 744 | AJ202: 720 | AK202: 744 | AL202: 720 | AM202: 744 | AN202: 744 | AO202: 672 | AP202: 744 | AQ202: 720 | AR202: 4416 | AS202: 4344 | AT202: 4416 | AU202: 4344 | AV202: 4416 | AW202: 4368 | AX202: 4416 | AY202: 4344 | AZ202: 4416 | BA202: 4344 | BB202: 4416 | BC202: 4344 | BD202: 4416 | BE202: 4368 | BF202: 4416 | BG202: 4344 | BH202: 4416 | BI202: 4344 | BJ202: 4416 | BK202: 4344 | BL202: 4416 | BM202: 4368 | BN202: 4416 | BO202: 4344 | BP202: 4416 | BQ202: 4344 | BR202: 4416 | BS202: 4344 | BT202: 4416 | BU202: 4368 | BV202: 4416 | BW202: 4344 | BX202: 4416 | BY202: 4344 | BZ202: 4416 | CA202: =CA201*24 -> 4344 | CB202: 4416 | CC202: 4368 | CD202: 4416 | CE202: 4344 | CF202: 4416 | CG202: 4344 | CH202: 4416 | CI202: 4344 | CJ202: 4416 | CK202: 4368 | CL202: 4416 | CM202: 4344 | CN202: 4416 | CO202: 4344 | CP202: 4416 | CQ202: 4344 | CR202: 4416 | CS202: 4368 | CT202: 4416 | CU202: 4344 | CV202: 4416 | CW202: 4344 | CX202: 4416 | CY202: 4344 | CZ202: 4416 | DA202: 4368 | DB202: 4416 | DC202: 4344 | DD202: 4416 | DE202: 4344 | DF202: 4416 | DG202: 4344 | DH202: 4416 | DI202: 4368 | DJ202: 4416 | DK202: 4344 | DL202: 4416 | DM202: 4344 | DN202: 4416 | DO202: 4344 | DP202: 4416 | DQ202: 4368 | DR202: 4416 | DS202: 4344 | DT202: 4416 | DU202: 4344 | DV202: 4416 | DW202: 4344 | DX202: 4416 | DY202: 4368 | DZ202: 4416 | EA202: 4344 | EB202: =EB201*24 -> 4416 | EC202: 4344 | ED202: 4416 | EE202: 4344 | EF202: 4416 | EG202: 4368 | EH202: 4416 | EI202: 4344 | EJ202: 4416 | EK202: 4344 | EL202: 4416 | EM202: 4344 | EN202: 4416 | EO202: 4368 | EP202: 4416 | EQ202: 4344 | ER202: 4416 | ES202: 4344 | ET202: 4416 | EU202: 4344 | EV202: 4416 | EW202: 4368 | EX202: 4416 | EY202: 4344 | EZ202: 4416 | FA202: 4344 | FB202: 4416 | FC202: 4344 | FD202: 4416 | FE202: 4368 | FF202: 4416 | FG202: 4344 | FH202: 4416 | FI202: 4344 | FJ202: 4416 | FK202: 4344 | FL202: 4416 | FM202: 4368 | FN202: 4416
C204: Generation | E204: MWh | N204: =IFERROR(N198*N202*N199,0) -> 0 | O204: =IFERROR(O198*O202*O199,0) -> 0 | P204: 0 | Q204: 0 | R204: 0 | S204: 0 | T204: 0 | U204: 0 | V204: 0 | W204: 0 | X204: 0 | Y204: 0 | Z204: 0 | AA204: 0 | AB204: 0 | AC204: 0 | AD204: 0 | AE204: 0 | AF204: 0 | AG204: 0 | AH204: 0 | AI204: 0 | AJ204: 0 | AK204: 0 | AL204: 0 | AM204: 0 | AN204: 0 | AO204: 0 | AP204: 0 | AQ204: 0 | AR204: 66240 | AS204: 70372.8 | AT204: 71539.2 | AU204: 75585.6 | AV204: 76838.4 | AW204: 76003.2 | AX204: 79488 | AY204: 78192 | AZ204: 79488 | BA204: 78192 | BB204: 84787.2 | BC204: 83404.8 | BD204: 84787.2 | BE204: 83865.6 | BF204: 84787.2 | BG204: 83404.8 | BH204: 84787.2 | BI204: 83404.8 | BJ204: 84787.2 | BK204: 83404.8 | BL204: 84787.2 | BM204: 83865.6 | BN204: 84787.2 | BO204: 83404.8 | BP204: 84787.2 | BQ204: 83404.8 | BR204: 84787.2 | BS204: 83404.8 | BT204: 84787.2 | BU204: 83865.6 | BV204: 84787.2 | BW204: 83404.8 | BX204: 84787.2 | BY204: 83404.8 | BZ204: 84787.2 | CA204: =IFERROR(CA198*CA202*CA199,0) -> 83404.8 | CB204: 84787.2 | CC204: 83865.6 | CD204: 84787.2 | CE204: 83404.8 | CF204: 0 | CG204: 0 | CH204: 0 | CI204: 0 | CJ204: 0 | CK204: 0 | CL204: 0 | CM204: 0 | CN204: 0 | CO204: 0 | CP204: 0 | CQ204: 0 | CR204: 0 | CS204: 0 | CT204: 0 | CU204: 0 | CV204: 0 | CW204: 0 | CX204: 0 | CY204: 0 | CZ204: 0 | DA204: 0 | DB204: 0 | DC204: 0 | DD204: 0 | DE204: 0 | DF204: 0 | DG204: 0 | DH204: 0 | DI204: 0 | DJ204: 0 | DK204: 0 | DL204: 0 | DM204: 0 | DN204: 0 | DO204: 0 | DP204: 0 | DQ204: 0 | DR204: 0 | DS204: 0 | DT204: 0 | DU204: 0 | DV204: 0 | DW204: 0 | DX204: 0 | DY204: 0 | DZ204: 0 | EA204: 0 | EB204: =IFERROR(EB198*EB202*EB199,0) -> 0 | EC204: 0 | ED204: 0 | EE204: 0 | EF204: 0 | EG204: 0 | EH204: 0 | EI204: 0 | EJ204: 0 | EK204: 0 | EL204: 0 | EM204: 0 | EN204: 0 | EO204: 0 | EP204: 0 | EQ204: 0 | ER204: 0 | ES204: 0 | ET204: 0 | EU204: 0 | EV204: 0 | EW204: 0 | EX204: 0 | EY204: 0 | EZ204: 0 | FA204: 0 | FB204: 0 | FC204: 0 | FD204: 0 | FE204: 0 | FF204: 0 | FG204: 0 | FH204: 0 | FI204: 0 | FJ204: 0 | FK204: 0 | FL204: 0 | FM204: 0 | FN204: 0
C206: Real FIT | E206: EUR/MWh | H206: Base FIT | I206: =F61 -> 60 | N206: =$I$206 -> 60 | O206: 60 | P206: 60 | Q206: 60 | R206: 60 | S206: 60 | T206: 60 | U206: 60 | V206: 60 | W206: 60 | X206: 60 | Y206: 60 | Z206: 60 | AA206: 60 | AB206: 60 | AC206: 60 | AD206: 60 | AE206: 60 | AF206: 60 | AG206: 60 | AH206: 60 | AI206: 60 | AJ206: 60 | AK206: 60 | AL206: 60 | AM206: 60 | AN206: 60 | AO206: 60 | AP206: 60 | AQ206: 60 | AR206: 60 | AS206: 60 | AT206: =$I$206 -> 60 | AU206: 60 | AV206: 60 | AW206: 60 | AX206: 60 | AY206: 60 | AZ206: 60 | BA206: 60 | BB206: 60 | BC206: 60 | BD206: 60 | BE206: 60 | BF206: 60 | BG206: 60 | BH206: 60 | BI206: 60 | BJ206: 60 | BK206: 60 | BL206: 60 | BM206: 60 | BN206: 60 | BO206: 60 | BP206: 60 | BQ206: 60 | BR206: 60 | BS206: 60 | BT206: 60 | BU206: 60 | BV206: 60 | BW206: 60 | BX206: 60 | BY206: 60 | BZ206: =$I$206 -> 60 | CA206: 60 | CB206: 60 | CC206: 60 | CD206: 60 | CE206: 60 | CF206: 60 | CG206: 60 | CH206: 60 | CI206: 60 | CJ206: 60 | CK206: 60 | CL206: 60 | CM206: 60 | CN206: 60 | CO206: 60 | CP206: 60 | CQ206: 60 | CR206: 60 | CS206: 60 | CT206: 60 | CU206: 60 | CV206: 60 | CW206: 60 | CX206: 60 | CY206: 60 | CZ206: 60 | DA206: 60 | DB206: 60 | DC206: 60 | DD206: 60 | DE206: 60 | DF206: =$I$206 -> 60 | DG206: 60 | DH206: 60 | DI206: 60 | DJ206: 60 | DK206: 60 | DL206: 60 | DM206: 60 | DN206: 60 | DO206: 60 | DP206: 60 | DQ206: 60 | DR206: 60 | DS206: 60 | DT206: 60 | DU206: 60 | DV206: 60 | DW206: 60 | DX206: 60 | DY206: 60 | DZ206: 60 | EA206: 60 | EB206: 60 | EC206: 60 | ED206: 60 | EE206: 60 | EF206: 60 | EG206: 60 | EH206: 60 | EI206: 60 | EJ206: 60 | EK206: 60 | EL206: 60 | EM206: 60 | EN206: 60 | EO206: 60 | EP206: 60 | EQ206: 60 | ER206: 60 | ES206: 60 | ET206: 60 | EU206: 60 | EV206: 60 | EW206: 60 | EX206: 60 | EY206: 60 | EZ206: 60 | FA206: 60 | FB206: 60 | FC206: 60 | FD206: 60 | FE206: 60 | FF206: 60 | FG206: 60 | FH206: 60 | FI206: 60 | FJ206: 60 | FK206: 60 | FL206: 60 | FM206: 60 | FN206: 60
C207: Annual Inflation rate | N207: =LOOKUP(N8,$I$53:$Q$53,$I$57:$Q$57) -> 0.02 | O207: 0.02 | P207: 0.02 | Q207: 0.02 | R207: 0.02 | S207: 0.02 | T207: 0.02 | U207: 0.02 | V207: 0.02 | W207: 0.02 | X207: 0.02 | Y207: 0.02 | Z207: 0.02 | AA207: 0.02 | AB207: 0.025 | AC207: 0.025 | AD207: 0.025 | AE207: 0.025 | AF207: 0.025 | AG207: 0.025 | AH207: 0.025 | AI207: 0.025 | AJ207: 0.025 | AK207: 0.025 | AL207: 0.025 | AM207: 0.025 | AN207: 0.025 | AO207: 0.025 | AP207: 0.025 | AQ207: 0.025 | AR207: 0.025 | AS207: 0.0275 | AT207: =LOOKUP(AT8,$I$53:$Q$53,$I$57:$Q$57) -> 0.0275 | AU207: 0.0275 | AV207: 0.0275 | AW207: 0.03 | AX207: 0.03 | AY207: 0.03 | AZ207: 0.03 | BA207: 0.03 | BB207: 0.03 | BC207: 0.03 | BD207: 0.03 | BE207: 0.03 | BF207: 0.03 | BG207: 0.03 | BH207: 0.03 | BI207: 0.03 | BJ207: 0.03 | BK207: 0.03 | BL207: 0.03 | BM207: 0.03 | BN207: 0.03 | BO207: 0.03 | BP207: 0.03 | BQ207: 0.03 | BR207: 0.03 | BS207: 0.03 | BT207: 0.03 | BU207: 0.03 | BV207: 0.03 | BW207: 0.03 | BX207: 0.03 | BY207: 0.03 | BZ207: =LOOKUP(BZ8,$I$53:$Q$53,$I$57:$Q$57) -> 0.03 | CA207: 0.03 | CB207: 0.03 | CC207: 0.03 | CD207: 0.03 | CE207: 0.03 | CF207: 0.03 | CG207: 0.03 | CH207: 0.03 | CI207: 0.03 | CJ207: 0.03 | CK207: 0.03 | CL207: 0.03 | CM207: 0.03 | CN207: 0.03 | CO207: 0.03 | CP207: 0.03 | CQ207: 0.03 | CR207: 0.03 | CS207: 0.03 | CT207: 0.03 | CU207: 0.03 | CV207: 0.03 | CW207: 0.03 | CX207: 0.03 | CY207: 0.03 | CZ207: 0.03 | DA207: 0.03 | DB207: 0.03 | DC207: 0.03 | DD207: 0.03 | DE207: 0.03 | DF207: =LOOKUP(DF8,$I$53:$Q$53,$I$57:$Q$57) -> 0.03 | DG207: 0.03 | DH207: 0.03 | DI207: 0.03 | DJ207: 0.03 | DK207: 0.03 | DL207: 0.03 | DM207: 0.03 | DN207: 0.03 | DO207: 0.03 | DP207: 0.03 | DQ207: 0.03 | DR207: 0.03 | DS207: 0.03 | DT207: 0.03 | DU207: 0.03 | DV207: 0.03 | DW207: 0.03 | DX207: 0.03 | DY207: 0.03 | DZ207: 0.03 | EA207: 0.03 | EB207: 0.03 | EC207: 0.03 | ED207: 0.03 | EE207: 0.03 | EF207: 0.03 | EG207: 0.03 | EH207: 0.03 | EI207: 0.03 | EJ207: 0.03 | EK207: 0.03 | EL207: =LOOKUP(EL8,$I$53:$Q$53,$I$57:$Q$57) -> 0.03 | EM207: 0.03 | EN207: 0.03 | EO207: 0.03 | EP207: 0.03 | EQ207: 0.03 | ER207: 0.03 | ES207: 0.03 | ET207: 0.03 | EU207: 0.03 | EV207: 0.03 | EW207: 0.03 | EX207: 0.03 | EY207: 0.03 | EZ207: 0.03 | FA207: 0.03 | FB207: 0.03 | FC207: 0.03 | FD207: 0.03 | FE207: 0.03 | FF207: 0.03 | FG207: 0.03 | FH207: 0.03 | FI207: 0.03 | FJ207: 0.03 | FK207: 0.03 | FL207: 0.03 | FM207: 0.03 | FN207: 0.03
C208: Periodic Inflation rate | N208: =(1+N207)^(1/N5)-1 -> 0.001651581302 | O208: 0.001651581302 | P208: 0.001651581302 | Q208: 0.001651581302 | R208: 0.001651581302 | S208: 0.001651581302 | T208: 0.001651581302 | U208: 0.001651581302 | V208: 0.001651581302 | W208: 0.001651581302 | X208: 0.001651581302 | Y208: 0.001651581302 | Z208: 0.001651581302 | AA208: 0.001651581302 | AB208: 0.00205983627 | AC208: 0.00205983627 | AD208: 0.00205983627 | AE208: 0.00205983627 | AF208: 0.00205983627 | AG208: 0.00205983627 | AH208: 0.00205983627 | AI208: 0.00205983627 | AJ208: 0.00205983627 | AK208: 0.00205983627 | AL208: 0.00205983627 | AM208: 0.00205983627 | AN208: 0.00205983627 | AO208: 0.00205983627 | AP208: 0.00205983627 | AQ208: 0.00205983627 | AR208: 0.01242283657 | AS208: 0.01365674664 | AT208: =(1+AT207)^(1/AT5)-1 -> 0.01365674664 | AU208: 0.01365674664 | AV208: 0.01365674664 | AW208: 0.01488915651 | AX208: 0.01488915651 | AY208: 0.01488915651 | AZ208: 0.01488915651 | BA208: 0.01488915651 | BB208: 0.01488915651 | BC208: 0.01488915651 | BD208: 0.01488915651 | BE208: 0.01488915651 | BF208: 0.01488915651 | BG208: 0.01488915651 | BH208: 0.01488915651 | BI208: 0.01488915651 | BJ208: 0.01488915651 | BK208: 0.01488915651 | BL208: 0.01488915651 | BM208: 0.01488915651 | BN208: 0.01488915651 | BO208: 0.01488915651 | BP208: 0.01488915651 | BQ208: 0.01488915651 | BR208: 0.01488915651 | BS208: 0.01488915651 | BT208: 0.01488915651 | BU208: 0.01488915651 | BV208: 0.01488915651 | BW208: 0.01488915651 | BX208: 0.01488915651 | BY208: 0.01488915651 | BZ208: =(1+BZ207)^(1/BZ5)-1 -> 0.01488915651 | CA208: 0.01488915651 | CB208: 0.01488915651 | CC208: 0.01488915651 | CD208: 0.01488915651 | CE208: 0.01488915651 | CF208: 0.01488915651 | CG208: 0.01488915651 | CH208: 0.01488915651 | CI208: 0.01488915651 | CJ208: 0.01488915651 | CK208: 0.01488915651 | CL208: 0.01488915651 | CM208: 0.01488915651 | CN208: 0.01488915651 | CO208: 0.01488915651 | CP208: 0.01488915651 | CQ208: 0.01488915651 | CR208: 0.01488915651 | CS208: 0.01488915651 | CT208: 0.01488915651 | CU208: 0.01488915651 | CV208: 0.01488915651 | CW208: 0.01488915651 | CX208: 0.01488915651 | CY208: 0.01488915651 | CZ208: 0.01488915651 | DA208: 0.01488915651 | DB208: 0.01488915651 | DC208: 0.01488915651 | DD208: 0.01488915651 | DE208: 0.01488915651 | DF208: =(1+DF207)^(1/DF5)-1 -> 0.01488915651 | DG208: 0.01488915651 | DH208: 0.01488915651 | DI208: 0.01488915651 | DJ208: 0.01488915651 | DK208: 0.01488915651 | DL208: 0.01488915651 | DM208: 0.01488915651 | DN208: 0.01488915651 | DO208: 0.01488915651 | DP208: 0.01488915651 | DQ208: 0.01488915651 | DR208: 0.01488915651 | DS208: 0.01488915651 | DT208: 0.01488915651 | DU208: 0.01488915651 | DV208: 0.01488915651 | DW208: 0.01488915651 | DX208: 0.01488915651 | DY208: 0.01488915651 | DZ208: 0.01488915651 | EA208: 0.01488915651 | EB208: 0.01488915651 | EC208: 0.01488915651 | ED208: 0.01488915651 | EE208: 0.01488915651 | EF208: 0.01488915651 | EG208: 0.01488915651 | EH208: 0.01488915651 | EI208: 0.01488915651 | EJ208: 0.01488915651 | EK208: 0.01488915651 | EL208: =(1+EL207)^(1/EL5)-1 -> 0.01488915651 | EM208: 0.01488915651 | EN208: 0.01488915651 | EO208: 0.01488915651 | EP208: 0.01488915651 | EQ208: 0.01488915651 | ER208: 0.01488915651 | ES208: 0.01488915651 | ET208: 0.01488915651 | EU208: 0.01488915651 | EV208: 0.01488915651 | EW208: 0.01488915651 | EX208: 0.01488915651 | EY208: 0.01488915651 | EZ208: 0.01488915651 | FA208: 0.01488915651 | FB208: 0.01488915651 | FC208: 0.01488915651 | FD208: 0.01488915651 | FE208: 0.01488915651 | FF208: 0.01488915651 | FG208: 0.01488915651 | FH208: 0.01488915651 | FI208: 0.01488915651 | FJ208: 0.01488915651 | FK208: 0.01488915651 | FL208: 0.01488915651 | FM208: 0.01488915651 | FN208: 0.01488915651
C209: Inflation Index | E209: 1 | H209: Start Inflation | J209: =F58 -> 2012-11-01 | M209: 1 | N209: =M209*(1+N208*(N6>=$J$209)) -> 1 | O209: 1 | P209: 1 | Q209: 1 | R209: 1 | S209: 1 | T209: 1 | U209: 1 | V209: 1 | W209: 1 | X209: 1 | Y209: 1 | Z209: 1 | AA209: 1 | AB209: 1 | AC209: 1 | AD209: 1 | AE209: 1 | AF209: 1 | AG209: 1 | AH209: 1 | AI209: 1 | AJ209: 1 | AK209: 1 | AL209: 1.002059836 | AM209: 1.004123915 | AN209: 1.006192246 | AO209: 1.008264838 | AP209: 1.010341698 | AQ209: 1.012422837 | AR209: 1.025 | AS209: 1.038998165 | AT209: =AS209*(1+AT208*(AT6>=$J$209)) -> 1.0531875 | AU209: 1.067570615 | AV209: 1.082150156 | AW209: 1.098262459 | AX209: 1.114614661 | AY209: 1.131210333 | AZ209: 1.148053101 | BA209: 1.165146643 | BB209: 1.182494694 | BC209: 1.200101042 | BD209: 1.217969535 | BE209: 1.236104074 | BF209: 1.254508621 | BG209: 1.273187196 | BH209: 1.292143879 | BI209: 1.311382812 | BJ209: 1.330908196 | BK209: 1.350724296 | BL209: 1.370835442 | BM209: 1.391246025 | BN209: 1.411960505 | BO209: 1.432983406 | BP209: 1.45431932 | BQ209: 1.475972908 | BR209: 1.497948899 | BS209: 1.520252095 | BT209: 1.542887366 | BU209: 1.565859658 | BV209: 1.589173987 | BW209: 1.612835448 | BX209: 1.636849207 | BY209: 1.661220511 | BZ209: =BY209*(1+BZ208*(BZ6>=$J$209)) -> 1.685954683 | CA209: 1.711057126 | CB209: 1.736533324 | CC209: 1.76238884 | CD209: 1.788629324 | CE209: 1.815260505 | CF209: 1.842288203 | CG209: 1.869718321 | CH209: 1.897556849 | CI209: 1.92580987 | CJ209: 1.954483555 | CK209: 1.983584166 | CL209: 2.013118061 | CM209: 2.043091691 | CN209: 2.073511603 | CO209: 2.104384442 | CP209: 2.135716951 | CQ209: 2.167515975 | CR209: 2.19978846 | CS209: 2.232541455 | CT209: 2.265782114 | CU209: 2.299517698 | CV209: 2.333755577 | CW209: 2.368503229 | CX209: 2.403768244 | CY209: 2.439558326 | CZ209: 2.475881292 | DA209: 2.512745076 | DB209: 2.550157731 | DC209: 2.588127428 | DD209: 2.626662462 | DE209: 2.665771251 | DF209: =DE209*(1+DF208*(DF6>=$J$209)) -> 2.705462336 | DG209: 2.745744388 | DH209: 2.786626206 | DI209: 2.82811672 | DJ209: 2.870224993 | DK209: 2.912960222 | DL209: 2.956331742 | DM209: 3.000349028 | DN209: 3.045021695 | DO209: 3.090359499 | DP209: 3.136372346 | DQ209: 3.183070284 | DR209: 3.230463516 | DS209: 3.278562393 | DT209: 3.327377421 | DU209: 3.376919265 | DV209: 3.427198744 | DW209: 3.478226842 | DX209: 3.530014706 | DY209: 3.582573648 | DZ209: 3.635915147 | EA209: 3.690050857 | EB209: 3.744992602 | EC209: 3.800752383 | ED209: 3.85734238 | EE209: 3.914774954 | EF209: 3.973062651 | EG209: 4.032218203 | EH209: 4.092254531 | EI209: 4.153184749 | EJ209: 4.215022167 | EK209: 4.277780292 | EL209: =EK209*(1+EL208*(EL6>=$J$209)) -> 4.341472832 | EM209: 4.4061137 | EN209: 4.471717017 | EO209: 4.538297111 | EP209: 4.605868527 | EQ209: 4.674446025 | ER209: 4.744044583 | ES209: 4.814679405 | ET209: 4.886365921 | EU209: 4.959119788 | EV209: 5.032956898 | EW209: 5.107893381 | EX209: 5.183945605 | EY209: 5.261130183 | EZ209: 5.339463973 | FA209: 5.418964088 | FB209: 5.499647893 | FC209: 5.581533011 | FD209: 5.664637329 | FE209: 5.748979001 | FF209: 5.834576449 | FG209: 5.921448371 | FH209: 6.009613743 | FI209: 6.099091822 | FJ209: 6.189902155 | FK209: 6.282064577 | FL209: 6.37559922 | FM209: 6.470526514 | FN209: 6.566867196
C210: Nominal FIT | E210: EUR/MWh | N210: =N206*N209 -> 60 | O210: =O206*O209 -> 60 | P210: 60 | Q210: 60 | R210: 60 | S210: 60 | T210: 60 | U210: 60 | V210: 60 | W210: 60 | X210: 60 | Y210: 60 | Z210: 60 | AA210: 60 | AB210: 60 | AC210: 60 | AD210: 60 | AE210: 60 | AF210: 60 | AG210: 60 | AH210: 60 | AI210: 60 | AJ210: 60 | AK210: 60 | AL210: 60.12359018 | AM210: 60.24743493 | AN210: 60.37153478 | AO210: 60.49589026 | AP210: 60.62050189 | AQ210: 60.74537019 | AR210: 61.5 | AS210: 62.33988992 | AT210: 63.19125 | AU210: 64.05423689 | AV210: 64.92900937 | AW210: 65.89574756 | AX210: 66.87687966 | AY210: 67.87261998 | AZ210: 68.88318605 | BA210: 69.90879858 | BB210: 70.94968163 | BC210: 72.00606254 | BD210: 73.07817208 | BE210: 74.16624442 | BF210: 75.27051724 | BG210: 76.39123175 | BH210: 77.52863276 | BI210: 78.6829687 | BJ210: 79.85449174 | BK210: 81.04345776 | BL210: 82.25012649 | BM210: 83.4747615 | BN210: 84.71763029 | BO210: 85.97900434 | BP210: 87.25915919 | BQ210: 88.55837447 | BR210: 89.87693397 | BS210: 91.21512571 | BT210: 92.57324199 | BU210: 93.95157948 | BV210: 95.35043925 | BW210: 96.77012686 | BX210: 98.21095243 | BY210: 99.67323067 | BZ210: 101.157281 | CA210: =CA206*CA209 -> 102.6634276 | CB210: 104.1919994 | CC210: 105.7433304 | CD210: 107.3177594 | CE210: 108.9156303 | CF210: 110.5372922 | CG210: 112.1830992 | CH210: 113.853411 | CI210: 115.5485922 | CJ210: 117.2690133 | CK210: 119.01505 | CL210: 120.7870837 | CM210: 122.5855015 | CN210: 124.4106962 | CO210: 126.2630665 | CP210: 128.1430171 | CQ210: 130.0509585 | CR210: 131.9873076 | CS210: 133.9524873 | CT210: 135.9469268 | CU210: 137.9710619 | CV210: 140.0253346 | CW210: 142.1101938 | CX210: 144.2260947 | CY210: 146.3734996 | CZ210: 148.5528775 | DA210: 150.7647046 | DB210: 153.0094638 | DC210: 155.2876457 | DD210: 157.5997477 | DE210: 159.9462751 | DF210: 162.3277402 | DG210: 164.7446633 | DH210: 167.1975724 | DI210: 169.6870032 | DJ210: 172.2134996 | DK210: 174.7776133 | DL210: 177.3799045 | DM210: 180.0209417 | DN210: 182.7013017 | DO210: 185.42157 | DP210: 188.1823407 | DQ210: 190.9842171 | DR210: 193.827811 | DS210: 196.7137436 | DT210: 199.6426453 | DU210: 202.6151559 | DV210: 205.6319246 | DW210: 208.6936105 | DX210: 211.8008824 | DY210: 214.9544189 | DZ210: 218.1549088 | EA210: 221.4030514 | EB210: =EB206*EB209 -> 224.6995561 | EC210: 228.045143 | ED210: 231.4405428 | EE210: 234.8864973 | EF210: 238.3837591 | EG210: 241.9330922 | EH210: 245.5352719 | EI210: 249.1910849 | EJ210: 252.90133 | EK210: 256.6668175 | EL210: 260.4883699 | EM210: 264.366822 | EN210: 268.303021 | EO210: 272.2978267 | EP210: 276.3521116 | EQ210: 280.4667615 | ER210: 284.642675 | ES210: 288.8807643 | ET210: 293.1819552 | EU210: 297.5471873 | EV210: 301.9774139 | EW210: 306.4736029 | EX210: 311.0367363 | EY210: 315.667811 | EZ210: 320.3678384 | FA210: 325.1378453 | FB210: 329.9788736 | FC210: 334.8919806 | FD210: 339.8782398 | FE210: 344.9387401 | FF210: 350.074587 | FG210: 355.2869023 | FH210: 360.5768246 | FI210: 365.9455093 | FJ210: 371.3941293 | FK210: 376.9238746 | FL210: 382.5359532 | FM210: 388.2315909 | FN210: 394.0120318
C212: Real Merchant prices | N212: =LOOKUP(N8,$I$65:$Q$65,$I$70:$Q$70) -> 50 | O212: 50 | P212: 50 | Q212: 50 | R212: 50 | S212: 50 | T212: 50 | U212: 50 | V212: 50 | W212: 50 | X212: 50 | Y212: 50 | Z212: 50 | AA212: 50 | AB212: 48 | AC212: 48 | AD212: 48 | AE212: 48 | AF212: 48 | AG212: 48 | AH212: 48 | AI212: 48 | AJ212: 48 | AK212: 48 | AL212: 48 | AM212: 48 | AN212: 45 | AO212: 45 | AP212: 45 | AQ212: 45 | AR212: 45 | AS212: 45 | AT212: =LOOKUP(AT8,$I$65:$Q$65,$I$70:$Q$70) -> 45 | AU212: 43 | AV212: 43 | AW212: 43 | AX212: 43 | AY212: 40 | AZ212: 40 | BA212: 40 | BB212: 40 | BC212: 40 | BD212: 40 | BE212: 40 | BF212: 40 | BG212: 40 | BH212: 40 | BI212: 40 | BJ212: 40 | BK212: 40 | BL212: 40 | BM212: 40 | BN212: 40 | BO212: 40 | BP212: 40 | BQ212: 40 | BR212: 40 | BS212: 40 | BT212: 40 | BU212: 40 | BV212: 40 | BW212: 40 | BX212: 40 | BY212: 40 | BZ212: =LOOKUP(BZ8,$I$65:$Q$65,$I$70:$Q$70) -> 40 | CA212: 40 | CB212: 40 | CC212: 40 | CD212: 40 | CE212: 40 | CF212: 40 | CG212: 40 | CH212: 40 | CI212: 40 | CJ212: 40 | CK212: 40 | CL212: 40 | CM212: 40 | CN212: 40 | CO212: 40 | CP212: 40 | CQ212: 40 | CR212: 40 | CS212: 40 | CT212: 40 | CU212: 40 | CV212: 40 | CW212: 40 | CX212: 40 | CY212: 40 | CZ212: 40 | DA212: 40 | DB212: 40 | DC212: 40 | DD212: 40 | DE212: 40 | DF212: =LOOKUP(DF8,$I$65:$Q$65,$I$70:$Q$70) -> 40 | DG212: 40 | DH212: 40 | DI212: 40 | DJ212: 40 | DK212: 40 | DL212: 40 | DM212: 40 | DN212: 40 | DO212: 40 | DP212: 40 | DQ212: 40 | DR212: 40 | DS212: 40 | DT212: 40 | DU212: 40 | DV212: 40 | DW212: 40 | DX212: 40 | DY212: 40 | DZ212: 40 | EA212: 40 | EB212: 40 | EC212: 40 | ED212: 40 | EE212: 40 | EF212: 40 | EG212: 40 | EH212: 40 | EI212: 40 | EJ212: 40 | EK212: 40 | EL212: =LOOKUP(EL8,$I$65:$Q$65,$I$70:$Q$70) -> 40 | EM212: 40 | EN212: 40 | EO212: 40 | EP212: 40 | EQ212: 40 | ER212: 40 | ES212: 40 | ET212: 40 | EU212: 40 | EV212: 40 | EW212: 40 | EX212: 40 | EY212: 40 | EZ212: 40 | FA212: 40 | FB212: 40 | FC212: 40 | FD212: 40 | FE212: 40 | FF212: 40 | FG212: 40 | FH212: 40 | FI212: 40 | FJ212: 40 | FK212: 40 | FL212: 40 | FM212: 40 | FN212: 40
C213: Periodic Inflation rate | H213: Start Inflation | J213: =F71 -> 2011-01-01 | N213: =N208 -> 0.001651581302 | O213: =O208 -> 0.001651581302 | P213: 0.001651581302 | Q213: 0.001651581302 | R213: 0.001651581302 | S213: 0.001651581302 | T213: 0.001651581302 | U213: 0.001651581302 | V213: 0.001651581302 | W213: 0.001651581302 | X213: 0.001651581302 | Y213: 0.001651581302 | Z213: 0.001651581302 | AA213: 0.001651581302 | AB213: 0.00205983627 | AC213: 0.00205983627 | AD213: 0.00205983627 | AE213: 0.00205983627 | AF213: 0.00205983627 | AG213: 0.00205983627 | AH213: 0.00205983627 | AI213: 0.00205983627 | AJ213: 0.00205983627 | AK213: 0.00205983627 | AL213: 0.00205983627 | AM213: 0.00205983627 | AN213: 0.00205983627 | AO213: 0.00205983627 | AP213: 0.00205983627 | AQ213: 0.00205983627 | AR213: 0.01242283657 | AS213: 0.01365674664 | AT213: 0.01365674664 | AU213: 0.01365674664 | AV213: 0.01365674664 | AW213: 0.01488915651 | AX213: 0.01488915651 | AY213: 0.01488915651 | AZ213: 0.01488915651 | BA213: 0.01488915651 | BB213: 0.01488915651 | BC213: 0.01488915651 | BD213: 0.01488915651 | BE213: 0.01488915651 | BF213: 0.01488915651 | BG213: 0.01488915651 | BH213: 0.01488915651 | BI213: 0.01488915651 | BJ213: 0.01488915651 | BK213: 0.01488915651 | BL213: 0.01488915651 | BM213: 0.01488915651 | BN213: 0.01488915651 | BO213: 0.01488915651 | BP213: 0.01488915651 | BQ213: 0.01488915651 | BR213: 0.01488915651 | BS213: 0.01488915651 | BT213: 0.01488915651 | BU213: 0.01488915651 | BV213: 0.01488915651 | BW213: 0.01488915651 | BX213: 0.01488915651 | BY213: 0.01488915651 | BZ213: 0.01488915651 | CA213: =CA208 -> 0.01488915651 | CB213: 0.01488915651 | CC213: 0.01488915651 | CD213: 0.01488915651 | CE213: 0.01488915651 | CF213: 0.01488915651 | CG213: 0.01488915651 | CH213: 0.01488915651 | CI213: 0.01488915651 | CJ213: 0.01488915651 | CK213: 0.01488915651 | CL213: 0.01488915651 | CM213: 0.01488915651 | CN213: 0.01488915651 | CO213: 0.01488915651 | CP213: 0.01488915651 | CQ213: 0.01488915651 | CR213: 0.01488915651 | CS213: 0.01488915651 | CT213: 0.01488915651 | CU213: 0.01488915651 | CV213: 0.01488915651 | CW213: 0.01488915651 | CX213: 0.01488915651 | CY213: 0.01488915651 | CZ213: 0.01488915651 | DA213: 0.01488915651 | DB213: 0.01488915651 | DC213: 0.01488915651 | DD213: 0.01488915651 | DE213: 0.01488915651 | DF213: 0.01488915651 | DG213: 0.01488915651 | DH213: 0.01488915651 | DI213: 0.01488915651 | DJ213: 0.01488915651 | DK213: 0.01488915651 | DL213: 0.01488915651 | DM213: 0.01488915651 | DN213: 0.01488915651 | DO213: 0.01488915651 | DP213: 0.01488915651 | DQ213: 0.01488915651 | DR213: 0.01488915651 | DS213: 0.01488915651 | DT213: 0.01488915651 | DU213: 0.01488915651 | DV213: 0.01488915651 | DW213: 0.01488915651 | DX213: 0.01488915651 | DY213: 0.01488915651 | DZ213: 0.01488915651 | EA213: 0.01488915651 | EB213: =EB208 -> 0.01488915651 | EC213: 0.01488915651 | ED213: 0.01488915651 | EE213: 0.01488915651 | EF213: 0.01488915651 | EG213: 0.01488915651 | EH213: 0.01488915651 | EI213: 0.01488915651 | EJ213: 0.01488915651 | EK213: 0.01488915651 | EL213: 0.01488915651 | EM213: 0.01488915651 | EN213: 0.01488915651 | EO213: 0.01488915651 | EP213: 0.01488915651 | EQ213: 0.01488915651 | ER213: 0.01488915651 | ES213: 0.01488915651 | ET213: 0.01488915651 | EU213: 0.01488915651 | EV213: 0.01488915651 | EW213: 0.01488915651 | EX213: 0.01488915651 | EY213: 0.01488915651 | EZ213: 0.01488915651 | FA213: 0.01488915651 | FB213: 0.01488915651 | FC213: 0.01488915651 | FD213: 0.01488915651 | FE213: 0.01488915651 | FF213: 0.01488915651 | FG213: 0.01488915651 | FH213: 0.01488915651 | FI213: 0.01488915651 | FJ213: 0.01488915651 | FK213: 0.01488915651 | FL213: 0.01488915651 | FM213: 0.01488915651 | FN213: 0.01488915651
C214: Inflation Index | M214: 1 | N214: =M214*(1+N213*(N6>=$J$213)) -> 1 | O214: 1 | P214: 1.001651581 | Q214: 1.00330589 | R214: 1.004962932 | S214: 1.00662271 | T214: 1.008285229 | U214: 1.009950494 | V214: 1.011618509 | W214: 1.013289279 | X214: 1.014962809 | Y214: 1.016639103 | Z214: 1.018318165 | AA214: 1.02 | AB214: 1.022101033 | AC214: 1.024206394 | AD214: 1.026316091 | AE214: 1.028430134 | AF214: 1.030548532 | AG214: 1.032671293 | AH214: 1.034798427 | AI214: 1.036929942 | AJ214: 1.039065848 | AK214: 1.041206154 | AL214: 1.043350868 | AM214: 1.0455 | AN214: 1.047653559 | AO214: 1.049811554 | AP214: 1.051973994 | AQ214: 1.054140888 | AR214: 1.067236308 | AS214: 1.081811284 | AT214: =AS214*(1+AT213*(AT6>=$J$213)) -> 1.096585306 | AU214: 1.111561094 | AV214: 1.126741402 | AW214: 1.143517631 | AX214: 1.160543644 | AY214: 1.17782316 | AZ214: 1.195359953 | BA214: 1.213157855 | BB214: 1.231220752 | BC214: 1.249552591 | BD214: 1.268157375 | BE214: 1.287039168 | BF214: 1.306202096 | BG214: 1.325650343 | BH214: 1.345388159 | BI214: 1.365419854 | BJ214: 1.385749803 | BK214: 1.406382449 | BL214: 1.427322298 | BM214: 1.448573923 | BN214: 1.470141967 | BO214: 1.49203114 | BP214: 1.514246226 | BQ214: 1.536792075 | BR214: 1.559673612 | BS214: 1.582895837 | BT214: 1.606463821 | BU214: 1.630382712 | BV214: 1.654657735 | BW214: 1.679294193 | BX214: 1.704297467 | BY214: 1.729673019 | BZ214: =BY214*(1+BZ213*(BZ6>=$J$213)) -> 1.755426391 | CA214: 1.78156321 | CB214: 1.808089183 | CC214: 1.835010106 | CD214: 1.862331859 | CE214: 1.890060409 | CF214: 1.918201814 | CG214: 1.946762221 | CH214: 1.975747869 | CI214: 2.005165088 | CJ214: 2.035020305 | CK214: 2.065320041 | CL214: 2.096070914 | CM214: 2.127279642 | CN214: 2.158953041 | CO214: 2.191098031 | CP214: 2.223721633 | CQ214: 2.256830972 | CR214: 2.290433282 | CS214: 2.324535901 | CT214: 2.35914628 | CU214: 2.394271978 | CV214: 2.429920668 | CW214: 2.466100138 | CX214: 2.502818289 | CY214: 2.540083142 | CZ214: 2.577902837 | DA214: 2.616285636 | DB214: 2.655239922 | DC214: 2.694774205 | DD214: 2.73489712 | DE214: 2.775617431 | DF214: =DE214*(1+DF213*(DF6>=$J$213)) -> 2.816944034 | DG214: 2.858885954 | DH214: 2.901452355 | DI214: 2.944652533 | DJ214: 2.988495925 | DK214: 3.032992109 | DL214: 3.078150803 | DM214: 3.123981872 | DN214: 3.170495327 | DO214: 3.217701328 | DP214: 3.265610187 | DQ214: 3.314232368 | DR214: 3.363578492 | DS214: 3.413659339 | DT214: 3.464485847 | DU214: 3.516069119 | DV214: 3.568420423 | DW214: 3.621551193 | DX214: 3.675473035 | DY214: 3.730197729 | DZ214: 3.785737226 | EA214: 3.84210366 | EB214: 3.899309343 | EC214: 3.95736677 | ED214: 4.016288623 | EE214: 4.076087773 | EF214: 4.136777282 | EG214: 4.198370407 | EH214: 4.260880601 | EI214: 4.324321519 | EJ214: 4.388707019 | EK214: 4.454051164 | EL214: =EK214*(1+EL213*(EL6>=$J$213)) -> 4.520368229 | EM214: 4.587672699 | EN214: 4.655979276 | EO214: 4.72530288 | EP214: 4.795658654 | EQ214: 4.867061967 | ER214: 4.939528414 | ES214: 5.013073826 | ET214: 5.087714266 | EU214: 5.16346604 | EV214: 5.240345694 | EW214: 5.318370022 | EX214: 5.397556065 | EY214: 5.477921122 | EZ214: 5.559482747 | FA214: 5.642258756 | FB214: 5.72626723 | FC214: 5.811526519 | FD214: 5.898055247 | FE214: 5.985872314 | FF214: 6.074996904 | FG214: 6.165448484 | FH214: 6.257246811 | FI214: 6.350411938 | FJ214: 6.444964215 | FK214: 6.540924296 | FL214: 6.638313142 | FM214: 6.737152025 | FN214: 6.837462536
C215: Nominal Merchant prices | N215: =N212*N214 -> 50 | O215: =O212*O214 -> 50 | P215: 50.08257907 | Q215: 50.16529452 | R215: 50.24814658 | S215: 50.33113548 | T215: 50.41426144 | U215: 50.49752469 | V215: 50.58092546 | W215: 50.66446397 | X215: 50.74814045 | Y215: 50.83195513 | Z215: 50.91590824 | AA215: 51 | AB215: 49.06084958 | AC215: 49.1619069 | AD215: 49.26317238 | AE215: 49.36464645 | AF215: 49.46632954 | AG215: 49.56822208 | AH215: 49.6703245 | AI215: 49.77263724 | AJ215: 49.87516072 | AK215: 49.97789538 | AL215: 50.08084167 | AM215: 50.184 | AN215: 47.14441015 | AO215: 47.24151991 | AP215: 47.33882971 | AQ215: 47.43633995 | AR215: 48.02563385 | AS215: 48.68150776 | AT215: 49.34633878 | AU215: 47.79712704 | AV215: 48.44988029 | AW215: 49.17125814 | AX215: 49.9033767 | AY215: 47.1129264 | AZ215: 47.81439814 | BA215: 48.5263142 | BB215: 49.24883008 | BC215: 49.98210362 | BD215: 50.72629498 | BE215: 51.48156673 | BF215: 52.24808383 | BG215: 53.02601373 | BH215: 53.81552635 | BI215: 54.61679414 | BJ215: 55.42999214 | BK215: 56.25529797 | BL215: 57.0928919 | BM215: 57.94295691 | BN215: 58.80567866 | BO215: 59.68124561 | BP215: 60.56984902 | BQ215: 61.47168298 | BR215: 62.38694449 | BS215: 63.31583347 | BT215: 64.25855283 | BU215: 65.21530848 | BV215: 66.18630941 | BW215: 67.17176773 | BX215: 68.17189869 | BY215: 69.18692076 | BZ215: 70.21705565 | CA215: =CA212*CA214 -> 71.26252839 | CB215: 72.32356732 | CC215: 73.40040424 | CD215: 74.49327434 | CE215: 75.60241636 | CF215: 76.72807257 | CG215: 77.87048886 | CH215: 79.02991475 | CI215: 80.20660352 | CJ215: 81.40081219 | CK215: 82.61280163 | CL215: 83.84283656 | CM215: 85.09118568 | CN215: 86.35812166 | CO215: 87.64392125 | CP215: 88.94886531 | CQ215: 90.27323888 | CR215: 91.61733127 | CS215: 92.98143605 | CT215: 94.3658512 | CU215: 95.77087913 | CV215: 97.19682674 | CW215: 98.6440055 | CX215: 100.1127315 | CY215: 101.6033257 | CZ215: 103.1161135 | DA215: 104.6514254 | DB215: 106.2095969 | DC215: 107.7909682 | DD215: 109.3958848 | DE215: 111.0246972 | DF215: 112.6777613 | DG215: 114.3554382 | DH215: 116.0580942 | DI215: 117.7861013 | DJ215: 119.539837 | DK215: 121.3196844 | DL215: 123.1260321 | DM215: 124.9592749 | DN215: 126.8198131 | DO215: 128.7080531 | DP215: 130.6244075 | DQ215: 132.5692947 | DR215: 134.5431397 | DS215: 136.5463736 | DT215: 138.5794339 | DU215: 140.6427648 | DV215: 142.7368169 | DW215: 144.8620477 | DX215: 147.0189214 | DY215: 149.2079091 | DZ215: 151.4294891 | EA215: 153.6841464 | EB215: =EB212*EB214 -> 155.9723737 | EC215: 158.2946708 | ED215: 160.6515449 | EE215: 163.0435109 | EF215: 165.4710913 | EG215: 167.9348163 | EH215: 170.435224 | EI215: 172.9728608 | EJ215: 175.5482807 | EK215: 178.1620466 | EL215: 180.8147292 | EM215: 183.506908 | EN215: 186.239171 | EO215: 189.0121152 | EP215: 191.8263462 | EQ215: 194.6824787 | ER215: 197.5811366 | ES215: 200.522953 | ET215: 203.5085707 | EU215: 206.5386416 | EV215: 209.6138278 | EW215: 212.7348009 | EX215: 215.9022426 | EY215: 219.1168449 | EZ215: 222.3793099 | FA215: 225.6903502 | FB215: 229.0506892 | FC215: 232.4610607 | FD215: 235.9222099 | FE215: 239.4348926 | FF215: 242.9998762 | FG215: 246.6179393 | FH215: 250.2898724 | FI215: 254.0164775 | FJ215: 257.7985686 | FK215: 261.6369719 | FL215: 265.5325257 | FM215: 269.486081 | FN215: 273.4985014
C217: Total Price | E217: EUR/MWh | N217: =N210+N215 -> 110 | O217: =O210+O215 -> 110 | P217: 110.0825791 | Q217: 110.1652945 | R217: 110.2481466 | S217: 110.3311355 | T217: 110.4142614 | U217: 110.4975247 | V217: 110.5809255 | W217: 110.664464 | X217: 110.7481405 | Y217: 110.8319551 | Z217: 110.9159082 | AA217: 111 | AB217: 109.0608496 | AC217: 109.1619069 | AD217: 109.2631724 | AE217: 109.3646464 | AF217: 109.4663295 | AG217: 109.5682221 | AH217: 109.6703245 | AI217: 109.7726372 | AJ217: 109.8751607 | AK217: 109.9778954 | AL217: 110.2044318 | AM217: 110.4314349 | AN217: 107.5159449 | AO217: 107.7374102 | AP217: 107.9593316 | AQ217: 108.1817101 | AR217: 109.5256338 | AS217: 111.0213977 | AT217: 112.5375888 | AU217: 111.8513639 | AV217: 113.3788897 | AW217: 115.0670057 | AX217: 116.7802564 | AY217: 114.9855464 | AZ217: 116.6975842 | BA217: 118.4351128 | BB217: 120.1985117 | BC217: 121.9881662 | BD217: 123.8044671 | BE217: 125.6478111 | BF217: 127.5186011 | BG217: 129.4172455 | BH217: 131.3441591 | BI217: 133.2997628 | BJ217: 135.2844839 | BK217: 137.2987557 | BL217: 139.3430184 | BM217: 141.4177184 | BN217: 143.5233089 | BO217: 145.66025 | BP217: 147.8290082 | BQ217: 150.0300575 | BR217: 152.2638785 | BS217: 154.5309592 | BT217: 156.8317948 | BU217: 159.166888 | BV217: 161.5367487 | BW217: 163.9418946 | BX217: 166.3828511 | BY217: 168.8601514 | BZ217: 171.3743367 | CA217: =CA210+CA215 -> 173.925956 | CB217: 176.5155668 | CC217: 179.1437347 | CD217: 181.8110338 | CE217: 184.5180467 | CF217: 187.2653648 | CG217: 190.0535881 | CH217: 192.8833257 | CI217: 195.7551957 | CJ217: 198.6698255 | CK217: 201.6278516 | CL217: 204.6299202 | CM217: 207.6766872 | CN217: 210.7688179 | CO217: 213.9069878 | CP217: 217.0918824 | CQ217: 220.3241974 | CR217: 223.6046389 | CS217: 226.9339233 | CT217: 230.312778 | CU217: 233.741941 | CV217: 237.2221614 | CW217: 240.7541993 | CX217: 244.3388262 | CY217: 247.9768252 | CZ217: 251.668991 | DA217: 255.41613 | DB217: 259.2190607 | DC217: 263.0786139 | DD217: 266.9956325 | DE217: 270.9709723 | DF217: 275.0055015 | DG217: 279.1001015 | DH217: 283.2556666 | DI217: 287.4731045 | DJ217: 291.7533366 | DK217: 296.0972977 | DL217: 300.5059367 | DM217: 304.9802166 | DN217: 309.5211148 | DO217: 314.1296231 | DP217: 318.8067482 | DQ217: 323.5535118 | DR217: 328.3709507 | DS217: 333.2601171 | DT217: 338.2220792 | DU217: 343.2579206 | DV217: 348.3687415 | DW217: 353.5556583 | DX217: 358.8198038 | DY217: 364.162328 | DZ217: 369.5843979 | EA217: 375.0871978 | EB217: =EB210+EB215 -> 380.6719298 | EC217: 386.3398138 | ED217: 392.0920877 | EE217: 397.9300082 | EF217: 403.8548504 | EG217: 409.8679084 | EH217: 415.9704959 | EI217: 422.1639457 | EJ217: 428.4496108 | EK217: 434.8288641 | EL217: 441.3030991 | EM217: 447.87373 | EN217: 454.5421921 | EO217: 461.3099419 | EP217: 468.1784578 | EQ217: 475.1492401 | ER217: 482.2238115 | ES217: 489.4037174 | ET217: 496.6905259 | EU217: 504.0858289 | EV217: 511.5912417 | EW217: 519.2084037 | EX217: 526.9389789 | EY217: 534.7846559 | EZ217: 542.7471483 | FA217: 550.8281955 | FB217: 559.0295627 | FC217: 567.3530414 | FD217: 575.8004496 | FE217: 584.3736326 | FF217: 593.0744631 | FG217: 601.9048416 | FH217: 610.866697 | FI217: 619.9619869 | FJ217: 629.1926979 | FK217: 638.5608465 | FL217: 648.0684789 | FM217: 657.7176719 | FN217: 667.5105332
D218: Revenues | E218: 000 EUR' | N218: =N217*N204/1000 -> 0 | O218: 0 | P218: 0 | Q218: 0 | R218: 0 | S218: 0 | T218: 0 | U218: 0 | V218: 0 | W218: 0 | X218: 0 | Y218: 0 | Z218: 0 | AA218: 0 | AB218: 0 | AC218: 0 | AD218: 0 | AE218: 0 | AF218: 0 | AG218: 0 | AH218: 0 | AI218: 0 | AJ218: 0 | AK218: 0 | AL218: 0 | AM218: 0 | AN218: 0 | AO218: 0 | AP218: 0 | AQ218: 0 | AR218: 7254.977986 | AS218: 7812.886614 | AT218: =AT217*AT204/1000 -> 8050.849071 | AU218: 8454.352453 | AV218: 8711.852476 | AW218: 8745.460647 | AX218: 9282.629017 | AY218: 8990.949843 | AZ218: 9276.057572 | BA218: 9260.678338 | BB218: 10191.29525 | BC218: 10174.3986 | BD218: 10497.03411 | BE218: 10537.52907 | BF218: 10811.94513 | BG218: 10794.01948 | BH218: 11136.30349 | BI218: 11117.84006 | BJ218: 11470.39259 | BK218: 11451.37526 | BL218: 11814.50437 | BM218: 11860.0818 | BN218: 12168.9395 | BO218: 12148.76402 | BP218: 12534.00769 | BQ218: 12513.22694 | BR218: 12910.02792 | BS218: 12888.62374 | BT218: 13297.32875 | BU218: 13348.62656 | BV218: 13696.24862 | BW218: 13673.54093 | BX218: 14107.13607 | BY218: 14083.74716 | BZ218: =BZ217*BZ204/1000 -> 14530.35016 | CA218: 14506.25957 | CB218: 14966.26066 | CC218: 15023.99679 | CD218: 15415.24848 | CE218: 15389.69078 | CF218: 0 | CG218: 0 | CH218: 0 | CI218: 0 | CJ218: 0 | CK218: 0 | CL218: 0 | CM218: 0 | CN218: 0 | CO218: 0 | CP218: 0 | CQ218: 0 | CR218: 0 | CS218: 0 | CT218: 0 | CU218: 0 | CV218: 0 | CW218: 0 | CX218: 0 | CY218: 0 | CZ218: 0 | DA218: 0 | DB218: 0 | DC218: 0 | DD218: 0 | DE218: 0 | DF218: =DF217*DF204/1000 -> 0 | DG218: 0 | DH218: 0 | DI218: 0 | DJ218: 0 | DK218: 0 | DL218: 0 | DM218: 0 | DN218: 0 | DO218: 0 | DP218: 0 | DQ218: 0 | DR218: 0 | DS218: 0 | DT218: 0 | DU218: 0 | DV218: 0 | DW218: 0 | DX218: 0 | DY218: 0 | DZ218: 0 | EA218: 0 | EB218: =EB217*EB204/1000 -> 0 | EC218: =EC217*EC204/1000 -> 0 | ED218: =ED217*ED204/1000 -> 0 | EE218: =EE217*EE204/1000 -> 0 | EF218: =EF217*EF204/1000 -> 0 | EG218: =EG217*EG204/1000 -> 0 | EH218: =EH217*EH204/1000 -> 0 | EI218: =EI217*EI204/1000 -> 0 | EJ218: =EJ217*EJ204/1000 -> 0 | EK218: =EK217*EK204/1000 -> 0 | EL218: =EL217*EL204/1000 -> 0 | EM218: =EM217*EM204/1000 -> 0 | EN218: =EN217*EN204/1000 -> 0 | EO218: =EO217*EO204/1000 -> 0 | EP218: =EP217*EP204/1000 -> 0 | EQ218: =EQ217*EQ204/1000 -> 0 | ER218: =ER217*ER204/1000 -> 0 | ES218: =ES217*ES204/1000 -> 0 | ET218: =ET217*ET204/1000 -> 0 | EU218: =EU217*EU204/1000 -> 0 | EV218: =EV217*EV204/1000 -> 0 | EW218: =EW217*EW204/1000 -> 0 | EX218: =EX217*EX204/1000 -> 0 | EY218: =EY217*EY204/1000 -> 0 | EZ218: =EZ217*EZ204/1000 -> 0 | FA218: =FA217*FA204/1000 -> 0 | FB218: =FB217*FB204/1000 -> 0 | FC218: =FC217*FC204/1000 -> 0 | FD218: =FD217*FD204/1000 -> 0 | FE218: =FE217*FE204/1000 -> 0 | FF218: =FF217*FF204/1000 -> 0 | FG218: =FG217*FG204/1000 -> 0 | FH218: =FH217*FH204/1000 -> 0 | FI218: =FI217*FI204/1000 -> 0 | FJ218: =FJ217*FJ204/1000 -> 0 | FK218: =FK217*FK204/1000 -> 0 | FL218: =FL217*FL204/1000 -> 0 | FM218: =FM217*FM204/1000 -> 0 | FN218: =FN217*FN204/1000 -> 0
C220: O&M costs | E220: EUR/MWh | H220: Input Cost | I220: =F74 -> 20 | N220: =$I$220 -> 20 | O220: =$I$220 -> 20 | P220: 20 | Q220: 20 | R220: 20 | S220: 20 | T220: 20 | U220: 20 | V220: 20 | W220: 20 | X220: 20 | Y220: 20 | Z220: 20 | AA220: 20 | AB220: 20 | AC220: 20 | AD220: 20 | AE220: 20 | AF220: 20 | AG220: 20 | AH220: 20 | AI220: 20 | AJ220: 20 | AK220: 20 | AL220: 20 | AM220: 20 | AN220: 20 | AO220: 20 | AP220: 20 | AQ220: 20 | AR220: 20 | AS220: 20 | AT220: 20 | AU220: 20 | AV220: 20 | AW220: 20 | AX220: 20 | AY220: 20 | AZ220: 20 | BA220: 20 | BB220: 20 | BC220: 20 | BD220: 20 | BE220: 20 | BF220: 20 | BG220: 20 | BH220: 20 | BI220: 20 | BJ220: 20 | BK220: 20 | BL220: 20 | BM220: 20 | BN220: 20 | BO220: 20 | BP220: 20 | BQ220: 20 | BR220: 20 | BS220: 20 | BT220: 20 | BU220: 20 | BV220: 20 | BW220: 20 | BX220: 20 | BY220: 20 | BZ220: 20 | CA220: =$I$220 -> 20 | CB220: 20 | CC220: 20 | CD220: 20 | CE220: 20 | CF220: 20 | CG220: 20 | CH220: 20 | CI220: 20 | CJ220: 20 | CK220: 20 | CL220: 20 | CM220: 20 | CN220: 20 | CO220: 20 | CP220: 20 | CQ220: 20 | CR220: 20 | CS220: 20 | CT220: 20 | CU220: 20 | CV220: 20 | CW220: 20 | CX220: 20 | CY220: 20 | CZ220: 20 | DA220: 20 | DB220: 20 | DC220: 20 | DD220: 20 | DE220: 20 | DF220: 20 | DG220: 20 | DH220: 20 | DI220: 20 | DJ220: 20 | DK220: 20 | DL220: 20 | DM220: 20 | DN220: 20 | DO220: 20 | DP220: 20 | DQ220: 20 | DR220: 20 | DS220: 20 | DT220: 20 | DU220: 20 | DV220: 20 | DW220: 20 | DX220: 20 | DY220: 20 | DZ220: 20 | EA220: 20 | EB220: 20 | EC220: 20 | ED220: 20 | EE220: 20 | EF220: 20 | EG220: 20 | EH220: 20 | EI220: 20 | EJ220: 20 | EK220: 20 | EL220: 20 | EM220: =$I$220 -> 20 | EN220: 20 | EO220: 20 | EP220: 20 | EQ220: 20 | ER220: 20 | ES220: 20 | ET220: 20 | EU220: 20 | EV220: 20 | EW220: 20 | EX220: 20 | EY220: 20 | EZ220: 20 | FA220: 20 | FB220: 20 | FC220: 20 | FD220: 20 | FE220: 20 | FF220: 20 | FG220: 20 | FH220: 20 | FI220: 20 | FJ220: 20 | FK220: 20 | FL220: 20 | FM220: 20 | FN220: 20
C221: Inflation index | N221: =N214 -> 1 | O221: 1 | P221: 1.001651581 | Q221: 1.00330589 | R221: 1.004962932 | S221: 1.00662271 | T221: 1.008285229 | U221: 1.009950494 | V221: 1.011618509 | W221: 1.013289279 | X221: 1.014962809 | Y221: 1.016639103 | Z221: 1.018318165 | AA221: 1.02 | AB221: 1.022101033 | AC221: 1.024206394 | AD221: 1.026316091 | AE221: 1.028430134 | AF221: 1.030548532 | AG221: 1.032671293 | AH221: 1.034798427 | AI221: 1.036929942 | AJ221: 1.039065848 | AK221: 1.041206154 | AL221: 1.043350868 | AM221: 1.0455 | AN221: 1.047653559 | AO221: 1.049811554 | AP221: 1.051973994 | AQ221: 1.054140888 | AR221: 1.067236308 | AS221: 1.081811284 | AT221: =AT214 -> 1.096585306 | AU221: 1.111561094 | AV221: 1.126741402 | AW221: 1.143517631 | AX221: 1.160543644 | AY221: 1.17782316 | AZ221: 1.195359953 | BA221: 1.213157855 | BB221: 1.231220752 | BC221: 1.249552591 | BD221: 1.268157375 | BE221: 1.287039168 | BF221: 1.306202096 | BG221: 1.325650343 | BH221: 1.345388159 | BI221: 1.365419854 | BJ221: 1.385749803 | BK221: 1.406382449 | BL221: 1.427322298 | BM221: 1.448573923 | BN221: 1.470141967 | BO221: 1.49203114 | BP221: 1.514246226 | BQ221: 1.536792075 | BR221: 1.559673612 | BS221: 1.582895837 | BT221: 1.606463821 | BU221: 1.630382712 | BV221: 1.654657735 | BW221: 1.679294193 | BX221: 1.704297467 | BY221: 1.729673019 | BZ221: =BZ214 -> 1.755426391 | CA221: 1.78156321 | CB221: 1.808089183 | CC221: 1.835010106 | CD221: 1.862331859 | CE221: 1.890060409 | CF221: 1.918201814 | CG221: 1.946762221 | CH221: 1.975747869 | CI221: 2.005165088 | CJ221: 2.035020305 | CK221: 2.065320041 | CL221: 2.096070914 | CM221: 2.127279642 | CN221: 2.158953041 | CO221: 2.191098031 | CP221: 2.223721633 | CQ221: 2.256830972 | CR221: 2.290433282 | CS221: 2.324535901 | CT221: 2.35914628 | CU221: 2.394271978 | CV221: 2.429920668 | CW221: 2.466100138 | CX221: 2.502818289 | CY221: 2.540083142 | CZ221: 2.577902837 | DA221: 2.616285636 | DB221: 2.655239922 | DC221: 2.694774205 | DD221: 2.73489712 | DE221: 2.775617431 | DF221: =DF214 -> 2.816944034 | DG221: 2.858885954 | DH221: 2.901452355 | DI221: 2.944652533 | DJ221: 2.988495925 | DK221: 3.032992109 | DL221: 3.078150803 | DM221: 3.123981872 | DN221: 3.170495327 | DO221: 3.217701328 | DP221: 3.265610187 | DQ221: 3.314232368 | DR221: 3.363578492 | DS221: 3.413659339 | DT221: 3.464485847 | DU221: 3.516069119 | DV221: 3.568420423 | DW221: 3.621551193 | DX221: 3.675473035 | DY221: 3.730197729 | DZ221: 3.785737226 | EA221: 3.84210366 | EB221: =EB214 -> 3.899309343 | EC221: 3.95736677 | ED221: 4.016288623 | EE221: 4.076087773 | EF221: 4.136777282 | EG221: 4.198370407 | EH221: 4.260880601 | EI221: 4.324321519 | EJ221: 4.388707019 | EK221: 4.454051164 | EL221: 4.520368229 | EM221: 4.587672699 | EN221: 4.655979276 | EO221: 4.72530288 | EP221: 4.795658654 | EQ221: 4.867061967 | ER221: 4.939528414 | ES221: 5.013073826 | ET221: 5.087714266 | EU221: 5.16346604 | EV221: 5.240345694 | EW221: 5.318370022 | EX221: 5.397556065 | EY221: 5.477921122 | EZ221: 5.559482747 | FA221: 5.642258756 | FB221: 5.72626723 | FC221: 5.811526519 | FD221: 5.898055247 | FE221: 5.985872314 | FF221: 6.074996904 | FG221: 6.165448484 | FH221: 6.257246811 | FI221: 6.350411938 | FJ221: 6.444964215 | FK221: 6.540924296 | FL221: 6.638313142 | FM221: 6.737152025 | FN221: 6.837462536
C222: Nominal O&M /MWh | N222: =N220*N221 -> 20 | O222: =O220*O221 -> 20 | P222: 20.03303163 | Q222: 20.06611781 | R222: 20.09925863 | S222: 20.13245419 | T222: 20.16570458 | U222: 20.19900988 | V222: 20.23237018 | W222: 20.26578559 | X222: 20.29925618 | Y222: 20.33278205 | Z222: 20.3663633 | AA222: 20.4 | AB222: 20.44202066 | AC222: 20.48412788 | AD222: 20.52632183 | AE222: 20.56860269 | AF222: 20.61097064 | AG222: 20.65342587 | AH222: 20.69596854 | AI222: 20.73859885 | AJ222: 20.78131697 | AK222: 20.82412308 | AL222: 20.86701736 | AM222: 20.91 | AN222: 20.95307118 | AO222: 20.99623107 | AP222: 21.03947987 | AQ222: 21.08281775 | AR222: 21.34472615 | AS222: 21.63622567 | AT222: 21.93170612 | AU222: 22.23122188 | AV222: 22.53482804 | AW222: 22.87035262 | AX222: 23.21087288 | AY222: 23.5564632 | AZ222: 23.90719907 | BA222: 24.2631571 | BB222: 24.62441504 | BC222: 24.99105181 | BD222: 25.36314749 | BE222: 25.74078336 | BF222: 26.12404192 | BG222: 26.51300687 | BH222: 26.90776317 | BI222: 27.30839707 | BJ222: 27.71499607 | BK222: 28.12764898 | BL222: 28.54644595 | BM222: 28.97147845 | BN222: 29.40283933 | BO222: 29.84062281 | BP222: 30.28492451 | BQ222: 30.73584149 | BR222: 31.19347225 | BS222: 31.65791674 | BT222: 32.12927641 | BU222: 32.60765424 | BV222: 33.09315471 | BW222: 33.58588387 | BX222: 34.08594935 | BY222: 34.59346038 | BZ222: 35.10852783 | CA222: =CA220*CA221 -> 35.63126419 | CB222: 36.16178366 | CC222: 36.70020212 | CD222: 37.24663717 | CE222: 37.80120818 | CF222: 38.36403629 | CG222: 38.93524443 | CH222: 39.51495738 | CI222: 40.10330176 | CJ222: 40.7004061 | CK222: 41.30640081 | CL222: 41.92141828 | CM222: 42.54559284 | CN222: 43.17906083 | CO222: 43.82196062 | CP222: 44.47443265 | CQ222: 45.13661944 | CR222: 45.80866563 | CS222: 46.49071802 | CT222: 47.1829256 | CU222: 47.88543957 | CV222: 48.59841337 | CW222: 49.32200275 | CX222: 50.05636577 | CY222: 50.80166283 | CZ222: 51.55805674 | DA222: 52.32571272 | DB222: 53.10479845 | DC222: 53.8954841 | DD222: 54.6979424 | DE222: 55.51234862 | DF222: 56.33888067 | DG222: 57.17771908 | DH222: 58.02904709 | DI222: 58.89305066 | DJ222: 59.7699185 | DK222: 60.65984218 | DL222: 61.56301606 | DM222: 62.47963744 | DN222: 63.40990654 | DO222: 64.35402656 | DP222: 65.31220374 | DQ222: 66.28464736 | DR222: 67.27156985 | DS222: 68.27318678 | DT222: 69.28971695 | DU222: 70.32138239 | DV222: 71.36840845 | DW222: 72.43102386 | DX222: 73.50946071 | DY222: 74.60395457 | DZ222: 75.71474453 | EA222: 76.84207321 | EB222: =EB220*EB221 -> 77.98618686 | EC222: 79.14733541 | ED222: 80.32577247 | EE222: 81.52175547 | EF222: 82.73554564 | EG222: 83.96740813 | EH222: 85.21761201 | EI222: 86.48643038 | EJ222: 87.77414037 | EK222: 89.08102329 | EL222: 90.40736459 | EM222: 91.75345399 | EN222: 93.11958552 | EO222: 94.50605761 | EP222: 95.91317309 | EQ222: 97.34123933 | ER222: 98.79056828 | ES222: 100.2614765 | ET222: 101.7542853 | EU222: 103.2693208 | EV222: 104.8069139 | EW222: 106.3674004 | EX222: 107.9511213 | EY222: 109.5584224 | EZ222: 111.1896549 | FA222: 112.8451751 | FB222: 114.5253446 | FC222: 116.2305304 | FD222: 117.9611049 | FE222: 119.7174463 | FF222: 121.4999381 | FG222: 123.3089697 | FH222: 125.1449362 | FI222: 127.0082388 | FJ222: 128.8992843 | FK222: 130.8184859 | FL222: 132.7662628 | FM222: 134.7430405 | FN222: 136.7492507
C223: Total O&M | E223: * 000 EUR | N223: =N222*N204/1000 -> 0 | O223: 0 | P223: 0 | Q223: 0 | R223: 0 | S223: 0 | T223: 0 | U223: 0 | V223: 0 | W223: 0 | X223: 0 | Y223: 0 | Z223: 0 | AA223: 0 | AB223: 0 | AC223: 0 | AD223: 0 | AE223: 0 | AF223: 0 | AG223: 0 | AH223: 0 | AI223: 0 | AJ223: 0 | AK223: 0 | AL223: 0 | AM223: 0 | AN223: 0 | AO223: 0 | AP223: 0 | AQ223: 0 | AR223: 1413.87466 | AS223: 1522.601782 | AT223: =AT222*AT204/1000 -> 1568.976711 | AU223: 1680.360244 | AV223: 1731.540131 | AW223: 1738.219984 | AX223: 1844.985864 | AY223: 1841.926971 | AZ223: 1900.33544 | BA223: 1897.18478 | BB223: 2087.835203 | BC223: 2084.373678 | BD223: 2150.470259 | BE223: 2158.766241 | BF223: 2214.984367 | BG223: 2211.312035 | BH223: 2281.433898 | BI223: 2277.651396 | BJ223: 2349.876915 | BK223: 2345.980938 | BL223: 2420.373222 | BM223: 2429.710423 | BN223: 2492.984419 | BO223: 2488.851177 | BP223: 2567.773951 | BQ223: 2563.516712 | BR223: 2644.80717 | BS223: 2640.422214 | BT223: 2724.151385 | BU223: 2734.660487 | BV223: 2805.875927 | BW223: 2801.223927 | BX223: 2890.052204 | BY223: 2885.260644 | BZ223: =BZ222*BZ204/1000 -> 2976.753771 | CA223: 2971.818464 | CB223: 3066.056384 | CC223: 3077.884471 | CD223: 3158.038075 | CE223: 3152.802208 | CF223: 0 | CG223: 0 | CH223: 0 | CI223: 0 | CJ223: 0 | CK223: 0 | CL223: 0 | CM223: 0 | CN223: 0 | CO223: 0 | CP223: 0 | CQ223: 0 | CR223: 0 | CS223: 0 | CT223: 0 | CU223: 0 | CV223: 0 | CW223: 0 | CX223: 0 | CY223: 0 | CZ223: 0 | DA223: 0 | DB223: 0 | DC223: 0 | DD223: 0 | DE223: 0 | DF223: =DF222*DF204/1000 -> 0 | DG223: 0 | DH223: 0 | DI223: 0 | DJ223: 0 | DK223: 0 | DL223: 0 | DM223: 0 | DN223: 0 | DO223: 0 | DP223: 0 | DQ223: 0 | DR223: 0 | DS223: 0 | DT223: 0 | DU223: 0 | DV223: 0 | DW223: 0 | DX223: 0 | DY223: 0 | DZ223: 0 | EA223: 0 | EB223: =EB222*EB204/1000 -> 0 | EC223: =EC222*EC204/1000 -> 0 | ED223: =ED222*ED204/1000 -> 0 | EE223: =EE222*EE204/1000 -> 0 | EF223: =EF222*EF204/1000 -> 0 | EG223: =EG222*EG204/1000 -> 0 | EH223: =EH222*EH204/1000 -> 0 | EI223: =EI222*EI204/1000 -> 0 | EJ223: =EJ222*EJ204/1000 -> 0 | EK223: =EK222*EK204/1000 -> 0 | EL223: =EL222*EL204/1000 -> 0 | EM223: =EM222*EM204/1000 -> 0 | EN223: =EN222*EN204/1000 -> 0 | EO223: =EO222*EO204/1000 -> 0 | EP223: =EP222*EP204/1000 -> 0 | EQ223: =EQ222*EQ204/1000 -> 0 | ER223: =ER222*ER204/1000 -> 0 | ES223: =ES222*ES204/1000 -> 0 | ET223: =ET222*ET204/1000 -> 0 | EU223: =EU222*EU204/1000 -> 0 | EV223: =EV222*EV204/1000 -> 0 | EW223: =EW222*EW204/1000 -> 0 | EX223: =EX222*EX204/1000 -> 0 | EY223: =EY222*EY204/1000 -> 0 | EZ223: =EZ222*EZ204/1000 -> 0 | FA223: =FA222*FA204/1000 -> 0 | FB223: =FB222*FB204/1000 -> 0 | FC223: =FC222*FC204/1000 -> 0 | FD223: =FD222*FD204/1000 -> 0 | FE223: =FE222*FE204/1000 -> 0 | FF223: =FF222*FF204/1000 -> 0 | FG223: =FG222*FG204/1000 -> 0 | FH223: =FH222*FH204/1000 -> 0 | FI223: =FI222*FI204/1000 -> 0 | FJ223: =FJ222*FJ204/1000 -> 0 | FK223: =FK222*FK204/1000 -> 0 | FL223: =FL222*FL204/1000 -> 0 | FM223: =FM222*FM204/1000 -> 0 | FN223: =FN222*FN204/1000 -> 0
C224: Other costs | E224: *000 EUR | H224: EUR/year | I224: =F75 -> 4000 | N224: =I224/N5*N14*N221 -> 0 | O224: 0 | P224: 0 | Q224: 0 | R224: 0 | S224: 0 | T224: 0 | U224: 0 | V224: 0 | W224: 0 | X224: 0 | Y224: 0 | Z224: 0 | AA224: 0 | AB224: 0 | AC224: 0 | AD224: 0 | AE224: 0 | AF224: 0 | AG224: 0 | AH224: 0 | AI224: 0 | AJ224: 0 | AK224: 0 | AL224: 0 | AM224: 0 | AN224: 0 | AO224: 0 | AP224: 0 | AQ224: 0 | AR224: 0 | AS224: 0 | AT224: =AO224/AT5*AT14*AT221 -> 0 | AU224: 0 | AV224: 0 | AW224: 0 | AX224: 0 | AY224: 0 | AZ224: 0 | BA224: 0 | BB224: 0 | BC224: 0 | BD224: 0 | BE224: 0 | BF224: 0 | BG224: 0 | BH224: 0 | BI224: 0 | BJ224: 0 | BK224: 0 | BL224: 0 | BM224: 0 | BN224: 0 | BO224: 0 | BP224: 0 | BQ224: 0 | BR224: 0 | BS224: 0 | BT224: 0 | BU224: 0 | BV224: 0 | BW224: 0 | BX224: 0 | BY224: 0 | BZ224: =BU224/BZ5*BZ14*BZ221 -> 0 | CA224: 0 | CB224: 0 | CC224: 0 | CD224: 0 | CE224: 0 | CF224: 0 | CG224: 0 | CH224: 0 | CI224: 0 | CJ224: 0 | CK224: 0 | CL224: 0 | CM224: 0 | CN224: 0 | CO224: 0 | CP224: 0 | CQ224: 0 | CR224: 0 | CS224: 0 | CT224: 0 | CU224: 0 | CV224: 0 | CW224: 0 | CX224: 0 | CY224: 0 | CZ224: 0 | DA224: 0 | DB224: 0 | DC224: 0 | DD224: 0 | DE224: 0 | DF224: =DA224/DF5*DF14*DF221 -> 0 | DG224: 0 | DH224: 0 | DI224: 0 | DJ224: 0 | DK224: 0 | DL224: 0 | DM224: 0 | DN224: 0 | DO224: 0 | DP224: 0 | DQ224: 0 | DR224: 0 | DS224: 0 | DT224: 0 | DU224: 0 | DV224: 0 | DW224: 0 | DX224: 0 | DY224: 0 | DZ224: 0 | EA224: 0 | EB224: 0 | EC224: 0 | ED224: 0 | EE224: 0 | EF224: 0 | EG224: 0 | EH224: 0 | EI224: 0 | EJ224: 0 | EK224: 0 | EL224: =EG224/EL5*EL14*EL221 -> 0 | EM224: 0 | EN224: 0 | EO224: 0 | EP224: 0 | EQ224: 0 | ER224: 0 | ES224: 0 | ET224: 0 | EU224: 0 | EV224: 0 | EW224: 0 | EX224: 0 | EY224: 0 | EZ224: 0 | FA224: 0 | FB224: 0 | FC224: 0 | FD224: 0 | FE224: 0 | FF224: 0 | FG224: 0 | FH224: 0 | FI224: 0 | FJ224: 0 | FK224: 0 | FL224: 0 | FM224: 0 | FN224: 0
D225: Operating expenses | N225: =N223+N224 -> 0 | O225: 0 | P225: 0 | Q225: 0 | R225: 0 | S225: 0 | T225: 0 | U225: 0 | V225: 0 | W225: 0 | X225: 0 | Y225: 0 | Z225: 0 | AA225: 0 | AB225: 0 | AC225: 0 | AD225: 0 | AE225: 0 | AF225: 0 | AG225: 0 | AH225: 0 | AI225: 0 | AJ225: 0 | AK225: 0 | AL225: 0 | AM225: 0 | AN225: 0 | AO225: 0 | AP225: 0 | AQ225: 0 | AR225: 1413.87466 | AS225: 1522.601782 | AT225: =AT223+AT224 -> 1568.976711 | AU225: 1680.360244 | AV225: 1731.540131 | AW225: 1738.219984 | AX225: 1844.985864 | AY225: 1841.926971 | AZ225: 1900.33544 | BA225: 1897.18478 | BB225: 2087.835203 | BC225: 2084.373678 | BD225: 2150.470259 | BE225: 2158.766241 | BF225: 2214.984367 | BG225: 2211.312035 | BH225: 2281.433898 | BI225: 2277.651396 | BJ225: 2349.876915 | BK225: 2345.980938 | BL225: 2420.373222 | BM225: 2429.710423 | BN225: 2492.984419 | BO225: 2488.851177 | BP225: 2567.773951 | BQ225: 2563.516712 | BR225: 2644.80717 | BS225: 2640.422214 | BT225: 2724.151385 | BU225: 2734.660487 | BV225: 2805.875927 | BW225: 2801.223927 | BX225: 2890.052204 | BY225: 2885.260644 | BZ225: =BZ223+BZ224 -> 2976.753771 | CA225: 2971.818464 | CB225: 3066.056384 | CC225: 3077.884471 | CD225: 3158.038075 | CE225: 3152.802208 | CF225: 0 | CG225: 0 | CH225: 0 | CI225: 0 | CJ225: 0 | CK225: 0 | CL225: 0 | CM225: 0 | CN225: 0 | CO225: 0 | CP225: 0 | CQ225: 0 | CR225: 0 | CS225: 0 | CT225: 0 | CU225: 0 | CV225: 0 | CW225: 0 | CX225: 0 | CY225: 0 | CZ225: 0 | DA225: 0 | DB225: 0 | DC225: 0 | DD225: 0 | DE225: 0 | DF225: =DF223+DF224 -> 0 | DG225: 0 | DH225: 0 | DI225: 0 | DJ225: 0 | DK225: 0 | DL225: 0 | DM225: 0 | DN225: 0 | DO225: 0 | DP225: 0 | DQ225: 0 | DR225: 0 | DS225: 0 | DT225: 0 | DU225: 0 | DV225: 0 | DW225: 0 | DX225: 0 | DY225: 0 | DZ225: 0 | EA225: 0 | EB225: =EB223+EB224 -> 0 | EC225: =EC223+EC224 -> 0 | ED225: =ED223+ED224 -> 0 | EE225: =EE223+EE224 -> 0 | EF225: =EF223+EF224 -> 0 | EG225: =EG223+EG224 -> 0 | EH225: =EH223+EH224 -> 0 | EI225: =EI223+EI224 -> 0 | EJ225: =EJ223+EJ224 -> 0 | EK225: =EK223+EK224 -> 0 | EL225: =EL223+EL224 -> 0 | EM225: =EM223+EM224 -> 0 | EN225: =EN223+EN224 -> 0 | EO225: =EO223+EO224 -> 0 | EP225: =EP223+EP224 -> 0 | EQ225: =EQ223+EQ224 -> 0 | ER225: =ER223+ER224 -> 0 | ES225: =ES223+ES224 -> 0 | ET225: =ET223+ET224 -> 0 | EU225: =EU223+EU224 -> 0 | EV225: =EV223+EV224 -> 0 | EW225: =EW223+EW224 -> 0 | EX225: =EX223+EX224 -> 0 | EY225: =EY223+EY224 -> 0 | EZ225: =EZ223+EZ224 -> 0 | FA225: =FA223+FA224 -> 0 | FB225: =FB223+FB224 -> 0 | FC225: =FC223+FC224 -> 0 | FD225: =FD223+FD224 -> 0 | FE225: =FE223+FE224 -> 0 | FF225: =FF223+FF224 -> 0 | FG225: =FG223+FG224 -> 0 | FH225: =FH223+FH224 -> 0 | FI225: =FI223+FI224 -> 0 | FJ225: =FJ223+FJ224 -> 0 | FK225: =FK223+FK224 -> 0 | FL225: =FL223+FL224 -> 0 | FM225: =FM223+FM224 -> 0 | FN225: =FN223+FN224 -> 0
C227: Total Costs | E227: * 000 EUR/MW | H227: Costs | I227: =F78 -> 1800 | J227: MW | K227: =F40*F41 -> 60 | L227: =K227*I227 -> 108000 | N227: =$L$227 -> 108000 | O227: =$L$227 -> 108000 | P227: 108000 | Q227: 108000 | R227: 108000 | S227: 108000 | T227: 108000 | U227: 108000 | V227: 108000 | W227: 108000 | X227: 108000 | Y227: 108000 | Z227: 108000 | AA227: 108000 | AB227: 108000 | AC227: 108000 | AD227: 108000 | AE227: 108000 | AF227: 108000 | AG227: 108000 | AH227: 108000 | AI227: 108000 | AJ227: 108000 | AK227: 108000 | AL227: 108000 | AM227: 108000 | AN227: 108000 | AO227: 108000 | AP227: 108000 | AQ227: 108000 | AR227: 108000 | AS227: 108000 | AT227: 108000 | AU227: 108000 | AV227: 108000 | AW227: 108000 | AX227: 108000 | AY227: 108000 | AZ227: 108000 | BA227: 108000 | BB227: 108000 | BC227: 108000 | BD227: 108000 | BE227: 108000 | BF227: 108000 | BG227: 108000 | BH227: 108000 | BI227: 108000 | BJ227: 108000 | BK227: 108000 | BL227: 108000 | BM227: 108000 | BN227: 108000 | BO227: 108000 | BP227: 108000 | BQ227: 108000 | BR227: 108000 | BS227: 108000 | BT227: 108000 | BU227: 108000 | BV227: 108000 | BW227: 108000 | BX227: 108000 | BY227: 108000 | BZ227: 108000 | CA227: =$L$227 -> 108000 | CB227: 108000 | CC227: 108000 | CD227: 108000 | CE227: 108000 | CF227: 108000 | CG227: 108000 | CH227: 108000 | CI227: 108000 | CJ227: 108000 | CK227: 108000 | CL227: 108000 | CM227: 108000 | CN227: 108000 | CO227: 108000 | CP227: 108000 | CQ227: 108000 | CR227: 108000 | CS227: 108000 | CT227: 108000 | CU227: 108000 | CV227: 108000 | CW227: 108000 | CX227: 108000 | CY227: 108000 | CZ227: 108000 | DA227: 108000 | DB227: 108000 | DC227: 108000 | DD227: 108000 | DE227: 108000 | DF227: 108000 | DG227: 108000 | DH227: 108000 | DI227: 108000 | DJ227: 108000 | DK227: 108000 | DL227: 108000 | DM227: 108000 | DN227: 108000 | DO227: 108000 | DP227: 108000 | DQ227: 108000 | DR227: 108000 | DS227: 108000 | DT227: 108000 | DU227: 108000 | DV227: 108000 | DW227: 108000 | DX227: 108000 | DY227: 108000 | DZ227: 108000 | EA227: 108000 | EB227: 108000 | EC227: 108000 | ED227: 108000 | EE227: 108000 | EF227: 108000 | EG227: 108000 | EH227: 108000 | EI227: 108000 | EJ227: 108000 | EK227: 108000 | EL227: 108000 | EM227: =$L$227 -> 108000 | EN227: 108000 | EO227: 108000 | EP227: 108000 | EQ227: 108000 | ER227: 108000 | ES227: 108000 | ET227: 108000 | EU227: 108000 | EV227: 108000 | EW227: 108000 | EX227: 108000 | EY227: 108000 | EZ227: 108000 | FA227: 108000 | FB227: 108000 | FC227: 108000 | FD227: 108000 | FE227: 108000 | FF227: 108000 | FG227: 108000 | FH227: 108000 | FI227: 108000 | FJ227: 108000 | FK227: 108000 | FL227: 108000 | FM227: 108000 | FN227: 108000
C228: Construction Period | E228: Month | N228: =M228+N11 -> 0 | O228: 0 | P228: 0 | Q228: 0 | R228: 0 | S228: 0 | T228: 1 | U228: 2 | V228: 3 | W228: 4 | X228: 5 | Y228: 6 | Z228: 7 | AA228: 8 | AB228: 9 | AC228: 10 | AD228: 11 | AE228: 12 | AF228: 13 | AG228: 14 | AH228: 15 | AI228: 16 | AJ228: 17 | AK228: 18 | AL228: 19 | AM228: 20 | AN228: 21 | AO228: 22 | AP228: 23 | AQ228: 24 | AR228: 24 | AS228: 24 | AT228: =AS228+AT11 -> 24 | AU228: 24 | AV228: 24 | AW228: 24 | AX228: 24 | AY228: 24 | AZ228: 24 | BA228: 24 | BB228: 24 | BC228: 24 | BD228: 24 | BE228: 24 | BF228: 24 | BG228: 24 | BH228: 24 | BI228: 24 | BJ228: 24 | BK228: 24 | BL228: 24 | BM228: 24 | BN228: 24 | BO228: 24 | BP228: 24 | BQ228: 24 | BR228: 24 | BS228: 24 | BT228: 24 | BU228: 24 | BV228: 24 | BW228: 24 | BX228: 24 | BY228: 24 | BZ228: =BY228+BZ11 -> 24 | CA228: 24 | CB228: 24 | CC228: 24 | CD228: 24 | CE228: 24 | CF228: 24 | CG228: 24 | CH228: 24 | CI228: 24 | CJ228: 24 | CK228: 24 | CL228: 24 | CM228: 24 | CN228: 24 | CO228: 24 | CP228: 24 | CQ228: 24 | CR228: 24 | CS228: 24 | CT228: 24 | CU228: 24 | CV228: 24 | CW228: 24 | CX228: 24 | CY228: 24 | CZ228: 24 | DA228: 24 | DB228: 24 | DC228: 24 | DD228: 24 | DE228: 24 | DF228: =DE228+DF11 -> 24 | DG228: 24 | DH228: 24 | DI228: 24 | DJ228: 24 | DK228: 24 | DL228: 24 | DM228: 24 | DN228: 24 | DO228: 24 | DP228: 24 | DQ228: 24 | DR228: 24 | DS228: 24 | DT228: 24 | DU228: 24 | DV228: 24 | DW228: 24 | DX228: 24 | DY228: 24 | DZ228: 24 | EA228: 24 | EB228: 24 | EC228: 24 | ED228: 24 | EE228: 24 | EF228: 24 | EG228: 24 | EH228: 24 | EI228: 24 | EJ228: 24 | EK228: 24 | EL228: =EK228+EL11 -> 24 | EM228: 24 | EN228: 24 | EO228: 24 | EP228: 24 | EQ228: 24 | ER228: 24 | ES228: 24 | ET228: 24 | EU228: 24 | EV228: 24 | EW228: 24 | EX228: 24 | EY228: 24 | EZ228: 24 | FA228: 24 | FB228: 24 | FC228: 24 | FD228: 24 | FE228: 24 | FF228: 24 | FG228: 24 | FH228: 24 | FI228: 24 | FJ228: 24 | FK228: 24 | FL228: 24 | FM228: 24 | FN228: 24
C229: Weibull | E229: Percent | H229: Alpha | I229: =F82 -> 1.72 | J229: Beta | K229: =F81 -> 12.24489796 | L229: Sum | M229: =SUM(N229:EA229) -> 0.9598016694 | N229: =IF(N11,WEIBULL(N228,$I$229,$K$229,0)) -> FALSE | O229: FALSE | P229: FALSE | Q229: FALSE | R229: FALSE | S229: FALSE | T229: 0.02282466241 | U229: 0.03645391197 | V229: 0.04667913662 | W229: 0.05424194652 | X229: 0.05949097349 | Y229: 0.06268839383 | Z229: 0.06408120687 | AA229: 0.0639188771 | AB229: 0.06245399657 | AC229: 0.05993706669 | AD229: 0.05660966984 | AE229: 0.05269792696 | AF229: 0.04840712234 | AG229: 0.04391786337 | AH229: 0.03938385053 | AI229: 0.03493115701 | AJ229: 0.03065881312 | AK229: 0.02664043645 | AL229: 0.02292662992 | AM229: 0.01954787791 | AN229: 0.01651769569 | AO229: 0.01383582463 | AP229: 0.0114913075 | AQ229: 0.00946532203 | AR229: FALSE | AS229: FALSE | AT229: =IF(AT11,WEIBULL(AT228,$I$229,$K$229,0)) -> FALSE | AU229: FALSE | AV229: FALSE | AW229: FALSE | AX229: FALSE | AY229: FALSE | AZ229: FALSE | BA229: FALSE | BB229: FALSE | BC229: FALSE | BD229: FALSE | BE229: FALSE | BF229: FALSE | BG229: FALSE | BH229: FALSE | BI229: FALSE | BJ229: FALSE | BK229: FALSE | BL229: FALSE | BM229: FALSE | BN229: FALSE | BO229: FALSE | BP229: FALSE | BQ229: FALSE | BR229: FALSE | BS229: FALSE | BT229: FALSE | BU229: FALSE | BV229: FALSE | BW229: FALSE | BX229: FALSE | BY229: FALSE | BZ229: =IF(BZ11,WEIBULL(BZ228,$I$229,$K$229,0)) -> FALSE | CA229: FALSE | CB229: FALSE | CC229: FALSE | CD229: FALSE | CE229: FALSE | CF229: FALSE | CG229: FALSE | CH229: FALSE | CI229: FALSE | CJ229: FALSE | CK229: FALSE | CL229: FALSE | CM229: FALSE | CN229: FALSE | CO229: FALSE | CP229: FALSE | CQ229: FALSE | CR229: FALSE | CS229: FALSE | CT229: FALSE | CU229: FALSE | CV229: FALSE | CW229: FALSE | CX229: FALSE | CY229: FALSE | CZ229: FALSE | DA229: FALSE | DB229: FALSE | DC229: FALSE | DD229: FALSE | DE229: FALSE | DF229: =IF(DF11,WEIBULL(DF228,$I$229,$K$229,0)) -> FALSE | DG229: FALSE | DH229: FALSE | DI229: FALSE | DJ229: FALSE | DK229: FALSE | DL229: FALSE | DM229: FALSE | DN229: FALSE | DO229: FALSE | DP229: FALSE | DQ229: FALSE | DR229: FALSE | DS229: FALSE | DT229: FALSE | DU229: FALSE | DV229: FALSE | DW229: FALSE | DX229: FALSE | DY229: FALSE | DZ229: FALSE | EA229: FALSE | EB229: FALSE | EC229: FALSE | ED229: FALSE | EE229: FALSE | EF229: FALSE | EG229: FALSE | EH229: FALSE | EI229: FALSE | EJ229: FALSE | EK229: FALSE | EL229: =IF(EL11,WEIBULL(EL228,$I$229,$K$229,0)) -> FALSE | EM229: FALSE | EN229: FALSE | EO229: FALSE | EP229: FALSE | EQ229: FALSE | ER229: FALSE | ES229: FALSE | ET229: FALSE | EU229: FALSE | EV229: FALSE | EW229: FALSE | EX229: FALSE | EY229: FALSE | EZ229: FALSE | FA229: FALSE | FB229: FALSE | FC229: FALSE | FD229: FALSE | FE229: FALSE | FF229: FALSE | FG229: FALSE | FH229: FALSE | FI229: FALSE | FJ229: FALSE | FK229: FALSE | FL229: FALSE | FM229: FALSE | FN229: FALSE
C230: S curve | E230: % | H230: Cstr Mnth | I230: =F26 -> 24 | L230: =SUM(N230:FN230)=1 -> TRUE | N230: =N229/$M$229 -> 0 | O230: =O229/$M$229 -> 0 | P230: 0 | Q230: 0 | R230: 0 | S230: 0 | T230: 0.02378060295 | U230: 0.03798067157 | V230: 0.04863414819 | W230: 0.05651370304 | X230: 0.0619825693 | Y230: 0.06531390373 | Z230: 0.06676505044 | AA230: 0.06659592199 | AB230: 0.06506968946 | AC230: 0.06244734574 | AD230: 0.05898059114 | AE230: 0.05490501698 | AF230: 0.05043450525 | AG230: 0.04575722753 | AH230: 0.04103332155 | AI230: 0.03639414071 | AJ230: 0.03194286289 | AK230: 0.02775618891 | AL230: 0.02388684106 | AM230: 0.02036658045 | AN230: 0.0172094884 | AO230: 0.01441529544 | AP230: 0.01197258545 | AQ230: 0.00986174783 | AR230: 0 | AS230: 0 | AT230: 0 | AU230: 0 | AV230: 0 | AW230: 0 | AX230: 0 | AY230: 0 | AZ230: 0 | BA230: 0 | BB230: 0 | BC230: 0 | BD230: 0 | BE230: 0 | BF230: 0 | BG230: 0 | BH230: 0 | BI230: 0 | BJ230: 0 | BK230: 0 | BL230: 0 | BM230: 0 | BN230: 0 | BO230: 0 | BP230: 0 | BQ230: 0 | BR230: 0 | BS230: 0 | BT230: 0 | BU230: 0 | BV230: 0 | BW230: 0 | BX230: 0 | BY230: 0 | BZ230: 0 | CA230: =CA229/$M$229 -> 0 | CB230: 0 | CC230: 0 | CD230: 0 | CE230: 0 | CF230: 0 | CG230: 0 | CH230: 0 | CI230: 0 | CJ230: 0 | CK230: 0 | CL230: 0 | CM230: 0 | CN230: 0 | CO230: 0 | CP230: 0 | CQ230: 0 | CR230: 0 | CS230: 0 | CT230: 0 | CU230: 0 | CV230: 0 | CW230: 0 | CX230: 0 | CY230: 0 | CZ230: 0 | DA230: 0 | DB230: 0 | DC230: 0 | DD230: 0 | DE230: 0 | DF230: 0 | DG230: 0 | DH230: 0 | DI230: 0 | DJ230: 0 | DK230: 0 | DL230: 0 | DM230: 0 | DN230: 0 | DO230: 0 | DP230: 0 | DQ230: 0 | DR230: 0 | DS230: 0 | DT230: 0 | DU230: 0 | DV230: 0 | DW230: 0 | DX230: 0 | DY230: 0 | DZ230: 0 | EA230: 0 | EB230: =EB229/$M$229 -> 0 | EC230: 0 | ED230: 0 | EE230: 0 | EF230: 0 | EG230: 0 | EH230: 0 | EI230: 0 | EJ230: 0 | EK230: 0 | EL230: 0 | EM230: 0 | EN230: 0 | EO230: 0 | EP230: 0 | EQ230: 0 | ER230: 0 | ES230: 0 | ET230: 0 | EU230: 0 | EV230: 0 | EW230: 0 | EX230: 0 | EY230: 0 | EZ230: 0 | FA230: 0 | FB230: 0 | FC230: 0 | FD230: 0 | FE230: 0 | FF230: 0 | FG230: 0 | FH230: 0 | FI230: 0 | FJ230: 0 | FK230: 0 | FL230: 0 | FM230: 0 | FN230: 0
C231: Construction Expenditures | E231: * 000 EUR/MW | N231: =N227*N230 -> 0 | O231: =O227*O230 -> 0 | P231: 0 | Q231: 0 | R231: 0 | S231: 0 | T231: 2568.305118 | U231: 4101.912529 | V231: 5252.488005 | W231: 6103.479928 | X231: 6694.117485 | Y231: 7053.901603 | Z231: 7210.625448 | AA231: 7192.359575 | AB231: 7027.526462 | AC231: 6744.31334 | AD231: 6369.903844 | AE231: 5929.741834 | AF231: 5446.926568 | AG231: 4941.780573 | AH231: 4431.598728 | AI231: 3930.567196 | AJ231: 3449.829192 | AK231: 2997.668402 | AL231: 2579.778834 | AM231: 2199.590688 | AN231: 1858.624747 | AO231: 1556.851907 | AP231: 1293.039228 | AQ231: 1065.068766 | AR231: 0 | AS231: 0 | AT231: 0 | AU231: 0 | AV231: 0 | AW231: 0 | AX231: 0 | AY231: 0 | AZ231: 0 | BA231: 0 | BB231: 0 | BC231: 0 | BD231: 0 | BE231: 0 | BF231: 0 | BG231: 0 | BH231: 0 | BI231: 0 | BJ231: 0 | BK231: 0 | BL231: 0 | BM231: 0 | BN231: 0 | BO231: 0 | BP231: 0 | BQ231: 0 | BR231: 0 | BS231: 0 | BT231: 0 | BU231: 0 | BV231: 0 | BW231: 0 | BX231: 0 | BY231: 0 | BZ231: 0 | CA231: =CA227*CA230 -> 0 | CB231: 0 | CC231: 0 | CD231: 0 | CE231: 0 | CF231: 0 | CG231: 0 | CH231: 0 | CI231: 0 | CJ231: 0 | CK231: 0 | CL231: 0 | CM231: 0 | CN231: 0 | CO231: 0 | CP231: 0 | CQ231: 0 | CR231: 0 | CS231: 0 | CT231: 0 | CU231: 0 | CV231: 0 | CW231: 0 | CX231: 0 | CY231: 0 | CZ231: 0 | DA231: 0 | DB231: 0 | DC231: 0 | DD231: 0 | DE231: 0 | DF231: 0 | DG231: 0 | DH231: 0 | DI231: 0 | DJ231: 0 | DK231: 0 | DL231: 0 | DM231: 0 | DN231: 0 | DO231: 0 | DP231: 0 | DQ231: 0 | DR231: 0 | DS231: 0 | DT231: 0 | DU231: 0 | DV231: 0 | DW231: 0 | DX231: 0 | DY231: 0 | DZ231: 0 | EA231: 0 | EB231: =EB227*EB230 -> 0 | EC231: 0 | ED231: 0 | EE231: 0 | EF231: 0 | EG231: 0 | EH231: 0 | EI231: 0 | EJ231: 0 | EK231: 0 | EL231: 0 | EM231: 0 | EN231: 0 | EO231: 0 | EP231: 0 | EQ231: 0 | ER231: 0 | ES231: 0 | ET231: 0 | EU231: 0 | EV231: 0 | EW231: 0 | EX231: 0 | EY231: 0 | EZ231: 0 | FA231: 0 | FB231: 0 | FC231: 0 | FD231: 0 | FE231: 0 | FF231: 0 | FG231: 0 | FH231: 0 | FI231: 0 | FJ231: 0 | FK231: 0 | FL231: 0 | FM231: 0 | FN231: 0
C233: Development Cost | E233: * 000 EUR/MW | H233: Percent | I233: =F85 -> 0.05 | J233: Periods | K233: =F24 -> 6 | L233: Cost | M233: =I233*L227 -> 5400 | N233: =$M$233/$K$233*N9 -> 900 | O233: 900 | P233: 900 | Q233: 900 | R233: 900 | S233: 900 | T233: 0 | U233: 0 | V233: 0 | W233: 0 | X233: 0 | Y233: 0 | Z233: 0 | AA233: 0 | AB233: 0 | AC233: 0 | AD233: 0 | AE233: 0 | AF233: 0 | AG233: 0 | AH233: 0 | AI233: 0 | AJ233: 0 | AK233: 0 | AL233: 0 | AM233: 0 | AN233: 0 | AO233: 0 | AP233: 0 | AQ233: 0 | AR233: 0 | AS233: 0 | AT233: =$M$233/$K$233*AT9 -> 0 | AU233: 0 | AV233: 0 | AW233: 0 | AX233: 0 | AY233: 0 | AZ233: 0 | BA233: 0 | BB233: 0 | BC233: 0 | BD233: 0 | BE233: 0 | BF233: 0 | BG233: 0 | BH233: 0 | BI233: 0 | BJ233: 0 | BK233: 0 | BL233: 0 | BM233: 0 | BN233: 0 | BO233: 0 | BP233: 0 | BQ233: 0 | BR233: 0 | BS233: 0 | BT233: 0 | BU233: 0 | BV233: 0 | BW233: 0 | BX233: 0 | BY233: 0 | BZ233: =$M$233/$K$233*BZ9 -> 0 | CA233: 0 | CB233: 0 | CC233: 0 | CD233: 0 | CE233: 0 | CF233: 0 | CG233: 0 | CH233: 0 | CI233: 0 | CJ233: 0 | CK233: 0 | CL233: 0 | CM233: 0 | CN233: 0 | CO233: 0 | CP233: 0 | CQ233: 0 | CR233: 0 | CS233: 0 | CT233: 0 | CU233: 0 | CV233: 0 | CW233: 0 | CX233: 0 | CY233: 0 | CZ233: 0 | DA233: 0 | DB233: 0 | DC233: 0 | DD233: 0 | DE233: 0 | DF233: =$M$233/$K$233*DF9 -> 0 | DG233: 0 | DH233: 0 | DI233: 0 | DJ233: 0 | DK233: 0 | DL233: 0 | DM233: 0 | DN233: 0 | DO233: 0 | DP233: 0 | DQ233: 0 | DR233: 0 | DS233: 0 | DT233: 0 | DU233: 0 | DV233: 0 | DW233: 0 | DX233: 0 | DY233: 0 | DZ233: 0 | EA233: 0 | EB233: 0 | EC233: 0 | ED233: 0 | EE233: 0 | EF233: 0 | EG233: 0 | EH233: 0 | EI233: 0 | EJ233: 0 | EK233: 0 | EL233: =$M$233/$K$233*EL9 -> 0 | EM233: 0 | EN233: 0 | EO233: 0 | EP233: 0 | EQ233: 0 | ER233: 0 | ES233: 0 | ET233: 0 | EU233: 0 | EV233: 0 | EW233: 0 | EX233: 0 | EY233: 0 | EZ233: 0 | FA233: 0 | FB233: 0 | FC233: 0 | FD233: 0 | FE233: 0 | FF233: 0 | FG233: 0 | FH233: 0 | FI233: 0 | FJ233: 0 | FK233: 0 | FL233: 0 | FM233: 0 | FN233: 0
C235: Summary of Operations
D236: CAPEX | N236: =N233+N231 -> 900 | O236: 900 | P236: 900 | Q236: 900 | R236: 900 | S236: 900 | T236: 2568.305118 | U236: 4101.912529 | V236: 5252.488005 | W236: 6103.479928 | X236: 6694.117485 | Y236: 7053.901603 | Z236: 7210.625448 | AA236: 7192.359575 | AB236: 7027.526462 | AC236: 6744.31334 | AD236: 6369.903844 | AE236: 5929.741834 | AF236: 5446.926568 | AG236: 4941.780573 | AH236: 4431.598728 | AI236: 3930.567196 | AJ236: 3449.829192 | AK236: 2997.668402 | AL236: 2579.778834 | AM236: 2199.590688 | AN236: 1858.624747 | AO236: 1556.851907 | AP236: 1293.039228 | AQ236: 1065.068766 | AR236: 0 | AS236: 0 | AT236: =AT233+AT231 -> 0 | AU236: 0 | AV236: 0 | AW236: 0 | AX236: 0 | AY236: 0 | AZ236: 0 | BA236: 0 | BB236: 0 | BC236: 0 | BD236: 0 | BE236: 0 | BF236: 0 | BG236: 0 | BH236: 0 | BI236: 0 | BJ236: 0 | BK236: 0 | BL236: 0 | BM236: 0 | BN236: 0 | BO236: 0 | BP236: 0 | BQ236: 0 | BR236: 0 | BS236: 0 | BT236: 0 | BU236: 0 | BV236: 0 | BW236: 0 | BX236: 0 | BY236: 0 | BZ236: =BZ233+BZ231 -> 0 | CA236: 0 | CB236: 0 | CC236: 0 | CD236: 0 | CE236: 0 | CF236: 0 | CG236: 0 | CH236: 0 | CI236: 0 | CJ236: 0 | CK236: 0 | CL236: 0 | CM236: 0 | CN236: 0 | CO236: 0 | CP236: 0 | CQ236: 0 | CR236: 0 | CS236: 0 | CT236: 0 | CU236: 0 | CV236: 0 | CW236: 0 | CX236: 0 | CY236: 0 | CZ236: 0 | DA236: 0 | DB236: 0 | DC236: 0 | DD236: 0 | DE236: 0 | DF236: =DF233+DF231 -> 0 | DG236: 0 | DH236: 0 | DI236: 0 | DJ236: 0 | DK236: 0 | DL236: 0 | DM236: 0 | DN236: 0 | DO236: 0 | DP236: 0 | DQ236: 0 | DR236: 0 | DS236: 0 | DT236: 0 | DU236: 0 | DV236: 0 | DW236: 0 | DX236: 0 | DY236: 0 | DZ236: 0 | EA236: 0 | EB236: =EB233+EB231 -> 0 | EC236: =EC233+EC231 -> 0 | ED236: =ED233+ED231 -> 0 | EE236: =EE233+EE231 -> 0 | EF236: =EF233+EF231 -> 0 | EG236: =EG233+EG231 -> 0 | EH236: =EH233+EH231 -> 0 | EI236: =EI233+EI231 -> 0 | EJ236: =EJ233+EJ231 -> 0 | EK236: =EK233+EK231 -> 0 | EL236: =EL233+EL231 -> 0 | EM236: =EM233+EM231 -> 0 | EN236: =EN233+EN231 -> 0 | EO236: =EO233+EO231 -> 0 | EP236: =EP233+EP231 -> 0 | EQ236: =EQ233+EQ231 -> 0 | ER236: =ER233+ER231 -> 0 | ES236: =ES233+ES231 -> 0 | ET236: =ET233+ET231 -> 0 | EU236: =EU233+EU231 -> 0 | EV236: =EV233+EV231 -> 0 | EW236: =EW233+EW231 -> 0 | EX236: =EX233+EX231 -> 0 | EY236: =EY233+EY231 -> 0 | EZ236: =EZ233+EZ231 -> 0 | FA236: =FA233+FA231 -> 0 | FB236: =FB233+FB231 -> 0 | FC236: =FC233+FC231 -> 0 | FD236: =FD233+FD231 -> 0 | FE236: =FE233+FE231 -> 0 | FF236: =FF233+FF231 -> 0 | FG236: =FG233+FG231 -> 0 | FH236: =FH233+FH231 -> 0 | FI236: =FI233+FI231 -> 0 | FJ236: =FJ233+FJ231 -> 0 | FK236: =FK233+FK231 -> 0 | FL236: =FL233+FL231 -> 0 | FM236: =FM233+FM231 -> 0 | FN236: =FN233+FN231 -> 0
D237: EBITDA | N237: =N218-N225 -> 0 | O237: 0 | P237: 0 | Q237: 0 | R237: 0 | S237: 0 | T237: 0 | U237: 0 | V237: 0 | W237: 0 | X237: 0 | Y237: 0 | Z237: 0 | AA237: 0 | AB237: 0 | AC237: 0 | AD237: 0 | AE237: 0 | AF237: 0 | AG237: 0 | AH237: 0 | AI237: 0 | AJ237: 0 | AK237: 0 | AL237: 0 | AM237: 0 | AN237: 0 | AO237: 0 | AP237: 0 | AQ237: 0 | AR237: 5841.103326 | AS237: 6290.284833 | AT237: =AT218-AT225 -> 6481.87236 | AU237: 6773.992209 | AV237: 6980.312345 | AW237: 7007.240663 | AX237: 7437.643153 | AY237: 7149.022872 | AZ237: 7375.722132 | BA237: 7363.493559 | BB237: 8103.460049 | BC237: 8090.024923 | BD237: 8346.563851 | BE237: 8378.762829 | BF237: 8596.960766 | BG237: 8582.707441 | BH237: 8854.869589 | BI237: 8840.188664 | BJ237: 9120.515677 | BK237: 9105.394324 | BL237: 9394.131147 | BM237: 9430.371381 | BN237: 9675.955081 | BO237: 9659.912838 | BP237: 9966.233734 | BQ237: 9949.710224 | BR237: 10265.22075 | BS237: 10248.20153 | BT237: 10573.17737 | BU237: 10613.96607 | BV237: 10890.37269 | BW237: 10872.317 | BX237: 11217.08387 | BY237: 11198.48651 | BZ237: =BZ218-BZ225 -> 11553.59639 | CA237: 11534.44111 | CB237: 11900.20428 | CC237: 11946.11232 | CD237: 12257.21041 | CE237: 12236.88857 | CF237: 0 | CG237: 0 | CH237: 0 | CI237: 0 | CJ237: 0 | CK237: 0 | CL237: 0 | CM237: 0 | CN237: 0 | CO237: 0 | CP237: 0 | CQ237: 0 | CR237: 0 | CS237: 0 | CT237: 0 | CU237: 0 | CV237: 0 | CW237: 0 | CX237: 0 | CY237: 0 | CZ237: 0 | DA237: 0 | DB237: 0 | DC237: 0 | DD237: 0 | DE237: 0 | DF237: =DF218-DF225 -> 0 | DG237: 0 | DH237: 0 | DI237: 0 | DJ237: 0 | DK237: 0 | DL237: 0 | DM237: 0 | DN237: 0 | DO237: 0 | DP237: 0 | DQ237: 0 | DR237: 0 | DS237: 0 | DT237: 0 | DU237: 0 | DV237: 0 | DW237: 0 | DX237: 0 | DY237: 0 | DZ237: 0 | EA237: 0 | EB237: =EB218-EB225 -> 0 | EC237: 0 | ED237: 0 | EE237: 0 | EF237: 0 | EG237: 0 | EH237: 0 | EI237: 0 | EJ237: 0 | EK237: 0 | EL237: 0 | EM237: 0 | EN237: 0 | EO237: 0 | EP237: 0 | EQ237: 0 | ER237: 0 | ES237: 0 | ET237: 0 | EU237: 0 | EV237: 0 | EW237: 0 | EX237: 0 | EY237: 0 | EZ237: 0 | FA237: 0 | FB237: 0 | FC237: 0 | FD237: 0 | FE237: 0 | FF237: 0 | FG237: 0 | FH237: 0 | FI237: 0 | FJ237: 0 | FK237: 0 | FL237: 0 | FM237: 0 | FN237: 0
D238: Pre tax Cash Flow | N238: =N237-N236-0.000000001 -> -900 | O238: =O237-O236 -> -900 | P238: -900 | Q238: -900 | R238: -900 | S238: -900 | T238: -2568.305118 | U238: -4101.912529 | V238: -5252.488005 | W238: -6103.479928 | X238: -6694.117485 | Y238: -7053.901603 | Z238: -7210.625448 | AA238: -7192.359575 | AB238: -7027.526462 | AC238: -6744.31334 | AD238: -6369.903844 | AE238: -5929.741834 | AF238: -5446.926568 | AG238: -4941.780573 | AH238: -4431.598728 | AI238: -3930.567196 | AJ238: -3449.829192 | AK238: -2997.668402 | AL238: -2579.778834 | AM238: -2199.590688 | AN238: -1858.624747 | AO238: -1556.851907 | AP238: -1293.039228 | AQ238: -1065.068766 | AR238: 5841.103326 | AS238: 6290.284833 | AT238: 6481.87236 | AU238: =AU237-AU236 -> 6773.992209 | AV238: 6980.312345 | AW238: 7007.240663 | AX238: 7437.643153 | AY238: 7149.022872 | AZ238: 7375.722132 | BA238: 7363.493559 | BB238: 8103.460049 | BC238: 8090.024923 | BD238: 8346.563851 | BE238: 8378.762829 | BF238: 8596.960766 | BG238: 8582.707441 | BH238: 8854.869589 | BI238: 8840.188664 | BJ238: 9120.515677 | BK238: 9105.394324 | BL238: 9394.131147 | BM238: 9430.371381 | BN238: 9675.955081 | BO238: 9659.912838 | BP238: 9966.233734 | BQ238: 9949.710224 | BR238: 10265.22075 | BS238: 10248.20153 | BT238: 10573.17737 | BU238: 10613.96607 | BV238: 10890.37269 | BW238: 10872.317 | BX238: 11217.08387 | BY238: 11198.48651 | BZ238: 11553.59639 | CA238: =CA237-CA236 -> 11534.44111 | CB238: 11900.20428 | CC238: 11946.11232 | CD238: 12257.21041 | CE238: 12236.88857 | CF238: 0 | CG238: 0 | CH238: 0 | CI238: 0 | CJ238: 0 | CK238: 0 | CL238: 0 | CM238: 0 | CN238: 0 | CO238: 0 | CP238: 0 | CQ238: 0 | CR238: 0 | CS238: 0 | CT238: 0 | CU238: 0 | CV238: 0 | CW238: 0 | CX238: 0 | CY238: 0 | CZ238: 0 | DA238: 0 | DB238: 0 | DC238: 0 | DD238: 0 | DE238: 0 | DF238: 0 | DG238: =DG237-DG236 -> 0 | DH238: 0 | DI238: 0 | DJ238: 0 | DK238: 0 | DL238: 0 | DM238: 0 | DN238: 0 | DO238: 0 | DP238: 0 | DQ238: 0 | DR238: 0 | DS238: 0 | DT238: 0 | DU238: 0 | DV238: 0 | DW238: 0 | DX238: 0 | DY238: 0 | DZ238: 0 | EA238: 0 | EB238: =EB237-EB236 -> 0 | EC238: =EC237-EC236 -> 0 | ED238: =ED237-ED236 -> 0 | EE238: =EE237-EE236 -> 0 | EF238: =EF237-EF236 -> 0 | EG238: =EG237-EG236 -> 0 | EH238: =EH237-EH236 -> 0 | EI238: =EI237-EI236 -> 0 | EJ238: =EJ237-EJ236 -> 0 | EK238: =EK237-EK236 -> 0 | EL238: =EL237-EL236 -> 0 | EM238: =EM237-EM236 -> 0 | EN238: =EN237-EN236 -> 0 | EO238: =EO237-EO236 -> 0 | EP238: =EP237-EP236 -> 0 | EQ238: =EQ237-EQ236 -> 0 | ER238: =ER237-ER236 -> 0 | ES238: =ES237-ES236 -> 0 | ET238: =ET237-ET236 -> 0 | EU238: =EU237-EU236 -> 0 | EV238: =EV237-EV236 -> 0 | EW238: =EW237-EW236 -> 0 | EX238: =EX237-EX236 -> 0 | EY238: =EY237-EY236 -> 0 | EZ238: =EZ237-EZ236 -> 0 | FA238: =FA237-FA236 -> 0 | FB238: =FB237-FB236 -> 0 | FC238: =FC237-FC236 -> 0 | FD238: =FD237-FD236 -> 0 | FE238: =FE237-FE236 -> 0 | FF238: =FF237-FF236 -> 0 | FG238: =FG237-FG236 -> 0 | FH238: =FH237-FH236 -> 0 | FI238: =FI237-FI236 -> 0 | FJ238: =FJ237-FJ236 -> 0 | FK238: =FK237-FK236 -> 0 | FL238: =FL237-FL236 -> 0 | FM238: =FM237-FM236 -> 0 | FN238: =FN237-FN236 -> 0
A240: Depreciation Expense and After-tax Cash Flow
B242: Plant Balance
C243: Opening Balance | N243: =M245 -> 0 | O243: 900 | P243: 1800 | Q243: 2700 | R243: 3600 | S243: 4500 | T243: 5400 | U243: 7968.305118 | V243: 12070.21765 | W243: 17322.70565 | X243: 23426.18558 | Y243: 30120.30307 | Z243: 37174.20467 | AA243: 44384.83012 | AB243: 51577.18969 | AC243: 58604.71615 | AD243: 65349.02949 | AE243: 71718.93334 | AF243: 77648.67517 | AG243: 83095.60174 | AH243: 88037.38231 | AI243: 92468.98104 | AJ243: 96399.54824 | AK243: 99849.37743 | AL243: 102847.0458 | AM243: 105426.8247 | AN243: 107626.4154 | AO243: 109485.0401 | AP243: 111041.892 | AQ243: 112334.9312 | AR243: 113400 | AS243: 113400 | AT243: 113400 | AU243: 113400 | AV243: 113400 | AW243: 113400 | AX243: 113400 | AY243: 113400 | AZ243: 113400 | BA243: 113400 | BB243: 113400 | BC243: 113400 | BD243: 113400 | BE243: 113400 | BF243: 113400 | BG243: 113400 | BH243: 113400 | BI243: 113400 | BJ243: 113400 | BK243: 113400 | BL243: 113400 | BM243: 113400 | BN243: 113400 | BO243: 113400 | BP243: 113400 | BQ243: 113400 | BR243: 113400 | BS243: 113400 | BT243: 113400 | BU243: 113400 | BV243: 113400 | BW243: 113400 | BX243: 113400 | BY243: 113400 | BZ243: =BY245 -> 113400 | CA243: 113400 | CB243: 113400 | CC243: 113400 | CD243: 113400 | CE243: 113400 | CF243: 113400 | CG243: 113400 | CH243: 113400 | CI243: 113400 | CJ243: 113400 | CK243: 113400 | CL243: 113400 | CM243: 113400 | CN243: 113400 | CO243: 113400 | CP243: 113400 | CQ243: 113400 | CR243: 113400 | CS243: 113400 | CT243: 113400 | CU243: 113400 | CV243: 113400 | CW243: 113400 | CX243: 113400 | CY243: 113400 | CZ243: 113400 | DA243: 113400 | DB243: 113400 | DC243: 113400 | DD243: 113400 | DE243: 113400 | DF243: 113400 | DG243: 113400 | DH243: 113400 | DI243: 113400 | DJ243: 113400 | DK243: 113400 | DL243: 113400 | DM243: 113400 | DN243: 113400 | DO243: 113400 | DP243: 113400 | DQ243: 113400 | DR243: 113400 | DS243: 113400 | DT243: 113400 | DU243: 113400 | DV243: 113400 | DW243: 113400 | DX243: 113400 | DY243: 113400 | DZ243: 113400 | EA243: 113400 | EB243: =EA245 -> 113400 | EC243: =EB245 -> 113400 | ED243: =EC245 -> 113400 | EE243: =ED245 -> 113400 | EF243: =EE245 -> 113400 | EG243: =EF245 -> 113400 | EH243: =EG245 -> 113400 | EI243: =EH245 -> 113400 | EJ243: =EI245 -> 113400 | EK243: =EJ245 -> 113400 | EL243: =EK245 -> 113400 | EM243: =EL245 -> 113400 | EN243: =EM245 -> 113400 | EO243: =EN245 -> 113400 | EP243: =EO245 -> 113400 | EQ243: =EP245 -> 113400 | ER243: =EQ245 -> 113400 | ES243: =ER245 -> 113400 | ET243: =ES245 -> 113400 | EU243: =ET245 -> 113400 | EV243: =EU245 -> 113400 | EW243: =EV245 -> 113400 | EX243: =EW245 -> 113400 | EY243: =EX245 -> 113400 | EZ243: =EY245 -> 113400 | FA243: =EZ245 -> 113400 | FB243: =FA245 -> 113400 | FC243: =FB245 -> 113400 | FD243: =FC245 -> 113400 | FE243: =FD245 -> 113400 | FF243: =FE245 -> 113400 | FG243: =FF245 -> 113400 | FH243: =FG245 -> 113400 | FI243: =FH245 -> 113400 | FJ243: =FI245 -> 113400 | FK243: =FJ245 -> 113400 | FL243: =FK245 -> 113400 | FM243: =FL245 -> 113400 | FN243: =FM245 -> 113400
C244: add CAPEX | N244: =N236 -> 900 | O244: 900 | P244: 900 | Q244: 900 | R244: 900 | S244: 900 | T244: 2568.305118 | U244: 4101.912529 | V244: 5252.488005 | W244: 6103.479928 | X244: 6694.117485 | Y244: 7053.901603 | Z244: 7210.625448 | AA244: 7192.359575 | AB244: 7027.526462 | AC244: 6744.31334 | AD244: 6369.903844 | AE244: 5929.741834 | AF244: 5446.926568 | AG244: 4941.780573 | AH244: 4431.598728 | AI244: 3930.567196 | AJ244: 3449.829192 | AK244: 2997.668402 | AL244: 2579.778834 | AM244: 2199.590688 | AN244: 1858.624747 | AO244: 1556.851907 | AP244: 1293.039228 | AQ244: 1065.068766 | AR244: 0 | AS244: 0 | AT244: =AT236 -> 0 | AU244: 0 | AV244: 0 | AW244: 0 | AX244: 0 | AY244: 0 | AZ244: 0 | BA244: 0 | BB244: 0 | BC244: 0 | BD244: 0 | BE244: 0 | BF244: 0 | BG244: 0 | BH244: 0 | BI244: 0 | BJ244: 0 | BK244: 0 | BL244: 0 | BM244: 0 | BN244: 0 | BO244: 0 | BP244: 0 | BQ244: 0 | BR244: 0 | BS244: 0 | BT244: 0 | BU244: 0 | BV244: 0 | BW244: 0 | BX244: 0 | BY244: 0 | BZ244: =BZ236 -> 0 | CA244: 0 | CB244: 0 | CC244: 0 | CD244: 0 | CE244: 0 | CF244: 0 | CG244: 0 | CH244: 0 | CI244: 0 | CJ244: 0 | CK244: 0 | CL244: 0 | CM244: 0 | CN244: 0 | CO244: 0 | CP244: 0 | CQ244: 0 | CR244: 0 | CS244: 0 | CT244: 0 | CU244: 0 | CV244: 0 | CW244: 0 | CX244: 0 | CY244: 0 | CZ244: 0 | DA244: 0 | DB244: 0 | DC244: 0 | DD244: 0 | DE244: 0 | DF244: =DF236 -> 0 | DG244: 0 | DH244: 0 | DI244: 0 | DJ244: 0 | DK244: 0 | DL244: 0 | DM244: 0 | DN244: 0 | DO244: 0 | DP244: 0 | DQ244: 0 | DR244: 0 | DS244: 0 | DT244: 0 | DU244: 0 | DV244: 0 | DW244: 0 | DX244: 0 | DY244: 0 | DZ244: 0 | EA244: 0 | EB244: 0 | EC244: 0 | ED244: 0 | EE244: 0 | EF244: 0 | EG244: 0 | EH244: 0 | EI244: 0 | EJ244: 0 | EK244: 0 | EL244: =EL236 -> 0 | EM244: 0 | EN244: 0 | EO244: 0 | EP244: 0 | EQ244: 0 | ER244: 0 | ES244: 0 | ET244: 0 | EU244: 0 | EV244: 0 | EW244: 0 | EX244: 0 | EY244: 0 | EZ244: 0 | FA244: 0 | FB244: 0 | FC244: 0 | FD244: 0 | FE244: 0 | FF244: 0 | FG244: 0 | FH244: 0 | FI244: 0 | FJ244: 0 | FK244: 0 | FL244: 0 | FM244: 0 | FN244: 0
C245: Closing Balance | N245: =SUM(N243:N244) -> 900 | O245: 1800 | P245: 2700 | Q245: 3600 | R245: 4500 | S245: 5400 | T245: 7968.305118 | U245: 12070.21765 | V245: 17322.70565 | W245: 23426.18558 | X245: 30120.30307 | Y245: 37174.20467 | Z245: 44384.83012 | AA245: 51577.18969 | AB245: 58604.71615 | AC245: 65349.02949 | AD245: 71718.93334 | AE245: 77648.67517 | AF245: 83095.60174 | AG245: 88037.38231 | AH245: 92468.98104 | AI245: 96399.54824 | AJ245: 99849.37743 | AK245: 102847.0458 | AL245: 105426.8247 | AM245: 107626.4154 | AN245: 109485.0401 | AO245: 111041.892 | AP245: 112334.9312 | AQ245: 113400 | AR245: 113400 | AS245: 113400 | AT245: 113400 | AU245: 113400 | AV245: 113400 | AW245: 113400 | AX245: 113400 | AY245: 113400 | AZ245: 113400 | BA245: 113400 | BB245: 113400 | BC245: 113400 | BD245: 113400 | BE245: 113400 | BF245: 113400 | BG245: 113400 | BH245: 113400 | BI245: 113400 | BJ245: 113400 | BK245: 113400 | BL245: 113400 | BM245: 113400 | BN245: 113400 | BO245: 113400 | BP245: 113400 | BQ245: 113400 | BR245: 113400 | BS245: 113400 | BT245: 113400 | BU245: 113400 | BV245: 113400 | BW245: 113400 | BX245: 113400 | BY245: 113400 | BZ245: =SUM(BZ243:BZ244) -> 113400 | CA245: 113400 | CB245: 113400 | CC245: 113400 | CD245: 113400 | CE245: 113400 | CF245: 113400 | CG245: 113400 | CH245: 113400 | CI245: 113400 | CJ245: 113400 | CK245: 113400 | CL245: 113400 | CM245: 113400 | CN245: 113400 | CO245: 113400 | CP245: 113400 | CQ245: 113400 | CR245: 113400 | CS245: 113400 | CT245: 113400 | CU245: 113400 | CV245: 113400 | CW245: 113400 | CX245: 113400 | CY245: 113400 | CZ245: 113400 | DA245: 113400 | DB245: 113400 | DC245: 113400 | DD245: 113400 | DE245: 113400 | DF245: 113400 | DG245: 113400 | DH245: 113400 | DI245: 113400 | DJ245: 113400 | DK245: 113400 | DL245: 113400 | DM245: 113400 | DN245: 113400 | DO245: 113400 | DP245: 113400 | DQ245: 113400 | DR245: 113400 | DS245: 113400 | DT245: 113400 | DU245: 113400 | DV245: 113400 | DW245: 113400 | DX245: 113400 | DY245: 113400 | DZ245: 113400 | EA245: 113400 | EB245: =SUM(EB243:EB244) -> 113400 | EC245: 113400 | ED245: 113400 | EE245: 113400 | EF245: 113400 | EG245: 113400 | EH245: 113400 | EI245: 113400 | EJ245: 113400 | EK245: 113400 | EL245: 113400 | EM245: 113400 | EN245: 113400 | EO245: 113400 | EP245: 113400 | EQ245: 113400 | ER245: 113400 | ES245: 113400 | ET245: 113400 | EU245: 113400 | EV245: 113400 | EW245: 113400 | EX245: 113400 | EY245: 113400 | EZ245: 113400 | FA245: 113400 | FB245: 113400 | FC245: 113400 | FD245: 113400 | FE245: 113400 | FF245: 113400 | FG245: 113400 | FH245: 113400 | FI245: 113400 | FJ245: 113400 | FK245: 113400 | FL245: 113400 | FM245: 113400 | FN245: 113400
C247: Depreciation Rate 9lookup function on year) | L247: =SUM(M247:EA247)=1 -> TRUE | N247: =IF(N14,LOOKUP(N1,$J$93:$S$93,$J$94:$S$94))/N5 -> 0 | O247: 0 | P247: 0 | Q247: 0 | R247: 0 | S247: 0 | T247: 0 | U247: 0 | V247: 0 | W247: 0 | X247: 0 | Y247: 0 | Z247: 0 | AA247: 0 | AB247: 0 | AC247: 0 | AD247: 0 | AE247: 0 | AF247: 0 | AG247: 0 | AH247: 0 | AI247: 0 | AJ247: 0 | AK247: 0 | AL247: 0 | AM247: 0 | AN247: 0 | AO247: 0 | AP247: 0 | AQ247: 0 | AR247: 0.1111111111 | AS247: 0.1111111111 | AT247: =IF(AT14,LOOKUP(AT1,$J$93:$S$93,$J$94:$S$94))/AT5 -> 0.08641975309 | AU247: 0.08641975309 | AV247: 0.06721536351 | AW247: 0.06721536351 | AX247: 0.05227861606 | AY247: 0.05227861606 | AZ247: 0.04066114583 | BA247: 0.04066114583 | BB247: 0.0355785026 | BC247: 0.0355785026 | BD247: 0.0355785026 | BE247: 0.0355785026 | BF247: 0.0355785026 | BG247: 0.0355785026 | BH247: 0.0355785026 | BI247: 0.0355785026 | BJ247: 0 | BK247: 0 | BL247: 0 | BM247: 0 | BN247: 0 | BO247: 0 | BP247: 0 | BQ247: 0 | BR247: 0 | BS247: 0 | BT247: 0 | BU247: 0 | BV247: 0 | BW247: 0 | BX247: 0 | BY247: 0 | BZ247: =IF(BZ14,LOOKUP(BZ1,$J$93:$S$93,$J$94:$S$94))/BZ5 -> 0 | CA247: 0 | CB247: 0 | CC247: 0 | CD247: 0 | CE247: 0 | CF247: 0 | CG247: 0 | CH247: 0 | CI247: 0 | CJ247: 0 | CK247: 0 | CL247: 0 | CM247: 0 | CN247: 0 | CO247: 0 | CP247: 0 | CQ247: 0 | CR247: 0 | CS247: 0 | CT247: 0 | CU247: 0 | CV247: 0 | CW247: 0 | CX247: 0 | CY247: 0 | CZ247: 0 | DA247: 0 | DB247: 0 | DC247: 0 | DD247: 0 | DE247: 0 | DF247: =IF(DF14,LOOKUP(DF1,$J$93:$S$93,$J$94:$S$94))/DF5 -> 0 | DG247: 0 | DH247: 0 | DI247: 0 | DJ247: 0 | DK247: 0 | DL247: 0 | DM247: 0 | DN247: 0 | DO247: 0 | DP247: 0 | DQ247: 0 | DR247: 0 | DS247: 0 | DT247: 0 | DU247: 0 | DV247: 0 | DW247: 0 | DX247: 0 | DY247: 0 | DZ247: 0 | EA247: 0 | EB247: 0 | EC247: 0 | ED247: 0 | EE247: 0 | EF247: 0 | EG247: 0 | EH247: 0 | EI247: 0 | EJ247: 0 | EK247: 0 | EL247: =IF(EL14,LOOKUP(EL1,$J$93:$S$93,$J$94:$S$94))/EL5 -> 0 | EM247: 0 | EN247: 0 | EO247: 0 | EP247: 0 | EQ247: 0 | ER247: 0 | ES247: 0 | ET247: 0 | EU247: 0 | EV247: 0 | EW247: 0 | EX247: 0 | EY247: 0 | EZ247: 0 | FA247: 0 | FB247: 0 | FC247: 0 | FD247: 0 | FE247: 0 | FF247: 0 | FG247: 0 | FH247: 0 | FI247: 0 | FJ247: 0 | FK247: 0 | FL247: 0 | FM247: 0 | FN247: 0
C248: Depreciation Expense | N248: =N247*N243 -> 0 | O248: 0 | P248: 0 | Q248: 0 | R248: 0 | S248: 0 | T248: 0 | U248: 0 | V248: 0 | W248: 0 | X248: 0 | Y248: 0 | Z248: 0 | AA248: 0 | AB248: 0 | AC248: 0 | AD248: 0 | AE248: 0 | AF248: 0 | AG248: 0 | AH248: 0 | AI248: 0 | AJ248: 0 | AK248: 0 | AL248: 0 | AM248: 0 | AN248: 0 | AO248: 0 | AP248: 0 | AQ248: 0 | AR248: 12600 | AS248: 12600 | AT248: 9800 | AU248: 9800 | AV248: 7622.222222 | AW248: 7622.222222 | AX248: 5928.395062 | AY248: 5928.395062 | AZ248: 4610.973937 | BA248: 4610.973937 | BB248: 4034.602195 | BC248: 4034.602195 | BD248: 4034.602195 | BE248: 4034.602195 | BF248: 4034.602195 | BG248: 4034.602195 | BH248: 4034.602195 | BI248: 4034.602195 | BJ248: 0 | BK248: 0 | BL248: 0 | BM248: 0 | BN248: 0 | BO248: 0 | BP248: 0 | BQ248: 0 | BR248: 0 | BS248: 0 | BT248: 0 | BU248: 0 | BV248: 0 | BW248: 0 | BX248: 0 | BY248: 0 | BZ248: =BZ247*BZ243 -> 0 | CA248: 0 | CB248: 0 | CC248: 0 | CD248: 0 | CE248: 0 | CF248: 0 | CG248: 0 | CH248: 0 | CI248: 0 | CJ248: 0 | CK248: 0 | CL248: 0 | CM248: 0 | CN248: 0 | CO248: 0 | CP248: 0 | CQ248: 0 | CR248: 0 | CS248: 0 | CT248: 0 | CU248: 0 | CV248: 0 | CW248: 0 | CX248: 0 | CY248: 0 | CZ248: 0 | DA248: 0 | DB248: 0 | DC248: 0 | DD248: 0 | DE248: 0 | DF248: 0 | DG248: 0 | DH248: 0 | DI248: 0 | DJ248: 0 | DK248: 0 | DL248: 0 | DM248: 0 | DN248: 0 | DO248: 0 | DP248: 0 | DQ248: 0 | DR248: 0 | DS248: 0 | DT248: 0 | DU248: 0 | DV248: 0 | DW248: 0 | DX248: 0 | DY248: 0 | DZ248: 0 | EA248: 0 | EB248: =EB247*EB243 -> 0 | EC248: 0 | ED248: 0 | EE248: 0 | EF248: 0 | EG248: 0 | EH248: 0 | EI248: 0 | EJ248: 0 | EK248: 0 | EL248: 0 | EM248: 0 | EN248: 0 | EO248: 0 | EP248: 0 | EQ248: 0 | ER248: 0 | ES248: 0 | ET248: 0 | EU248: 0 | EV248: 0 | EW248: 0 | EX248: 0 | EY248: 0 | EZ248: 0 | FA248: 0 | FB248: 0 | FC248: 0 | FD248: 0 | FE248: 0 | FF248: 0 | FG248: 0 | FH248: 0 | FI248: 0 | FJ248: 0 | FK248: 0 | FL248: 0 | FM248: 0 | FN248: 0
C250: Accumulated Depreciatin | N250: =M250+N248 -> 0 | O250: =N250+O248 -> 0 | P250: 0 | Q250: 0 | R250: 0 | S250: 0 | T250: 0 | U250: 0 | V250: 0 | W250: 0 | X250: 0 | Y250: 0 | Z250: 0 | AA250: 0 | AB250: 0 | AC250: 0 | AD250: 0 | AE250: 0 | AF250: 0 | AG250: 0 | AH250: 0 | AI250: 0 | AJ250: 0 | AK250: 0 | AL250: 0 | AM250: 0 | AN250: 0 | AO250: 0 | AP250: 0 | AQ250: 0 | AR250: 12600 | AS250: 25200 | AT250: 35000 | AU250: 44800 | AV250: 52422.22222 | AW250: 60044.44444 | AX250: 65972.83951 | AY250: 71901.23457 | AZ250: 76512.2085 | BA250: 81123.18244 | BB250: 85157.78464 | BC250: 89192.38683 | BD250: 93226.98903 | BE250: 97261.59122 | BF250: 101296.1934 | BG250: 105330.7956 | BH250: 109365.3978 | BI250: 113400 | BJ250: 113400 | BK250: 113400 | BL250: 113400 | BM250: 113400 | BN250: 113400 | BO250: 113400 | BP250: 113400 | BQ250: 113400 | BR250: 113400 | BS250: 113400 | BT250: 113400 | BU250: 113400 | BV250: 113400 | BW250: 113400 | BX250: 113400 | BY250: 113400 | BZ250: 113400 | CA250: =BZ250+CA248 -> 113400 | CB250: 113400 | CC250: 113400 | CD250: 113400 | CE250: 113400 | CF250: 113400 | CG250: 113400 | CH250: 113400 | CI250: 113400 | CJ250: 113400 | CK250: 113400 | CL250: 113400 | CM250: 113400 | CN250: 113400 | CO250: 113400 | CP250: 113400 | CQ250: 113400 | CR250: 113400 | CS250: 113400 | CT250: 113400 | CU250: 113400 | CV250: 113400 | CW250: 113400 | CX250: 113400 | CY250: 113400 | CZ250: 113400 | DA250: 113400 | DB250: 113400 | DC250: 113400 | DD250: 113400 | DE250: 113400 | DF250: 113400 | DG250: 113400 | DH250: 113400 | DI250: 113400 | DJ250: 113400 | DK250: 113400 | DL250: 113400 | DM250: 113400 | DN250: 113400 | DO250: 113400 | DP250: 113400 | DQ250: 113400 | DR250: 113400 | DS250: 113400 | DT250: 113400 | DU250: 113400 | DV250: 113400 | DW250: 113400 | DX250: 113400 | DY250: 113400 | DZ250: 113400 | EA250: 113400 | EB250: 113400 | EC250: 113400 | ED250: 113400 | EE250: 113400 | EF250: 113400 | EG250: 113400 | EH250: 113400 | EI250: 113400 | EJ250: 113400 | EK250: 113400 | EL250: 113400 | EM250: =EL250+EM248 -> 113400 | EN250: 113400 | EO250: 113400 | EP250: 113400 | EQ250: 113400 | ER250: 113400 | ES250: 113400 | ET250: 113400 | EU250: 113400 | EV250: 113400 | EW250: 113400 | EX250: 113400 | EY250: 113400 | EZ250: 113400 | FA250: 113400 | FB250: 113400 | FC250: 113400 | FD250: 113400 | FE250: 113400 | FF250: 113400 | FG250: 113400 | FH250: 113400 | FI250: 113400 | FJ250: 113400 | FK250: 113400 | FL250: 113400 | FM250: 113400 | FN250: 113400
C251: Net Plant | N251: =N245-N250 -> 900 | O251: =O245-O250 -> 1800 | P251: 2700 | Q251: 3600 | R251: 4500 | S251: 5400 | T251: 7968.305118 | U251: 12070.21765 | V251: 17322.70565 | W251: 23426.18558 | X251: 30120.30307 | Y251: 37174.20467 | Z251: 44384.83012 | AA251: 51577.18969 | AB251: 58604.71615 | AC251: 65349.02949 | AD251: 71718.93334 | AE251: 77648.67517 | AF251: 83095.60174 | AG251: 88037.38231 | AH251: 92468.98104 | AI251: 96399.54824 | AJ251: 99849.37743 | AK251: 102847.0458 | AL251: 105426.8247 | AM251: 107626.4154 | AN251: 109485.0401 | AO251: 111041.892 | AP251: 112334.9312 | AQ251: 113400 | AR251: 100800 | AS251: 88200 | AT251: 78400 | AU251: 68600 | AV251: 60977.77778 | AW251: 53355.55556 | AX251: 47427.16049 | AY251: 41498.76543 | AZ251: 36887.7915 | BA251: 32276.81756 | BB251: 28242.21536 | BC251: 24207.61317 | BD251: 20173.01097 | BE251: 16138.40878 | BF251: 12103.80658 | BG251: 8069.20439 | BH251: 4034.602195 | BI251: 0 | BJ251: 0 | BK251: 0 | BL251: 0 | BM251: 0 | BN251: 0 | BO251: 0 | BP251: 0 | BQ251: 0 | BR251: 0 | BS251: 0 | BT251: 0 | BU251: 0 | BV251: 0 | BW251: 0 | BX251: 0 | BY251: 0 | BZ251: 0 | CA251: =CA245-CA250 -> 0 | CB251: 0 | CC251: 0 | CD251: 0 | CE251: 0 | CF251: 0 | CG251: 0 | CH251: 0 | CI251: 0 | CJ251: 0 | CK251: 0 | CL251: 0 | CM251: 0 | CN251: 0 | CO251: 0 | CP251: 0 | CQ251: 0 | CR251: 0 | CS251: 0 | CT251: 0 | CU251: 0 | CV251: 0 | CW251: 0 | CX251: 0 | CY251: 0 | CZ251: 0 | DA251: 0 | DB251: 0 | DC251: 0 | DD251: 0 | DE251: 0 | DF251: 0 | DG251: 0 | DH251: 0 | DI251: 0 | DJ251: 0 | DK251: 0 | DL251: 0 | DM251: 0 | DN251: 0 | DO251: 0 | DP251: 0 | DQ251: 0 | DR251: 0 | DS251: 0 | DT251: 0 | DU251: 0 | DV251: 0 | DW251: 0 | DX251: 0 | DY251: 0 | DZ251: 0 | EA251: 0 | EB251: 0 | EC251: 0 | ED251: 0 | EE251: 0 | EF251: 0 | EG251: 0 | EH251: 0 | EI251: 0 | EJ251: 0 | EK251: 0 | EL251: 0 | EM251: =EM245-EM250 -> 0 | EN251: 0 | EO251: 0 | EP251: 0 | EQ251: 0 | ER251: 0 | ES251: 0 | ET251: 0 | EU251: 0 | EV251: 0 | EW251: 0 | EX251: 0 | EY251: 0 | EZ251: 0 | FA251: 0 | FB251: 0 | FC251: 0 | FD251: 0 | FE251: 0 | FF251: 0 | FG251: 0 | FH251: 0 | FI251: 0 | FJ251: 0 | FK251: 0 | FL251: 0 | FM251: 0 | FN251: 0
C253: EBIT | N253: =N237-N248 -> 0 | O253: 0 | P253: 0 | Q253: 0 | R253: 0 | S253: 0 | T253: 0 | U253: 0 | V253: 0 | W253: 0 | X253: 0 | Y253: 0 | Z253: 0 | AA253: 0 | AB253: 0 | AC253: 0 | AD253: 0 | AE253: 0 | AF253: 0 | AG253: 0 | AH253: 0 | AI253: 0 | AJ253: 0 | AK253: 0 | AL253: 0 | AM253: 0 | AN253: 0 | AO253: 0 | AP253: 0 | AQ253: 0 | AR253: -6758.896674 | AS253: -6309.715167 | AT253: =AT237-AT248 -> -3318.12764 | AU253: -3026.007791 | AV253: -641.9098776 | AW253: -614.9815593 | AX253: 1509.248092 | AY253: 1220.627811 | AZ253: 2764.748195 | BA253: 2752.519622 | BB253: 4068.857854 | BC253: 4055.422728 | BD253: 4311.961656 | BE253: 4344.160634 | BF253: 4562.358571 | BG253: 4548.105246 | BH253: 4820.267394 | BI253: 4805.586469 | BJ253: 9120.515677 | BK253: 9105.394324 | BL253: 9394.131147 | BM253: 9430.371381 | BN253: 9675.955081 | BO253: 9659.912838 | BP253: 9966.233734 | BQ253: 9949.710224 | BR253: 10265.22075 | BS253: 10248.20153 | BT253: 10573.17737 | BU253: 10613.96607 | BV253: 10890.37269 | BW253: 10872.317 | BX253: 11217.08387 | BY253: 11198.48651 | BZ253: =BZ237-BZ248 -> 11553.59639 | CA253: 11534.44111 | CB253: 11900.20428 | CC253: 11946.11232 | CD253: 12257.21041 | CE253: 12236.88857 | CF253: 0 | CG253: 0 | CH253: 0 | CI253: 0 | CJ253: 0 | CK253: 0 | CL253: 0 | CM253: 0 | CN253: 0 | CO253: 0 | CP253: 0 | CQ253: 0 | CR253: 0 | CS253: 0 | CT253: 0 | CU253: 0 | CV253: 0 | CW253: 0 | CX253: 0 | CY253: 0 | CZ253: 0 | DA253: 0 | DB253: 0 | DC253: 0 | DD253: 0 | DE253: 0 | DF253: =DF237-DF248 -> 0 | DG253: 0 | DH253: 0 | DI253: 0 | DJ253: 0 | DK253: 0 | DL253: 0 | DM253: 0 | DN253: 0 | DO253: 0 | DP253: 0 | DQ253: 0 | DR253: 0 | DS253: 0 | DT253: 0 | DU253: 0 | DV253: 0 | DW253: 0 | DX253: 0 | DY253: 0 | DZ253: 0 | EA253: 0 | EB253: 0 | EC253: 0 | ED253: 0 | EE253: 0 | EF253: 0 | EG253: 0 | EH253: 0 | EI253: 0 | EJ253: 0 | EK253: 0 | EL253: =EL237-EL248 -> 0 | EM253: 0 | EN253: 0 | EO253: 0 | EP253: 0 | EQ253: 0 | ER253: 0 | ES253: 0 | ET253: 0 | EU253: 0 | EV253: 0 | EW253: 0 | EX253: 0 | EY253: 0 | EZ253: 0 | FA253: 0 | FB253: 0 | FC253: 0 | FD253: 0 | FE253: 0 | FF253: 0 | FG253: 0 | FH253: 0 | FI253: 0 | FJ253: 0 | FK253: 0 | FL253: 0 | FM253: 0 | FN253: 0
C255: Loss Carry Forward
... 360 more rows

Sheet Audit
C1: Item | D1: Test
C3: =Working!C9 -> Development period | D3: =Working!L9 -> TRUE | E3: =IF(D3,"",C3) -> 
C4: =Working!C10 -> Financial close date | D4: =Working!L10 -> TRUE | E4: =IF(D4,"",C4) -> 
C5: =Working!C11 -> Construction period | D5: =Working!L11 -> TRUE
C6: =Working!C12 -> Commercial Operation Date | D6: =Working!L12 -> TRUE
C7: =Working!C13 -> Month before COD | D7: =Working!L13 -> TRUE
C8: =Working!C14 -> Operation period | D8: =Working!L14 -> TRUE
C9: =Working!C605 -> Sale date | D9: =Working!L605 -> TRUE
C10: =Working!C16 -> Debt Repayment Period | D10: =Working!L16 -> TRUE
C11: =Working!C17 -> Debt Retirement Period | D11: =Working!L17 -> TRUE
C12: =Working!C19 -> Re-financing Repayment Period | D12: =Working!L19 -> TRUE
C14: =Working!C230 -> S curve | D14: =Working!L230 -> TRUE
C15: =Working!D362 -> Level Repayment | D15: =Working!L362 -> TRUE
C16: =Working!D363 -> Annuity Repayment | D16: =Working!L363 -> TRUE
C18: =Working!B350 -> Permanent Debt | D18: =Working!L351 -> TRUE
C19: Re-Financed Debt | D19: =Working!L440 -> TRUE
E21: =add_text(E3:E19) -> 
E22: =IF(E21="","Model ok","Problem with Model " & E21) -> Model ok

Sheet Construction Graph
D2: Period | F2: =Working!N6 -> 2010-11-01 | G2: =Working!O6 -> 2010-12-01 | H2: =Working!P6 -> 2011-01-01 | I2: =Working!Q6 -> 2011-02-01 | J2: =Working!R6 -> 2011-03-01 | K2: =Working!S6 -> 2011-04-01 | L2: =Working!T6 -> 2011-05-01 | M2: =Working!U6 -> 2011-06-01 | N2: =Working!V6 -> 2011-07-01 | O2: =Working!W6 -> 2011-08-01 | P2: =Working!X6 -> 2011-09-01 | Q2: =Working!Y6 -> 2011-10-01 | R2: =Working!Z6 -> 2011-11-01 | S2: =Working!AA6 -> 2011-12-01 | T2: =Working!AB6 -> 2012-01-01 | U2: =Working!AC6 -> 2012-02-01 | V2: =Working!AD6 -> 2012-03-01 | W2: =Working!AE6 -> 2012-04-01 | X2: =Working!AF6 -> 2012-05-01 | Y2: =Working!AG6 -> 2012-06-01 | Z2: =Working!AH6 -> 2012-07-01 | AA2: =Working!AI6 -> 2012-08-01 | AB2: =Working!AJ6 -> 2012-09-01 | AC2: =Working!AK6 -> 2012-10-01 | AD2: =Working!AL6 -> 2012-11-01 | AE2: =Working!AM6 -> 2012-12-01 | AF2: =Working!AN6 -> 2013-01-01 | AG2: =Working!AO6 -> 2013-02-01 | AH2: =Working!AP6 -> 2013-03-01 | AI2: =Working!AQ6 -> 2013-04-01 | AJ2: =Working!AR6 -> 2013-05-01 | AK2: =Working!AS6 -> 2013-11-01 | AL2: =Working!AT6 -> 2014-05-01 | AM2: =Working!AU6 -> 2014-11-01 | AN2: =Working!AV6 -> 2015-05-01 | AO2: =Working!AW6 -> 2015-11-01 | AP2: =Working!AX6 -> 2016-05-01 | AQ2: =Working!AY6 -> 2016-11-01 | AR2: =Working!AZ6 -> 2017-05-01 | AS2: =Working!BA6 -> 2017-11-01 | AT2: =Working!BB6 -> 2018-05-01 | AU2: =Working!BC6 -> 2018-11-01 | AV2: =Working!BD6 -> 2019-05-01 | AW2: =Working!BE6 -> 2019-11-01 | AX2: =Working!BF6 -> 2020-05-01 | AY2: =Working!BG6 -> 2020-11-01 | AZ2: =Working!BH6 -> 2021-05-01 | BA2: =Working!BI6 -> 2021-11-01 | BB2: =Working!BJ6 -> 2022-05-01 | BC2: =Working!BK6 -> 2022-11-01 | BD2: =Working!BL6 -> 2023-05-01 | BE2: =Working!BM6 -> 2023-11-01 | BF2: =Working!BN6 -> 2024-05-01 | BG2: =Working!BO6 -> 2024-11-01 | BH2: =Working!BP6 -> 2025-05-01 | BI2: =Working!BQ6 -> 2025-11-01 | BJ2: =Working!BR6 -> 2026-05-01 | BK2: =Working!BS6 -> 2026-11-01 | BL2: =Working!BT6 -> 2027-05-01 | BM2: =Working!BU6 -> 2027-11-01 | BN2: =Working!BV6 -> 2028-05-01 | BO2: =Working!BW6 -> 2028-11-01 | BP2: =Working!BX6 -> 2029-05-01 | BQ2: =Working!BY6 -> 2029-11-01 | BR2: =Working!BZ6 -> 2030-05-01 | BS2: =Working!CA6 -> 2030-11-01 | BT2: =Working!CB6 -> 2031-05-01 | BU2: =Working!CC6 -> 2031-11-01 | BV2: =Working!CD6 -> 2032-05-01 | BW2: =Working!CE6 -> 2032-11-01 | BX2: =Working!CF6 -> 2033-05-01 | BY2: =Working!CG6 -> 2033-11-01 | BZ2: =Working!CH6 -> 2034-05-01 | CA2: =Working!CI6 -> 2034-11-01 | CB2: =Working!CJ6 -> 2035-05-01 | CC2: =Working!CK6 -> 2035-11-01 | CD2: =Working!CL6 -> 2036-05-01 | CE2: =Working!CM6 -> 2036-11-01 | CF2: =Working!CN6 -> 2037-05-01 | CG2: =Working!CO6 -> 2037-11-01 | CH2: =Working!CP6 -> 2038-05-01 | CI2: =Working!CQ6 -> 2038-11-01 | CJ2: =Working!CR6 -> 2039-05-01 | CK2: =Working!CS6 -> 2039-11-01 | CL2: =Working!CT6 -> 2040-05-01 | CM2: =Working!CU6 -> 2040-11-01 | CN2: =Working!CV6 -> 2041-05-01 | CO2: =Working!CW6 -> 2041-11-01 | CP2: =Working!CX6 -> 2042-05-01 | CQ2: =Working!CY6 -> 2042-11-01 | CR2: =Working!CZ6 -> 2043-05-01 | CS2: =Working!DA6 -> 2043-11-01 | CT2: =Working!DB6 -> 2044-05-01 | CU2: =Working!DC6 -> 2044-11-01 | CV2: =Working!DD6 -> 2045-05-01 | CW2: =Working!DE6 -> 2045-11-01 | CX2: =Working!DF6 -> 2046-05-01 | CY2: =Working!DG6 -> 2046-11-01 | CZ2: =Working!DH6 -> 2047-05-01 | DA2: =Working!DI6 -> 2047-11-01 | DB2: =Working!DJ6 -> 2048-05-01 | DC2: =Working!DK6 -> 2048-11-01 | DD2: =Working!DL6 -> 2049-05-01 | DE2: =Working!DM6 -> 2049-11-01 | DF2: =Working!DN6 -> 2050-05-01 | DG2: =Working!DO6 -> 2050-11-01 | DH2: =Working!DP6 -> 2051-05-01 | DI2: =Working!DQ6 -> 2051-11-01 | DJ2: =Working!DR6 -> 2052-05-01 | DK2: =Working!DS6 -> 2052-11-01 | DL2: =Working!DT6 -> 2053-05-01 | DM2: =Working!DU6 -> 2053-11-01 | DN2: =Working!DV6 -> 2054-05-01 | DO2: =Working!DW6 -> 2054-11-01 | DP2: =Working!DX6 -> 2055-05-01 | DQ2: =Working!DY6 -> 2055-11-01 | DR2: =Working!DZ6 -> 2056-05-01 | DS2: =Working!EA6 -> 2056-11-01
D3: Construction | F3: =LOOKUP(F2,Working!6:6,Working!11:11) -> FALSE | G3: =LOOKUP(G2,Working!6:6,Working!11:11) -> FALSE | H3: =LOOKUP(H2,Working!6:6,Working!11:11) -> FALSE | I3: =LOOKUP(I2,Working!6:6,Working!11:11) -> FALSE | J3: =LOOKUP(J2,Working!6:6,Working!11:11) -> FALSE | K3: =LOOKUP(K2,Working!6:6,Working!11:11) -> FALSE | L3: =LOOKUP(L2,Working!6:6,Working!11:11) -> TRUE | M3: =LOOKUP(M2,Working!6:6,Working!11:11) -> TRUE | N3: =LOOKUP(N2,Working!6:6,Working!11:11) -> TRUE | O3: =LOOKUP(O2,Working!6:6,Working!11:11) -> TRUE | P3: =LOOKUP(P2,Working!6:6,Working!11:11) -> TRUE | Q3: =LOOKUP(Q2,Working!6:6,Working!11:11) -> TRUE | R3: =LOOKUP(R2,Working!6:6,Working!11:11) -> TRUE | S3: =LOOKUP(S2,Working!6:6,Working!11:11) -> TRUE | T3: =LOOKUP(T2,Working!6:6,Working!11:11) -> TRUE | U3: =LOOKUP(U2,Working!6:6,Working!11:11) -> TRUE | V3: =LOOKUP(V2,Working!6:6,Working!11:11) -> TRUE | W3: =LOOKUP(W2,Working!6:6,Working!11:11) -> TRUE | X3: =LOOKUP(X2,Working!6:6,Working!11:11) -> TRUE | Y3: =LOOKUP(Y2,Working!6:6,Working!11:11) -> TRUE | Z3: =LOOKUP(Z2,Working!6:6,Working!11:11) -> TRUE | AA3: =LOOKUP(AA2,Working!6:6,Working!11:11) -> TRUE | AB3: =LOOKUP(AB2,Working!6:6,Working!11:11) -> TRUE | AC3: =LOOKUP(AC2,Working!6:6,Working!11:11) -> TRUE | AD3: =LOOKUP(AD2,Working!6:6,Working!11:11) -> TRUE | AE3: =LOOKUP(AE2,Working!6:6,Working!11:11) -> TRUE | AF3: =LOOKUP(AF2,Working!6:6,Working!11:11) -> TRUE | AG3: =LOOKUP(AG2,Working!6:6,Working!11:11) -> TRUE | AH3: =LOOKUP(AH2,Working!6:6,Working!11:11) -> TRUE | AI3: =LOOKUP(AI2,Working!6:6,Working!11:11) -> TRUE | AJ3: =LOOKUP(AJ2,Working!6:6,Working!11:11) -> FALSE | AK3: =LOOKUP(AK2,Working!6:6,Working!11:11) -> FALSE | AL3: =LOOKUP(AL2,Working!6:6,Working!11:11) -> FALSE | AM3: =LOOKUP(AM2,Working!6:6,Working!11:11) -> FALSE | AN3: =LOOKUP(AN2,Working!6:6,Working!11:11) -> FALSE | AO3: =LOOKUP(AO2,Working!6:6,Working!11:11) -> FALSE | AP3: =LOOKUP(AP2,Working!6:6,Working!11:11) -> FALSE | AQ3: =LOOKUP(AQ2,Working!6:6,Working!11:11) -> FALSE | AR3: =LOOKUP(AR2,Working!6:6,Working!11:11) -> FALSE | AS3: =LOOKUP(AS2,Working!6:6,Working!11:11) -> FALSE | AT3: =LOOKUP(AT2,Working!6:6,Working!11:11) -> FALSE | AU3: =LOOKUP(AU2,Working!6:6,Working!11:11) -> FALSE | AV3: =LOOKUP(AV2,Working!6:6,Working!11:11) -> FALSE | AW3: =LOOKUP(AW2,Working!6:6,Working!11:11) -> FALSE | AX3: =LOOKUP(AX2,Working!6:6,Working!11:11) -> FALSE | AY3: =LOOKUP(AY2,Working!6:6,Working!11:11) -> FALSE | AZ3: =LOOKUP(AZ2,Working!6:6,Working!11:11) -> FALSE | BA3: =LOOKUP(BA2,Working!6:6,Working!11:11) -> FALSE | BB3: =LOOKUP(BB2,Working!6:6,Working!11:11) -> FALSE | BC3: =LOOKUP(BC2,Working!6:6,Working!11:11) -> FALSE | BD3: =LOOKUP(BD2,Working!6:6,Working!11:11) -> FALSE | BE3: =LOOKUP(BE2,Working!6:6,Working!11:11) -> FALSE | BF3: =LOOKUP(BF2,Working!6:6,Working!11:11) -> FALSE | BG3: =LOOKUP(BG2,Working!6:6,Working!11:11) -> FALSE | BH3: =LOOKUP(BH2,Working!6:6,Working!11:11) -> FALSE | BI3: =LOOKUP(BI2,Working!6:6,Working!11:11) -> FALSE | BJ3: =LOOKUP(BJ2,Working!6:6,Working!11:11) -> FALSE | BK3: =LOOKUP(BK2,Working!6:6,Working!11:11) -> FALSE | BL3: =LOOKUP(BL2,Working!6:6,Working!11:11) -> FALSE | BM3: =LOOKUP(BM2,Working!6:6,Working!11:11) -> FALSE | BN3: =LOOKUP(BN2,Working!6:6,Working!11:11) -> FALSE | BO3: =LOOKUP(BO2,Working!6:6,Working!11:11) -> FALSE | BP3: =LOOKUP(BP2,Working!6:6,Working!11:11) -> FALSE | BQ3: =LOOKUP(BQ2,Working!6:6,Working!11:11) -> FALSE | BR3: =LOOKUP(BR2,Working!6:6,Working!11:11) -> FALSE | BS3: =LOOKUP(BS2,Working!6:6,Working!11:11) -> FALSE | BT3: =LOOKUP(BT2,Working!6:6,Working!11:11) -> FALSE | BU3: =LOOKUP(BU2,Working!6:6,Working!11:11) -> FALSE | BV3: =LOOKUP(BV2,Working!6:6,Working!11:11) -> FALSE | BW3: =LOOKUP(BW2,Working!6:6,Working!11:11) -> FALSE | BX3: =LOOKUP(BX2,Working!6:6,Working!11:11) -> FALSE | BY3: =LOOKUP(BY2,Working!6:6,Working!11:11) -> FALSE | BZ3: =LOOKUP(BZ2,Working!6:6,Working!11:11) -> FALSE | CA3: =LOOKUP(CA2,Working!6:6,Working!11:11) -> FALSE | CB3: =LOOKUP(CB2,Working!6:6,Working!11:11) -> FALSE | CC3: =LOOKUP(CC2,Working!6:6,Working!11:11) -> FALSE | CD3: =LOOKUP(CD2,Working!6:6,Working!11:11) -> FALSE | CE3: =LOOKUP(CE2,Working!6:6,Working!11:11) -> FALSE | CF3: =LOOKUP(CF2,Working!6:6,Working!11:11) -> FALSE | CG3: =LOOKUP(CG2,Working!6:6,Working!11:11) -> FALSE | CH3: =LOOKUP(CH2,Working!6:6,Working!11:11) -> FALSE | CI3: =LOOKUP(CI2,Working!6:6,Working!11:11) -> FALSE | CJ3: =LOOKUP(CJ2,Working!6:6,Working!11:11) -> FALSE | CK3: =LOOKUP(CK2,Working!6:6,Working!11:11) -> FALSE | CL3: =LOOKUP(CL2,Working!6:6,Working!11:11) -> FALSE | CM3: =LOOKUP(CM2,Working!6:6,Working!11:11) -> FALSE | CN3: =LOOKUP(CN2,Working!6:6,Working!11:11) -> FALSE | CO3: =LOOKUP(CO2,Working!6:6,Working!11:11) -> FALSE | CP3: =LOOKUP(CP2,Working!6:6,Working!11:11) -> FALSE | CQ3: =LOOKUP(CQ2,Working!6:6,Working!11:11) -> FALSE | CR3: =LOOKUP(CR2,Working!6:6,Working!11:11) -> FALSE | CS3: =LOOKUP(CS2,Working!6:6,Working!11:11) -> FALSE | CT3: =LOOKUP(CT2,Working!6:6,Working!11:11) -> FALSE | CU3: =LOOKUP(CU2,Working!6:6,Working!11:11) -> FALSE | CV3: =LOOKUP(CV2,Working!6:6,Working!11:11) -> FALSE | CW3: =LOOKUP(CW2,Working!6:6,Working!11:11) -> FALSE | CX3: =LOOKUP(CX2,Working!6:6,Working!11:11) -> FALSE | CY3: =LOOKUP(CY2,Working!6:6,Working!11:11) -> FALSE | CZ3: =LOOKUP(CZ2,Working!6:6,Working!11:11) -> FALSE | DA3: =LOOKUP(DA2,Working!6:6,Working!11:11) -> FALSE | DB3: =LOOKUP(DB2,Working!6:6,Working!11:11) -> FALSE | DC3: =LOOKUP(DC2,Working!6:6,Working!11:11) -> FALSE | DD3: =LOOKUP(DD2,Working!6:6,Working!11:11) -> FALSE | DE3: =LOOKUP(DE2,Working!6:6,Working!11:11) -> FALSE | DF3: =LOOKUP(DF2,Working!6:6,Working!11:11) -> FALSE | DG3: =LOOKUP(DG2,Working!6:6,Working!11:11) -> FALSE | DH3: =LOOKUP(DH2,Working!6:6,Working!11:11) -> FALSE | DI3: =LOOKUP(DI2,Working!6:6,Working!11:11) -> FALSE | DJ3: =LOOKUP(DJ2,Working!6:6,Working!11:11) -> FALSE | DK3: =LOOKUP(DK2,Working!6:6,Working!11:11) -> FALSE | DL3: =LOOKUP(DL2,Working!6:6,Working!11:11) -> FALSE | DM3: =LOOKUP(DM2,Working!6:6,Working!11:11) -> FALSE | DN3: =LOOKUP(DN2,Working!6:6,Working!11:11) -> FALSE | DO3: =LOOKUP(DO2,Working!6:6,Working!11:11) -> FALSE | DP3: =LOOKUP(DP2,Working!6:6,Working!11:11) -> FALSE | DQ3: =LOOKUP(DQ2,Working!6:6,Working!11:11) -> FALSE | DR3: =LOOKUP(DR2,Working!6:6,Working!11:11) -> FALSE | DS3: =LOOKUP(DS2,Working!6:6,Working!11:11) -> FALSE
D4: Test | F4: =MATCH(TRUE,F3,0) ->  | G4: =MATCH(TRUE,G3,0) ->  | L4: 1 | M4: 1 | N4: 1 | O4: 1 | P4: 1 | Q4: 1 | R4: 1 | S4: 1 | T4: 1 | U4: 1 | V4: 1 | W4: 1 | X4: 1 | Y4: 1 | Z4: 1 | AA4: 1 | AB4: 1 | AC4: 1 | AD4: 1 | AE4: 1 | AF4: 1 | AG4: 1 | AH4: 1 | AI4: 1 | BS4: =MATCH(TRUE,BS3,0) -> 
D5: Column Number | F5: =MATCH(F2,Working!6:6) -> 14 | G5: =MATCH(G2,Working!6:6) -> 15 | H5: =MATCH(H2,Working!6:6) -> 16 | I5: =MATCH(I2,Working!6:6) -> 17 | J5: =MATCH(J2,Working!6:6) -> 18 | K5: =MATCH(K2,Working!6:6) -> 19 | L5: =MATCH(L2,Working!6:6) -> 20 | M5: =MATCH(M2,Working!6:6) -> 21 | N5: =MATCH(N2,Working!6:6) -> 22 | O5: =MATCH(O2,Working!6:6) -> 23 | P5: =MATCH(P2,Working!6:6) -> 24 | Q5: =MATCH(Q2,Working!6:6) -> 25 | R5: =MATCH(R2,Working!6:6) -> 26 | S5: =MATCH(S2,Working!6:6) -> 27 | T5: =MATCH(T2,Working!6:6) -> 28 | U5: =MATCH(U2,Working!6:6) -> 29 | V5: =MATCH(V2,Working!6:6) -> 30 | W5: =MATCH(W2,Working!6:6) -> 31 | X5: =MATCH(X2,Working!6:6) -> 32 | Y5: =MATCH(Y2,Working!6:6) -> 33 | Z5: =MATCH(Z2,Working!6:6) -> 34 | AA5: =MATCH(AA2,Working!6:6) -> 35 | AB5: =MATCH(AB2,Working!6:6) -> 36 | AC5: =MATCH(AC2,Working!6:6) -> 37 | AD5: =MATCH(AD2,Working!6:6) -> 38 | AE5: =MATCH(AE2,Working!6:6) -> 39 | AF5: =MATCH(AF2,Working!6:6) -> 40 | AG5: =MATCH(AG2,Working!6:6) -> 41 | AH5: =MATCH(AH2,Working!6:6) -> 42 | AI5: =MATCH(AI2,Working!6:6) -> 43 | AJ5: =MATCH(AJ2,Working!6:6) -> 44 | AK5: =MATCH(AK2,Working!6:6) -> 45 | AL5: =MATCH(AL2,Working!6:6) -> 46 | AM5: =MATCH(AM2,Working!6:6) -> 47 | AN5: =MATCH(AN2,Working!6:6) -> 48 | AO5: =MATCH(AO2,Working!6:6) -> 49 | AP5: =MATCH(AP2,Working!6:6) -> 50 | AQ5: =MATCH(AQ2,Working!6:6) -> 51 | AR5: =MATCH(AR2,Working!6:6) -> 52 | AS5: =MATCH(AS2,Working!6:6) -> 53 | AT5: =MATCH(AT2,Working!6:6) -> 54 | AU5: =MATCH(AU2,Working!6:6) -> 55 | AV5: =MATCH(AV2,Working!6:6) -> 56 | AW5: =MATCH(AW2,Working!6:6) -> 57 | AX5: =MATCH(AX2,Working!6:6) -> 58 | AY5: =MATCH(AY2,Working!6:6) -> 59 | AZ5: =MATCH(AZ2,Working!6:6) -> 60 | BA5: =MATCH(BA2,Working!6:6) -> 61 | BB5: =MATCH(BB2,Working!6:6) -> 62 | BC5: =MATCH(BC2,Working!6:6) -> 63 | BD5: =MATCH(BD2,Working!6:6) -> 64 | BE5: =MATCH(BE2,Working!6:6) -> 65 | BF5: =MATCH(BF2,Working!6:6) -> 66 | BG5: =MATCH(BG2,Working!6:6) -> 67 | BH5: =MATCH(BH2,Working!6:6) -> 68 | BI5: =MATCH(BI2,Working!6:6) -> 69 | BJ5: =MATCH(BJ2,Working!6:6) -> 70 | BK5: =MATCH(BK2,Working!6:6) -> 71 | BL5: =MATCH(BL2,Working!6:6) -> 72 | BM5: =MATCH(BM2,Working!6:6) -> 73 | BN5: =MATCH(BN2,Working!6:6) -> 74 | BO5: =MATCH(BO2,Working!6:6) -> 75 | BP5: =MATCH(BP2,Working!6:6) -> 76 | BQ5: =MATCH(BQ2,Working!6:6) -> 77 | BR5: =MATCH(BR2,Working!6:6) -> 78 | BS5: =MATCH(BS2,Working!6:6) -> 79 | BT5: =MATCH(BT2,Working!6:6) -> 80 | BU5: =MATCH(BU2,Working!6:6) -> 81 | BV5: =MATCH(BV2,Working!6:6) -> 82 | BW5: =MATCH(BW2,Working!6:6) -> 83 | BX5: =MATCH(BX2,Working!6:6) -> 84 | BY5: =MATCH(BY2,Working!6:6) -> 85 | BZ5: =MATCH(BZ2,Working!6:6) -> 86 | CA5: =MATCH(CA2,Working!6:6) -> 87 | CB5: =MATCH(CB2,Working!6:6) -> 88 | CC5: =MATCH(CC2,Working!6:6) -> 89 | CD5: =MATCH(CD2,Working!6:6) -> 90 | CE5: =MATCH(CE2,Working!6:6) -> 91 | CF5: =MATCH(CF2,Working!6:6) -> 92 | CG5: =MATCH(CG2,Working!6:6) -> 93 | CH5: =MATCH(CH2,Working!6:6) -> 94 | CI5: =MATCH(CI2,Working!6:6) -> 95 | CJ5: =MATCH(CJ2,Working!6:6) -> 96 | CK5: =MATCH(CK2,Working!6:6) -> 97 | CL5: =MATCH(CL2,Working!6:6) -> 98 | CM5: =MATCH(CM2,Working!6:6) -> 99 | CN5: =MATCH(CN2,Working!6:6) -> 100 | CO5: =MATCH(CO2,Working!6:6) -> 101 | CP5: =MATCH(CP2,Working!6:6) -> 102 | CQ5: =MATCH(CQ2,Working!6:6) -> 103 | CR5: =MATCH(CR2,Working!6:6) -> 104 | CS5: =MATCH(CS2,Working!6:6) -> 105 | CT5: =MATCH(CT2,Working!6:6) -> 106 | CU5: =MATCH(CU2,Working!6:6) -> 107 | CV5: =MATCH(CV2,Working!6:6) -> 108 | CW5: =MATCH(CW2,Working!6:6) -> 109 | CX5: =MATCH(CX2,Working!6:6) -> 110 | CY5: =MATCH(CY2,Working!6:6) -> 111 | CZ5: =MATCH(CZ2,Working!6:6) -> 112 | DA5: =MATCH(DA2,Working!6:6) -> 113 | DB5: =MATCH(DB2,Working!6:6) -> 114 | DC5: =MATCH(DC2,Working!6:6) -> 115 | DD5: =MATCH(DD2,Working!6:6) -> 116 | DE5: =MATCH(DE2,Working!6:6) -> 117 | DF5: =MATCH(DF2,Working!6:6) -> 118 | DG5: =MATCH(DG2,Working!6:6) -> 119 | DH5: =MATCH(DH2,Working!6:6) -> 120 | DI5: =MATCH(DI2,Working!6:6) -> 121 | DJ5: =MATCH(DJ2,Working!6:6) -> 122 | DK5: =MATCH(DK2,Working!6:6) -> 123 | DL5: =MATCH(DL2,Working!6:6) -> 124 | DM5: =MATCH(DM2,Working!6:6) -> 125 | DN5: =MATCH(DN2,Working!6:6) -> 126 | DO5: =MATCH(DO2,Working!6:6) -> 127 | DP5: =MATCH(DP2,Working!6:6) -> 128 | DQ5: =MATCH(DQ2,Working!6:6) -> 129 | DR5: =MATCH(DR2,Working!6:6) -> 130 | DS5: =MATCH(DS2,Working!6:6) -> 131
F8: =IF(F4,F2,F4) ->  | G8: =IF(G4,G2,G4) ->  | L8: 2011-05-01 | M8: 2011-06-01 | N8: 2011-07-01 | O8: 2011-08-01 | P8: 2011-09-01 | Q8: 2011-10-01 | R8: 2011-11-01 | S8: 2011-12-01 | T8: 2012-01-01 | U8: 2012-02-01 | V8: 2012-03-01 | W8: 2012-04-01 | X8: 2012-05-01 | Y8: 2012-06-01 | Z8: 2012-07-01 | AA8: 2012-08-01 | AB8: 2012-09-01 | AC8: 2012-10-01 | AD8: 2012-11-01 | AE8: 2012-12-01 | AF8: 2013-01-01 | AG8: 2013-02-01 | AH8: 2013-03-01 | AI8: 2013-04-01 | BS8: =IF(BS4,BS2,BS4) -> 
D9: Construction Expenditures | F9: =INDEX(Working!236:236,'Construction Graph'!F5) -> 900 | G9: =INDEX(Working!236:236,'Construction Graph'!G5) -> 900 | H9: =INDEX(Working!236:236,'Construction Graph'!H5) -> 900 | I9: =INDEX(Working!236:236,'Construction Graph'!I5) -> 900 | J9: =INDEX(Working!236:236,'Construction Graph'!J5) -> 900 | K9: =INDEX(Working!236:236,'Construction Graph'!K5) -> 900 | L9: =INDEX(Working!236:236,'Construction Graph'!L5) -> 2568.305118 | M9: =INDEX(Working!236:236,'Construction Graph'!M5) -> 4101.912529 | N9: =INDEX(Working!236:236,'Construction Graph'!N5) -> 5252.488005 | O9: =INDEX(Working!236:236,'Construction Graph'!O5) -> 6103.479928 | P9: =INDEX(Working!236:236,'Construction Graph'!P5) -> 6694.117485 | Q9: =INDEX(Working!236:236,'Construction Graph'!Q5) -> 7053.901603 | R9: =INDEX(Working!236:236,'Construction Graph'!R5) -> 7210.625448 | S9: =INDEX(Working!236:236,'Construction Graph'!S5) -> 7192.359575 | T9: =INDEX(Working!236:236,'Construction Graph'!T5) -> 7027.526462 | U9: =INDEX(Working!236:236,'Construction Graph'!U5) -> 6744.31334 | V9: =INDEX(Working!236:236,'Construction Graph'!V5) -> 6369.903844 | W9: =INDEX(Working!236:236,'Construction Graph'!W5) -> 5929.741834 | X9: =INDEX(Working!236:236,'Construction Graph'!X5) -> 5446.926568 | Y9: =INDEX(Working!236:236,'Construction Graph'!Y5) -> 4941.780573 | Z9: =INDEX(Working!236:236,'Construction Graph'!Z5) -> 4431.598728 | AA9: =INDEX(Working!236:236,'Construction Graph'!AA5) -> 3930.567196 | AB9: =INDEX(Working!236:236,'Construction Graph'!AB5) -> 3449.829192 | AC9: =INDEX(Working!236:236,'Construction Graph'!AC5) -> 2997.668402 | AD9: =INDEX(Working!236:236,'Construction Graph'!AD5) -> 2579.778834 | AE9: =INDEX(Working!236:236,'Construction Graph'!AE5) -> 2199.590688 | AF9: =INDEX(Working!236:236,'Construction Graph'!AF5) -> 1858.624747 | AG9: =INDEX(Working!236:236,'Construction Graph'!AG5) -> 1556.851907 | AH9: =INDEX(Working!236:236,'Construction Graph'!AH5) -> 1293.039228 | AI9: =INDEX(Working!236:236,'Construction Graph'!AI5) -> 1065.068766 | AJ9: =INDEX(Working!236:236,'Construction Graph'!AJ5) -> 0 | AK9: =INDEX(Working!236:236,'Construction Graph'!AK5) -> 0 | AL9: =INDEX(Working!236:236,'Construction Graph'!AL5) -> 0 | AM9: =INDEX(Working!236:236,'Construction Graph'!AM5) -> 0 | AN9: =INDEX(Working!236:236,'Construction Graph'!AN5) -> 0 | AO9: =INDEX(Working!236:236,'Construction Graph'!AO5) -> 0 | AP9: =INDEX(Working!236:236,'Construction Graph'!AP5) -> 0 | AQ9: =INDEX(Working!236:236,'Construction Graph'!AQ5) -> 0 | AR9: =INDEX(Working!236:236,'Construction Graph'!AR5) -> 0 | AS9: =INDEX(Working!236:236,'Construction Graph'!AS5) -> 0 | AT9: =INDEX(Working!236:236,'Construction Graph'!AT5) -> 0 | AU9: =INDEX(Working!236:236,'Construction Graph'!AU5) -> 0 | AV9: =INDEX(Working!236:236,'Construction Graph'!AV5) -> 0 | AW9: =INDEX(Working!236:236,'Construction Graph'!AW5) -> 0 | AX9: =INDEX(Working!236:236,'Construction Graph'!AX5) -> 0 | AY9: =INDEX(Working!236:236,'Construction Graph'!AY5) -> 0 | AZ9: =INDEX(Working!236:236,'Construction Graph'!AZ5) -> 0 | BA9: =INDEX(Working!236:236,'Construction Graph'!BA5) -> 0 | BB9: =INDEX(Working!236:236,'Construction Graph'!BB5) -> 0 | BC9: =INDEX(Working!236:236,'Construction Graph'!BC5) -> 0 | BD9: =INDEX(Working!236:236,'Construction Graph'!BD5) -> 0 | BE9: =INDEX(Working!236:236,'Construction Graph'!BE5) -> 0 | BF9: =INDEX(Working!236:236,'Construction Graph'!BF5) -> 0 | BG9: =INDEX(Working!236:236,'Construction Graph'!BG5) -> 0 | BH9: =INDEX(Working!236:236,'Construction Graph'!BH5) -> 0 | BI9: =INDEX(Working!236:236,'Construction Graph'!BI5) -> 0 | BJ9: =INDEX(Working!236:236,'Construction Graph'!BJ5) -> 0 | BK9: =INDEX(Working!236:236,'Construction Graph'!BK5) -> 0 | BL9: =INDEX(Working!236:236,'Construction Graph'!BL5) -> 0 | BM9: =INDEX(Working!236:236,'Construction Graph'!BM5) -> 0 | BN9: =INDEX(Working!236:236,'Construction Graph'!BN5) -> 0 | BO9: =INDEX(Working!236:236,'Construction Graph'!BO5) -> 0 | BP9: =INDEX(Working!236:236,'Construction Graph'!BP5) -> 0 | BQ9: =INDEX(Working!236:236,'Construction Graph'!BQ5) -> 0 | BR9: =INDEX(Working!236:236,'Construction Graph'!BR5) -> 0 | BS9: =INDEX(Working!236:236,'Construction Graph'!BS5) -> 0 | BT9: =INDEX(Working!236:236,'Construction Graph'!BT5) -> 0 | BU9: =INDEX(Working!236:236,'Construction Graph'!BU5) -> 0 | BV9: =INDEX(Working!236:236,'Construction Graph'!BV5) -> 0 | BW9: =INDEX(Working!236:236,'Construction Graph'!BW5) -> 0 | BX9: =INDEX(Working!236:236,'Construction Graph'!BX5) -> 0 | BY9: =INDEX(Working!236:236,'Construction Graph'!BY5) -> 0 | BZ9: =INDEX(Working!236:236,'Construction Graph'!BZ5) -> 0 | CA9: =INDEX(Working!236:236,'Construction Graph'!CA5) -> 0 | CB9: =INDEX(Working!236:236,'Construction Graph'!CB5) -> 0 | CC9: =INDEX(Working!236:236,'Construction Graph'!CC5) -> 0 | CD9: =INDEX(Working!236:236,'Construction Graph'!CD5) -> 0 | CE9: =INDEX(Working!236:236,'Construction Graph'!CE5) -> 0 | CF9: =INDEX(Working!236:236,'Construction Graph'!CF5) -> 0 | CG9: =INDEX(Working!236:236,'Construction Graph'!CG5) -> 0 | CH9: =INDEX(Working!236:236,'Construction Graph'!CH5) -> 0 | CI9: =INDEX(Working!236:236,'Construction Graph'!CI5) -> 0 | CJ9: =INDEX(Working!236:236,'Construction Graph'!CJ5) -> 0 | CK9: =INDEX(Working!236:236,'Construction Graph'!CK5) -> 0 | CL9: =INDEX(Working!236:236,'Construction Graph'!CL5) -> 0 | CM9: =INDEX(Working!236:236,'Construction Graph'!CM5) -> 0 | CN9: =INDEX(Working!236:236,'Construction Graph'!CN5) -> 0 | CO9: =INDEX(Working!236:236,'Construction Graph'!CO5) -> 0 | CP9: =INDEX(Working!236:236,'Construction Graph'!CP5) -> 0 | CQ9: =INDEX(Working!236:236,'Construction Graph'!CQ5) -> 0 | CR9: =INDEX(Working!236:236,'Construction Graph'!CR5) -> 0 | CS9: =INDEX(Working!236:236,'Construction Graph'!CS5) -> 0 | CT9: =INDEX(Working!236:236,'Construction Graph'!CT5) -> 0 | CU9: =INDEX(Working!236:236,'Construction Graph'!CU5) -> 0 | CV9: =INDEX(Working!236:236,'Construction Graph'!CV5) -> 0 | CW9: =INDEX(Working!236:236,'Construction Graph'!CW5) -> 0 | CX9: =INDEX(Working!236:236,'Construction Graph'!CX5) -> 0 | CY9: =INDEX(Working!236:236,'Construction Graph'!CY5) -> 0 | CZ9: =INDEX(Working!236:236,'Construction Graph'!CZ5) -> 0 | DA9: =INDEX(Working!236:236,'Construction Graph'!DA5) -> 0 | DB9: =INDEX(Working!236:236,'Construction Graph'!DB5) -> 0 | DC9: =INDEX(Working!236:236,'Construction Graph'!DC5) -> 0 | DD9: =INDEX(Working!236:236,'Construction Graph'!DD5) -> 0 | DE9: =INDEX(Working!236:236,'Construction Graph'!DE5) -> 0 | DF9: =INDEX(Working!236:236,'Construction Graph'!DF5) -> 0 | DG9: =INDEX(Working!236:236,'Construction Graph'!DG5) -> 0 | DH9: =INDEX(Working!236:236,'Construction Graph'!DH5) -> 0 | DI9: =INDEX(Working!236:236,'Construction Graph'!DI5) -> 0 | DJ9: =INDEX(Working!236:236,'Construction Graph'!DJ5) -> 0 | DK9: =INDEX(Working!236:236,'Construction Graph'!DK5) -> 0 | DL9: =INDEX(Working!236:236,'Construction Graph'!DL5) -> 0 | DM9: =INDEX(Working!236:236,'Construction Graph'!DM5) -> 0 | DN9: =INDEX(Working!236:236,'Construction Graph'!DN5) -> 0 | DO9: =INDEX(Working!236:236,'Construction Graph'!DO5) -> 0 | DP9: =INDEX(Working!236:236,'Construction Graph'!DP5) -> 0 | DQ9: =INDEX(Working!236:236,'Construction Graph'!DQ5) -> 0 | DR9: =INDEX(Working!236:236,'Construction Graph'!DR5) -> 0 | DS9: =INDEX(Working!236:236,'Construction Graph'!DS5) -> 0
D10: Development Cost | F10: =INDEX(Working!$313:$313,'Construction Graph'!F5) -> 900 | G10: =INDEX(Working!$313:$313,'Construction Graph'!G5) -> 900 | H10: =INDEX(Working!$313:$313,'Construction Graph'!H5) -> 900 | I10: =INDEX(Working!$313:$313,'Construction Graph'!I5) -> 900 | J10: =INDEX(Working!$313:$313,'Construction Graph'!J5) -> 900 | K10: =INDEX(Working!$313:$313,'Construction Graph'!K5) -> 900 | L10: =INDEX(Working!$313:$313,'Construction Graph'!L5) -> 0 | M10: =INDEX(Working!$313:$313,'Construction Graph'!M5) -> 0 | N10: =INDEX(Working!$313:$313,'Construction Graph'!N5) -> 0 | O10: =INDEX(Working!$313:$313,'Construction Graph'!O5) -> 0 | P10: =INDEX(Working!$313:$313,'Construction Graph'!P5) -> 0 | Q10: =INDEX(Working!$313:$313,'Construction Graph'!Q5) -> 0 | R10: =INDEX(Working!$313:$313,'Construction Graph'!R5) -> 0 | S10: =INDEX(Working!$313:$313,'Construction Graph'!S5) -> 0 | T10: =INDEX(Working!$313:$313,'Construction Graph'!T5) -> 0 | U10: =INDEX(Working!$313:$313,'Construction Graph'!U5) -> 0 | V10: =INDEX(Working!$313:$313,'Construction Graph'!V5) -> 0 | W10: =INDEX(Working!$313:$313,'Construction Graph'!W5) -> 0 | X10: =INDEX(Working!$313:$313,'Construction Graph'!X5) -> 0 | Y10: =INDEX(Working!$313:$313,'Construction Graph'!Y5) -> 0 | Z10: =INDEX(Working!$313:$313,'Construction Graph'!Z5) -> 0 | AA10: =INDEX(Working!$313:$313,'Construction Graph'!AA5) -> 0 | AB10: =INDEX(Working!$313:$313,'Construction Graph'!AB5) -> 0 | AC10: =INDEX(Working!$313:$313,'Construction Graph'!AC5) -> 0 | AD10: =INDEX(Working!$313:$313,'Construction Graph'!AD5) -> 0 | AE10: =INDEX(Working!$313:$313,'Construction Graph'!AE5) -> 0 | AF10: =INDEX(Working!$313:$313,'Construction Graph'!AF5) -> 0 | AG10: =INDEX(Working!$313:$313,'Construction Graph'!AG5) -> 0 | AH10: =INDEX(Working!$313:$313,'Construction Graph'!AH5) -> 0 | AI10: =INDEX(Working!$313:$313,'Construction Graph'!AI5) -> 0 | AJ10: =INDEX(Working!$313:$313,'Construction Graph'!AJ5) -> 0 | AK10: =INDEX(Working!$313:$313,'Construction Graph'!AK5) -> 0 | AL10: =INDEX(Working!$313:$313,'Construction Graph'!AL5) -> 0 | AM10: =INDEX(Working!$313:$313,'Construction Graph'!AM5) -> 0 | AN10: =INDEX(Working!$313:$313,'Construction Graph'!AN5) -> 0 | AO10: =INDEX(Working!$313:$313,'Construction Graph'!AO5) -> 0 | AP10: =INDEX(Working!$313:$313,'Construction Graph'!AP5) -> 0 | AQ10: =INDEX(Working!$313:$313,'Construction Graph'!AQ5) -> 0 | AR10: =INDEX(Working!$313:$313,'Construction Graph'!AR5) -> 0 | AS10: =INDEX(Working!$313:$313,'Construction Graph'!AS5) -> 0 | AT10: =INDEX(Working!$313:$313,'Construction Graph'!AT5) -> 0 | AU10: =INDEX(Working!$313:$313,'Construction Graph'!AU5) -> 0 | AV10: =INDEX(Working!$313:$313,'Construction Graph'!AV5) -> 0 | AW10: =INDEX(Working!$313:$313,'Construction Graph'!AW5) -> 0 | AX10: =INDEX(Working!$313:$313,'Construction Graph'!AX5) -> 0 | AY10: =INDEX(Working!$313:$313,'Construction Graph'!AY5) -> 0 | AZ10: =INDEX(Working!$313:$313,'Construction Graph'!AZ5) -> 0 | BA10: =INDEX(Working!$313:$313,'Construction Graph'!BA5) -> 0 | BB10: =INDEX(Working!$313:$313,'Construction Graph'!BB5) -> 0 | BC10: =INDEX(Working!$313:$313,'Construction Graph'!BC5) -> 0 | BD10: =INDEX(Working!$313:$313,'Construction Graph'!BD5) -> 0 | BE10: =INDEX(Working!$313:$313,'Construction Graph'!BE5) -> 0 | BF10: =INDEX(Working!$313:$313,'Construction Graph'!BF5) -> 0 | BG10: =INDEX(Working!$313:$313,'Construction Graph'!BG5) -> 0 | BH10: =INDEX(Working!$313:$313,'Construction Graph'!BH5) -> 0 | BI10: =INDEX(Working!$313:$313,'Construction Graph'!BI5) -> 0 | BJ10: =INDEX(Working!$313:$313,'Construction Graph'!BJ5) -> 0 | BK10: =INDEX(Working!$313:$313,'Construction Graph'!BK5) -> 0 | BL10: =INDEX(Working!$313:$313,'Construction Graph'!BL5) -> 0 | BM10: =INDEX(Working!$313:$313,'Construction Graph'!BM5) -> 0 | BN10: =INDEX(Working!$313:$313,'Construction Graph'!BN5) -> 0 | BO10: =INDEX(Working!$313:$313,'Construction Graph'!BO5) -> 0 | BP10: =INDEX(Working!$313:$313,'Construction Graph'!BP5) -> 0 | BQ10: =INDEX(Working!$313:$313,'Construction Graph'!BQ5) -> 0 | BR10: =INDEX(Working!$313:$313,'Construction Graph'!BR5) -> 0 | BS10: =INDEX(Working!$313:$313,'Construction Graph'!BS5) -> 0 | BT10: =INDEX(Working!$313:$313,'Construction Graph'!BT5) -> 0 | BU10: =INDEX(Working!$313:$313,'Construction Graph'!BU5) -> 0 | BV10: =INDEX(Working!$313:$313,'Construction Graph'!BV5) -> 0 | BW10: =INDEX(Working!$313:$313,'Construction Graph'!BW5) -> 0 | BX10: =INDEX(Working!$313:$313,'Construction Graph'!BX5) -> 0 | BY10: =INDEX(Working!$313:$313,'Construction Graph'!BY5) -> 0 | BZ10: =INDEX(Working!$313:$313,'Construction Graph'!BZ5) -> 0 | CA10: =INDEX(Working!$313:$313,'Construction Graph'!CA5) -> 0 | CB10: =INDEX(Working!$313:$313,'Construction Graph'!CB5) -> 0 | CC10: =INDEX(Working!$313:$313,'Construction Graph'!CC5) -> 0 | CD10: =INDEX(Working!$313:$313,'Construction Graph'!CD5) -> 0 | CE10: =INDEX(Working!$313:$313,'Construction Graph'!CE5) -> 0 | CF10: =INDEX(Working!$313:$313,'Construction Graph'!CF5) -> 0 | CG10: =INDEX(Working!$313:$313,'Construction Graph'!CG5) -> 0 | CH10: =INDEX(Working!$313:$313,'Construction Graph'!CH5) -> 0 | CI10: =INDEX(Working!$313:$313,'Construction Graph'!CI5) -> 0 | CJ10: =INDEX(Working!$313:$313,'Construction Graph'!CJ5) -> 0 | CK10: =INDEX(Working!$313:$313,'Construction Graph'!CK5) -> 0 | CL10: =INDEX(Working!$313:$313,'Construction Graph'!CL5) -> 0 | CM10: =INDEX(Working!$313:$313,'Construction Graph'!CM5) -> 0 | CN10: =INDEX(Working!$313:$313,'Construction Graph'!CN5) -> 0 | CO10: =INDEX(Working!$313:$313,'Construction Graph'!CO5) -> 0 | CP10: =INDEX(Working!$313:$313,'Construction Graph'!CP5) -> 0 | CQ10: =INDEX(Working!$313:$313,'Construction Graph'!CQ5) -> 0 | CR10: =INDEX(Working!$313:$313,'Construction Graph'!CR5) -> 0 | CS10: =INDEX(Working!$313:$313,'Construction Graph'!CS5) -> 0 | CT10: =INDEX(Working!$313:$313,'Construction Graph'!CT5) -> 0 | CU10: =INDEX(Working!$313:$313,'Construction Graph'!CU5) -> 0 | CV10: =INDEX(Working!$313:$313,'Construction Graph'!CV5) -> 0 | CW10: =INDEX(Working!$313:$313,'Construction Graph'!CW5) -> 0 | CX10: =INDEX(Working!$313:$313,'Construction Graph'!CX5) -> 0 | CY10: =INDEX(Working!$313:$313,'Construction Graph'!CY5) -> 0 | CZ10: =INDEX(Working!$313:$313,'Construction Graph'!CZ5) -> 0 | DA10: =INDEX(Working!$313:$313,'Construction Graph'!DA5) -> 0 | DB10: =INDEX(Working!$313:$313,'Construction Graph'!DB5) -> 0 | DC10: =INDEX(Working!$313:$313,'Construction Graph'!DC5) -> 0 | DD10: =INDEX(Working!$313:$313,'Construction Graph'!DD5) -> 0 | DE10: =INDEX(Working!$313:$313,'Construction Graph'!DE5) -> 0 | DF10: =INDEX(Working!$313:$313,'Construction Graph'!DF5) -> 0 | DG10: =INDEX(Working!$313:$313,'Construction Graph'!DG5) -> 0 | DH10: =INDEX(Working!$313:$313,'Construction Graph'!DH5) -> 0 | DI10: =INDEX(Working!$313:$313,'Construction Graph'!DI5) -> 0 | DJ10: =INDEX(Working!$313:$313,'Construction Graph'!DJ5) -> 0 | DK10: =INDEX(Working!$313:$313,'Construction Graph'!DK5) -> 0 | DL10: =INDEX(Working!$313:$313,'Construction Graph'!DL5) -> 0 | DM10: =INDEX(Working!$313:$313,'Construction Graph'!DM5) -> 0 | DN10: =INDEX(Working!$313:$313,'Construction Graph'!DN5) -> 0 | DO10: =INDEX(Working!$313:$313,'Construction Graph'!DO5) -> 0 | DP10: =INDEX(Working!$313:$313,'Construction Graph'!DP5) -> 0 | DQ10: =INDEX(Working!$313:$313,'Construction Graph'!DQ5) -> 0 | DR10: =INDEX(Working!$313:$313,'Construction Graph'!DR5) -> 0 | DS10: =INDEX(Working!$313:$313,'Construction Graph'!DS5) -> 0
D11: Interest and Fees Paid | F11: =INDEX(Working!$314:$314,'Construction Graph'!F5)+INDEX(Working!$315:$315,'Construction Graph'!F5) -> 0 | G11: =INDEX(Working!$314:$314,'Construction Graph'!G5)+INDEX(Working!$315:$315,'Construction Graph'!G5) -> 0 | H11: =INDEX(Working!$314:$314,'Construction Graph'!H5)+INDEX(Working!$315:$315,'Construction Graph'!H5) -> 0 | I11: =INDEX(Working!$314:$314,'Construction Graph'!I5)+INDEX(Working!$315:$315,'Construction Graph'!I5) -> 0 | J11: =INDEX(Working!$314:$314,'Construction Graph'!J5)+INDEX(Working!$315:$315,'Construction Graph'!J5) -> 0 | K11: =INDEX(Working!$314:$314,'Construction Graph'!K5)+INDEX(Working!$315:$315,'Construction Graph'!K5) -> 0 | L11: =INDEX(Working!$314:$314,'Construction Graph'!L5)+INDEX(Working!$315:$315,'Construction Graph'!L5) -> 975.4590463 | M11: =INDEX(Working!$314:$314,'Construction Graph'!M5)+INDEX(Working!$315:$315,'Construction Graph'!M5) -> 121.0774525 | N11: =INDEX(Working!$314:$314,'Construction Graph'!N5)+INDEX(Working!$315:$315,'Construction Graph'!N5) -> 127.6115953 | O11: =INDEX(Working!$314:$314,'Construction Graph'!O5)+INDEX(Working!$315:$315,'Construction Graph'!O5) -> 135.9785477 | P11: =INDEX(Working!$314:$314,'Construction Graph'!P5)+INDEX(Working!$315:$315,'Construction Graph'!P5) -> 145.7010878 | Q11: =INDEX(Working!$314:$314,'Construction Graph'!Q5)+INDEX(Working!$315:$315,'Construction Graph'!Q5) -> 156.3644843 | R11: =INDEX(Working!$314:$314,'Construction Graph'!R5)+INDEX(Working!$315:$315,'Construction Graph'!R5) -> 167.600999 | S11: =INDEX(Working!$314:$314,'Construction Graph'!S5)+INDEX(Working!$315:$315,'Construction Graph'!S5) -> 179.087167 | T11: =INDEX(Working!$314:$314,'Construction Graph'!T5)+INDEX(Working!$315:$315,'Construction Graph'!T5) -> 190.5442383 | U11: =INDEX(Working!$314:$314,'Construction Graph'!U5)+INDEX(Working!$315:$315,'Construction Graph'!U5) -> 201.7387387 | V11: =INDEX(Working!$314:$314,'Construction Graph'!V5)+INDEX(Working!$315:$315,'Construction Graph'!V5) -> 212.4820947 | W11: =INDEX(Working!$314:$314,'Construction Graph'!W5)+INDEX(Working!$315:$315,'Construction Graph'!W5) -> 222.6290349 | X11: =INDEX(Working!$314:$314,'Construction Graph'!X5)+INDEX(Working!$315:$315,'Construction Graph'!X5) -> 232.074819 | Y11: =INDEX(Working!$314:$314,'Construction Graph'!Y5)+INDEX(Working!$315:$315,'Construction Graph'!Y5) -> 240.7515023 | Z11: =INDEX(Working!$314:$314,'Construction Graph'!Z5)+INDEX(Working!$315:$315,'Construction Graph'!Z5) -> 248.6235131 | AA11: =INDEX(Working!$314:$314,'Construction Graph'!AA5)+INDEX(Working!$315:$315,'Construction Graph'!AA5) -> 255.6828296 | AB11: =INDEX(Working!$314:$314,'Construction Graph'!AB5)+INDEX(Working!$315:$315,'Construction Graph'!AB5) -> 261.9440278 | AC11: =INDEX(Working!$314:$314,'Construction Graph'!AC5)+INDEX(Working!$315:$315,'Construction Graph'!AC5) -> 267.4394343 | AD11: =INDEX(Working!$314:$314,'Construction Graph'!AD5)+INDEX(Working!$315:$315,'Construction Graph'!AD5) -> 272.2145711 | AE11: =INDEX(Working!$314:$314,'Construction Graph'!AE5)+INDEX(Working!$315:$315,'Construction Graph'!AE5) -> 276.3240305 | AF11: =INDEX(Working!$314:$314,'Construction Graph'!AF5)+INDEX(Working!$315:$315,'Construction Graph'!AF5) -> 279.8278692 | AG11: =INDEX(Working!$314:$314,'Construction Graph'!AG5)+INDEX(Working!$315:$315,'Construction Graph'!AG5) -> 282.788566 | AH11: =INDEX(Working!$314:$314,'Construction Graph'!AH5)+INDEX(Working!$315:$315,'Construction Graph'!AH5) -> 285.2685538 | AI11: =INDEX(Working!$314:$314,'Construction Graph'!AI5)+INDEX(Working!$315:$315,'Construction Graph'!AI5) -> 287.328301 | AJ11: =INDEX(Working!$314:$314,'Construction Graph'!AJ5)+INDEX(Working!$315:$315,'Construction Graph'!AJ5) -> 0 | AK11: =INDEX(Working!$314:$314,'Construction Graph'!AK5)+INDEX(Working!$315:$315,'Construction Graph'!AK5) -> 0 | AL11: =INDEX(Working!$314:$314,'Construction Graph'!AL5)+INDEX(Working!$315:$315,'Construction Graph'!AL5) -> 0 | AM11: =INDEX(Working!$314:$314,'Construction Graph'!AM5)+INDEX(Working!$315:$315,'Construction Graph'!AM5) -> 0 | AN11: =INDEX(Working!$314:$314,'Construction Graph'!AN5)+INDEX(Working!$315:$315,'Construction Graph'!AN5) -> 0 | AO11: =INDEX(Working!$314:$314,'Construction Graph'!AO5)+INDEX(Working!$315:$315,'Construction Graph'!AO5) -> 0 | AP11: =INDEX(Working!$314:$314,'Construction Graph'!AP5)+INDEX(Working!$315:$315,'Construction Graph'!AP5) -> 0 | AQ11: =INDEX(Working!$314:$314,'Construction Graph'!AQ5)+INDEX(Working!$315:$315,'Construction Graph'!AQ5) -> 0 | AR11: =INDEX(Working!$314:$314,'Construction Graph'!AR5)+INDEX(Working!$315:$315,'Construction Graph'!AR5) -> 0 | AS11: =INDEX(Working!$314:$314,'Construction Graph'!AS5)+INDEX(Working!$315:$315,'Construction Graph'!AS5) -> 0 | AT11: =INDEX(Working!$314:$314,'Construction Graph'!AT5)+INDEX(Working!$315:$315,'Construction Graph'!AT5) -> 0 | AU11: =INDEX(Working!$314:$314,'Construction Graph'!AU5)+INDEX(Working!$315:$315,'Construction Graph'!AU5) -> 0 | AV11: =INDEX(Working!$314:$314,'Construction Graph'!AV5)+INDEX(Working!$315:$315,'Construction Graph'!AV5) -> 0 | AW11: =INDEX(Working!$314:$314,'Construction Graph'!AW5)+INDEX(Working!$315:$315,'Construction Graph'!AW5) -> 0 | AX11: =INDEX(Working!$314:$314,'Construction Graph'!AX5)+INDEX(Working!$315:$315,'Construction Graph'!AX5) -> 0 | AY11: =INDEX(Working!$314:$314,'Construction Graph'!AY5)+INDEX(Working!$315:$315,'Construction Graph'!AY5) -> 0 | AZ11: =INDEX(Working!$314:$314,'Construction Graph'!AZ5)+INDEX(Working!$315:$315,'Construction Graph'!AZ5) -> 0 | BA11: =INDEX(Working!$314:$314,'Construction Graph'!BA5)+INDEX(Working!$315:$315,'Construction Graph'!BA5) -> 0 | BB11: =INDEX(Working!$314:$314,'Construction Graph'!BB5)+INDEX(Working!$315:$315,'Construction Graph'!BB5) -> 0 | BC11: =INDEX(Working!$314:$314,'Construction Graph'!BC5)+INDEX(Working!$315:$315,'Construction Graph'!BC5) -> 0 | BD11: =INDEX(Working!$314:$314,'Construction Graph'!BD5)+INDEX(Working!$315:$315,'Construction Graph'!BD5) -> 0 | BE11: =INDEX(Working!$314:$314,'Construction Graph'!BE5)+INDEX(Working!$315:$315,'Construction Graph'!BE5) -> 0 | BF11: =INDEX(Working!$314:$314,'Construction Graph'!BF5)+INDEX(Working!$315:$315,'Construction Graph'!BF5) -> 0 | BG11: =INDEX(Working!$314:$314,'Construction Graph'!BG5)+INDEX(Working!$315:$315,'Construction Graph'!BG5) -> 0 | BH11: =INDEX(Working!$314:$314,'Construction Graph'!BH5)+INDEX(Working!$315:$315,'Construction Graph'!BH5) -> 0 | BI11: =INDEX(Working!$314:$314,'Construction Graph'!BI5)+INDEX(Working!$315:$315,'Construction Graph'!BI5) -> 0 | BJ11: =INDEX(Working!$314:$314,'Construction Graph'!BJ5)+INDEX(Working!$315:$315,'Construction Graph'!BJ5) -> 0 | BK11: =INDEX(Working!$314:$314,'Construction Graph'!BK5)+INDEX(Working!$315:$315,'Construction Graph'!BK5) -> 0 | BL11: =INDEX(Working!$314:$314,'Construction Graph'!BL5)+INDEX(Working!$315:$315,'Construction Graph'!BL5) -> 0 | BM11: =INDEX(Working!$314:$314,'Construction Graph'!BM5)+INDEX(Working!$315:$315,'Construction Graph'!BM5) -> 0 | BN11: =INDEX(Working!$314:$314,'Construction Graph'!BN5)+INDEX(Working!$315:$315,'Construction Graph'!BN5) -> 0 | BO11: =INDEX(Working!$314:$314,'Construction Graph'!BO5)+INDEX(Working!$315:$315,'Construction Graph'!BO5) -> 0 | BP11: =INDEX(Working!$314:$314,'Construction Graph'!BP5)+INDEX(Working!$315:$315,'Construction Graph'!BP5) -> 0 | BQ11: =INDEX(Working!$314:$314,'Construction Graph'!BQ5)+INDEX(Working!$315:$315,'Construction Graph'!BQ5) -> 0 | BR11: =INDEX(Working!$314:$314,'Construction Graph'!BR5)+INDEX(Working!$315:$315,'Construction Graph'!BR5) -> 0 | BS11: =INDEX(Working!$314:$314,'Construction Graph'!BS5)+INDEX(Working!$315:$315,'Construction Graph'!BS5) -> 0 | BT11: =INDEX(Working!$314:$314,'Construction Graph'!BT5)+INDEX(Working!$315:$315,'Construction Graph'!BT5) -> 0 | BU11: =INDEX(Working!$314:$314,'Construction Graph'!BU5)+INDEX(Working!$315:$315,'Construction Graph'!BU5) -> 0 | BV11: =INDEX(Working!$314:$314,'Construction Graph'!BV5)+INDEX(Working!$315:$315,'Construction Graph'!BV5) -> 0 | BW11: =INDEX(Working!$314:$314,'Construction Graph'!BW5)+INDEX(Working!$315:$315,'Construction Graph'!BW5) -> 0 | BX11: =INDEX(Working!$314:$314,'Construction Graph'!BX5)+INDEX(Working!$315:$315,'Construction Graph'!BX5) -> 0 | BY11: =INDEX(Working!$314:$314,'Construction Graph'!BY5)+INDEX(Working!$315:$315,'Construction Graph'!BY5) -> 0 | BZ11: =INDEX(Working!$314:$314,'Construction Graph'!BZ5)+INDEX(Working!$315:$315,'Construction Graph'!BZ5) -> 0 | CA11: =INDEX(Working!$314:$314,'Construction Graph'!CA5)+INDEX(Working!$315:$315,'Construction Graph'!CA5) -> 0 | CB11: =INDEX(Working!$314:$314,'Construction Graph'!CB5)+INDEX(Working!$315:$315,'Construction Graph'!CB5) -> 0 | CC11: =INDEX(Working!$314:$314,'Construction Graph'!CC5)+INDEX(Working!$315:$315,'Construction Graph'!CC5) -> 0 | CD11: =INDEX(Working!$314:$314,'Construction Graph'!CD5)+INDEX(Working!$315:$315,'Construction Graph'!CD5) -> 0 | CE11: =INDEX(Working!$314:$314,'Construction Graph'!CE5)+INDEX(Working!$315:$315,'Construction Graph'!CE5) -> 0 | CF11: =INDEX(Working!$314:$314,'Construction Graph'!CF5)+INDEX(Working!$315:$315,'Construction Graph'!CF5) -> 0 | CG11: =INDEX(Working!$314:$314,'Construction Graph'!CG5)+INDEX(Working!$315:$315,'Construction Graph'!CG5) -> 0 | CH11: =INDEX(Working!$314:$314,'Construction Graph'!CH5)+INDEX(Working!$315:$315,'Construction Graph'!CH5) -> 0 | CI11: =INDEX(Working!$314:$314,'Construction Graph'!CI5)+INDEX(Working!$315:$315,'Construction Graph'!CI5) -> 0 | CJ11: =INDEX(Working!$314:$314,'Construction Graph'!CJ5)+INDEX(Working!$315:$315,'Construction Graph'!CJ5) -> 0 | CK11: =INDEX(Working!$314:$314,'Construction Graph'!CK5)+INDEX(Working!$315:$315,'Construction Graph'!CK5) -> 0 | CL11: =INDEX(Working!$314:$314,'Construction Graph'!CL5)+INDEX(Working!$315:$315,'Construction Graph'!CL5) -> 0 | CM11: =INDEX(Working!$314:$314,'Construction Graph'!CM5)+INDEX(Working!$315:$315,'Construction Graph'!CM5) -> 0 | CN11: =INDEX(Working!$314:$314,'Construction Graph'!CN5)+INDEX(Working!$315:$315,'Construction Graph'!CN5) -> 0 | CO11: =INDEX(Working!$314:$314,'Construction Graph'!CO5)+INDEX(Working!$315:$315,'Construction Graph'!CO5) -> 0 | CP11: =INDEX(Working!$314:$314,'Construction Graph'!CP5)+INDEX(Working!$315:$315,'Construction Graph'!CP5) -> 0 | CQ11: =INDEX(Working!$314:$314,'Construction Graph'!CQ5)+INDEX(Working!$315:$315,'Construction Graph'!CQ5) -> 0 | CR11: =INDEX(Working!$314:$314,'Construction Graph'!CR5)+INDEX(Working!$315:$315,'Construction Graph'!CR5) -> 0 | CS11: =INDEX(Working!$314:$314,'Construction Graph'!CS5)+INDEX(Working!$315:$315,'Construction Graph'!CS5) -> 0 | CT11: =INDEX(Working!$314:$314,'Construction Graph'!CT5)+INDEX(Working!$315:$315,'Construction Graph'!CT5) -> 0 | CU11: =INDEX(Working!$314:$314,'Construction Graph'!CU5)+INDEX(Working!$315:$315,'Construction Graph'!CU5) -> 0 | CV11: =INDEX(Working!$314:$314,'Construction Graph'!CV5)+INDEX(Working!$315:$315,'Construction Graph'!CV5) -> 0 | CW11: =INDEX(Working!$314:$314,'Construction Graph'!CW5)+INDEX(Working!$315:$315,'Construction Graph'!CW5) -> 0 | CX11: =INDEX(Working!$314:$314,'Construction Graph'!CX5)+INDEX(Working!$315:$315,'Construction Graph'!CX5) -> 0 | CY11: =INDEX(Working!$314:$314,'Construction Graph'!CY5)+INDEX(Working!$315:$315,'Construction Graph'!CY5) -> 0 | CZ11: =INDEX(Working!$314:$314,'Construction Graph'!CZ5)+INDEX(Working!$315:$315,'Construction Graph'!CZ5) -> 0 | DA11: =INDEX(Working!$314:$314,'Construction Graph'!DA5)+INDEX(Working!$315:$315,'Construction Graph'!DA5) -> 0 | DB11: =INDEX(Working!$314:$314,'Construction Graph'!DB5)+INDEX(Working!$315:$315,'Construction Graph'!DB5) -> 0 | DC11: =INDEX(Working!$314:$314,'Construction Graph'!DC5)+INDEX(Working!$315:$315,'Construction Graph'!DC5) -> 0 | DD11: =INDEX(Working!$314:$314,'Construction Graph'!DD5)+INDEX(Working!$315:$315,'Construction Graph'!DD5) -> 0 | DE11: =INDEX(Working!$314:$314,'Construction Graph'!DE5)+INDEX(Working!$315:$315,'Construction Graph'!DE5) -> 0 | DF11: =INDEX(Working!$314:$314,'Construction Graph'!DF5)+INDEX(Working!$315:$315,'Construction Graph'!DF5) -> 0 | DG11: =INDEX(Working!$314:$314,'Construction Graph'!DG5)+INDEX(Working!$315:$315,'Construction Graph'!DG5) -> 0 | DH11: =INDEX(Working!$314:$314,'Construction Graph'!DH5)+INDEX(Working!$315:$315,'Construction Graph'!DH5) -> 0 | DI11: =INDEX(Working!$314:$314,'Construction Graph'!DI5)+INDEX(Working!$315:$315,'Construction Graph'!DI5) -> 0 | DJ11: =INDEX(Working!$314:$314,'Construction Graph'!DJ5)+INDEX(Working!$315:$315,'Construction Graph'!DJ5) -> 0 | DK11: =INDEX(Working!$314:$314,'Construction Graph'!DK5)+INDEX(Working!$315:$315,'Construction Graph'!DK5) -> 0 | DL11: =INDEX(Working!$314:$314,'Construction Graph'!DL5)+INDEX(Working!$315:$315,'Construction Graph'!DL5) -> 0 | DM11: =INDEX(Working!$314:$314,'Construction Graph'!DM5)+INDEX(Working!$315:$315,'Construction Graph'!DM5) -> 0 | DN11: =INDEX(Working!$314:$314,'Construction Graph'!DN5)+INDEX(Working!$315:$315,'Construction Graph'!DN5) -> 0 | DO11: =INDEX(Working!$314:$314,'Construction Graph'!DO5)+INDEX(Working!$315:$315,'Construction Graph'!DO5) -> 0 | DP11: =INDEX(Working!$314:$314,'Construction Graph'!DP5)+INDEX(Working!$315:$315,'Construction Graph'!DP5) -> 0 | DQ11: =INDEX(Working!$314:$314,'Construction Graph'!DQ5)+INDEX(Working!$315:$315,'Construction Graph'!DQ5) -> 0 | DR11: =INDEX(Working!$314:$314,'Construction Graph'!DR5)+INDEX(Working!$315:$315,'Construction Graph'!DR5) -> 0 | DS11: =INDEX(Working!$314:$314,'Construction Graph'!DS5)+INDEX(Working!$315:$315,'Construction Graph'!DS5) -> 0
D12: DSRA | F12: =INDEX(Working!$316:$316,'Construction Graph'!F5) -> 0 | G12: =INDEX(Working!$316:$316,'Construction Graph'!G5) -> 0 | H12: =INDEX(Working!$316:$316,'Construction Graph'!H5) -> 0 | I12: =INDEX(Working!$316:$316,'Construction Graph'!I5) -> 0 | J12: =INDEX(Working!$316:$316,'Construction Graph'!J5) -> 0 | K12: =INDEX(Working!$316:$316,'Construction Graph'!K5) -> 0 | L12: =INDEX(Working!$316:$316,'Construction Graph'!L5) -> 0 | M12: =INDEX(Working!$316:$316,'Construction Graph'!M5) -> 0 | N12: =INDEX(Working!$316:$316,'Construction Graph'!N5) -> 0 | O12: =INDEX(Working!$316:$316,'Construction Graph'!O5) -> 0 | P12: =INDEX(Working!$316:$316,'Construction Graph'!P5) -> 0 | Q12: =INDEX(Working!$316:$316,'Construction Graph'!Q5) -> 0 | R12: =INDEX(Working!$316:$316,'Construction Graph'!R5) -> 0 | S12: =INDEX(Working!$316:$316,'Construction Graph'!S5) -> 0 | T12: =INDEX(Working!$316:$316,'Construction Graph'!T5) -> 0 | U12: =INDEX(Working!$316:$316,'Construction Graph'!U5) -> 0 | V12: =INDEX(Working!$316:$316,'Construction Graph'!V5) -> 0 | W12: =INDEX(Working!$316:$316,'Construction Graph'!W5) -> 0 | X12: =INDEX(Working!$316:$316,'Construction Graph'!X5) -> 0 | Y12: =INDEX(Working!$316:$316,'Construction Graph'!Y5) -> 0 | Z12: =INDEX(Working!$316:$316,'Construction Graph'!Z5) -> 0 | AA12: =INDEX(Working!$316:$316,'Construction Graph'!AA5) -> 0 | AB12: =INDEX(Working!$316:$316,'Construction Graph'!AB5) -> 0 | AC12: =INDEX(Working!$316:$316,'Construction Graph'!AC5) -> 0 | AD12: =INDEX(Working!$316:$316,'Construction Graph'!AD5) -> 0 | AE12: =INDEX(Working!$316:$316,'Construction Graph'!AE5) -> 0 | AF12: =INDEX(Working!$316:$316,'Construction Graph'!AF5) -> 0 | AG12: =INDEX(Working!$316:$316,'Construction Graph'!AG5) -> 0 | AH12: =INDEX(Working!$316:$316,'Construction Graph'!AH5) -> 0 | AI12: =INDEX(Working!$316:$316,'Construction Graph'!AI5) -> 4441.272894 | AJ12: =INDEX(Working!$316:$316,'Construction Graph'!AJ5) -> 0 | AK12: =INDEX(Working!$316:$316,'Construction Graph'!AK5) -> 0 | AL12: =INDEX(Working!$316:$316,'Construction Graph'!AL5) -> 0 | AM12: =INDEX(Working!$316:$316,'Construction Graph'!AM5) -> 0 | AN12: =INDEX(Working!$316:$316,'Construction Graph'!AN5) -> 0 | AO12: =INDEX(Working!$316:$316,'Construction Graph'!AO5) -> 0 | AP12: =INDEX(Working!$316:$316,'Construction Graph'!AP5) -> 0 | AQ12: =INDEX(Working!$316:$316,'Construction Graph'!AQ5) -> 0 | AR12: =INDEX(Working!$316:$316,'Construction Graph'!AR5) -> 0 | AS12: =INDEX(Working!$316:$316,'Construction Graph'!AS5) -> 0 | AT12: =INDEX(Working!$316:$316,'Construction Graph'!AT5) -> 0 | AU12: =INDEX(Working!$316:$316,'Construction Graph'!AU5) -> 0 | AV12: =INDEX(Working!$316:$316,'Construction Graph'!AV5) -> 0 | AW12: =INDEX(Working!$316:$316,'Construction Graph'!AW5) -> 0 | AX12: =INDEX(Working!$316:$316,'Construction Graph'!AX5) -> 0 | AY12: =INDEX(Working!$316:$316,'Construction Graph'!AY5) -> 0 | AZ12: =INDEX(Working!$316:$316,'Construction Graph'!AZ5) -> 0 | BA12: =INDEX(Working!$316:$316,'Construction Graph'!BA5) -> 0 | BB12: =INDEX(Working!$316:$316,'Construction Graph'!BB5) -> 0 | BC12: =INDEX(Working!$316:$316,'Construction Graph'!BC5) -> 0 | BD12: =INDEX(Working!$316:$316,'Construction Graph'!BD5) -> 0 | BE12: =INDEX(Working!$316:$316,'Construction Graph'!BE5) -> 0 | BF12: =INDEX(Working!$316:$316,'Construction Graph'!BF5) -> 0 | BG12: =INDEX(Working!$316:$316,'Construction Graph'!BG5) -> 0 | BH12: =INDEX(Working!$316:$316,'Construction Graph'!BH5) -> 0 | BI12: =INDEX(Working!$316:$316,'Construction Graph'!BI5) -> 0 | BJ12: =INDEX(Working!$316:$316,'Construction Graph'!BJ5) -> 0 | BK12: =INDEX(Working!$316:$316,'Construction Graph'!BK5) -> 0 | BL12: =INDEX(Working!$316:$316,'Construction Graph'!BL5) -> 0 | BM12: =INDEX(Working!$316:$316,'Construction Graph'!BM5) -> 0 | BN12: =INDEX(Working!$316:$316,'Construction Graph'!BN5) -> 0 | BO12: =INDEX(Working!$316:$316,'Construction Graph'!BO5) -> 0 | BP12: =INDEX(Working!$316:$316,'Construction Graph'!BP5) -> 0 | BQ12: =INDEX(Working!$316:$316,'Construction Graph'!BQ5) -> 0 | BR12: =INDEX(Working!$316:$316,'Construction Graph'!BR5) -> 0 | BS12: =INDEX(Working!$316:$316,'Construction Graph'!BS5) -> 0 | BT12: =INDEX(Working!$316:$316,'Construction Graph'!BT5) -> 0 | BU12: =INDEX(Working!$316:$316,'Construction Graph'!BU5) -> 0 | BV12: =INDEX(Working!$316:$316,'Construction Graph'!BV5) -> 0 | BW12: =INDEX(Working!$316:$316,'Construction Graph'!BW5) -> 0 | BX12: =INDEX(Working!$316:$316,'Construction Graph'!BX5) -> 0 | BY12: =INDEX(Working!$316:$316,'Construction Graph'!BY5) -> 0 | BZ12: =INDEX(Working!$316:$316,'Construction Graph'!BZ5) -> 0 | CA12: =INDEX(Working!$316:$316,'Construction Graph'!CA5) -> 0 | CB12: =INDEX(Working!$316:$316,'Construction Graph'!CB5) -> 0 | CC12: =INDEX(Working!$316:$316,'Construction Graph'!CC5) -> 0 | CD12: =INDEX(Working!$316:$316,'Construction Graph'!CD5) -> 0 | CE12: =INDEX(Working!$316:$316,'Construction Graph'!CE5) -> 0 | CF12: =INDEX(Working!$316:$316,'Construction Graph'!CF5) -> 0 | CG12: =INDEX(Working!$316:$316,'Construction Graph'!CG5) -> 0 | CH12: =INDEX(Working!$316:$316,'Construction Graph'!CH5) -> 0 | CI12: =INDEX(Working!$316:$316,'Construction Graph'!CI5) -> 0 | CJ12: =INDEX(Working!$316:$316,'Construction Graph'!CJ5) -> 0 | CK12: =INDEX(Working!$316:$316,'Construction Graph'!CK5) -> 0 | CL12: =INDEX(Working!$316:$316,'Construction Graph'!CL5) -> 0 | CM12: =INDEX(Working!$316:$316,'Construction Graph'!CM5) -> 0 | CN12: =INDEX(Working!$316:$316,'Construction Graph'!CN5) -> 0 | CO12: =INDEX(Working!$316:$316,'Construction Graph'!CO5) -> 0 | CP12: =INDEX(Working!$316:$316,'Construction Graph'!CP5) -> 0 | CQ12: =INDEX(Working!$316:$316,'Construction Graph'!CQ5) -> 0 | CR12: =INDEX(Working!$316:$316,'Construction Graph'!CR5) -> 0 | CS12: =INDEX(Working!$316:$316,'Construction Graph'!CS5) -> 0 | CT12: =INDEX(Working!$316:$316,'Construction Graph'!CT5) -> 0 | CU12: =INDEX(Working!$316:$316,'Construction Graph'!CU5) -> 0 | CV12: =INDEX(Working!$316:$316,'Construction Graph'!CV5) -> 0 | CW12: =INDEX(Working!$316:$316,'Construction Graph'!CW5) -> 0 | CX12: =INDEX(Working!$316:$316,'Construction Graph'!CX5) -> 0 | CY12: =INDEX(Working!$316:$316,'Construction Graph'!CY5) -> 0 | CZ12: =INDEX(Working!$316:$316,'Construction Graph'!CZ5) -> 0 | DA12: =INDEX(Working!$316:$316,'Construction Graph'!DA5) -> 0 | DB12: =INDEX(Working!$316:$316,'Construction Graph'!DB5) -> 0 | DC12: =INDEX(Working!$316:$316,'Construction Graph'!DC5) -> 0 | DD12: =INDEX(Working!$316:$316,'Construction Graph'!DD5) -> 0 | DE12: =INDEX(Working!$316:$316,'Construction Graph'!DE5) -> 0 | DF12: =INDEX(Working!$316:$316,'Construction Graph'!DF5) -> 0 | DG12: =INDEX(Working!$316:$316,'Construction Graph'!DG5) -> 0 | DH12: =INDEX(Working!$316:$316,'Construction Graph'!DH5) -> 0 | DI12: =INDEX(Working!$316:$316,'Construction Graph'!DI5) -> 0 | DJ12: =INDEX(Working!$316:$316,'Construction Graph'!DJ5) -> 0 | DK12: =INDEX(Working!$316:$316,'Construction Graph'!DK5) -> 0 | DL12: =INDEX(Working!$316:$316,'Construction Graph'!DL5) -> 0 | DM12: =INDEX(Working!$316:$316,'Construction Graph'!DM5) -> 0 | DN12: =INDEX(Working!$316:$316,'Construction Graph'!DN5) -> 0 | DO12: =INDEX(Working!$316:$316,'Construction Graph'!DO5) -> 0 | DP12: =INDEX(Working!$316:$316,'Construction Graph'!DP5) -> 0 | DQ12: =INDEX(Working!$316:$316,'Construction Graph'!DQ5) -> 0 | DR12: =INDEX(Working!$316:$316,'Construction Graph'!DR5) -> 0 | DS12: =INDEX(Working!$316:$316,'Construction Graph'!DS5) -> 0
D13: Total
F15: =F8 ->  | G15: =G8 ->  | L15: 40664 | M15: 40695 | N15: 40725 | O15: 40756 | P15: 40787 | Q15: 40817 | R15: 40848 | S15: 40878 | T15: 40909 | U15: 40940 | V15: 40969 | W15: 41000 | X15: 41030 | Y15: 41061 | Z15: 41091 | AA15: 41122 | AB15: 41153 | AC15: 41183 | AD15: 41214 | AE15: 41244 | AF15: 41275 | AG15: 41306 | AH15: 41334 | AI15: 41365 | BS15: =BS8 -> 
D16: Debt Funded | F16: =INDEX(Working!320:320,'Construction Graph'!F5) -> 0 | G16: =INDEX(Working!320:320,'Construction Graph'!G5) -> 0 | H16: =INDEX(Working!320:320,'Construction Graph'!H5) -> 0 | I16: =INDEX(Working!320:320,'Construction Graph'!I5) -> 0 | J16: =INDEX(Working!320:320,'Construction Graph'!J5) -> 0 | K16: =INDEX(Working!320:320,'Construction Graph'!K5) -> 0 | L16: =INDEX(Working!320:320,'Construction Graph'!L5) -> 6092.694737 | M16: =INDEX(Working!320:320,'Construction Graph'!M5) -> 3136.388543 | N16: =INDEX(Working!320:320,'Construction Graph'!N5) -> 4016.137127 | O16: =INDEX(Working!320:320,'Construction Graph'!O5) -> 4666.81929 | P16: =INDEX(Working!320:320,'Construction Graph'!P5) -> 5118.430301 | Q16: =INDEX(Working!320:320,'Construction Graph'!Q5) -> 5393.527047 | R16: =INDEX(Working!320:320,'Construction Graph'!R5) -> 5513.360629 | S16: =INDEX(Working!320:320,'Construction Graph'!S5) -> 5499.394248 | T16: =INDEX(Working!320:320,'Construction Graph'!T5) -> 5373.360188 | U16: =INDEX(Working!320:320,'Construction Graph'!U5) -> 5156.810863 | V16: =INDEX(Working!320:320,'Construction Graph'!V5) -> 4870.531317 | W16: =INDEX(Working!320:320,'Construction Graph'!W5) -> 4533.976339 | X16: =INDEX(Working!320:320,'Construction Graph'!X5) -> 4164.807991 | Y16: =INDEX(Working!320:320,'Construction Graph'!Y5) -> 3778.565208 | Z16: =INDEX(Working!320:320,'Construction Graph'!Z5) -> 3388.471933 | AA16: =INDEX(Working!320:320,'Construction Graph'!AA5) -> 3005.375135 | AB16: =INDEX(Working!320:320,'Construction Graph'!AB5) -> 2637.795095 | AC16: =INDEX(Working!320:320,'Construction Graph'!AC5) -> 2292.065656 | AD16: =INDEX(Working!320:320,'Construction Graph'!AD5) -> 1972.540546 | AE16: =INDEX(Working!320:320,'Construction Graph'!AE5) -> 1681.842551 | AF16: =INDEX(Working!320:320,'Construction Graph'!AF5) -> 1421.134488 | AG16: =INDEX(Working!320:320,'Construction Graph'!AG5) -> 1190.394103 | AH16: =INDEX(Working!320:320,'Construction Graph'!AH5) -> 988.6786693 | AI16: =INDEX(Working!320:320,'Construction Graph'!AI5) -> 814.3687731 | AJ16: =INDEX(Working!320:320,'Construction Graph'!AJ5) -> 0 | AK16: =INDEX(Working!320:320,'Construction Graph'!AK5) -> 0 | AL16: =INDEX(Working!320:320,'Construction Graph'!AL5) -> 0 | AM16: =INDEX(Working!320:320,'Construction Graph'!AM5) -> 0 | AN16: =INDEX(Working!320:320,'Construction Graph'!AN5) -> 0 | AO16: =INDEX(Working!320:320,'Construction Graph'!AO5) -> 0 | AP16: =INDEX(Working!320:320,'Construction Graph'!AP5) -> 0 | AQ16: =INDEX(Working!320:320,'Construction Graph'!AQ5) -> 0 | AR16: =INDEX(Working!320:320,'Construction Graph'!AR5) -> 0 | AS16: =INDEX(Working!320:320,'Construction Graph'!AS5) -> 0 | AT16: =INDEX(Working!320:320,'Construction Graph'!AT5) -> 0 | AU16: =INDEX(Working!320:320,'Construction Graph'!AU5) -> 0 | AV16: =INDEX(Working!320:320,'Construction Graph'!AV5) -> 0 | AW16: =INDEX(Working!320:320,'Construction Graph'!AW5) -> 0 | AX16: =INDEX(Working!320:320,'Construction Graph'!AX5) -> 0 | AY16: =INDEX(Working!320:320,'Construction Graph'!AY5) -> 0 | AZ16: =INDEX(Working!320:320,'Construction Graph'!AZ5) -> 0 | BA16: =INDEX(Working!320:320,'Construction Graph'!BA5) -> 0 | BB16: =INDEX(Working!320:320,'Construction Graph'!BB5) -> 0 | BC16: =INDEX(Working!320:320,'Construction Graph'!BC5) -> 0 | BD16: =INDEX(Working!320:320,'Construction Graph'!BD5) -> 0 | BE16: =INDEX(Working!320:320,'Construction Graph'!BE5) -> 0 | BF16: =INDEX(Working!320:320,'Construction Graph'!BF5) -> 0 | BG16: =INDEX(Working!320:320,'Construction Graph'!BG5) -> 0 | BH16: =INDEX(Working!320:320,'Construction Graph'!BH5) -> 0 | BI16: =INDEX(Working!320:320,'Construction Graph'!BI5) -> 0 | BJ16: =INDEX(Working!320:320,'Construction Graph'!BJ5) -> 0 | BK16: =INDEX(Working!320:320,'Construction Graph'!BK5) -> 0 | BL16: =INDEX(Working!320:320,'Construction Graph'!BL5) -> 0 | BM16: =INDEX(Working!320:320,'Construction Graph'!BM5) -> 0 | BN16: =INDEX(Working!320:320,'Construction Graph'!BN5) -> 0 | BO16: =INDEX(Working!320:320,'Construction Graph'!BO5) -> 0 | BP16: =INDEX(Working!320:320,'Construction Graph'!BP5) -> 0 | BQ16: =INDEX(Working!320:320,'Construction Graph'!BQ5) -> 0 | BR16: =INDEX(Working!320:320,'Construction Graph'!BR5) -> 0 | BS16: =INDEX(Working!320:320,'Construction Graph'!BS5) -> 0 | BT16: =INDEX(Working!320:320,'Construction Graph'!BT5) -> 0 | BU16: =INDEX(Working!320:320,'Construction Graph'!BU5) -> 0 | BV16: =INDEX(Working!320:320,'Construction Graph'!BV5) -> 0 | BW16: =INDEX(Working!320:320,'Construction Graph'!BW5) -> 0 | BX16: =INDEX(Working!320:320,'Construction Graph'!BX5) -> 0 | BY16: =INDEX(Working!320:320,'Construction Graph'!BY5) -> 0 | BZ16: =INDEX(Working!320:320,'Construction Graph'!BZ5) -> 0 | CA16: =INDEX(Working!320:320,'Construction Graph'!CA5) -> 0 | CB16: =INDEX(Working!320:320,'Construction Graph'!CB5) -> 0 | CC16: =INDEX(Working!320:320,'Construction Graph'!CC5) -> 0 | CD16: =INDEX(Working!320:320,'Construction Graph'!CD5) -> 0 | CE16: =INDEX(Working!320:320,'Construction Graph'!CE5) -> 0 | CF16: =INDEX(Working!320:320,'Construction Graph'!CF5) -> 0 | CG16: =INDEX(Working!320:320,'Construction Graph'!CG5) -> 0 | CH16: =INDEX(Working!320:320,'Construction Graph'!CH5) -> 0 | CI16: =INDEX(Working!320:320,'Construction Graph'!CI5) -> 0 | CJ16: =INDEX(Working!320:320,'Construction Graph'!CJ5) -> 0 | CK16: =INDEX(Working!320:320,'Construction Graph'!CK5) -> 0 | CL16: =INDEX(Working!320:320,'Construction Graph'!CL5) -> 0 | CM16: =INDEX(Working!320:320,'Construction Graph'!CM5) -> 0 | CN16: =INDEX(Working!320:320,'Construction Graph'!CN5) -> 0 | CO16: =INDEX(Working!320:320,'Construction Graph'!CO5) -> 0 | CP16: =INDEX(Working!320:320,'Construction Graph'!CP5) -> 0 | CQ16: =INDEX(Working!320:320,'Construction Graph'!CQ5) -> 0 | CR16: =INDEX(Working!320:320,'Construction Graph'!CR5) -> 0 | CS16: =INDEX(Working!320:320,'Construction Graph'!CS5) -> 0 | CT16: =INDEX(Working!320:320,'Construction Graph'!CT5) -> 0 | CU16: =INDEX(Working!320:320,'Construction Graph'!CU5) -> 0 | CV16: =INDEX(Working!320:320,'Construction Graph'!CV5) -> 0 | CW16: =INDEX(Working!320:320,'Construction Graph'!CW5) -> 0 | CX16: =INDEX(Working!320:320,'Construction Graph'!CX5) -> 0 | CY16: =INDEX(Working!320:320,'Construction Graph'!CY5) -> 0 | CZ16: =INDEX(Working!320:320,'Construction Graph'!CZ5) -> 0 | DA16: =INDEX(Working!320:320,'Construction Graph'!DA5) -> 0 | DB16: =INDEX(Working!320:320,'Construction Graph'!DB5) -> 0 | DC16: =INDEX(Working!320:320,'Construction Graph'!DC5) -> 0 | DD16: =INDEX(Working!320:320,'Construction Graph'!DD5) -> 0 | DE16: =INDEX(Working!320:320,'Construction Graph'!DE5) -> 0 | DF16: =INDEX(Working!320:320,'Construction Graph'!DF5) -> 0 | DG16: =INDEX(Working!320:320,'Construction Graph'!DG5) -> 0 | DH16: =INDEX(Working!320:320,'Construction Graph'!DH5) -> 0 | DI16: =INDEX(Working!320:320,'Construction Graph'!DI5) -> 0 | DJ16: =INDEX(Working!320:320,'Construction Graph'!DJ5) -> 0 | DK16: =INDEX(Working!320:320,'Construction Graph'!DK5) -> 0 | DL16: =INDEX(Working!320:320,'Construction Graph'!DL5) -> 0 | DM16: =INDEX(Working!320:320,'Construction Graph'!DM5) -> 0 | DN16: =INDEX(Working!320:320,'Construction Graph'!DN5) -> 0 | DO16: =INDEX(Working!320:320,'Construction Graph'!DO5) -> 0 | DP16: =INDEX(Working!320:320,'Construction Graph'!DP5) -> 0 | DQ16: =INDEX(Working!320:320,'Construction Graph'!DQ5) -> 0 | DR16: =INDEX(Working!320:320,'Construction Graph'!DR5) -> 0 | DS16: =INDEX(Working!320:320,'Construction Graph'!DS5) -> 0
D17: Equity Funded | F17: =INDEX(Working!321:321,'Construction Graph'!F5) -> 900 | G17: =INDEX(Working!321:321,'Construction Graph'!G5) -> 900 | H17: =INDEX(Working!321:321,'Construction Graph'!H5) -> 900 | I17: =INDEX(Working!321:321,'Construction Graph'!I5) -> 900 | J17: =INDEX(Working!321:321,'Construction Graph'!J5) -> 900 | K17: =INDEX(Working!321:321,'Construction Graph'!K5) -> 900 | L17: =INDEX(Working!321:321,'Construction Graph'!L5) -> -2548.930573 | M17: =INDEX(Working!321:321,'Construction Graph'!M5) -> 1086.601439 | N17: =INDEX(Working!321:321,'Construction Graph'!N5) -> 1363.962473 | O17: =INDEX(Working!321:321,'Construction Graph'!O5) -> 1572.639185 | P17: =INDEX(Working!321:321,'Construction Graph'!P5) -> 1721.388271 | Q17: =INDEX(Working!321:321,'Construction Graph'!Q5) -> 1816.73904 | R17: =INDEX(Working!321:321,'Construction Graph'!R5) -> 1864.865818 | S17: =INDEX(Working!321:321,'Construction Graph'!S5) -> 1872.052494 | T17: =INDEX(Working!321:321,'Construction Graph'!T5) -> 1844.710512 | U17: =INDEX(Working!321:321,'Construction Graph'!U5) -> 1789.241216 | V17: =INDEX(Working!321:321,'Construction Graph'!V5) -> 1711.854621 | W17: =INDEX(Working!321:321,'Construction Graph'!W5) -> 1618.39453 | X17: =INDEX(Working!321:321,'Construction Graph'!X5) -> 1514.193395 | Y17: =INDEX(Working!321:321,'Construction Graph'!Y5) -> 1403.966867 | Z17: =INDEX(Working!321:321,'Construction Graph'!Z5) -> 1291.750308 | AA17: =INDEX(Working!321:321,'Construction Graph'!AA5) -> 1180.874891 | AB17: =INDEX(Working!321:321,'Construction Graph'!AB5) -> 1073.978124 | AC17: =INDEX(Working!321:321,'Construction Graph'!AC5) -> 973.0421805 | AD17: =INDEX(Working!321:321,'Construction Graph'!AD5) -> 879.4528596 | AE17: =INDEX(Working!321:321,'Construction Graph'!AE5) -> 794.0721674 | AF17: =INDEX(Working!321:321,'Construction Graph'!AF5) -> 717.3181282 | AG17: =INDEX(Working!321:321,'Construction Graph'!AG5) -> 649.2463705 | AH17: =INDEX(Working!321:321,'Construction Graph'!AH5) -> 589.6291127 | AI17: =INDEX(Working!321:321,'Construction Graph'!AI5) -> 4979.301188 | AJ17: =INDEX(Working!321:321,'Construction Graph'!AJ5) -> 0 | AK17: =INDEX(Working!321:321,'Construction Graph'!AK5) -> 0 | AL17: =INDEX(Working!321:321,'Construction Graph'!AL5) -> 0 | AM17: =INDEX(Working!321:321,'Construction Graph'!AM5) -> 0 | AN17: =INDEX(Working!321:321,'Construction Graph'!AN5) -> 0 | AO17: =INDEX(Working!321:321,'Construction Graph'!AO5) -> 0 | AP17: =INDEX(Working!321:321,'Construction Graph'!AP5) -> 0 | AQ17: =INDEX(Working!321:321,'Construction Graph'!AQ5) -> 0 | AR17: =INDEX(Working!321:321,'Construction Graph'!AR5) -> 0 | AS17: =INDEX(Working!321:321,'Construction Graph'!AS5) -> 0 | AT17: =INDEX(Working!321:321,'Construction Graph'!AT5) -> 0 | AU17: =INDEX(Working!321:321,'Construction Graph'!AU5) -> 0 | AV17: =INDEX(Working!321:321,'Construction Graph'!AV5) -> 0 | AW17: =INDEX(Working!321:321,'Construction Graph'!AW5) -> 0 | AX17: =INDEX(Working!321:321,'Construction Graph'!AX5) -> 0 | AY17: =INDEX(Working!321:321,'Construction Graph'!AY5) -> 0 | AZ17: =INDEX(Working!321:321,'Construction Graph'!AZ5) -> 0 | BA17: =INDEX(Working!321:321,'Construction Graph'!BA5) -> 0 | BB17: =INDEX(Working!321:321,'Construction Graph'!BB5) -> 0 | BC17: =INDEX(Working!321:321,'Construction Graph'!BC5) -> 0 | BD17: =INDEX(Working!321:321,'Construction Graph'!BD5) -> 0 | BE17: =INDEX(Working!321:321,'Construction Graph'!BE5) -> 0 | BF17: =INDEX(Working!321:321,'Construction Graph'!BF5) -> 0 | BG17: =INDEX(Working!321:321,'Construction Graph'!BG5) -> 0 | BH17: =INDEX(Working!321:321,'Construction Graph'!BH5) -> 0 | BI17: =INDEX(Working!321:321,'Construction Graph'!BI5) -> 0 | BJ17: =INDEX(Working!321:321,'Construction Graph'!BJ5) -> 0 | BK17: =INDEX(Working!321:321,'Construction Graph'!BK5) -> 0 | BL17: =INDEX(Working!321:321,'Construction Graph'!BL5) -> 0 | BM17: =INDEX(Working!321:321,'Construction Graph'!BM5) -> 0 | BN17: =INDEX(Working!321:321,'Construction Graph'!BN5) -> 0 | BO17: =INDEX(Working!321:321,'Construction Graph'!BO5) -> 0 | BP17: =INDEX(Working!321:321,'Construction Graph'!BP5) -> 0 | BQ17: =INDEX(Working!321:321,'Construction Graph'!BQ5) -> 0 | BR17: =INDEX(Working!321:321,'Construction Graph'!BR5) -> 0 | BS17: =INDEX(Working!321:321,'Construction Graph'!BS5) -> 0 | BT17: =INDEX(Working!321:321,'Construction Graph'!BT5) -> 0 | BU17: =INDEX(Working!321:321,'Construction Graph'!BU5) -> 0 | BV17: =INDEX(Working!321:321,'Construction Graph'!BV5) -> 0 | BW17: =INDEX(Working!321:321,'Construction Graph'!BW5) -> 0 | BX17: =INDEX(Working!321:321,'Construction Graph'!BX5) -> 0 | BY17: =INDEX(Working!321:321,'Construction Graph'!BY5) -> 0 | BZ17: =INDEX(Working!321:321,'Construction Graph'!BZ5) -> 0 | CA17: =INDEX(Working!321:321,'Construction Graph'!CA5) -> 0 | CB17: =INDEX(Working!321:321,'Construction Graph'!CB5) -> 0 | CC17: =INDEX(Working!321:321,'Construction Graph'!CC5) -> 0 | CD17: =INDEX(Working!321:321,'Construction Graph'!CD5) -> 0 | CE17: =INDEX(Working!321:321,'Construction Graph'!CE5) -> 0 | CF17: =INDEX(Working!321:321,'Construction Graph'!CF5) -> 0 | CG17: =INDEX(Working!321:321,'Construction Graph'!CG5) -> 0 | CH17: =INDEX(Working!321:321,'Construction Graph'!CH5) -> 0 | CI17: =INDEX(Working!321:321,'Construction Graph'!CI5) -> 0 | CJ17: =INDEX(Working!321:321,'Construction Graph'!CJ5) -> 0 | CK17: =INDEX(Working!321:321,'Construction Graph'!CK5) -> 0 | CL17: =INDEX(Working!321:321,'Construction Graph'!CL5) -> 0 | CM17: =INDEX(Working!321:321,'Construction Graph'!CM5) -> 0 | CN17: =INDEX(Working!321:321,'Construction Graph'!CN5) -> 0 | CO17: =INDEX(Working!321:321,'Construction Graph'!CO5) -> 0 | CP17: =INDEX(Working!321:321,'Construction Graph'!CP5) -> 0 | CQ17: =INDEX(Working!321:321,'Construction Graph'!CQ5) -> 0 | CR17: =INDEX(Working!321:321,'Construction Graph'!CR5) -> 0 | CS17: =INDEX(Working!321:321,'Construction Graph'!CS5) -> 0 | CT17: =INDEX(Working!321:321,'Construction Graph'!CT5) -> 0 | CU17: =INDEX(Working!321:321,'Construction Graph'!CU5) -> 0 | CV17: =INDEX(Working!321:321,'Construction Graph'!CV5) -> 0 | CW17: =INDEX(Working!321:321,'Construction Graph'!CW5) -> 0 | CX17: =INDEX(Working!321:321,'Construction Graph'!CX5) -> 0 | CY17: =INDEX(Working!321:321,'Construction Graph'!CY5) -> 0 | CZ17: =INDEX(Working!321:321,'Construction Graph'!CZ5) -> 0 | DA17: =INDEX(Working!321:321,'Construction Graph'!DA5) -> 0 | DB17: =INDEX(Working!321:321,'Construction Graph'!DB5) -> 0 | DC17: =INDEX(Working!321:321,'Construction Graph'!DC5) -> 0 | DD17: =INDEX(Working!321:321,'Construction Graph'!DD5) -> 0 | DE17: =INDEX(Working!321:321,'Construction Graph'!DE5) -> 0 | DF17: =INDEX(Working!321:321,'Construction Graph'!DF5) -> 0 | DG17: =INDEX(Working!321:321,'Construction Graph'!DG5) -> 0 | DH17: =INDEX(Working!321:321,'Construction Graph'!DH5) -> 0 | DI17: =INDEX(Working!321:321,'Construction Graph'!DI5) -> 0 | DJ17: =INDEX(Working!321:321,'Construction Graph'!DJ5) -> 0 | DK17: =INDEX(Working!321:321,'Construction Graph'!DK5) -> 0 | DL17: =INDEX(Working!321:321,'Construction Graph'!DL5) -> 0 | DM17: =INDEX(Working!321:321,'Construction Graph'!DM5) -> 0 | DN17: =INDEX(Working!321:321,'Construction Graph'!DN5) -> 0 | DO17: =INDEX(Working!321:321,'Construction Graph'!DO5) -> 0 | DP17: =INDEX(Working!321:321,'Construction Graph'!DP5) -> 0 | DQ17: =INDEX(Working!321:321,'Construction Graph'!DQ5) -> 0 | DR17: =INDEX(Working!321:321,'Construction Graph'!DR5) -> 0 | DS17: =INDEX(Working!321:321,'Construction Graph'!DS5) -> 0
D25: Gamma | E25: =Working!F80 -> 0.98
D26: Alpha | E26: =Working!F82 -> 1.72
D28: Equity IRR | E28: ='Project Summary'!K9 -> 0.1578619778

Sheet Annual
D2: 5
B3: Data after COD
C4: Year | D4: =YEAR(Working!F27) -> 2013 | E4: =D4+1 -> 2014 | F4: =E4+1 -> 2015 | G4: 2016 | H4: 2017 | I4: 2018 | J4: 2019 | K4: 2020 | L4: 2021 | M4: 2022 | N4: 2023 | O4: 2024 | P4: 2025 | Q4: 2026 | R4: 2027 | S4: 2028 | T4: 2029 | U4: 2030 | V4: 2031 | W4: 2032 | X4: 2033 | Y4: 2034 | Z4: 2035 | AA4: 2036 | AB4: 2037 | AC4: 2038 | AD4: 2039 | AE4: 2040 | AF4: 2041 | AG4: 2042 | AH4: 2043 | AI4: 2044 | AJ4: 2045 | AK4: 2046 | AL4: 2047 | AM4: 2048 | AN4: 2049 | AO4: 2050 | AP4: 2051 | AQ4: 2052 | AR4: 2053 | AS4: 2054 | AT4: 2055 | AU4: 2056 | AV4: 2057 | AW4: 2058 | AX4: 2059 | AY4: 2060 | AZ4: 2061 | BA4: 2062 | BB4: 2063 | BC4: 2064 | BD4: 2065 | BE4: 2066 | BF4: 2067 | BG4: 2068 | BH4: 2069 | BI4: 2070 | BJ4: 2071 | BK4: 2072 | BL4: 2073 | BM4: 2074 | BN4: 2075 | BO4: 2076 | BP4: 2077 | BQ4: 2078 | BR4: =BQ4+1 -> 2079 | BS4: 2080 | BT4: 2081 | BU4: 2082 | BV4: 2083 | BW4: 2084 | BX4: 2085 | BY4: 2086 | BZ4: 2087
C6: Hours in the period | D6: =SUMIF(Working!$8:$8,Annual!D$4,Working!202:202)*D27 -> 7296 | E6: =SUMIF(Working!$8:$8,Annual!E$4,Working!202:202)*E27 -> 8760 | F6: =SUMIF(Working!$8:$8,Annual!F$4,Working!202:202)*F27 -> 8760 | G6: =SUMIF(Working!$8:$8,Annual!G$4,Working!202:202)*G27 -> 8784 | H6: =SUMIF(Working!$8:$8,Annual!H$4,Working!202:202)*H27 -> 8760 | I6: =SUMIF(Working!$8:$8,Annual!I$4,Working!202:202)*I27 -> 8760 | J6: =SUMIF(Working!$8:$8,Annual!J$4,Working!202:202)*J27 -> 8760 | K6: =SUMIF(Working!$8:$8,Annual!K$4,Working!202:202)*K27 -> 8784 | L6: =SUMIF(Working!$8:$8,Annual!L$4,Working!202:202)*L27 -> 8760 | M6: =SUMIF(Working!$8:$8,Annual!M$4,Working!202:202)*M27 -> 8760 | N6: =SUMIF(Working!$8:$8,Annual!N$4,Working!202:202)*N27 -> 8760 | O6: =SUMIF(Working!$8:$8,Annual!O$4,Working!202:202)*O27 -> 8784 | P6: =SUMIF(Working!$8:$8,Annual!P$4,Working!202:202)*P27 -> 8760 | Q6: =SUMIF(Working!$8:$8,Annual!Q$4,Working!202:202)*Q27 -> 8760 | R6: =SUMIF(Working!$8:$8,Annual!R$4,Working!202:202)*R27 -> 8760 | S6: =SUMIF(Working!$8:$8,Annual!S$4,Working!202:202)*S27 -> 8784 | T6: =SUMIF(Working!$8:$8,Annual!T$4,Working!202:202)*T27 -> 8760 | U6: =SUMIF(Working!$8:$8,Annual!U$4,Working!202:202)*U27 -> 8760 | V6: =SUMIF(Working!$8:$8,Annual!V$4,Working!202:202)*V27 -> 8760 | W6: =SUMIF(Working!$8:$8,Annual!W$4,Working!202:202)*W27 -> 8784 | X6: =SUMIF(Working!$8:$8,Annual!X$4,Working!202:202)*X27 -> 0 | Y6: =SUMIF(Working!$8:$8,Annual!Y$4,Working!202:202)*Y27 -> 0 | Z6: =SUMIF(Working!$8:$8,Annual!Z$4,Working!202:202)*Z27 -> 0 | AA6: =SUMIF(Working!$8:$8,Annual!AA$4,Working!202:202)*AA27 -> 0 | AB6: =SUMIF(Working!$8:$8,Annual!AB$4,Working!202:202)*AB27 -> 0 | AC6: =SUMIF(Working!$8:$8,Annual!AC$4,Working!202:202)*AC27 -> 0 | AD6: =SUMIF(Working!$8:$8,Annual!AD$4,Working!202:202)*AD27 -> 0 | AE6: =SUMIF(Working!$8:$8,Annual!AE$4,Working!202:202)*AE27 -> 0 | AF6: =SUMIF(Working!$8:$8,Annual!AF$4,Working!202:202)*AF27 -> 0 | AG6: =SUMIF(Working!$8:$8,Annual!AG$4,Working!202:202)*AG27 -> 0 | AH6: =SUMIF(Working!$8:$8,Annual!AH$4,Working!202:202)*AH27 -> 0 | AI6: =SUMIF(Working!$8:$8,Annual!AI$4,Working!202:202)*AI27 -> 0 | AJ6: =SUMIF(Working!$8:$8,Annual!AJ$4,Working!202:202)*AJ27 -> 0 | AK6: =SUMIF(Working!$8:$8,Annual!AK$4,Working!202:202)*AK27 -> 0 | AL6: =SUMIF(Working!$8:$8,Annual!AL$4,Working!202:202)*AL27 -> 0 | AM6: =SUMIF(Working!$8:$8,Annual!AM$4,Working!202:202)*AM27 -> 0 | AN6: =SUMIF(Working!$8:$8,Annual!AN$4,Working!202:202)*AN27 -> 0 | AO6: =SUMIF(Working!$8:$8,Annual!AO$4,Working!202:202)*AO27 -> 0 | AP6: =SUMIF(Working!$8:$8,Annual!AP$4,Working!202:202)*AP27 -> 0 | AQ6: =SUMIF(Working!$8:$8,Annual!AQ$4,Working!202:202)*AQ27 -> 0 | AR6: =SUMIF(Working!$8:$8,Annual!AR$4,Working!202:202)*AR27 -> 0 | AS6: =SUMIF(Working!$8:$8,Annual!AS$4,Working!202:202)*AS27 -> 0 | AT6: =SUMIF(Working!$8:$8,Annual!AT$4,Working!202:202)*AT27 -> 0 | AU6: =SUMIF(Working!$8:$8,Annual!AU$4,Working!202:202)*AU27 -> 0 | AV6: =SUMIF(Working!$8:$8,Annual!AV$4,Working!202:202)*AV27 -> 0 | AW6: =SUMIF(Working!$8:$8,Annual!AW$4,Working!202:202)*AW27 -> 0 | AX6: =SUMIF(Working!$8:$8,Annual!AX$4,Working!202:202)*AX27 -> 0 | AY6: =SUMIF(Working!$8:$8,Annual!AY$4,Working!202:202)*AY27 -> 0 | AZ6: =SUMIF(Working!$8:$8,Annual!AZ$4,Working!202:202)*AZ27 -> 0 | BA6: =SUMIF(Working!$8:$8,Annual!BA$4,Working!202:202)*BA27 -> 0 | BB6: =SUMIF(Working!$8:$8,Annual!BB$4,Working!202:202)*BB27 -> 0 | BC6: =SUMIF(Working!$8:$8,Annual!BC$4,Working!202:202)*BC27 -> 0 | BD6: =SUMIF(Working!$8:$8,Annual!BD$4,Working!202:202)*BD27 -> 0 | BE6: =SUMIF(Working!$8:$8,Annual!BE$4,Working!202:202)*BE27 -> 0 | BF6: =SUMIF(Working!$8:$8,Annual!BF$4,Working!202:202)*BF27 -> 0 | BG6: =SUMIF(Working!$8:$8,Annual!BG$4,Working!202:202)*BG27 -> 0 | BH6: =SUMIF(Working!$8:$8,Annual!BH$4,Working!202:202)*BH27 -> 0 | BI6: =SUMIF(Working!$8:$8,Annual!BI$4,Working!202:202)*BI27 -> 0 | BJ6: =SUMIF(Working!$8:$8,Annual!BJ$4,Working!202:202)*BJ27 -> 0 | BK6: =SUMIF(Working!$8:$8,Annual!BK$4,Working!202:202)*BK27 -> 0 | BL6: =SUMIF(Working!$8:$8,Annual!BL$4,Working!202:202)*BL27 -> 0 | BM6: =SUMIF(Working!$8:$8,Annual!BM$4,Working!202:202)*BM27 -> 0 | BN6: =SUMIF(Working!$8:$8,Annual!BN$4,Working!202:202)*BN27 -> 0 | BO6: =SUMIF(Working!$8:$8,Annual!BO$4,Working!202:202)*BO27 -> 0 | BP6: =SUMIF(Working!$8:$8,Annual!BP$4,Working!202:202)*BP27 -> 0 | BQ6: =SUMIF(Working!$8:$8,Annual!BQ$4,Working!202:202)*BQ27 -> 0 | BR6: =SUMIF(Working!$8:$8,Annual!BR$4,Working!202:202)*BR27 -> 0 | BS6: =SUMIF(Working!$8:$8,Annual!BS$4,Working!202:202)*BS27 -> 0 | BT6: =SUMIF(Working!$8:$8,Annual!BT$4,Working!202:202)*BT27 -> 0 | BU6: =SUMIF(Working!$8:$8,Annual!BU$4,Working!202:202)*BU27 -> 0 | BV6: =SUMIF(Working!$8:$8,Annual!BV$4,Working!202:202)*BV27 -> 0 | BW6: =SUMIF(Working!$8:$8,Annual!BW$4,Working!202:202)*BW27 -> 0 | BX6: =SUMIF(Working!$8:$8,Annual!BX$4,Working!202:202)*BX27 -> 0 | BY6: =SUMIF(Working!$8:$8,Annual!BY$4,Working!202:202)*BY27 -> 0 | BZ6: =SUMIF(Working!$8:$8,Annual!BZ$4,Working!202:202)*BZ27 -> 0
C7: Generation | D7: =SUMIF(Working!$8:$8,Annual!D$4,Working!204:204)*D27 -> 66240 | E7: =SUMIF(Working!$8:$8,Annual!E$4,Working!204:204)*E27 -> 141912 | F7: =SUMIF(Working!$8:$8,Annual!F$4,Working!204:204)*F27 -> 152424 | G7: =SUMIF(Working!$8:$8,Annual!G$4,Working!204:204)*G27 -> 155491.2 | H7: =SUMIF(Working!$8:$8,Annual!H$4,Working!204:204)*H27 -> 157680 | I7: =SUMIF(Working!$8:$8,Annual!I$4,Working!204:204)*I27 -> 162979.2 | J7: =SUMIF(Working!$8:$8,Annual!J$4,Working!204:204)*J27 -> 168192 | K7: =SUMIF(Working!$8:$8,Annual!K$4,Working!204:204)*K27 -> 168652.8 | L7: =SUMIF(Working!$8:$8,Annual!L$4,Working!204:204)*L27 -> 168192 | M7: =SUMIF(Working!$8:$8,Annual!M$4,Working!204:204)*M27 -> 168192 | N7: =SUMIF(Working!$8:$8,Annual!N$4,Working!204:204)*N27 -> 168192 | O7: =SUMIF(Working!$8:$8,Annual!O$4,Working!204:204)*O27 -> 168652.8 | P7: =SUMIF(Working!$8:$8,Annual!P$4,Working!204:204)*P27 -> 168192 | Q7: =SUMIF(Working!$8:$8,Annual!Q$4,Working!204:204)*Q27 -> 168192 | R7: =SUMIF(Working!$8:$8,Annual!R$4,Working!204:204)*R27 -> 168192 | S7: =SUMIF(Working!$8:$8,Annual!S$4,Working!204:204)*S27 -> 168652.8 | T7: =SUMIF(Working!$8:$8,Annual!T$4,Working!204:204)*T27 -> 168192 | U7: =SUMIF(Working!$8:$8,Annual!U$4,Working!204:204)*U27 -> 168192 | V7: =SUMIF(Working!$8:$8,Annual!V$4,Working!204:204)*V27 -> 168192 | W7: =SUMIF(Working!$8:$8,Annual!W$4,Working!204:204)*W27 -> 168652.8 | X7: =SUMIF(Working!$8:$8,Annual!X$4,Working!204:204)*X27 -> 0 | Y7: =SUMIF(Working!$8:$8,Annual!Y$4,Working!204:204)*Y27 -> 0 | Z7: =SUMIF(Working!$8:$8,Annual!Z$4,Working!204:204)*Z27 -> 0 | AA7: =SUMIF(Working!$8:$8,Annual!AA$4,Working!204:204)*AA27 -> 0 | AB7: =SUMIF(Working!$8:$8,Annual!AB$4,Working!204:204)*AB27 -> 0 | AC7: =SUMIF(Working!$8:$8,Annual!AC$4,Working!204:204)*AC27 -> 0 | AD7: =SUMIF(Working!$8:$8,Annual!AD$4,Working!204:204)*AD27 -> 0 | AE7: =SUMIF(Working!$8:$8,Annual!AE$4,Working!204:204)*AE27 -> 0 | AF7: =SUMIF(Working!$8:$8,Annual!AF$4,Working!204:204)*AF27 -> 0 | AG7: =SUMIF(Working!$8:$8,Annual!AG$4,Working!204:204)*AG27 -> 0 | AH7: =SUMIF(Working!$8:$8,Annual!AH$4,Working!204:204)*AH27 -> 0 | AI7: =SUMIF(Working!$8:$8,Annual!AI$4,Working!204:204)*AI27 -> 0 | AJ7: =SUMIF(Working!$8:$8,Annual!AJ$4,Working!204:204)*AJ27 -> 0 | AK7: =SUMIF(Working!$8:$8,Annual!AK$4,Working!204:204)*AK27 -> 0 | AL7: =SUMIF(Working!$8:$8,Annual!AL$4,Working!204:204)*AL27 -> 0 | AM7: =SUMIF(Working!$8:$8,Annual!AM$4,Working!204:204)*AM27 -> 0 | AN7: =SUMIF(Working!$8:$8,Annual!AN$4,Working!204:204)*AN27 -> 0 | AO7: =SUMIF(Working!$8:$8,Annual!AO$4,Working!204:204)*AO27 -> 0 | AP7: =SUMIF(Working!$8:$8,Annual!AP$4,Working!204:204)*AP27 -> 0 | AQ7: =SUMIF(Working!$8:$8,Annual!AQ$4,Working!204:204)*AQ27 -> 0 | AR7: =SUMIF(Working!$8:$8,Annual!AR$4,Working!204:204)*AR27 -> 0 | AS7: =SUMIF(Working!$8:$8,Annual!AS$4,Working!204:204)*AS27 -> 0 | AT7: =SUMIF(Working!$8:$8,Annual!AT$4,Working!204:204)*AT27 -> 0 | AU7: =SUMIF(Working!$8:$8,Annual!AU$4,Working!204:204)*AU27 -> 0 | AV7: =SUMIF(Working!$8:$8,Annual!AV$4,Working!204:204)*AV27 -> 0 | AW7: =SUMIF(Working!$8:$8,Annual!AW$4,Working!204:204)*AW27 -> 0 | AX7: =SUMIF(Working!$8:$8,Annual!AX$4,Working!204:204)*AX27 -> 0 | AY7: =SUMIF(Working!$8:$8,Annual!AY$4,Working!204:204)*AY27 -> 0 | AZ7: =SUMIF(Working!$8:$8,Annual!AZ$4,Working!204:204)*AZ27 -> 0 | BA7: =SUMIF(Working!$8:$8,Annual!BA$4,Working!204:204)*BA27 -> 0 | BB7: =SUMIF(Working!$8:$8,Annual!BB$4,Working!204:204)*BB27 -> 0 | BC7: =SUMIF(Working!$8:$8,Annual!BC$4,Working!204:204)*BC27 -> 0 | BD7: =SUMIF(Working!$8:$8,Annual!BD$4,Working!204:204)*BD27 -> 0 | BE7: =SUMIF(Working!$8:$8,Annual!BE$4,Working!204:204)*BE27 -> 0 | BF7: =SUMIF(Working!$8:$8,Annual!BF$4,Working!204:204)*BF27 -> 0 | BG7: =SUMIF(Working!$8:$8,Annual!BG$4,Working!204:204)*BG27 -> 0 | BH7: =SUMIF(Working!$8:$8,Annual!BH$4,Working!204:204)*BH27 -> 0 | BI7: =SUMIF(Working!$8:$8,Annual!BI$4,Working!204:204)*BI27 -> 0 | BJ7: =SUMIF(Working!$8:$8,Annual!BJ$4,Working!204:204)*BJ27 -> 0 | BK7: =SUMIF(Working!$8:$8,Annual!BK$4,Working!204:204)*BK27 -> 0 | BL7: =SUMIF(Working!$8:$8,Annual!BL$4,Working!204:204)*BL27 -> 0 | BM7: =SUMIF(Working!$8:$8,Annual!BM$4,Working!204:204)*BM27 -> 0 | BN7: =SUMIF(Working!$8:$8,Annual!BN$4,Working!204:204)*BN27 -> 0 | BO7: =SUMIF(Working!$8:$8,Annual!BO$4,Working!204:204)*BO27 -> 0 | BP7: =SUMIF(Working!$8:$8,Annual!BP$4,Working!204:204)*BP27 -> 0 | BQ7: =SUMIF(Working!$8:$8,Annual!BQ$4,Working!204:204)*BQ27 -> 0 | BR7: =SUMIF(Working!$8:$8,Annual!BR$4,Working!204:204)*BR27 -> 0 | BS7: =SUMIF(Working!$8:$8,Annual!BS$4,Working!204:204)*BS27 -> 0 | BT7: =SUMIF(Working!$8:$8,Annual!BT$4,Working!204:204)*BT27 -> 0 | BU7: =SUMIF(Working!$8:$8,Annual!BU$4,Working!204:204)*BU27 -> 0 | BV7: =SUMIF(Working!$8:$8,Annual!BV$4,Working!204:204)*BV27 -> 0 | BW7: =SUMIF(Working!$8:$8,Annual!BW$4,Working!204:204)*BW27 -> 0 | BX7: =SUMIF(Working!$8:$8,Annual!BX$4,Working!204:204)*BX27 -> 0 | BY7: =SUMIF(Working!$8:$8,Annual!BY$4,Working!204:204)*BY27 -> 0 | BZ7: =SUMIF(Working!$8:$8,Annual!BZ$4,Working!204:204)*BZ27 -> 0
C8: Capacity factor | D8: =AVERAGEIF(Working!$8:$8,Annual!D$4,Working!199:199)*D27 -> 0.25 | E8: =AVERAGEIF(Working!$8:$8,Annual!E$4,Working!199:199)*E27 -> 0.27 | F8: =AVERAGEIF(Working!$8:$8,Annual!F$4,Working!199:199)*F27 -> 0.29 | G8: =AVERAGEIF(Working!$8:$8,Annual!G$4,Working!199:199)*G27 -> 0.295 | H8: =AVERAGEIF(Working!$8:$8,Annual!H$4,Working!199:199)*H27 -> 0.3 | I8: =AVERAGEIF(Working!$8:$8,Annual!I$4,Working!199:199)*I27 -> 0.31 | J8: =AVERAGEIF(Working!$8:$8,Annual!J$4,Working!199:199)*J27 -> 0.32 | K8: =AVERAGEIF(Working!$8:$8,Annual!K$4,Working!199:199)*K27 -> 0.32 | L8: =AVERAGEIF(Working!$8:$8,Annual!L$4,Working!199:199)*L27 -> 0.32 | M8: =AVERAGEIF(Working!$8:$8,Annual!M$4,Working!199:199)*M27 -> 0.32 | N8: =AVERAGEIF(Working!$8:$8,Annual!N$4,Working!199:199)*N27 -> 0.32 | O8: =AVERAGEIF(Working!$8:$8,Annual!O$4,Working!199:199)*O27 -> 0.32 | P8: =AVERAGEIF(Working!$8:$8,Annual!P$4,Working!199:199)*P27 -> 0.32 | Q8: =AVERAGEIF(Working!$8:$8,Annual!Q$4,Working!199:199)*Q27 -> 0.32 | R8: =AVERAGEIF(Working!$8:$8,Annual!R$4,Working!199:199)*R27 -> 0.32 | S8: =AVERAGEIF(Working!$8:$8,Annual!S$4,Working!199:199)*S27 -> 0.32 | T8: =AVERAGEIF(Working!$8:$8,Annual!T$4,Working!199:199)*T27 -> 0.32 | U8: =AVERAGEIF(Working!$8:$8,Annual!U$4,Working!199:199)*U27 -> 0.32 | V8: =AVERAGEIF(Working!$8:$8,Annual!V$4,Working!199:199)*V27 -> 0.32 | W8: =AVERAGEIF(Working!$8:$8,Annual!W$4,Working!199:199)*W27 -> 0.32 | X8: =AVERAGEIF(Working!$8:$8,Annual!X$4,Working!199:199)*X27 -> 0 | Y8: =AVERAGEIF(Working!$8:$8,Annual!Y$4,Working!199:199)*Y27 -> 0 | Z8: =AVERAGEIF(Working!$8:$8,Annual!Z$4,Working!199:199)*Z27 -> 0 | AA8: =AVERAGEIF(Working!$8:$8,Annual!AA$4,Working!199:199)*AA27 -> 0 | AB8: =AVERAGEIF(Working!$8:$8,Annual!AB$4,Working!199:199)*AB27 -> 0 | AC8: =AVERAGEIF(Working!$8:$8,Annual!AC$4,Working!199:199)*AC27 -> 0 | AD8: =AVERAGEIF(Working!$8:$8,Annual!AD$4,Working!199:199)*AD27 -> 0 | AE8: =AVERAGEIF(Working!$8:$8,Annual!AE$4,Working!199:199)*AE27 -> 0 | AF8: =AVERAGEIF(Working!$8:$8,Annual!AF$4,Working!199:199)*AF27 -> 0 | AG8: =AVERAGEIF(Working!$8:$8,Annual!AG$4,Working!199:199)*AG27 -> 0 | AH8: =AVERAGEIF(Working!$8:$8,Annual!AH$4,Working!199:199)*AH27 -> 0 | AI8: =AVERAGEIF(Working!$8:$8,Annual!AI$4,Working!199:199)*AI27 -> 0 | AJ8: =AVERAGEIF(Working!$8:$8,Annual!AJ$4,Working!199:199)*AJ27 -> 0 | AK8: =AVERAGEIF(Working!$8:$8,Annual!AK$4,Working!199:199)*AK27 -> 0 | AL8: =AVERAGEIF(Working!$8:$8,Annual!AL$4,Working!199:199)*AL27 -> 0 | AM8: =AVERAGEIF(Working!$8:$8,Annual!AM$4,Working!199:199)*AM27 -> 0 | AN8: =AVERAGEIF(Working!$8:$8,Annual!AN$4,Working!199:199)*AN27 -> 0 | AO8: =AVERAGEIF(Working!$8:$8,Annual!AO$4,Working!199:199)*AO27 -> 0 | AP8: =AVERAGEIF(Working!$8:$8,Annual!AP$4,Working!199:199)*AP27 -> 0 | AQ8: =AVERAGEIF(Working!$8:$8,Annual!AQ$4,Working!199:199)*AQ27 -> 0 | AR8: =AVERAGEIF(Working!$8:$8,Annual!AR$4,Working!199:199)*AR27 -> 0 | AS8: =AVERAGEIF(Working!$8:$8,Annual!AS$4,Working!199:199)*AS27 -> 0 | AT8: =AVERAGEIF(Working!$8:$8,Annual!AT$4,Working!199:199)*AT27 -> 0 | AU8: =AVERAGEIF(Working!$8:$8,Annual!AU$4,Working!199:199)*AU27 -> 0 | AV8: =AVERAGEIF(Working!$8:$8,Annual!AV$4,Working!199:199)*AV27 -> 0 | AW8: =AVERAGEIF(Working!$8:$8,Annual!AW$4,Working!199:199)*AW27 -> 0 | AX8: =AVERAGEIF(Working!$8:$8,Annual!AX$4,Working!199:199)*AX27 -> 0 | AY8: =AVERAGEIF(Working!$8:$8,Annual!AY$4,Working!199:199)*AY27 -> 0 | AZ8: =AVERAGEIF(Working!$8:$8,Annual!AZ$4,Working!199:199)*AZ27 -> 0 | BA8: =AVERAGEIF(Working!$8:$8,Annual!BA$4,Working!199:199)*BA27 -> 0 | BB8: =AVERAGEIF(Working!$8:$8,Annual!BB$4,Working!199:199)*BB27 -> 0 | BC8: =AVERAGEIF(Working!$8:$8,Annual!BC$4,Working!199:199)*BC27 -> 0 | BD8: =AVERAGEIF(Working!$8:$8,Annual!BD$4,Working!199:199)*BD27 -> 0 | BE8: =AVERAGEIF(Working!$8:$8,Annual!BE$4,Working!199:199)*BE27 -> 0 | BF8: =AVERAGEIF(Working!$8:$8,Annual!BF$4,Working!199:199)*BF27 -> 0 | BG8: =AVERAGEIF(Working!$8:$8,Annual!BG$4,Working!199:199)*BG27 -> 0 | BH8: =AVERAGEIF(Working!$8:$8,Annual!BH$4,Working!199:199)*BH27 -> 0 | BI8: =AVERAGEIF(Working!$8:$8,Annual!BI$4,Working!199:199)*BI27 -> 0 | BJ8: =AVERAGEIF(Working!$8:$8,Annual!BJ$4,Working!199:199)*BJ27 -> 0 | BK8: =AVERAGEIF(Working!$8:$8,Annual!BK$4,Working!199:199)*BK27 -> 0 | BL8: =AVERAGEIF(Working!$8:$8,Annual!BL$4,Working!199:199)*BL27 -> 0 | BM8: =AVERAGEIF(Working!$8:$8,Annual!BM$4,Working!199:199)*BM27 -> 0 | BN8: =AVERAGEIF(Working!$8:$8,Annual!BN$4,Working!199:199)*BN27 -> 0 | BO8: =AVERAGEIF(Working!$8:$8,Annual!BO$4,Working!199:199)*BO27 -> 0 | BP8: =AVERAGEIF(Working!$8:$8,Annual!BP$4,Working!199:199)*BP27 ->  | BQ8: =AVERAGEIF(Working!$8:$8,Annual!BQ$4,Working!199:199)*BQ27 ->  | BR8: =AVERAGEIF(Working!$8:$8,Annual!BR$4,Working!199:199)*BR27 ->  | BS8: =AVERAGEIF(Working!$8:$8,Annual!BS$4,Working!199:199)*BS27 ->  | BT8: =AVERAGEIF(Working!$8:$8,Annual!BT$4,Working!199:199)*BT27 ->  | BU8: =AVERAGEIF(Working!$8:$8,Annual!BU$4,Working!199:199)*BU27 ->  | BV8: =AVERAGEIF(Working!$8:$8,Annual!BV$4,Working!199:199)*BV27 ->  | BW8: =AVERAGEIF(Working!$8:$8,Annual!BW$4,Working!199:199)*BW27 ->  | BX8: =AVERAGEIF(Working!$8:$8,Annual!BX$4,Working!199:199)*BX27 ->  | BY8: =AVERAGEIF(Working!$8:$8,Annual!BY$4,Working!199:199)*BY27 ->  | BZ8: =AVERAGEIF(Working!$8:$8,Annual!BZ$4,Working!199:199)*BZ27 -> 
C9: Nominal FIT | D9: =AVERAGEIF(Working!$8:$8,Annual!D$4,Working!210:210)*D27 -> 60.74665942 | E9: =AVERAGEIF(Working!$8:$8,Annual!E$4,Working!210:210)*E27 -> 62.76556996 | F9: =AVERAGEIF(Working!$8:$8,Annual!F$4,Working!210:210)*F27 -> 64.49162313 | G9: =AVERAGEIF(Working!$8:$8,Annual!G$4,Working!210:210)*G27 -> 66.38631361 | H9: =AVERAGEIF(Working!$8:$8,Annual!H$4,Working!210:210)*H27 -> 68.37790302 | I9: =AVERAGEIF(Working!$8:$8,Annual!I$4,Working!210:210)*I27 -> 70.42924011 | J9: =AVERAGEIF(Working!$8:$8,Annual!J$4,Working!210:210)*J27 -> 72.54211731 | K9: =AVERAGEIF(Working!$8:$8,Annual!K$4,Working!210:210)*K27 -> 74.71838083 | L9: =AVERAGEIF(Working!$8:$8,Annual!L$4,Working!210:210)*L27 -> 76.95993225 | M9: =AVERAGEIF(Working!$8:$8,Annual!M$4,Working!210:210)*M27 -> 79.26873022 | N9: =AVERAGEIF(Working!$8:$8,Annual!N$4,Working!210:210)*N27 -> 81.64679213 | O9: =AVERAGEIF(Working!$8:$8,Annual!O$4,Working!210:210)*O27 -> 84.09619589 | P9: =AVERAGEIF(Working!$8:$8,Annual!P$4,Working!210:210)*P27 -> 86.61908177 | Q9: =AVERAGEIF(Working!$8:$8,Annual!Q$4,Working!210:210)*Q27 -> 89.21765422 | R9: =AVERAGEIF(Working!$8:$8,Annual!R$4,Working!210:210)*R27 -> 91.89418385 | S9: =AVERAGEIF(Working!$8:$8,Annual!S$4,Working!210:210)*S27 -> 94.65100936 | T9: =AVERAGEIF(Working!$8:$8,Annual!T$4,Working!210:210)*T27 -> 97.49053964 | U9: =AVERAGEIF(Working!$8:$8,Annual!U$4,Working!210:210)*U27 -> 100.4152558 | V9: =AVERAGEIF(Working!$8:$8,Annual!V$4,Working!210:210)*V27 -> 103.4277135 | W9: =AVERAGEIF(Working!$8:$8,Annual!W$4,Working!210:210)*W27 -> 106.5305449 | X9: =AVERAGEIF(Working!$8:$8,Annual!X$4,Working!210:210)*X27 -> 0 | Y9: =AVERAGEIF(Working!$8:$8,Annual!Y$4,Working!210:210)*Y27 -> 0 | Z9: =AVERAGEIF(Working!$8:$8,Annual!Z$4,Working!210:210)*Z27 -> 0 | AA9: =AVERAGEIF(Working!$8:$8,Annual!AA$4,Working!210:210)*AA27 -> 0 | AB9: =AVERAGEIF(Working!$8:$8,Annual!AB$4,Working!210:210)*AB27 -> 0 | AC9: =AVERAGEIF(Working!$8:$8,Annual!AC$4,Working!210:210)*AC27 -> 0 | AD9: =AVERAGEIF(Working!$8:$8,Annual!AD$4,Working!210:210)*AD27 -> 0 | AE9: =AVERAGEIF(Working!$8:$8,Annual!AE$4,Working!210:210)*AE27 -> 0 | AF9: =AVERAGEIF(Working!$8:$8,Annual!AF$4,Working!210:210)*AF27 -> 0 | AG9: =AVERAGEIF(Working!$8:$8,Annual!AG$4,Working!210:210)*AG27 -> 0 | AH9: =AVERAGEIF(Working!$8:$8,Annual!AH$4,Working!210:210)*AH27 -> 0 | AI9: =AVERAGEIF(Working!$8:$8,Annual!AI$4,Working!210:210)*AI27 -> 0 | AJ9: =AVERAGEIF(Working!$8:$8,Annual!AJ$4,Working!210:210)*AJ27 -> 0 | AK9: =AVERAGEIF(Working!$8:$8,Annual!AK$4,Working!210:210)*AK27 -> 0 | AL9: =AVERAGEIF(Working!$8:$8,Annual!AL$4,Working!210:210)*AL27 -> 0 | AM9: =AVERAGEIF(Working!$8:$8,Annual!AM$4,Working!210:210)*AM27 -> 0 | AN9: =AVERAGEIF(Working!$8:$8,Annual!AN$4,Working!210:210)*AN27 -> 0 | AO9: =AVERAGEIF(Working!$8:$8,Annual!AO$4,Working!210:210)*AO27 -> 0 | AP9: =AVERAGEIF(Working!$8:$8,Annual!AP$4,Working!210:210)*AP27 -> 0 | AQ9: =AVERAGEIF(Working!$8:$8,Annual!AQ$4,Working!210:210)*AQ27 -> 0 | AR9: =AVERAGEIF(Working!$8:$8,Annual!AR$4,Working!210:210)*AR27 -> 0 | AS9: =AVERAGEIF(Working!$8:$8,Annual!AS$4,Working!210:210)*AS27 -> 0 | AT9: =AVERAGEIF(Working!$8:$8,Annual!AT$4,Working!210:210)*AT27 -> 0 | AU9: =AVERAGEIF(Working!$8:$8,Annual!AU$4,Working!210:210)*AU27 -> 0 | AV9: =AVERAGEIF(Working!$8:$8,Annual!AV$4,Working!210:210)*AV27 -> 0 | AW9: =AVERAGEIF(Working!$8:$8,Annual!AW$4,Working!210:210)*AW27 -> 0 | AX9: =AVERAGEIF(Working!$8:$8,Annual!AX$4,Working!210:210)*AX27 -> 0 | AY9: =AVERAGEIF(Working!$8:$8,Annual!AY$4,Working!210:210)*AY27 -> 0 | AZ9: =AVERAGEIF(Working!$8:$8,Annual!AZ$4,Working!210:210)*AZ27 -> 0 | BA9: =AVERAGEIF(Working!$8:$8,Annual!BA$4,Working!210:210)*BA27 -> 0 | BB9: =AVERAGEIF(Working!$8:$8,Annual!BB$4,Working!210:210)*BB27 -> 0 | BC9: =AVERAGEIF(Working!$8:$8,Annual!BC$4,Working!210:210)*BC27 -> 0 | BD9: =AVERAGEIF(Working!$8:$8,Annual!BD$4,Working!210:210)*BD27 -> 0 | BE9: =AVERAGEIF(Working!$8:$8,Annual!BE$4,Working!210:210)*BE27 -> 0 | BF9: =AVERAGEIF(Working!$8:$8,Annual!BF$4,Working!210:210)*BF27 -> 0 | BG9: =AVERAGEIF(Working!$8:$8,Annual!BG$4,Working!210:210)*BG27 -> 0 | BH9: =AVERAGEIF(Working!$8:$8,Annual!BH$4,Working!210:210)*BH27 -> 0 | BI9: =AVERAGEIF(Working!$8:$8,Annual!BI$4,Working!210:210)*BI27 -> 0 | BJ9: =AVERAGEIF(Working!$8:$8,Annual!BJ$4,Working!210:210)*BJ27 -> 0 | BK9: =AVERAGEIF(Working!$8:$8,Annual!BK$4,Working!210:210)*BK27 -> 0 | BL9: =AVERAGEIF(Working!$8:$8,Annual!BL$4,Working!210:210)*BL27 -> 0 | BM9: =AVERAGEIF(Working!$8:$8,Annual!BM$4,Working!210:210)*BM27 -> 0 | BN9: =AVERAGEIF(Working!$8:$8,Annual!BN$4,Working!210:210)*BN27 -> 0 | BO9: =AVERAGEIF(Working!$8:$8,Annual!BO$4,Working!210:210)*BO27 -> 0 | BP9: =AVERAGEIF(Working!$8:$8,Annual!BP$4,Working!210:210)*BP27 ->  | BQ9: =AVERAGEIF(Working!$8:$8,Annual!BQ$4,Working!210:210)*BQ27 ->  | BR9: =AVERAGEIF(Working!$8:$8,Annual!BR$4,Working!210:210)*BR27 ->  | BS9: =AVERAGEIF(Working!$8:$8,Annual!BS$4,Working!210:210)*BS27 ->  | BT9: =AVERAGEIF(Working!$8:$8,Annual!BT$4,Working!210:210)*BT27 ->  | BU9: =AVERAGEIF(Working!$8:$8,Annual!BU$4,Working!210:210)*BU27 ->  | BV9: =AVERAGEIF(Working!$8:$8,Annual!BV$4,Working!210:210)*BV27 ->  | BW9: =AVERAGEIF(Working!$8:$8,Annual!BW$4,Working!210:210)*BW27 ->  | BX9: =AVERAGEIF(Working!$8:$8,Annual!BX$4,Working!210:210)*BX27 ->  | BY9: =AVERAGEIF(Working!$8:$8,Annual!BY$4,Working!210:210)*BY27 ->  | BZ9: =AVERAGEIF(Working!$8:$8,Annual!BZ$4,Working!210:210)*BZ27 -> 
C10: Nominal Merchant Price | D10: =AVERAGEIF(Working!$8:$8,Annual!D$4,Working!215:215)*D27 -> 47.43734671 | E10: =AVERAGEIF(Working!$8:$8,Annual!E$4,Working!215:215)*E27 -> 49.01392327 | F10: =AVERAGEIF(Working!$8:$8,Annual!F$4,Working!215:215)*F27 -> 48.12350366 | G10: =AVERAGEIF(Working!$8:$8,Annual!G$4,Working!215:215)*G27 -> 49.53731742 | H10: =AVERAGEIF(Working!$8:$8,Annual!H$4,Working!215:215)*H27 -> 47.46366227 | I10: =AVERAGEIF(Working!$8:$8,Annual!I$4,Working!215:215)*I27 -> 48.88757214 | J10: =AVERAGEIF(Working!$8:$8,Annual!J$4,Working!215:215)*J27 -> 50.3541993 | K10: =AVERAGEIF(Working!$8:$8,Annual!K$4,Working!215:215)*K27 -> 51.86482528 | L10: =AVERAGEIF(Working!$8:$8,Annual!L$4,Working!215:215)*L27 -> 53.42077004 | M10: =AVERAGEIF(Working!$8:$8,Annual!M$4,Working!215:215)*M27 -> 55.02339314 | N10: =AVERAGEIF(Working!$8:$8,Annual!N$4,Working!215:215)*N27 -> 56.67409494 | O10: =AVERAGEIF(Working!$8:$8,Annual!O$4,Working!215:215)*O27 -> 58.37431778 | P10: =AVERAGEIF(Working!$8:$8,Annual!P$4,Working!215:215)*P27 -> 60.12554732 | Q10: =AVERAGEIF(Working!$8:$8,Annual!Q$4,Working!215:215)*Q27 -> 61.92931374 | R10: =AVERAGEIF(Working!$8:$8,Annual!R$4,Working!215:215)*R27 -> 63.78719315 | S10: =AVERAGEIF(Working!$8:$8,Annual!S$4,Working!215:215)*S27 -> 65.70080894 | T10: =AVERAGEIF(Working!$8:$8,Annual!T$4,Working!215:215)*T27 -> 67.67183321 | U10: =AVERAGEIF(Working!$8:$8,Annual!U$4,Working!215:215)*U27 -> 69.70198821 | V10: =AVERAGEIF(Working!$8:$8,Annual!V$4,Working!215:215)*V27 -> 71.79304785 | W10: =AVERAGEIF(Working!$8:$8,Annual!W$4,Working!215:215)*W27 -> 73.94683929 | X10: =AVERAGEIF(Working!$8:$8,Annual!X$4,Working!215:215)*X27 -> 0 | Y10: =AVERAGEIF(Working!$8:$8,Annual!Y$4,Working!215:215)*Y27 -> 0 | Z10: =AVERAGEIF(Working!$8:$8,Annual!Z$4,Working!215:215)*Z27 -> 0 | AA10: =AVERAGEIF(Working!$8:$8,Annual!AA$4,Working!215:215)*AA27 -> 0 | AB10: =AVERAGEIF(Working!$8:$8,Annual!AB$4,Working!215:215)*AB27 -> 0 | AC10: =AVERAGEIF(Working!$8:$8,Annual!AC$4,Working!215:215)*AC27 -> 0 | AD10: =AVERAGEIF(Working!$8:$8,Annual!AD$4,Working!215:215)*AD27 -> 0 | AE10: =AVERAGEIF(Working!$8:$8,Annual!AE$4,Working!215:215)*AE27 -> 0 | AF10: =AVERAGEIF(Working!$8:$8,Annual!AF$4,Working!215:215)*AF27 -> 0 | AG10: =AVERAGEIF(Working!$8:$8,Annual!AG$4,Working!215:215)*AG27 -> 0 | AH10: =AVERAGEIF(Working!$8:$8,Annual!AH$4,Working!215:215)*AH27 -> 0 | AI10: =AVERAGEIF(Working!$8:$8,Annual!AI$4,Working!215:215)*AI27 -> 0 | AJ10: =AVERAGEIF(Working!$8:$8,Annual!AJ$4,Working!215:215)*AJ27 -> 0 | AK10: =AVERAGEIF(Working!$8:$8,Annual!AK$4,Working!215:215)*AK27 -> 0 | AL10: =AVERAGEIF(Working!$8:$8,Annual!AL$4,Working!215:215)*AL27 -> 0 | AM10: =AVERAGEIF(Working!$8:$8,Annual!AM$4,Working!215:215)*AM27 -> 0 | AN10: =AVERAGEIF(Working!$8:$8,Annual!AN$4,Working!215:215)*AN27 -> 0 | AO10: =AVERAGEIF(Working!$8:$8,Annual!AO$4,Working!215:215)*AO27 -> 0 | AP10: =AVERAGEIF(Working!$8:$8,Annual!AP$4,Working!215:215)*AP27 -> 0 | AQ10: =AVERAGEIF(Working!$8:$8,Annual!AQ$4,Working!215:215)*AQ27 -> 0 | AR10: =AVERAGEIF(Working!$8:$8,Annual!AR$4,Working!215:215)*AR27 -> 0 | AS10: =AVERAGEIF(Working!$8:$8,Annual!AS$4,Working!215:215)*AS27 -> 0 | AT10: =AVERAGEIF(Working!$8:$8,Annual!AT$4,Working!215:215)*AT27 -> 0 | AU10: =AVERAGEIF(Working!$8:$8,Annual!AU$4,Working!215:215)*AU27 -> 0 | AV10: =AVERAGEIF(Working!$8:$8,Annual!AV$4,Working!215:215)*AV27 -> 0 | AW10: =AVERAGEIF(Working!$8:$8,Annual!AW$4,Working!215:215)*AW27 -> 0 | AX10: =AVERAGEIF(Working!$8:$8,Annual!AX$4,Working!215:215)*AX27 -> 0 | AY10: =AVERAGEIF(Working!$8:$8,Annual!AY$4,Working!215:215)*AY27 -> 0 | AZ10: =AVERAGEIF(Working!$8:$8,Annual!AZ$4,Working!215:215)*AZ27 -> 0 | BA10: =AVERAGEIF(Working!$8:$8,Annual!BA$4,Working!215:215)*BA27 -> 0 | BB10: =AVERAGEIF(Working!$8:$8,Annual!BB$4,Working!215:215)*BB27 -> 0 | BC10: =AVERAGEIF(Working!$8:$8,Annual!BC$4,Working!215:215)*BC27 -> 0 | BD10: =AVERAGEIF(Working!$8:$8,Annual!BD$4,Working!215:215)*BD27 -> 0 | BE10: =AVERAGEIF(Working!$8:$8,Annual!BE$4,Working!215:215)*BE27 -> 0 | BF10: =AVERAGEIF(Working!$8:$8,Annual!BF$4,Working!215:215)*BF27 -> 0 | BG10: =AVERAGEIF(Working!$8:$8,Annual!BG$4,Working!215:215)*BG27 -> 0 | BH10: =AVERAGEIF(Working!$8:$8,Annual!BH$4,Working!215:215)*BH27 -> 0 | BI10: =AVERAGEIF(Working!$8:$8,Annual!BI$4,Working!215:215)*BI27 -> 0 | BJ10: =AVERAGEIF(Working!$8:$8,Annual!BJ$4,Working!215:215)*BJ27 -> 0 | BK10: =AVERAGEIF(Working!$8:$8,Annual!BK$4,Working!215:215)*BK27 -> 0 | BL10: =AVERAGEIF(Working!$8:$8,Annual!BL$4,Working!215:215)*BL27 -> 0 | BM10: =AVERAGEIF(Working!$8:$8,Annual!BM$4,Working!215:215)*BM27 -> 0 | BN10: =AVERAGEIF(Working!$8:$8,Annual!BN$4,Working!215:215)*BN27 -> 0 | BO10: =AVERAGEIF(Working!$8:$8,Annual!BO$4,Working!215:215)*BO27 -> 0 | BP10: =AVERAGEIF(Working!$8:$8,Annual!BP$4,Working!215:215)*BP27 ->  | BQ10: =AVERAGEIF(Working!$8:$8,Annual!BQ$4,Working!215:215)*BQ27 ->  | BR10: =AVERAGEIF(Working!$8:$8,Annual!BR$4,Working!215:215)*BR27 ->  | BS10: =AVERAGEIF(Working!$8:$8,Annual!BS$4,Working!215:215)*BS27 ->  | BT10: =AVERAGEIF(Working!$8:$8,Annual!BT$4,Working!215:215)*BT27 ->  | BU10: =AVERAGEIF(Working!$8:$8,Annual!BU$4,Working!215:215)*BU27 ->  | BV10: =AVERAGEIF(Working!$8:$8,Annual!BV$4,Working!215:215)*BV27 ->  | BW10: =AVERAGEIF(Working!$8:$8,Annual!BW$4,Working!215:215)*BW27 ->  | BX10: =AVERAGEIF(Working!$8:$8,Annual!BX$4,Working!215:215)*BX27 ->  | BY10: =AVERAGEIF(Working!$8:$8,Annual!BY$4,Working!215:215)*BY27 ->  | BZ10: =AVERAGEIF(Working!$8:$8,Annual!BZ$4,Working!215:215)*BZ27 -> 
C11: Revenues | D11: =SUMIF(Working!$8:$8,Annual!D$4,Working!218:218)*D27 -> 7254.977986 | E11: =SUMIF(Working!$8:$8,Annual!E$4,Working!218:218)*E27 -> 15863.73569 | F11: =SUMIF(Working!$8:$8,Annual!F$4,Working!218:218)*F27 -> 17166.20493 | G11: =SUMIF(Working!$8:$8,Annual!G$4,Working!218:218)*G27 -> 18028.08966 | H11: =SUMIF(Working!$8:$8,Annual!H$4,Working!218:218)*H27 -> 18267.00741 | I11: =SUMIF(Working!$8:$8,Annual!I$4,Working!218:218)*I27 -> 19451.97359 | J11: =SUMIF(Working!$8:$8,Annual!J$4,Working!218:218)*J27 -> 20671.43271 | K11: =SUMIF(Working!$8:$8,Annual!K$4,Working!218:218)*K27 -> 21349.4742 | L11: =SUMIF(Working!$8:$8,Annual!L$4,Working!218:218)*L27 -> 21930.32296 | M11: =SUMIF(Working!$8:$8,Annual!M$4,Working!218:218)*M27 -> 22588.23265 | N11: =SUMIF(Working!$8:$8,Annual!N$4,Working!218:218)*N27 -> 23265.87963 | O11: =SUMIF(Working!$8:$8,Annual!O$4,Working!218:218)*O27 -> 24029.0213 | P11: =SUMIF(Working!$8:$8,Annual!P$4,Working!218:218)*P27 -> 24682.7717 | Q11: =SUMIF(Working!$8:$8,Annual!Q$4,Working!218:218)*Q27 -> 25423.25485 | R11: =SUMIF(Working!$8:$8,Annual!R$4,Working!218:218)*R27 -> 26185.9525 | S11: =SUMIF(Working!$8:$8,Annual!S$4,Working!218:218)*S27 -> 27044.87517 | T11: =SUMIF(Working!$8:$8,Annual!T$4,Working!218:218)*T27 -> 27780.677 | U11: =SUMIF(Working!$8:$8,Annual!U$4,Working!218:218)*U27 -> 28614.09731 | V11: =SUMIF(Working!$8:$8,Annual!V$4,Working!218:218)*V27 -> 29472.52023 | W11: =SUMIF(Working!$8:$8,Annual!W$4,Working!218:218)*W27 -> 30439.24527 | X11: =SUMIF(Working!$8:$8,Annual!X$4,Working!218:218)*X27 -> 0 | Y11: =SUMIF(Working!$8:$8,Annual!Y$4,Working!218:218)*Y27 -> 0 | Z11: =SUMIF(Working!$8:$8,Annual!Z$4,Working!218:218)*Z27 -> 0 | AA11: =SUMIF(Working!$8:$8,Annual!AA$4,Working!218:218)*AA27 -> 0 | AB11: =SUMIF(Working!$8:$8,Annual!AB$4,Working!218:218)*AB27 -> 0 | AC11: =SUMIF(Working!$8:$8,Annual!AC$4,Working!218:218)*AC27 -> 0 | AD11: =SUMIF(Working!$8:$8,Annual!AD$4,Working!218:218)*AD27 -> 0 | AE11: =SUMIF(Working!$8:$8,Annual!AE$4,Working!218:218)*AE27 -> 0 | AF11: =SUMIF(Working!$8:$8,Annual!AF$4,Working!218:218)*AF27 -> 0 | AG11: =SUMIF(Working!$8:$8,Annual!AG$4,Working!218:218)*AG27 -> 0 | AH11: =SUMIF(Working!$8:$8,Annual!AH$4,Working!218:218)*AH27 -> 0 | AI11: =SUMIF(Working!$8:$8,Annual!AI$4,Working!218:218)*AI27 -> 0 | AJ11: =SUMIF(Working!$8:$8,Annual!AJ$4,Working!218:218)*AJ27 -> 0 | AK11: =SUMIF(Working!$8:$8,Annual!AK$4,Working!218:218)*AK27 -> 0 | AL11: =SUMIF(Working!$8:$8,Annual!AL$4,Working!218:218)*AL27 -> 0 | AM11: =SUMIF(Working!$8:$8,Annual!AM$4,Working!218:218)*AM27 -> 0 | AN11: =SUMIF(Working!$8:$8,Annual!AN$4,Working!218:218)*AN27 -> 0 | AO11: =SUMIF(Working!$8:$8,Annual!AO$4,Working!218:218)*AO27 -> 0 | AP11: =SUMIF(Working!$8:$8,Annual!AP$4,Working!218:218)*AP27 -> 0 | AQ11: =SUMIF(Working!$8:$8,Annual!AQ$4,Working!218:218)*AQ27 -> 0 | AR11: =SUMIF(Working!$8:$8,Annual!AR$4,Working!218:218)*AR27 -> 0 | AS11: =SUMIF(Working!$8:$8,Annual!AS$4,Working!218:218)*AS27 -> 0 | AT11: =SUMIF(Working!$8:$8,Annual!AT$4,Working!218:218)*AT27 -> 0 | AU11: =SUMIF(Working!$8:$8,Annual!AU$4,Working!218:218)*AU27 -> 0 | AV11: =SUMIF(Working!$8:$8,Annual!AV$4,Working!218:218)*AV27 -> 0 | AW11: =SUMIF(Working!$8:$8,Annual!AW$4,Working!218:218)*AW27 -> 0 | AX11: =SUMIF(Working!$8:$8,Annual!AX$4,Working!218:218)*AX27 -> 0 | AY11: =SUMIF(Working!$8:$8,Annual!AY$4,Working!218:218)*AY27 -> 0 | AZ11: =SUMIF(Working!$8:$8,Annual!AZ$4,Working!218:218)*AZ27 -> 0 | BA11: =SUMIF(Working!$8:$8,Annual!BA$4,Working!218:218)*BA27 -> 0 | BB11: =SUMIF(Working!$8:$8,Annual!BB$4,Working!218:218)*BB27 -> 0 | BC11: =SUMIF(Working!$8:$8,Annual!BC$4,Working!218:218)*BC27 -> 0 | BD11: =SUMIF(Working!$8:$8,Annual!BD$4,Working!218:218)*BD27 -> 0 | BE11: =SUMIF(Working!$8:$8,Annual!BE$4,Working!218:218)*BE27 -> 0 | BF11: =SUMIF(Working!$8:$8,Annual!BF$4,Working!218:218)*BF27 -> 0 | BG11: =SUMIF(Working!$8:$8,Annual!BG$4,Working!218:218)*BG27 -> 0 | BH11: =SUMIF(Working!$8:$8,Annual!BH$4,Working!218:218)*BH27 -> 0 | BI11: =SUMIF(Working!$8:$8,Annual!BI$4,Working!218:218)*BI27 -> 0 | BJ11: =SUMIF(Working!$8:$8,Annual!BJ$4,Working!218:218)*BJ27 -> 0 | BK11: =SUMIF(Working!$8:$8,Annual!BK$4,Working!218:218)*BK27 -> 0 | BL11: =SUMIF(Working!$8:$8,Annual!BL$4,Working!218:218)*BL27 -> 0 | BM11: =SUMIF(Working!$8:$8,Annual!BM$4,Working!218:218)*BM27 -> 0 | BN11: =SUMIF(Working!$8:$8,Annual!BN$4,Working!218:218)*BN27 -> 0 | BO11: =SUMIF(Working!$8:$8,Annual!BO$4,Working!218:218)*BO27 -> 0 | BP11: =SUMIF(Working!$8:$8,Annual!BP$4,Working!218:218)*BP27 -> 0 | BQ11: =SUMIF(Working!$8:$8,Annual!BQ$4,Working!218:218)*BQ27 -> 0 | BR11: =SUMIF(Working!$8:$8,Annual!BR$4,Working!218:218)*BR27 -> 0 | BS11: =SUMIF(Working!$8:$8,Annual!BS$4,Working!218:218)*BS27 -> 0 | BT11: =SUMIF(Working!$8:$8,Annual!BT$4,Working!218:218)*BT27 -> 0 | BU11: =SUMIF(Working!$8:$8,Annual!BU$4,Working!218:218)*BU27 -> 0 | BV11: =SUMIF(Working!$8:$8,Annual!BV$4,Working!218:218)*BV27 -> 0 | BW11: =SUMIF(Working!$8:$8,Annual!BW$4,Working!218:218)*BW27 -> 0 | BX11: =SUMIF(Working!$8:$8,Annual!BX$4,Working!218:218)*BX27 -> 0 | BY11: =SUMIF(Working!$8:$8,Annual!BY$4,Working!218:218)*BY27 -> 0 | BZ11: =SUMIF(Working!$8:$8,Annual!BZ$4,Working!218:218)*BZ27 -> 0
C12: EBITDA | D12: =SUMIF(Working!$8:$8,Annual!D$4,Working!237:237)*D27 -> 5841.103326 | E12: =SUMIF(Working!$8:$8,Annual!E$4,Working!237:237)*E27 -> 12772.15719 | F12: =SUMIF(Working!$8:$8,Annual!F$4,Working!237:237)*F27 -> 13754.30455 | G12: =SUMIF(Working!$8:$8,Annual!G$4,Working!237:237)*G27 -> 14444.88382 | H12: =SUMIF(Working!$8:$8,Annual!H$4,Working!237:237)*H27 -> 14524.745 | I12: =SUMIF(Working!$8:$8,Annual!I$4,Working!237:237)*I27 -> 15466.95361 | J12: =SUMIF(Working!$8:$8,Annual!J$4,Working!237:237)*J27 -> 16436.58877 | K12: =SUMIF(Working!$8:$8,Annual!K$4,Working!237:237)*K27 -> 16975.7236 | L12: =SUMIF(Working!$8:$8,Annual!L$4,Working!237:237)*L27 -> 17437.57703 | M12: =SUMIF(Working!$8:$8,Annual!M$4,Working!237:237)*M27 -> 17960.70434 | N12: =SUMIF(Working!$8:$8,Annual!N$4,Working!237:237)*N27 -> 18499.52547 | O12: =SUMIF(Working!$8:$8,Annual!O$4,Working!237:237)*O27 -> 19106.32646 | P12: =SUMIF(Working!$8:$8,Annual!P$4,Working!237:237)*P27 -> 19626.14657 | Q12: =SUMIF(Working!$8:$8,Annual!Q$4,Working!237:237)*Q27 -> 20214.93097 | R12: =SUMIF(Working!$8:$8,Annual!R$4,Working!237:237)*R27 -> 20821.3789 | S12: =SUMIF(Working!$8:$8,Annual!S$4,Working!237:237)*S27 -> 21504.33876 | T12: =SUMIF(Working!$8:$8,Annual!T$4,Working!237:237)*T27 -> 22089.40087 | U12: =SUMIF(Working!$8:$8,Annual!U$4,Working!237:237)*U27 -> 22752.0829 | V12: =SUMIF(Working!$8:$8,Annual!V$4,Working!237:237)*V27 -> 23434.64539 | W12: =SUMIF(Working!$8:$8,Annual!W$4,Working!237:237)*W27 -> 24203.32273 | X12: =SUMIF(Working!$8:$8,Annual!X$4,Working!237:237)*X27 -> 0 | Y12: =SUMIF(Working!$8:$8,Annual!Y$4,Working!237:237)*Y27 -> 0 | Z12: =SUMIF(Working!$8:$8,Annual!Z$4,Working!237:237)*Z27 -> 0 | AA12: =SUMIF(Working!$8:$8,Annual!AA$4,Working!237:237)*AA27 -> 0 | AB12: =SUMIF(Working!$8:$8,Annual!AB$4,Working!237:237)*AB27 -> 0 | AC12: =SUMIF(Working!$8:$8,Annual!AC$4,Working!237:237)*AC27 -> 0 | AD12: =SUMIF(Working!$8:$8,Annual!AD$4,Working!237:237)*AD27 -> 0 | AE12: =SUMIF(Working!$8:$8,Annual!AE$4,Working!237:237)*AE27 -> 0 | AF12: =SUMIF(Working!$8:$8,Annual!AF$4,Working!237:237)*AF27 -> 0 | AG12: =SUMIF(Working!$8:$8,Annual!AG$4,Working!237:237)*AG27 -> 0 | AH12: =SUMIF(Working!$8:$8,Annual!AH$4,Working!237:237)*AH27 -> 0 | AI12: =SUMIF(Working!$8:$8,Annual!AI$4,Working!237:237)*AI27 -> 0 | AJ12: =SUMIF(Working!$8:$8,Annual!AJ$4,Working!237:237)*AJ27 -> 0 | AK12: =SUMIF(Working!$8:$8,Annual!AK$4,Working!237:237)*AK27 -> 0 | AL12: =SUMIF(Working!$8:$8,Annual!AL$4,Working!237:237)*AL27 -> 0 | AM12: =SUMIF(Working!$8:$8,Annual!AM$4,Working!237:237)*AM27 -> 0 | AN12: =SUMIF(Working!$8:$8,Annual!AN$4,Working!237:237)*AN27 -> 0 | AO12: =SUMIF(Working!$8:$8,Annual!AO$4,Working!237:237)*AO27 -> 0 | AP12: =SUMIF(Working!$8:$8,Annual!AP$4,Working!237:237)*AP27 -> 0 | AQ12: =SUMIF(Working!$8:$8,Annual!AQ$4,Working!237:237)*AQ27 -> 0 | AR12: =SUMIF(Working!$8:$8,Annual!AR$4,Working!237:237)*AR27 -> 0 | AS12: =SUMIF(Working!$8:$8,Annual!AS$4,Working!237:237)*AS27 -> 0 | AT12: =SUMIF(Working!$8:$8,Annual!AT$4,Working!237:237)*AT27 -> 0 | AU12: =SUMIF(Working!$8:$8,Annual!AU$4,Working!237:237)*AU27 -> 0 | AV12: =SUMIF(Working!$8:$8,Annual!AV$4,Working!237:237)*AV27 -> 0 | AW12: =SUMIF(Working!$8:$8,Annual!AW$4,Working!237:237)*AW27 -> 0 | AX12: =SUMIF(Working!$8:$8,Annual!AX$4,Working!237:237)*AX27 -> 0 | AY12: =SUMIF(Working!$8:$8,Annual!AY$4,Working!237:237)*AY27 -> 0 | AZ12: =SUMIF(Working!$8:$8,Annual!AZ$4,Working!237:237)*AZ27 -> 0 | BA12: =SUMIF(Working!$8:$8,Annual!BA$4,Working!237:237)*BA27 -> 0 | BB12: =SUMIF(Working!$8:$8,Annual!BB$4,Working!237:237)*BB27 -> 0 | BC12: =SUMIF(Working!$8:$8,Annual!BC$4,Working!237:237)*BC27 -> 0 | BD12: =SUMIF(Working!$8:$8,Annual!BD$4,Working!237:237)*BD27 -> 0 | BE12: =SUMIF(Working!$8:$8,Annual!BE$4,Working!237:237)*BE27 -> 0 | BF12: =SUMIF(Working!$8:$8,Annual!BF$4,Working!237:237)*BF27 -> 0 | BG12: =SUMIF(Working!$8:$8,Annual!BG$4,Working!237:237)*BG27 -> 0 | BH12: =SUMIF(Working!$8:$8,Annual!BH$4,Working!237:237)*BH27 -> 0 | BI12: =SUMIF(Working!$8:$8,Annual!BI$4,Working!237:237)*BI27 -> 0 | BJ12: =SUMIF(Working!$8:$8,Annual!BJ$4,Working!237:237)*BJ27 -> 0 | BK12: =SUMIF(Working!$8:$8,Annual!BK$4,Working!237:237)*BK27 -> 0 | BL12: =SUMIF(Working!$8:$8,Annual!BL$4,Working!237:237)*BL27 -> 0 | BM12: =SUMIF(Working!$8:$8,Annual!BM$4,Working!237:237)*BM27 -> 0 | BN12: =SUMIF(Working!$8:$8,Annual!BN$4,Working!237:237)*BN27 -> 0 | BO12: =SUMIF(Working!$8:$8,Annual!BO$4,Working!237:237)*BO27 -> 0 | BP12: =SUMIF(Working!$8:$8,Annual!BP$4,Working!237:237)*BP27 -> 0 | BQ12: =SUMIF(Working!$8:$8,Annual!BQ$4,Working!237:237)*BQ27 -> 0 | BR12: =SUMIF(Working!$8:$8,Annual!BR$4,Working!237:237)*BR27 -> 0 | BS12: =SUMIF(Working!$8:$8,Annual!BS$4,Working!237:237)*BS27 -> 0 | BT12: =SUMIF(Working!$8:$8,Annual!BT$4,Working!237:237)*BT27 -> 0 | BU12: =SUMIF(Working!$8:$8,Annual!BU$4,Working!237:237)*BU27 -> 0 | BV12: =SUMIF(Working!$8:$8,Annual!BV$4,Working!237:237)*BV27 -> 0 | BW12: =SUMIF(Working!$8:$8,Annual!BW$4,Working!237:237)*BW27 -> 0 | BX12: =SUMIF(Working!$8:$8,Annual!BX$4,Working!237:237)*BX27 -> 0 | BY12: =SUMIF(Working!$8:$8,Annual!BY$4,Working!237:237)*BY27 -> 0 | BZ12: =SUMIF(Working!$8:$8,Annual!BZ$4,Working!237:237)*BZ27 -> 0
C13: CFADS | D13: =SUMIF(Working!$8:$8,Annual!D$4,Working!509:509)*D27 -> 5841.103326 | E13: =SUMIF(Working!$8:$8,Annual!E$4,Working!509:509)*E27 -> 12772.15719 | F13: =SUMIF(Working!$8:$8,Annual!F$4,Working!509:509)*F27 -> 13754.30455 | G13: =SUMIF(Working!$8:$8,Annual!G$4,Working!509:509)*G27 -> 14444.88382 | H13: =SUMIF(Working!$8:$8,Annual!H$4,Working!509:509)*H27 -> 14524.745 | I13: =SUMIF(Working!$8:$8,Annual!I$4,Working!509:509)*I27 -> 15466.95361 | J13: =SUMIF(Working!$8:$8,Annual!J$4,Working!509:509)*J27 -> 16436.58877 | K13: =SUMIF(Working!$8:$8,Annual!K$4,Working!509:509)*K27 -> 16975.7236 | L13: =SUMIF(Working!$8:$8,Annual!L$4,Working!509:509)*L27 -> 17437.57703 | M13: =SUMIF(Working!$8:$8,Annual!M$4,Working!509:509)*M27 -> 17960.70434 | N13: =SUMIF(Working!$8:$8,Annual!N$4,Working!509:509)*N27 -> 15414.06418 | O13: =SUMIF(Working!$8:$8,Annual!O$4,Working!509:509)*O27 -> 15473.2384 | P13: =SUMIF(Working!$8:$8,Annual!P$4,Working!509:509)*P27 -> 15806.17931 | Q13: =SUMIF(Working!$8:$8,Annual!Q$4,Working!509:509)*Q27 -> 16192.17904 | R13: =SUMIF(Working!$8:$8,Annual!R$4,Working!509:509)*R27 -> 16657.10312 | S13: =SUMIF(Working!$8:$8,Annual!S$4,Working!509:509)*S27 -> 17203.47101 | T13: =SUMIF(Working!$8:$8,Annual!T$4,Working!509:509)*T27 -> 17671.5207 | U13: =SUMIF(Working!$8:$8,Annual!U$4,Working!509:509)*U27 -> 18201.66632 | V13: =SUMIF(Working!$8:$8,Annual!V$4,Working!509:509)*V27 -> 18747.71631 | W13: =SUMIF(Working!$8:$8,Annual!W$4,Working!509:509)*W27 -> 19362.65818 | X13: =SUMIF(Working!$8:$8,Annual!X$4,Working!509:509)*X27 -> 0 | Y13: =SUMIF(Working!$8:$8,Annual!Y$4,Working!509:509)*Y27 -> 0 | Z13: =SUMIF(Working!$8:$8,Annual!Z$4,Working!509:509)*Z27 -> 0 | AA13: =SUMIF(Working!$8:$8,Annual!AA$4,Working!509:509)*AA27 -> 0 | AB13: =SUMIF(Working!$8:$8,Annual!AB$4,Working!509:509)*AB27 -> 0 | AC13: =SUMIF(Working!$8:$8,Annual!AC$4,Working!509:509)*AC27 -> 0 | AD13: =SUMIF(Working!$8:$8,Annual!AD$4,Working!509:509)*AD27 -> 0 | AE13: =SUMIF(Working!$8:$8,Annual!AE$4,Working!509:509)*AE27 -> 0 | AF13: =SUMIF(Working!$8:$8,Annual!AF$4,Working!509:509)*AF27 -> 0 | AG13: =SUMIF(Working!$8:$8,Annual!AG$4,Working!509:509)*AG27 -> 0 | AH13: =SUMIF(Working!$8:$8,Annual!AH$4,Working!509:509)*AH27 -> 0 | AI13: =SUMIF(Working!$8:$8,Annual!AI$4,Working!509:509)*AI27 -> 0 | AJ13: =SUMIF(Working!$8:$8,Annual!AJ$4,Working!509:509)*AJ27 -> 0 | AK13: =SUMIF(Working!$8:$8,Annual!AK$4,Working!509:509)*AK27 -> 0 | AL13: =SUMIF(Working!$8:$8,Annual!AL$4,Working!509:509)*AL27 -> 0 | AM13: =SUMIF(Working!$8:$8,Annual!AM$4,Working!509:509)*AM27 -> 0 | AN13: =SUMIF(Working!$8:$8,Annual!AN$4,Working!509:509)*AN27 -> 0 | AO13: =SUMIF(Working!$8:$8,Annual!AO$4,Working!509:509)*AO27 -> 0 | AP13: =SUMIF(Working!$8:$8,Annual!AP$4,Working!509:509)*AP27 -> 0 | AQ13: =SUMIF(Working!$8:$8,Annual!AQ$4,Working!509:509)*AQ27 -> 0 | AR13: =SUMIF(Working!$8:$8,Annual!AR$4,Working!509:509)*AR27 -> 0 | AS13: =SUMIF(Working!$8:$8,Annual!AS$4,Working!509:509)*AS27 -> 0 | AT13: =SUMIF(Working!$8:$8,Annual!AT$4,Working!509:509)*AT27 -> 0 | AU13: =SUMIF(Working!$8:$8,Annual!AU$4,Working!509:509)*AU27 -> 0 | AV13: =SUMIF(Working!$8:$8,Annual!AV$4,Working!509:509)*AV27 -> 0 | AW13: =SUMIF(Working!$8:$8,Annual!AW$4,Working!509:509)*AW27 -> 0 | AX13: =SUMIF(Working!$8:$8,Annual!AX$4,Working!509:509)*AX27 -> 0 | AY13: =SUMIF(Working!$8:$8,Annual!AY$4,Working!509:509)*AY27 -> 0 | AZ13: =SUMIF(Working!$8:$8,Annual!AZ$4,Working!509:509)*AZ27 -> 0 | BA13: =SUMIF(Working!$8:$8,Annual!BA$4,Working!509:509)*BA27 -> 0 | BB13: =SUMIF(Working!$8:$8,Annual!BB$4,Working!509:509)*BB27 -> 0 | BC13: =SUMIF(Working!$8:$8,Annual!BC$4,Working!509:509)*BC27 -> 0 | BD13: =SUMIF(Working!$8:$8,Annual!BD$4,Working!509:509)*BD27 -> 0 | BE13: =SUMIF(Working!$8:$8,Annual!BE$4,Working!509:509)*BE27 -> 0 | BF13: =SUMIF(Working!$8:$8,Annual!BF$4,Working!509:509)*BF27 -> 0 | BG13: =SUMIF(Working!$8:$8,Annual!BG$4,Working!509:509)*BG27 -> 0 | BH13: =SUMIF(Working!$8:$8,Annual!BH$4,Working!509:509)*BH27 -> 0 | BI13: =SUMIF(Working!$8:$8,Annual!BI$4,Working!509:509)*BI27 -> 0 | BJ13: =SUMIF(Working!$8:$8,Annual!BJ$4,Working!509:509)*BJ27 -> 0 | BK13: =SUMIF(Working!$8:$8,Annual!BK$4,Working!509:509)*BK27 -> 0 | BL13: =SUMIF(Working!$8:$8,Annual!BL$4,Working!509:509)*BL27 -> 0 | BM13: =SUMIF(Working!$8:$8,Annual!BM$4,Working!509:509)*BM27 -> 0 | BN13: =SUMIF(Working!$8:$8,Annual!BN$4,Working!509:509)*BN27 -> 0 | BO13: =SUMIF(Working!$8:$8,Annual!BO$4,Working!509:509)*BO27 -> 0 | BP13: =SUMIF(Working!$8:$8,Annual!BP$4,Working!509:509)*BP27 -> 0 | BQ13: =SUMIF(Working!$8:$8,Annual!BQ$4,Working!509:509)*BQ27 -> 0 | BR13: =SUMIF(Working!$8:$8,Annual!BR$4,Working!509:509)*BR27 -> 0 | BS13: =SUMIF(Working!$8:$8,Annual!BS$4,Working!509:509)*BS27 -> 0 | BT13: =SUMIF(Working!$8:$8,Annual!BT$4,Working!509:509)*BT27 -> 0 | BU13: =SUMIF(Working!$8:$8,Annual!BU$4,Working!509:509)*BU27 -> 0 | BV13: =SUMIF(Working!$8:$8,Annual!BV$4,Working!509:509)*BV27 -> 0 | BW13: =SUMIF(Working!$8:$8,Annual!BW$4,Working!509:509)*BW27 -> 0 | BX13: =SUMIF(Working!$8:$8,Annual!BX$4,Working!509:509)*BX27 -> 0 | BY13: =SUMIF(Working!$8:$8,Annual!BY$4,Working!509:509)*BY27 -> 0 | BZ13: =SUMIF(Working!$8:$8,Annual!BZ$4,Working!509:509)*BZ27 -> 0
C14: Depreciation | D14: =SUMIF(Working!$8:$8,Annual!D$4,Working!248:248)*D27 -> 12600 | E14: =SUMIF(Working!$8:$8,Annual!E$4,Working!248:248)*E27 -> 22400 | F14: =SUMIF(Working!$8:$8,Annual!F$4,Working!248:248)*F27 -> 17422.22222 | G14: =SUMIF(Working!$8:$8,Annual!G$4,Working!248:248)*G27 -> 13550.61728 | H14: =SUMIF(Working!$8:$8,Annual!H$4,Working!248:248)*H27 -> 10539.369 | I14: =SUMIF(Working!$8:$8,Annual!I$4,Working!248:248)*I27 -> 8645.576132 | J14: =SUMIF(Working!$8:$8,Annual!J$4,Working!248:248)*J27 -> 8069.20439 | K14: =SUMIF(Working!$8:$8,Annual!K$4,Working!248:248)*K27 -> 8069.20439 | L14: =SUMIF(Working!$8:$8,Annual!L$4,Working!248:248)*L27 -> 8069.20439 | M14: =SUMIF(Working!$8:$8,Annual!M$4,Working!248:248)*M27 -> 4034.602195 | N14: =SUMIF(Working!$8:$8,Annual!N$4,Working!248:248)*N27 -> 0 | O14: =SUMIF(Working!$8:$8,Annual!O$4,Working!248:248)*O27 -> 0 | P14: =SUMIF(Working!$8:$8,Annual!P$4,Working!248:248)*P27 -> 0 | Q14: =SUMIF(Working!$8:$8,Annual!Q$4,Working!248:248)*Q27 -> 0 | R14: =SUMIF(Working!$8:$8,Annual!R$4,Working!248:248)*R27 -> 0 | S14: =SUMIF(Working!$8:$8,Annual!S$4,Working!248:248)*S27 -> 0 | T14: =SUMIF(Working!$8:$8,Annual!T$4,Working!248:248)*T27 -> 0 | U14: =SUMIF(Working!$8:$8,Annual!U$4,Working!248:248)*U27 -> 0 | V14: =SUMIF(Working!$8:$8,Annual!V$4,Working!248:248)*V27 -> 0 | W14: =SUMIF(Working!$8:$8,Annual!W$4,Working!248:248)*W27 -> 0 | X14: =SUMIF(Working!$8:$8,Annual!X$4,Working!248:248)*X27 -> 0 | Y14: =SUMIF(Working!$8:$8,Annual!Y$4,Working!248:248)*Y27 -> 0 | Z14: =SUMIF(Working!$8:$8,Annual!Z$4,Working!248:248)*Z27 -> 0 | AA14: =SUMIF(Working!$8:$8,Annual!AA$4,Working!248:248)*AA27 -> 0 | AB14: =SUMIF(Working!$8:$8,Annual!AB$4,Working!248:248)*AB27 -> 0 | AC14: =SUMIF(Working!$8:$8,Annual!AC$4,Working!248:248)*AC27 -> 0 | AD14: =SUMIF(Working!$8:$8,Annual!AD$4,Working!248:248)*AD27 -> 0 | AE14: =SUMIF(Working!$8:$8,Annual!AE$4,Working!248:248)*AE27 -> 0 | AF14: =SUMIF(Working!$8:$8,Annual!AF$4,Working!248:248)*AF27 -> 0 | AG14: =SUMIF(Working!$8:$8,Annual!AG$4,Working!248:248)*AG27 -> 0 | AH14: =SUMIF(Working!$8:$8,Annual!AH$4,Working!248:248)*AH27 -> 0 | AI14: =SUMIF(Working!$8:$8,Annual!AI$4,Working!248:248)*AI27 -> 0 | AJ14: =SUMIF(Working!$8:$8,Annual!AJ$4,Working!248:248)*AJ27 -> 0 | AK14: =SUMIF(Working!$8:$8,Annual!AK$4,Working!248:248)*AK27 -> 0 | AL14: =SUMIF(Working!$8:$8,Annual!AL$4,Working!248:248)*AL27 -> 0 | AM14: =SUMIF(Working!$8:$8,Annual!AM$4,Working!248:248)*AM27 -> 0 | AN14: =SUMIF(Working!$8:$8,Annual!AN$4,Working!248:248)*AN27 -> 0 | AO14: =SUMIF(Working!$8:$8,Annual!AO$4,Working!248:248)*AO27 -> 0 | AP14: =SUMIF(Working!$8:$8,Annual!AP$4,Working!248:248)*AP27 -> 0 | AQ14: =SUMIF(Working!$8:$8,Annual!AQ$4,Working!248:248)*AQ27 -> 0 | AR14: =SUMIF(Working!$8:$8,Annual!AR$4,Working!248:248)*AR27 -> 0 | AS14: =SUMIF(Working!$8:$8,Annual!AS$4,Working!248:248)*AS27 -> 0 | AT14: =SUMIF(Working!$8:$8,Annual!AT$4,Working!248:248)*AT27 -> 0 | AU14: =SUMIF(Working!$8:$8,Annual!AU$4,Working!248:248)*AU27 -> 0 | AV14: =SUMIF(Working!$8:$8,Annual!AV$4,Working!248:248)*AV27 -> 0 | AW14: =SUMIF(Working!$8:$8,Annual!AW$4,Working!248:248)*AW27 -> 0 | AX14: =SUMIF(Working!$8:$8,Annual!AX$4,Working!248:248)*AX27 -> 0 | AY14: =SUMIF(Working!$8:$8,Annual!AY$4,Working!248:248)*AY27 -> 0 | AZ14: =SUMIF(Working!$8:$8,Annual!AZ$4,Working!248:248)*AZ27 -> 0 | BA14: =SUMIF(Working!$8:$8,Annual!BA$4,Working!248:248)*BA27 -> 0 | BB14: =SUMIF(Working!$8:$8,Annual!BB$4,Working!248:248)*BB27 -> 0 | BC14: =SUMIF(Working!$8:$8,Annual!BC$4,Working!248:248)*BC27 -> 0 | BD14: =SUMIF(Working!$8:$8,Annual!BD$4,Working!248:248)*BD27 -> 0 | BE14: =SUMIF(Working!$8:$8,Annual!BE$4,Working!248:248)*BE27 -> 0 | BF14: =SUMIF(Working!$8:$8,Annual!BF$4,Working!248:248)*BF27 -> 0 | BG14: =SUMIF(Working!$8:$8,Annual!BG$4,Working!248:248)*BG27 -> 0 | BH14: =SUMIF(Working!$8:$8,Annual!BH$4,Working!248:248)*BH27 -> 0 | BI14: =SUMIF(Working!$8:$8,Annual!BI$4,Working!248:248)*BI27 -> 0 | BJ14: =SUMIF(Working!$8:$8,Annual!BJ$4,Working!248:248)*BJ27 -> 0 | BK14: =SUMIF(Working!$8:$8,Annual!BK$4,Working!248:248)*BK27 -> 0 | BL14: =SUMIF(Working!$8:$8,Annual!BL$4,Working!248:248)*BL27 -> 0 | BM14: =SUMIF(Working!$8:$8,Annual!BM$4,Working!248:248)*BM27 -> 0 | BN14: =SUMIF(Working!$8:$8,Annual!BN$4,Working!248:248)*BN27 -> 0 | BO14: =SUMIF(Working!$8:$8,Annual!BO$4,Working!248:248)*BO27 -> 0 | BP14: =SUMIF(Working!$8:$8,Annual!BP$4,Working!248:248)*BP27 -> 0 | BQ14: =SUMIF(Working!$8:$8,Annual!BQ$4,Working!248:248)*BQ27 -> 0 | BR14: =SUMIF(Working!$8:$8,Annual!BR$4,Working!248:248)*BR27 -> 0 | BS14: =SUMIF(Working!$8:$8,Annual!BS$4,Working!248:248)*BS27 -> 0 | BT14: =SUMIF(Working!$8:$8,Annual!BT$4,Working!248:248)*BT27 -> 0 | BU14: =SUMIF(Working!$8:$8,Annual!BU$4,Working!248:248)*BU27 -> 0 | BV14: =SUMIF(Working!$8:$8,Annual!BV$4,Working!248:248)*BV27 -> 0 | BW14: =SUMIF(Working!$8:$8,Annual!BW$4,Working!248:248)*BW27 -> 0 | BX14: =SUMIF(Working!$8:$8,Annual!BX$4,Working!248:248)*BX27 -> 0 | BY14: =SUMIF(Working!$8:$8,Annual!BY$4,Working!248:248)*BY27 -> 0 | BZ14: =SUMIF(Working!$8:$8,Annual!BZ$4,Working!248:248)*BZ27 -> 0
C15: Operating Taxes | D15: =SUMIF(Working!$8:$8,Annual!D$4,Working!263:263)*D27 -> 0 | E15: =SUMIF(Working!$8:$8,Annual!E$4,Working!263:263)*E27 -> 0 | F15: =SUMIF(Working!$8:$8,Annual!F$4,Working!263:263)*F27 -> 0 | G15: =SUMIF(Working!$8:$8,Annual!G$4,Working!263:263)*G27 -> 0 | H15: =SUMIF(Working!$8:$8,Annual!H$4,Working!263:263)*H27 -> 0 | I15: =SUMIF(Working!$8:$8,Annual!I$4,Working!263:263)*I27 -> 0 | J15: =SUMIF(Working!$8:$8,Annual!J$4,Working!263:263)*J27 -> 2.749449581 | K15: =SUMIF(Working!$8:$8,Annual!K$4,Working!263:263)*K27 -> 1781.303841 | L15: =SUMIF(Working!$8:$8,Annual!L$4,Working!263:263)*L27 -> 1873.674528 | M15: =SUMIF(Working!$8:$8,Annual!M$4,Working!263:263)*M27 -> 2785.220429 | N15: =SUMIF(Working!$8:$8,Annual!N$4,Working!263:263)*N27 -> 3699.905094 | O15: =SUMIF(Working!$8:$8,Annual!O$4,Working!263:263)*O27 -> 3821.265293 | P15: =SUMIF(Working!$8:$8,Annual!P$4,Working!263:263)*P27 -> 3925.229314 | Q15: =SUMIF(Working!$8:$8,Annual!Q$4,Working!263:263)*Q27 -> 4042.986194 | R15: =SUMIF(Working!$8:$8,Annual!R$4,Working!263:263)*R27 -> 4164.27578 | S15: =SUMIF(Working!$8:$8,Annual!S$4,Working!263:263)*S27 -> 4300.867752 | T15: =SUMIF(Working!$8:$8,Annual!T$4,Working!263:263)*T27 -> 4417.880175 | U15: =SUMIF(Working!$8:$8,Annual!U$4,Working!263:263)*U27 -> 4550.41658 | V15: =SUMIF(Working!$8:$8,Annual!V$4,Working!263:263)*V27 -> 4686.929077 | W15: =SUMIF(Working!$8:$8,Annual!W$4,Working!263:263)*W27 -> 4840.664546 | X15: =SUMIF(Working!$8:$8,Annual!X$4,Working!263:263)*X27 -> 0 | Y15: =SUMIF(Working!$8:$8,Annual!Y$4,Working!263:263)*Y27 -> 0 | Z15: =SUMIF(Working!$8:$8,Annual!Z$4,Working!263:263)*Z27 -> 0 | AA15: =SUMIF(Working!$8:$8,Annual!AA$4,Working!263:263)*AA27 -> 0 | AB15: =SUMIF(Working!$8:$8,Annual!AB$4,Working!263:263)*AB27 -> 0 | AC15: =SUMIF(Working!$8:$8,Annual!AC$4,Working!263:263)*AC27 -> 0 | AD15: =SUMIF(Working!$8:$8,Annual!AD$4,Working!263:263)*AD27 -> 0 | AE15: =SUMIF(Working!$8:$8,Annual!AE$4,Working!263:263)*AE27 -> 0 | AF15: =SUMIF(Working!$8:$8,Annual!AF$4,Working!263:263)*AF27 -> 0 | AG15: =SUMIF(Working!$8:$8,Annual!AG$4,Working!263:263)*AG27 -> 0 | AH15: =SUMIF(Working!$8:$8,Annual!AH$4,Working!263:263)*AH27 -> 0 | AI15: =SUMIF(Working!$8:$8,Annual!AI$4,Working!263:263)*AI27 -> 0 | AJ15: =SUMIF(Working!$8:$8,Annual!AJ$4,Working!263:263)*AJ27 -> 0 | AK15: =SUMIF(Working!$8:$8,Annual!AK$4,Working!263:263)*AK27 -> 0 | AL15: =SUMIF(Working!$8:$8,Annual!AL$4,Working!263:263)*AL27 -> 0 | AM15: =SUMIF(Working!$8:$8,Annual!AM$4,Working!263:263)*AM27 -> 0 | AN15: =SUMIF(Working!$8:$8,Annual!AN$4,Working!263:263)*AN27 -> 0 | AO15: =SUMIF(Working!$8:$8,Annual!AO$4,Working!263:263)*AO27 -> 0 | AP15: =SUMIF(Working!$8:$8,Annual!AP$4,Working!263:263)*AP27 -> 0 | AQ15: =SUMIF(Working!$8:$8,Annual!AQ$4,Working!263:263)*AQ27 -> 0 | AR15: =SUMIF(Working!$8:$8,Annual!AR$4,Working!263:263)*AR27 -> 0 | AS15: =SUMIF(Working!$8:$8,Annual!AS$4,Working!263:263)*AS27 -> 0 | AT15: =SUMIF(Working!$8:$8,Annual!AT$4,Working!263:263)*AT27 -> 0 | AU15: =SUMIF(Working!$8:$8,Annual!AU$4,Working!263:263)*AU27 -> 0 | AV15: =SUMIF(Working!$8:$8,Annual!AV$4,Working!263:263)*AV27 -> 0 | AW15: =SUMIF(Working!$8:$8,Annual!AW$4,Working!263:263)*AW27 -> 0 | AX15: =SUMIF(Working!$8:$8,Annual!AX$4,Working!263:263)*AX27 -> 0 | AY15: =SUMIF(Working!$8:$8,Annual!AY$4,Working!263:263)*AY27 -> 0 | AZ15: =SUMIF(Working!$8:$8,Annual!AZ$4,Working!263:263)*AZ27 -> 0 | BA15: =SUMIF(Working!$8:$8,Annual!BA$4,Working!263:263)*BA27 -> 0 | BB15: =SUMIF(Working!$8:$8,Annual!BB$4,Working!263:263)*BB27 -> 0 | BC15: =SUMIF(Working!$8:$8,Annual!BC$4,Working!263:263)*BC27 -> 0 | BD15: =SUMIF(Working!$8:$8,Annual!BD$4,Working!263:263)*BD27 -> 0 | BE15: =SUMIF(Working!$8:$8,Annual!BE$4,Working!263:263)*BE27 -> 0 | BF15: =SUMIF(Working!$8:$8,Annual!BF$4,Working!263:263)*BF27 -> 0 | BG15: =SUMIF(Working!$8:$8,Annual!BG$4,Working!263:263)*BG27 -> 0 | BH15: =SUMIF(Working!$8:$8,Annual!BH$4,Working!263:263)*BH27 -> 0 | BI15: =SUMIF(Working!$8:$8,Annual!BI$4,Working!263:263)*BI27 -> 0 | BJ15: =SUMIF(Working!$8:$8,Annual!BJ$4,Working!263:263)*BJ27 -> 0 | BK15: =SUMIF(Working!$8:$8,Annual!BK$4,Working!263:263)*BK27 -> 0 | BL15: =SUMIF(Working!$8:$8,Annual!BL$4,Working!263:263)*BL27 -> 0 | BM15: =SUMIF(Working!$8:$8,Annual!BM$4,Working!263:263)*BM27 -> 0 | BN15: =SUMIF(Working!$8:$8,Annual!BN$4,Working!263:263)*BN27 -> 0 | BO15: =SUMIF(Working!$8:$8,Annual!BO$4,Working!263:263)*BO27 -> 0 | BP15: =SUMIF(Working!$8:$8,Annual!BP$4,Working!263:263)*BP27 -> 0 | BQ15: =SUMIF(Working!$8:$8,Annual!BQ$4,Working!263:263)*BQ27 -> 0 | BR15: =SUMIF(Working!$8:$8,Annual!BR$4,Working!263:263)*BR27 -> 0 | BS15: =SUMIF(Working!$8:$8,Annual!BS$4,Working!263:263)*BS27 -> 0 | BT15: =SUMIF(Working!$8:$8,Annual!BT$4,Working!263:263)*BT27 -> 0 | BU15: =SUMIF(Working!$8:$8,Annual!BU$4,Working!263:263)*BU27 -> 0 | BV15: =SUMIF(Working!$8:$8,Annual!BV$4,Working!263:263)*BV27 -> 0 | BW15: =SUMIF(Working!$8:$8,Annual!BW$4,Working!263:263)*BW27 -> 0 | BX15: =SUMIF(Working!$8:$8,Annual!BX$4,Working!263:263)*BX27 -> 0 | BY15: =SUMIF(Working!$8:$8,Annual!BY$4,Working!263:263)*BY27 -> 0 | BZ15: =SUMIF(Working!$8:$8,Annual!BZ$4,Working!263:263)*BZ27 -> 0
C16: Free Cash Flow | D16: =SUMIF(Working!$8:$8,Annual!D$4,Working!265:265)*D27 -> 67.51867736 | E16: =SUMIF(Working!$8:$8,Annual!E$4,Working!265:265)*E27 -> 12772.15719 | F16: =SUMIF(Working!$8:$8,Annual!F$4,Working!265:265)*F27 -> 13754.30455 | G16: =SUMIF(Working!$8:$8,Annual!G$4,Working!265:265)*G27 -> 14444.88382 | H16: =SUMIF(Working!$8:$8,Annual!H$4,Working!265:265)*H27 -> 14524.745 | I16: =SUMIF(Working!$8:$8,Annual!I$4,Working!265:265)*I27 -> 15466.95361 | J16: =SUMIF(Working!$8:$8,Annual!J$4,Working!265:265)*J27 -> 16433.83932 | K16: =SUMIF(Working!$8:$8,Annual!K$4,Working!265:265)*K27 -> 15194.41975 | L16: =SUMIF(Working!$8:$8,Annual!L$4,Working!265:265)*L27 -> 15563.9025 | M16: =SUMIF(Working!$8:$8,Annual!M$4,Working!265:265)*M27 -> 15175.48391 | N16: =SUMIF(Working!$8:$8,Annual!N$4,Working!265:265)*N27 -> 14799.62038 | O16: =SUMIF(Working!$8:$8,Annual!O$4,Working!265:265)*O27 -> 15285.06117 | P16: =SUMIF(Working!$8:$8,Annual!P$4,Working!265:265)*P27 -> 15700.91726 | Q16: =SUMIF(Working!$8:$8,Annual!Q$4,Working!265:265)*Q27 -> 16171.94478 | R16: =SUMIF(Working!$8:$8,Annual!R$4,Working!265:265)*R27 -> 16657.10312 | S16: =SUMIF(Working!$8:$8,Annual!S$4,Working!265:265)*S27 -> 17203.47101 | T16: =SUMIF(Working!$8:$8,Annual!T$4,Working!265:265)*T27 -> 17671.5207 | U16: =SUMIF(Working!$8:$8,Annual!U$4,Working!265:265)*U27 -> 18201.66632 | V16: =SUMIF(Working!$8:$8,Annual!V$4,Working!265:265)*V27 -> 18747.71631 | W16: =SUMIF(Working!$8:$8,Annual!W$4,Working!265:265)*W27 -> 19362.65818 | X16: =SUMIF(Working!$8:$8,Annual!X$4,Working!265:265)*X27 -> 0 | Y16: =SUMIF(Working!$8:$8,Annual!Y$4,Working!265:265)*Y27 -> 0 | Z16: =SUMIF(Working!$8:$8,Annual!Z$4,Working!265:265)*Z27 -> 0 | AA16: =SUMIF(Working!$8:$8,Annual!AA$4,Working!265:265)*AA27 -> 0 | AB16: =SUMIF(Working!$8:$8,Annual!AB$4,Working!265:265)*AB27 -> 0 | AC16: =SUMIF(Working!$8:$8,Annual!AC$4,Working!265:265)*AC27 -> 0 | AD16: =SUMIF(Working!$8:$8,Annual!AD$4,Working!265:265)*AD27 -> 0 | AE16: =SUMIF(Working!$8:$8,Annual!AE$4,Working!265:265)*AE27 -> 0 | AF16: =SUMIF(Working!$8:$8,Annual!AF$4,Working!265:265)*AF27 -> 0 | AG16: =SUMIF(Working!$8:$8,Annual!AG$4,Working!265:265)*AG27 -> 0 | AH16: =SUMIF(Working!$8:$8,Annual!AH$4,Working!265:265)*AH27 -> 0 | AI16: =SUMIF(Working!$8:$8,Annual!AI$4,Working!265:265)*AI27 -> 0 | AJ16: =SUMIF(Working!$8:$8,Annual!AJ$4,Working!265:265)*AJ27 -> 0 | AK16: =SUMIF(Working!$8:$8,Annual!AK$4,Working!265:265)*AK27 -> 0 | AL16: =SUMIF(Working!$8:$8,Annual!AL$4,Working!265:265)*AL27 -> 0 | AM16: =SUMIF(Working!$8:$8,Annual!AM$4,Working!265:265)*AM27 -> 0 | AN16: =SUMIF(Working!$8:$8,Annual!AN$4,Working!265:265)*AN27 -> 0 | AO16: =SUMIF(Working!$8:$8,Annual!AO$4,Working!265:265)*AO27 -> 0 | AP16: =SUMIF(Working!$8:$8,Annual!AP$4,Working!265:265)*AP27 -> 0 | AQ16: =SUMIF(Working!$8:$8,Annual!AQ$4,Working!265:265)*AQ27 -> 0 | AR16: =SUMIF(Working!$8:$8,Annual!AR$4,Working!265:265)*AR27 -> 0 | AS16: =SUMIF(Working!$8:$8,Annual!AS$4,Working!265:265)*AS27 -> 0 | AT16: =SUMIF(Working!$8:$8,Annual!AT$4,Working!265:265)*AT27 -> 0 | AU16: =SUMIF(Working!$8:$8,Annual!AU$4,Working!265:265)*AU27 -> 0 | AV16: =SUMIF(Working!$8:$8,Annual!AV$4,Working!265:265)*AV27 -> 0 | AW16: =SUMIF(Working!$8:$8,Annual!AW$4,Working!265:265)*AW27 -> 0 | AX16: =SUMIF(Working!$8:$8,Annual!AX$4,Working!265:265)*AX27 -> 0 | AY16: =SUMIF(Working!$8:$8,Annual!AY$4,Working!265:265)*AY27 -> 0 | AZ16: =SUMIF(Working!$8:$8,Annual!AZ$4,Working!265:265)*AZ27 -> 0 | BA16: =SUMIF(Working!$8:$8,Annual!BA$4,Working!265:265)*BA27 -> 0 | BB16: =SUMIF(Working!$8:$8,Annual!BB$4,Working!265:265)*BB27 -> 0 | BC16: =SUMIF(Working!$8:$8,Annual!BC$4,Working!265:265)*BC27 -> 0 | BD16: =SUMIF(Working!$8:$8,Annual!BD$4,Working!265:265)*BD27 -> 0 | BE16: =SUMIF(Working!$8:$8,Annual!BE$4,Working!265:265)*BE27 -> 0 | BF16: =SUMIF(Working!$8:$8,Annual!BF$4,Working!265:265)*BF27 -> 0 | BG16: =SUMIF(Working!$8:$8,Annual!BG$4,Working!265:265)*BG27 -> 0 | BH16: =SUMIF(Working!$8:$8,Annual!BH$4,Working!265:265)*BH27 -> 0 | BI16: =SUMIF(Working!$8:$8,Annual!BI$4,Working!265:265)*BI27 -> 0 | BJ16: =SUMIF(Working!$8:$8,Annual!BJ$4,Working!265:265)*BJ27 -> 0 | BK16: =SUMIF(Working!$8:$8,Annual!BK$4,Working!265:265)*BK27 -> 0 | BL16: =SUMIF(Working!$8:$8,Annual!BL$4,Working!265:265)*BL27 -> 0 | BM16: =SUMIF(Working!$8:$8,Annual!BM$4,Working!265:265)*BM27 -> 0 | BN16: =SUMIF(Working!$8:$8,Annual!BN$4,Working!265:265)*BN27 -> 0 | BO16: =SUMIF(Working!$8:$8,Annual!BO$4,Working!265:265)*BO27 -> 0 | BP16: =SUMIF(Working!$8:$8,Annual!BP$4,Working!265:265)*BP27 -> 0 | BQ16: =SUMIF(Working!$8:$8,Annual!BQ$4,Working!265:265)*BQ27 -> 0 | BR16: =SUMIF(Working!$8:$8,Annual!BR$4,Working!265:265)*BR27 -> 0 | BS16: =SUMIF(Working!$8:$8,Annual!BS$4,Working!265:265)*BS27 -> 0 | BT16: =SUMIF(Working!$8:$8,Annual!BT$4,Working!265:265)*BT27 -> 0 | BU16: =SUMIF(Working!$8:$8,Annual!BU$4,Working!265:265)*BU27 -> 0 | BV16: =SUMIF(Working!$8:$8,Annual!BV$4,Working!265:265)*BV27 -> 0 | BW16: =SUMIF(Working!$8:$8,Annual!BW$4,Working!265:265)*BW27 -> 0 | BX16: =SUMIF(Working!$8:$8,Annual!BX$4,Working!265:265)*BX27 -> 0 | BY16: =SUMIF(Working!$8:$8,Annual!BY$4,Working!265:265)*BY27 -> 0 | BZ16: =SUMIF(Working!$8:$8,Annual!BZ$4,Working!265:265)*BZ27 -> 0
C17: Interest Scheduled | D17: =SUMIF(Working!$8:$8,Annual!D$4,Working!510:510)*D27 -> 1950.918093 | E17: =SUMIF(Working!$8:$8,Annual!E$4,Working!510:510)*E27 -> 3732.476494 | F17: =SUMIF(Working!$8:$8,Annual!F$4,Working!510:510)*F27 -> 3593.622131 | G17: =SUMIF(Working!$8:$8,Annual!G$4,Working!510:510)*G27 -> 3436.058989 | H17: =SUMIF(Working!$8:$8,Annual!H$4,Working!510:510)*H27 -> 3249.775519 | I17: =SUMIF(Working!$8:$8,Annual!I$4,Working!510:510)*I27 -> 3040.946294 | J17: =SUMIF(Working!$8:$8,Annual!J$4,Working!510:510)*J27 -> 2732.685956 | K17: =SUMIF(Working!$8:$8,Annual!K$4,Working!510:510)*K27 -> 2408.819939 | L17: =SUMIF(Working!$8:$8,Annual!L$4,Working!510:510)*L27 -> 2068.558204 | M17: =SUMIF(Working!$8:$8,Annual!M$4,Working!510:510)*M27 -> 1711.070719 | N17: =SUMIF(Working!$8:$8,Annual!N$4,Working!510:510)*N27 -> 1335.48543 | O17: =SUMIF(Working!$8:$8,Annual!O$4,Working!510:510)*O27 -> 940.8861359 | P17: =SUMIF(Working!$8:$8,Annual!P$4,Working!510:510)*P27 -> 526.3102525 | Q17: =SUMIF(Working!$8:$8,Annual!Q$4,Working!510:510)*Q27 -> 101.171337 | R17: =SUMIF(Working!$8:$8,Annual!R$4,Working!510:510)*R27 -> 0 | S17: =SUMIF(Working!$8:$8,Annual!S$4,Working!510:510)*S27 -> 0 | T17: =SUMIF(Working!$8:$8,Annual!T$4,Working!510:510)*T27 -> 0 | U17: =SUMIF(Working!$8:$8,Annual!U$4,Working!510:510)*U27 -> 0 | V17: =SUMIF(Working!$8:$8,Annual!V$4,Working!510:510)*V27 -> 0 | W17: =SUMIF(Working!$8:$8,Annual!W$4,Working!510:510)*W27 -> 0 | X17: =SUMIF(Working!$8:$8,Annual!X$4,Working!510:510)*X27 -> 0 | Y17: =SUMIF(Working!$8:$8,Annual!Y$4,Working!510:510)*Y27 -> 0 | Z17: =SUMIF(Working!$8:$8,Annual!Z$4,Working!510:510)*Z27 -> 0 | AA17: =SUMIF(Working!$8:$8,Annual!AA$4,Working!510:510)*AA27 -> 0 | AB17: =SUMIF(Working!$8:$8,Annual!AB$4,Working!510:510)*AB27 -> 0 | AC17: =SUMIF(Working!$8:$8,Annual!AC$4,Working!510:510)*AC27 -> 0 | AD17: =SUMIF(Working!$8:$8,Annual!AD$4,Working!510:510)*AD27 -> 0 | AE17: =SUMIF(Working!$8:$8,Annual!AE$4,Working!510:510)*AE27 -> 0 | AF17: =SUMIF(Working!$8:$8,Annual!AF$4,Working!510:510)*AF27 -> 0 | AG17: =SUMIF(Working!$8:$8,Annual!AG$4,Working!510:510)*AG27 -> 0 | AH17: =SUMIF(Working!$8:$8,Annual!AH$4,Working!510:510)*AH27 -> 0 | AI17: =SUMIF(Working!$8:$8,Annual!AI$4,Working!510:510)*AI27 -> 0 | AJ17: =SUMIF(Working!$8:$8,Annual!AJ$4,Working!510:510)*AJ27 -> 0 | AK17: =SUMIF(Working!$8:$8,Annual!AK$4,Working!510:510)*AK27 -> 0 | AL17: =SUMIF(Working!$8:$8,Annual!AL$4,Working!510:510)*AL27 -> 0 | AM17: =SUMIF(Working!$8:$8,Annual!AM$4,Working!510:510)*AM27 -> 0 | AN17: =SUMIF(Working!$8:$8,Annual!AN$4,Working!510:510)*AN27 -> 0 | AO17: =SUMIF(Working!$8:$8,Annual!AO$4,Working!510:510)*AO27 -> 0 | AP17: =SUMIF(Working!$8:$8,Annual!AP$4,Working!510:510)*AP27 -> 0 | AQ17: =SUMIF(Working!$8:$8,Annual!AQ$4,Working!510:510)*AQ27 -> 0 | AR17: =SUMIF(Working!$8:$8,Annual!AR$4,Working!510:510)*AR27 -> 0 | AS17: =SUMIF(Working!$8:$8,Annual!AS$4,Working!510:510)*AS27 -> 0 | AT17: =SUMIF(Working!$8:$8,Annual!AT$4,Working!510:510)*AT27 -> 0 | AU17: =SUMIF(Working!$8:$8,Annual!AU$4,Working!510:510)*AU27 -> 0 | AV17: =SUMIF(Working!$8:$8,Annual!AV$4,Working!510:510)*AV27 -> 0 | AW17: =SUMIF(Working!$8:$8,Annual!AW$4,Working!510:510)*AW27 -> 0 | AX17: =SUMIF(Working!$8:$8,Annual!AX$4,Working!510:510)*AX27 -> 0 | AY17: =SUMIF(Working!$8:$8,Annual!AY$4,Working!510:510)*AY27 -> 0 | AZ17: =SUMIF(Working!$8:$8,Annual!AZ$4,Working!510:510)*AZ27 -> 0 | BA17: =SUMIF(Working!$8:$8,Annual!BA$4,Working!510:510)*BA27 -> 0 | BB17: =SUMIF(Working!$8:$8,Annual!BB$4,Working!510:510)*BB27 -> 0 | BC17: =SUMIF(Working!$8:$8,Annual!BC$4,Working!510:510)*BC27 -> 0 | BD17: =SUMIF(Working!$8:$8,Annual!BD$4,Working!510:510)*BD27 -> 0 | BE17: =SUMIF(Working!$8:$8,Annual!BE$4,Working!510:510)*BE27 -> 0 | BF17: =SUMIF(Working!$8:$8,Annual!BF$4,Working!510:510)*BF27 -> 0 | BG17: =SUMIF(Working!$8:$8,Annual!BG$4,Working!510:510)*BG27 -> 0 | BH17: =SUMIF(Working!$8:$8,Annual!BH$4,Working!510:510)*BH27 -> 0 | BI17: =SUMIF(Working!$8:$8,Annual!BI$4,Working!510:510)*BI27 -> 0 | BJ17: =SUMIF(Working!$8:$8,Annual!BJ$4,Working!510:510)*BJ27 -> 0 | BK17: =SUMIF(Working!$8:$8,Annual!BK$4,Working!510:510)*BK27 -> 0 | BL17: =SUMIF(Working!$8:$8,Annual!BL$4,Working!510:510)*BL27 -> 0 | BM17: =SUMIF(Working!$8:$8,Annual!BM$4,Working!510:510)*BM27 -> 0 | BN17: =SUMIF(Working!$8:$8,Annual!BN$4,Working!510:510)*BN27 -> 0 | BO17: =SUMIF(Working!$8:$8,Annual!BO$4,Working!510:510)*BO27 -> 0 | BP17: =SUMIF(Working!$8:$8,Annual!BP$4,Working!510:510)*BP27 -> 0 | BQ17: =SUMIF(Working!$8:$8,Annual!BQ$4,Working!510:510)*BQ27 -> 0 | BR17: =SUMIF(Working!$8:$8,Annual!BR$4,Working!510:510)*BR27 -> 0 | BS17: =SUMIF(Working!$8:$8,Annual!BS$4,Working!510:510)*BS27 -> 0 | BT17: =SUMIF(Working!$8:$8,Annual!BT$4,Working!510:510)*BT27 -> 0 | BU17: =SUMIF(Working!$8:$8,Annual!BU$4,Working!510:510)*BU27 -> 0 | BV17: =SUMIF(Working!$8:$8,Annual!BV$4,Working!510:510)*BV27 -> 0 | BW17: =SUMIF(Working!$8:$8,Annual!BW$4,Working!510:510)*BW27 -> 0 | BX17: =SUMIF(Working!$8:$8,Annual!BX$4,Working!510:510)*BX27 -> 0 | BY17: =SUMIF(Working!$8:$8,Annual!BY$4,Working!510:510)*BY27 -> 0 | BZ17: =SUMIF(Working!$8:$8,Annual!BZ$4,Working!510:510)*BZ27 -> 0
